Workbook

Sheet Info
D1: -1 | E1: 0 | F1: 1 | G1: 2 | H1: 3 | I1: 4 | J1: 5 | K1: 6 | L1: 7 | M1: 8 | N1: 9 | O1: 10 | P1: 11 | Q1: 12 | R1: 13 | S1: 14 | T1: 15 | Y1: =IF(OR(Z3="",Z4=""),"※ 市町村（左側）から順に選択してください","") -> ※ 市町村（左側）から順に選択してください | AD1: ｖ | AK1: v
V2: 表示行 | W2: 旧市町村数 | X2: 市町村行 | Y2: 参照シート、セル | Z2: check | AA2: 表示名 | AD2: 表示行 | AE2: 集落数 | AF2: 旧市町村行 | AG2: 参照シート | AH2: check | AK2: 表示行 | AL2: 集落数 | AM2: 旧市町村行 | AN2: 参照シート | AO2: check
D3: 県名 | G3: 市町村名 | J3: 旧市町村名 | V3: =IF(M4="",-1,IFERROR(MATCH(M4,OFFSET(集落2010,1,0,ROWS(集落2010),1),0)-1,3000))+AF3 -> 5 | W3: =COUNTIF('2010年'!B:B,Info!G4)-1 -> -1 | X3: =IF(G4="",6,MATCH(G4,'2010年'!B:B,0)) -> 6 | Y3: '2010年'!$A$1 | Z3: =OFFSET(INDIRECT(Y3),V3,1)&OFFSET(INDIRECT(Y3),V3,2)&OFFSET(INDIRECT(Y3),V3,3) ->  | AA3: =IF(OR(ISERROR(G4),ISERROR(J4),ISERROR(M4)),"表示できません",IF(G4&J4&M4="",D4,IF(M4<>"",M4,IF(J4<>"",IF($G$4=$J$4,"（旧）","")&$J$4,IF(J4<>"",J4,G4))))) -> 神奈川県 | AD3: =IF(M4="",-1,IFERROR(MATCH(M4,OFFSET(集落2010,1,0,ROWS(集落2010),1),0)-1,999))+AF3 -> 5 | AE3: =COUNTIF('2010年'!C:C,Info!J4)-1 -> 1046554 | AF3: =IF(J4="",X3,MATCH(J4,'2010年'!C:C,0)) -> 6 | AG3: '2010年'!$A$1 | AH3: =OFFSET(INDIRECT(AG3),AD3,1)&OFFSET(INDIRECT(AG3),AD3,2)&OFFSET(INDIRECT(AG3),AD3,3) ->  | AI3: =IF(OR(ISERROR(AJ3),ISERROR(AL3)),"表示できません",IF(V4<>"",V4,IF(R4<>"",IF($G$4=$J$4,"（旧）","")&$J$4,IF(O4<>"",O4,L4)))) -> 5 | AK3: =IF(M4="",-1,IFERROR(MATCH(M4,OFFSET(集落2010,1,0,ROWS(集落2010),1),0)-1,999))+AM3 -> 5 | AL3: =COUNTIF('2010年'!C:C,Info!J4)-1 -> 1046554 | AM3: =IF(J4="",X3,MATCH(J4,'2010年'!C:C,0)) -> 6 | AN3: '2010年'!$A$1 | AO3: =OFFSET(INDIRECT(AN3),AK3,1)&OFFSET(INDIRECT(AN3),AK3,2)&OFFSET(INDIRECT(AN3),AK3,3) ->  | AP3: =IF(OR(ISERROR(AQ3),ISERROR(AS3)),"表示できません",IF(AC4<>"",AC4,IF(Y4<>"",IF($G$4=$J$4,"（旧）","")&$J$4,IF(V4<>"",V4,S4)))) -> （旧）
D4: 神奈川県 | V4: =IF(M4="",-1,IFERROR(MATCH(M4,OFFSET(集落2015,1,0,ROWS(集落2015),1),0)-1,3000))+AF4 -> 5 | W4: =COUNTIF('2015年'!B:B,Info!G4)-1 -> -1 | X4: =IF(G4="",6,MATCH(G4,'2015年'!B:B,0)) -> 6 | Y4: '2015年'!$A$1 | Z4: =OFFSET(INDIRECT(Y4),V4,1)&OFFSET(INDIRECT(Y4),V4,2)&OFFSET(INDIRECT(Y4),V4,3) ->  | AD4: =IF(M4="",-1,IFERROR(MATCH(M4,OFFSET(集落2015,1,0,ROWS(集落2015),1),0)-1,999))+AF4 -> 5 | AE4: =COUNTIF('2015年'!C:C,Info!J4)-1 -> 1046554 | AF4: =IF(J4="",X3,MATCH(J4,'2015年'!C:C,0)) -> 6 | AG4: '2015年'!$A$1 | AH4: =OFFSET(INDIRECT(AG4),AD4,1)&OFFSET(INDIRECT(AG4),AD4,2)&OFFSET(INDIRECT(AG4),AD4,3) ->  | AK4: =IF(M4="",-1,IFERROR(MATCH(M4,OFFSET(集落2015,1,0,ROWS(集落2015),1),0)-1,999))+AM4 -> 5 | AL4: =COUNTIF('2015年'!C:C,Info!J4)-1 -> 1046554 | AM4: =IF(J4="",X4,MATCH(J4,'2010年'!C:C,0)) -> 6 | AN4: '2015年'!$A$1 | AO4: =OFFSET(INDIRECT(AN4),AK4,1)&OFFSET(INDIRECT(AN4),AK4,2)&OFFSET(INDIRECT(AN4),AK4,3) -> 
C6: ="総農家数" -> 総農家数 | G6: =IFERROR("◎ "&W11&IF(LEFT(R8,1)="県","の総農家に占める割合は "&TEXT(G13,"0.0")&"% で、"&D4&"（"&TEXT(G14,"0.0")&"%） "&X13,"は "&TEXT(G12,"#,###戸 で ")&W13&"、"&"総農家の "&TEXT(G13,"0.0")&"% を占める"),"") -> ◎ 販売農家は 12,685戸 で 2,178戸（14.7%） 減少、総農家の 51.7% を占める
K7: 単位：戸 | L7: 《主副業別割合》
F8: 総農家 | L8: =" "&IF(AND(LEFT(R8,1)<>"県",G4=""),D4,IF(LEFT(R8,1)="県",D12,$AA$3)) -> 神奈川県 | R8: 前回との比較
G9: 販売 農家 | K9: 自給的農家 | R9: ="外円："&IF(AND(LEFT(R8,1)="県",G4=""),D4,IF(LEFT(R8,1)="県",$AA$3,"2015年"))&CHAR(10)&"内円："&IF(LEFT(R8,1)="県",$D$4,"2010年") -> 外円：2015年 内円：2010年
H10: 主業 農家 | I10: 準主業 農家 | J10: 副業的 農家 | V10: 列番号 | W10: 概要 | Y10: 凡例 | AC10: 内円
D11: 2010年 | F11: =IFERROR(OFFSET(INDIRECT($Y$3),$V$3,$V11+E$1),"nc") -> 27,996 | G11: =IFERROR(OFFSET(INDIRECT($Y$3),$V$3,$V11+F$1),"nc") -> 14,863 | H11: =IFERROR(OFFSET(INDIRECT($Y$3),$V$3,$V11+G$1),"nc") -> 4,315 | I11: =IFERROR(OFFSET(INDIRECT($Y$3),$V$3,$V11+I$1),"nc") -> 3,718 | J11: =IFERROR(OFFSET(INDIRECT($Y$3),$V$3,$V11+K$1),"nc") -> 6,830 | K11: =IFERROR(OFFSET(INDIRECT($Y$3),$V$3,$V11+L$1),"nc") -> 13,133 | V11: =CELL("col",'2010年'!E6)-1 -> 4 | W11: 販売農家 | X11: 対県 | Y11: 主業農家 | Z11: 準主業農家 | AA11: 副業的農家 | AB11: 自給的農家 | AC11: =IF(LEFT(R8,1)="県",2,-1) -> -1
D12: 2015年 | F12: =IFERROR(OFFSET(INDIRECT($Y$4),$V$4,$V12+E$1),"nc") -> 24,552 | G12: =IFERROR(OFFSET(INDIRECT($Y$4),$V$4,$V12+F$1),"nc") -> 12,685 | H12: =IFERROR(OFFSET(INDIRECT($Y$4),$V$4,$V12+G$1),"nc") -> 3,514 | I12: =IFERROR(OFFSET(INDIRECT($Y$4),$V$4,$V12+I$1),"nc") -> 2,778 | J12: =IFERROR(OFFSET(INDIRECT($Y$4),$V$4,$V12+K$1),"nc") -> 6,393 | K12: =IFERROR(OFFSET(INDIRECT($Y$4),$V$4,$V12+L$1),"nc") -> 11,867 | V12: =CELL("col",'2015年'!E6)-1 -> 4 | W12: =G12/G11-1 -> -0.1465383839 | X12: =G13-G14 -> 0.0
E13: 構成比(%) | F13: =IF(OR(AND(ISTEXT($F12),$F12<>"X",$F12<>"-"),AND(ISTEXT(F12),F12<>"X",F12<>"-")),"nc",IF(OR($F12="X",F12="X"),"X",IF(ROUND(SUM($F12),0)=0,"nc",SUM(F12)/$F12%))) -> 100.0 | G13: =IF(OR(AND(ISTEXT($F12),$F12<>"X",$F12<>"-"),AND(ISTEXT(G12),G12<>"X",G12<>"-")),"nc",IF(OR($F12="X",G12="X"),"X",IF(ROUND(SUM($F12),0)=0,"nc",SUM(G12)/$F12%))) -> 51.7 | H13: =IF(OR(AND(ISTEXT($F12),$F12<>"X",$F12<>"-"),AND(ISTEXT(H12),H12<>"X",H12<>"-")),"nc",IF(OR($F12="X",H12="X"),"X",IF(ROUND(SUM($F12),0)=0,"nc",SUM(H12)/$F12%))) -> 14.3 | I13: 11.3 | J13: =IF(OR(AND(ISTEXT($F12),$F12<>"X",$F12<>"-"),AND(ISTEXT(J12),J12<>"X",J12<>"-")),"nc",IF(OR($F12="X",J12="X"),"X",IF(ROUND(SUM($F12),0)=0,"nc",SUM(J12)/$F12%))) -> 26.0 | K13: 48.3 | W13: =IF(W12=0,"変化なし",TEXT(ABS(G12-G11),"#,##0")&"戸（"&TEXT(ABS(W12),"0.0%")&"） "&IF(W12>0,"増加","減少")) -> 2,178戸（14.7%） 減少 | X13: =IF(X12=0,"と同率である","を"&TEXT(ABS(X12),"#,##0.0")&"ポイント "&IF(X12>0,"上回る","下回る")) -> と同率である
E14: 県計 構成比(%) | F14: 100.0 | G14: =IFERROR(OFFSET(INDIRECT($Y$4),5,$V$12+F1)/OFFSET(INDIRECT($Y$4),5,V12)*100,"nc") -> 51.7 | H14: =IFERROR(OFFSET(INDIRECT($Y$4),5,$V$12+G1)/OFFSET(INDIRECT($Y$4),5,V12)*100,"nc") -> 14.3 | I14: =IFERROR(OFFSET(INDIRECT($Y$4),5,$V$12+I1)/OFFSET(INDIRECT($Y$4),5,V12)*100,"nc") -> 11.3 | J14: =IFERROR(OFFSET(INDIRECT($Y$4),5,$V$12+K1)/OFFSET(INDIRECT($Y$4),5,V12)*100,"nc") -> 26.0 | K14: =IFERROR(OFFSET(INDIRECT($Y$4),5,$V$12+L1)/OFFSET(INDIRECT($Y$4),5,V12)*100,"nc") -> 48.3
D15: =IFERROR("《参考》"&G4&"の総農家数の全国順位："&TEXT(OFFSET(#REF!,MATCH(Info!G4,#REF!,0),0),"#,##0")&"位","") -> 
C18: 基幹的農業従事者数
D19: =IFERROR(IF(RIGHT(C18,4)="ください","","◎ "&C18&"は "&TEXT(F23,"#,##0人 で ")&W24&IFERROR("、平均年齢 "&TEXT(S23,"0.0歳は")&IF(LEFT(R28,1)="県","県平均","2010年")&X24,"")),"") -> ◎ 基幹的農業従事者数は 20,302人 で 3,744人（15.6%） 減少、平均年齢 66.0歳は2010年を 0.8歳上回る
S20: 単位：人
F21: 計 | G21: 15～39歳 | H21: 40～44 | I21: 45～49 | J21: 50～54 | K21: 55～59 | L21: 60～64 | M21: 65～69 | N21: 70～74 | O21: 75～79 | P21: 80～84 | Q21: 85歳以上 | R21: 65歳以上 | S21: 平均 年齢 （歳） | V21: 列番号 | W21: 概要 | Y21: 縦棒 左 | Z21: 縦棒 右 | AA21: 凡例
D22: 2010年 | F22: =IFERROR(OFFSET(INDIRECT($Y$3),$V$3,V23-1),"nc") -> 24,046 | G22: =IFERROR(IF(COUNTIF(OFFSET(INDIRECT($Y$3),$V$3,V23,1,5),"@")>0,"@",IF(COUNTIF(OFFSET(INDIRECT($Y$3),$V$3,V23,1,5),"X")>0,"X",SUM(OFFSET(INDIRECT($Y$3),$V$3,V23,1,5)))),"nc") -> 1,571 | H22: =IFERROR(OFFSET(INDIRECT($Y$3),$V$3,$V23+J$1),"nc") -> 808 | I22: =IFERROR(OFFSET(INDIRECT($Y$3),$V$3,$V23+K$1),"nc") -> 1,093 | J22: 1,504 | K22: 2,206 | L22: 2,957 | M22: 3,295 | N22: 3,499 | O22: 3,434 | P22: 2,459 | Q22: 1,220 | R22: =IF(COUNTIF(M22:Q22,"@"),"@",(IF(COUNTIF(M22:Q22,"X"),"X",SUM(M22:Q22)))) -> 13,907 | S22: =IFERROR(OFFSET(INDIRECT($Y$3),$V$3,V23+15),"nc") -> 65.2 | V22: =IF(C18="農業従事者数",1,IF(C18="農業就業人口",2,IF(C18="基幹的農業従事者数",3,ERROR.TYPE(5)))) -> 3 | W22: 人数 | X22: 平均年齢 | Y22: =IF(LEFT(R28,1)="県",3,-1) -> -1 | Z22: =IF(LEFT(R28,1)="県",1,0) -> 0 | AA22: =IF(LEFT(R28,1)="県",$D$4,$D22) -> 2010年
D23: 2015年 | F23: =IFERROR(OFFSET(INDIRECT($Y$4),$V$4,$V24-1),"nc") -> 20,302 | G23: =IFERROR(IF(COUNTIF(OFFSET(INDIRECT($Y$4),$V$4,$V24,1,5),"X")>0,"X",SUM(OFFSET(INDIRECT($Y$4),$V$4,$V24,1,5))),"nc") -> 1,299 | H23: =IFERROR(OFFSET(INDIRECT($Y$4),$V$4,$V24+5),"nc") -> 691 | I23: =IFERROR(OFFSET(INDIRECT($Y$4),$V$4,$V24+6),"nc") -> 864 | J23: =IFERROR(OFFSET(INDIRECT($Y$4),$V$4,$V24+7),"nc") -> 1,099 | K23: =IFERROR(OFFSET(INDIRECT($Y$4),$V$4,$V24+8),"nc") -> 1,496 | L23: =IFERROR(OFFSET(INDIRECT($Y$4),$V$4,$V24+9),"nc") -> 2,577 | M23: =IFERROR(OFFSET(INDIRECT($Y$4),$V$4,$V24+10),"nc") -> 3,036 | N23: =IFERROR(OFFSET(INDIRECT($Y$4),$V$4,$V24+11),"nc") -> 2,930 | O23: =IFERROR(OFFSET(INDIRECT($Y$4),$V$4,$V24+12),"nc") -> 2,749 | P23: =IFERROR(OFFSET(INDIRECT($Y$4),$V$4,$V24+13),"nc") -> 2,194 | Q23: =IFERROR(OFFSET(INDIRECT($Y$4),$V$4,$V24+14),"nc") -> 1,367 | R23: =IF(COUNTIF(M23:Q23,"X"),"X",SUM(M23:Q23)) -> 12,276 | S23: =IFERROR(OFFSET(INDIRECT($Y$4),$V$4,$V24+15),"nc") -> 66.0 | V23: =IFERROR(CHOOSE(V22,CELL("col",'2010年'!N6),CELL("col",'2010年'!AG6),CELL("col",'2010年'!AZ6))-1,555) -> 51 | W23: =F23/F22-1 -> -0.155701572 | X23: =S23-IF(LEFT(R28,1)="県",S26,S22) -> 0.8 | AA23: =IF(AND(LEFT(R28,1)="県",G4=""),D4,IF(LEFT(R28,1)="県",AA3,D23)) -> 2015年
E24: 構成比(%) | F24: =IF(OR(AND(ISTEXT($F23),$F23<>"X",$F23<>"-"),AND(ISTEXT(F23),F23<>"X",F23<>"-")),"nc",IF(OR($F23="X",F23="X"),"X",IF(ROUND(SUM($F23),0)=0,"nc",SUM(F23)/$F23%))) -> 100.0 | G24: 6.4 | H24: 3.4 | I24: 4.3 | J24: 5.4 | K24: 7.4 | L24: 12.7 | M24: 15.0 | N24: 14.4 | O24: 13.5 | P24: 10.8 | Q24: 6.7 | R24: 60.5 | V24: =IFERROR(CHOOSE(V22,CELL("col",'2015年'!N6),CELL("col",'2015年'!AG6),CELL("col",'2015年'!AZ6))-1,555) -> 51 | W24: =IF(W23=0,"変化なし",TEXT(ABS(F23-F22),"#,##0人")&"（"&TEXT(ABS(W23),"0.0%")&"） "&IF(W23>0,"増加","減少")) -> 3,744人（15.6%） 減少 | X24: =IF(X23=0,"と同じである","を "&TEXT(ABS(X23),"0.0歳")&IF(X23>0,"上回る","下回る")) -> を 0.8歳上回る
E25: 2015年 | F25: =IFERROR(OFFSET(INDIRECT($Y$4),5,V24-1),"nc") -> 20,302 | G25: =IFERROR(SUM(OFFSET(INDIRECT($Y$4),5,V24,1,5)),"nc") -> 1,299 | H25: =IFERROR(OFFSET(INDIRECT($Y$4),5,V24+5),"nc") -> 691 | I25: =IFERROR(OFFSET(INDIRECT($Y$4),5,V24+6),"nc") -> 864 | J25: =IFERROR(OFFSET(INDIRECT($Y$4),5,V24+7),"nc") -> 1,099 | K25: =IFERROR(OFFSET(INDIRECT($Y$4),5,V24+8),"nc") -> 1,496 | L25: =IFERROR(OFFSET(INDIRECT($Y$4),5,V24+9),"nc") -> 2,577 | M25: =IFERROR(OFFSET(INDIRECT($Y$4),5,V24+10),"nc") -> 3,036 | N25: =IFERROR(OFFSET(INDIRECT($Y$4),5,V24+11),"nc") -> 2,930 | O25: =IFERROR(OFFSET(INDIRECT($Y$4),5,V24+12),"nc") -> 2,749 | P25: =IFERROR(OFFSET(INDIRECT($Y$4),5,V24+13),"nc") -> 2,194 | Q25: =IFERROR(OFFSET(INDIRECT($Y$4),5,V24+14),"nc") -> 1,367 | R25: =SUM(M25:Q25) -> 12,276
E26: 県計 構成比(%) | F26: 100.0 | G26: =IFERROR(ROUND(G25/$F25*100,1),"nc") -> 6.4 | H26: =IFERROR(ROUND(H25/$F25*100,1),"nc") -> 3.4 | I26: 4.3 | J26: 5.4 | K26: 7.4 | L26: 12.7 | M26: 15.0 | N26: 14.4 | O26: 13.5 | P26: 10.8 | Q26: 6.7 | R26: 60.5 | S26: =IFERROR(OFFSET(INDIRECT($Y$4),5,V24+15),"nc") -> 66.0
D27: =IF(LEFT(R28,1)="県","（％）","（人）") -> （人） | G27: ="《年齢階層別"&C18&IF(LEFT(R28,1)="県","割合","")&"》 "&IF(AND(LEFT(R28,1)<>"県",G4=""),D4,IF(LEFT(R28,1)="県",D23,AA3)) -> 《年齢階層別基幹的農業従事者数》 神奈川県
R28: 前回との比較
C41: 後継者がいる農家数（販売農家）
D42: =IFERROR(" ◎ 後継者がいる農家数の割合は "&TEXT(H51,"0.0")&"％（"&TEXT(H50,"#,##0")&"戸）で、"&IF(LEFT(Z48,1)="県","県平均の "&TEXT(H52,"0.0"),"2010年の "&TEXT(H48,"0.0"))&"％"&AB49,"") -> ◎ 後継者がいる農家数の割合は 52.2％（6,626戸）で、県平均の 52.2％と同率である
D43: =IFERROR(IF(LEFT(Z49,1)="県","県平均の "&TEXT(H52,"0.0")," 2010年の "&TEXT(H48,"0.0"))&"％"&AB47,"") -> 2010年の 64.9％ を 12.7ポイント 下回る
H44: 単位：戸 | J44: ="《後継者のいる農家数"&IF(LEFT(Z49,1)="県","割合","")&"》 "&IF(AND(LEFT(Z49,1)<>"県",G4=""),D4,IF(LEFT(Z49,1)="県","2015年",AA3)) -> 《後継者のいる農家数》 神奈川県 | P44: ="《後継者のいる農家数"&IF(LEFT(Z48,1)="県","割合","")&"》 "&IF(AND(LEFT(Z48,1)<>"県",M4=""),J4,IF(LEFT(Z48,1)="県","2015年",AA3)) -> 《後継者のいる農家数割合》 2015年
H45: 計 | V45: 列番号 | W45: 2015年 | X45: 2010年 | Y45: 縦棒左 | Z45: 縦棒右 | AA45: 凡例 | AB45: 差
D46: 2010年 | E46: 農家数 | H46: =IFERROR(OFFSET(INDIRECT($Y$3),$V$3,X46-1),"nc") -> 14,863 | V46: 農家数 | W46: =CELL("col",'2015年'!BS6)-1 -> 70 | X46: =CELL("col",'2010年'!BS6)-1 -> 70 | Y46: 1 | Z46: 0 | AA46: =IF(LEFT(Z49,1)="県",$D$4,$D46) -> 2010年 | AB46: =H51-IF(LEFT(Z49,1)="県",H52,H48) -> -12.69140398347480
G47: 後継者がいる農家数 | H47: =IFERROR(OFFSET(INDIRECT(Y3),V3,X47-1),"nc") -> 9,650 | V47: 後継者有 | W47: =CELL("col",'2015年'!CI5)-1 -> 86 | X47: =CELL("col",'2010年'!CI5)-1 -> 86 | Y47: -4 | Z47: -1 | AA47: =IF(AND(LEFT(Z49,1)="県",G4=""),D4,IF(LEFT(Z49,1)="県",AA3,D49)) -> 2015年 | AB47: =IF(AB46=0,"と同率である"," を "&TEXT(ABS(AB46),"0.0")&"ポイント "&IF(AB46>0,"上回る","下回る")) -> を 12.7ポイント 下回る
G48: 割合(%) | H48: =IF(OR(AND(ISTEXT(H46),H46<>"X",H46<>"-"),AND(ISTEXT(H47),H47<>"X",H47<>"-")),"nc",IF(OR(H46="X",H47="X"),"X",IF(ROUND(SUM(H46),0)=0,"nc",SUM(H47)/H46%))) -> 64.9 | Z48: 県との比較 | AA48: =IF(LEFT(Z48,1)="県",$D$4,$D46) -> 神奈川県 | AB48: =H51-IF(LEFT(Z48,1)="県",H52,H48) -> 0.00000000000000
D49: 2015年 | E49: 農家数 | H49: =IFERROR(OFFSET(INDIRECT($Y$4),$V$4,W46-1),"nc") -> 12,685 | Z49: 前回との比較 | AA49: =AA3 -> 神奈川県 | AB49: =IF(AB48=0,"と同率である"," を "&TEXT(ABS(AB48),"0.0")&"ポイント "&IF(AB48>0,"上回る","下回る")) -> と同率である
G50: 後継者がいる農家数 | H50: =IFERROR(OFFSET(INDIRECT($Y$4),$V$4,$W47-1),"nc") -> 6,626
G51: 割合(%) | H51: =IF(OR(AND(ISTEXT(H49),H49<>"X",H49<>"-"),AND(ISTEXT(H50),H50<>"X",H50<>"-")),"nc",IF(OR(H49="X",H50="X"),"X",IF(ROUND(SUM(H49),0)=0,"nc",SUM(H50)/H49%))) -> 52.2
D52: 県計 | G52: 後継者がいる割合(%) | H52: =IFERROR(OFFSET(INDIRECT($Y$4),5,$W$47-1)/OFFSET(INDIRECT($Y$4),5,$W$46-1)*100,"nc") -> 52.2
D73: =IFERROR(" ◎ 一世代家族経営の割合は "&TEXT(G79/100,"0.0%")&"（"&TEXT(G78,"#,##0")&"戸）で、"&IF(LEFT(R75,1)="県","県平均の "&TEXT(G80/100,"0.0%"),"2010年の "&TEXT(G77/F77,"0.0%"))&W78,"") -> 
L74: 単位：戸
F75: 計 | G75: 一世代家族 経営 | J75: 二世代家族 経営 | L75: 三世代家族 経営 | R75: 前回との比較
H76: 一人家族経営 | I76: 夫婦家族経営 | K76: 親子家族経営 | V76: 列番号 | W76: 県、前回との差 | X76: グラフ用 | Y76: 一世代 | Z76: 二世代 | AA76: 三世代
D77: 2010年 | F77: =IFERROR(OFFSET(INDIRECT($Y$3),$V$3,$V77),"nc") -> nc | G77: =IFERROR(OFFSET(INDIRECT($Y$3),$V$3,$V$77+F1),"nc") -> nc | H77: nc | I77: nc | J77: nc | K77: nc | L77: nc | V77: =CELL("col",#REF!)-1 ->  | W77: =IF(LEFT(R75,1)="県",G79-G80,G79-G77/F77*100) ->  | X77: =IF(LEFT($R$75,1)="県",AA3,D77) -> 2010年 | Y77: =IF(LEFT($R$75,1)="県",G79,G77/F77*100) ->  | Z77: =IF(LEFT($R$75,1)="県",J79,J77/F77*100) ->  | AA77: =IF(LEFT($R$75,1)="県",L79,L77/F77*100) -> 
D78: 2015年 | F78: =IFERROR(OFFSET(INDIRECT($Y$4),$V$4,$V78),"nc") -> 0 | G78: =IFERROR(SUM(OFFSET(INDIRECT($Y$4),$V$4,$V$78+F1)),"nc") -> 0 | H78: 0 | I78: 0 | J78: 0 | K78: 0 | L78: 0 | V78: =CELL("col",'2015年'!CV6)-1 -> 99 | W78: =IF(W77=0," と同率である"," を "&TEXT(ABS(W77),"0.0")&"ポイント "&IF(W77>0,"上回る","下回る")) ->  | X78: =IF(LEFT($R$75,1)="県",D4,D78) -> 2015年 | Y78: =IF(LEFT($R$75,1)="県",G80,G79) -> nc | Z78: =IF(LEFT($R$75,1)="県",J80,J79) -> nc | AA78: =IF(LEFT($R$75,1)="県",L80,L79) -> nc
E79: 構成比(%) | F79: =IF(OR(AND(ISTEXT($F78),$F78<>"X",$F78<>"-"),AND(ISTEXT(F78),F78<>"X",F78<>"-")),"nc",IF(OR($F78="X",F78="X"),"X",IF(ROUND(SUM($F78),0)=0,"nc",SUM(F78)/$F78%))) -> nc | G79: nc | H79: nc | I79: nc | J79: nc | K79: nc | L79: nc
E80: 県計 構成比(%) | F80: 100.0 | G80: =IFERROR(OFFSET(INDIRECT($Y$4),5,$V$78+F1)/OFFSET(INDIRECT($Y$4),5,$V$78)%,"nc") -> nc | H80: nc | I80: nc | J80: nc | K80: nc | L80: nc
C84: 過去１年間の生活の主な状態別世帯員数（計）
D85: =IFERROR(" ◎ 「自営農業が主」の割合は "&TEXT(H91/100,"0.0%")&"（"&TEXT(H90,"#,###")&"戸）で、"&IF(LEFT(R87,1)="県"," 県平均"&"の "&TEXT(H93/100,"0.0%")&W90,"2010年の "&TEXT(H89/F89,"0.0%")&X90),"") -> ◎ 「自営農業が主」の割合は 45.7%（20,360戸）で、2010年の 42.6% を 3.0ポイント 上回る
M86: 単位：人 | N86: =" 《主な状態別世帯員数割合》 " -> 《主な状態別世帯員数割合》
F87: 計 | G87: 主に仕事 | K87: 主に 家事・育児 | L87: 学生 | M87: その他 | N87: =" "&IF(AND(LEFT(R87,1)<>"県",G4=""),D4,IF(LEFT(R87,1)="県",D90,AA3)) -> 神奈川県 | R87: 前回との比較 | W87: 自営農業の増減 | Y87: 凡例用 | AE87: 内円
G88: 小計 | H88: 自営農業が主 | I88: 勤務が主 | J88: 農業以外の自営が主 | R88: ="外円："&IF(AND(LEFT(R87,1)="県",G4=""),D4,IF(LEFT(R87,1)="県",$AA$3,"2015年"))&CHAR(10)&"内円："&IF(LEFT(R87,1)="県",$D$4,"2010年") -> 外円：2015年 内円：2010年 | V88: 列番号 | W88: 県 | X88: 前回 | Y88: 自営農業 | Z88: 勤務 | AA88: 農業以外の自営 | AB88: 家事・育児 | AC88: 学生 | AD88: その他 | AE88: offset 行数
A89: 15 | D89: 2010年 | F89: =IFERROR(OFFSET(INDIRECT($Y$3),$V$3,$V95-1),"nc") -> 56,435 | G89: =IFERROR(OFFSET(INDIRECT($Y$3),$V$3,$V95),"nc") -> 39,530 | H89: =IFERROR(OFFSET(INDIRECT($Y$3),$V$3,$V95+1),"nc") -> 24,050 | I89: =IFERROR(OFFSET(INDIRECT($Y$3),$V$3,$V95+2),"nc") -> 13,702 | J89: =IFERROR(OFFSET(INDIRECT($Y$3),$V$3,$V95+3),"nc") -> 1,778 | K89: =IFERROR(OFFSET(INDIRECT($Y$3),$V$3,$V95+4),"nc") -> 7,356 | L89: =IFERROR(OFFSET(INDIRECT($Y$3),$V$3,$V95+5),"nc") -> 4,801 | M89: =IFERROR(OFFSET(INDIRECT($Y$3),$V$3,$V95+6),"nc") -> 4,748 | V89: =CELL("col",'2010年'!DC6)-1 -> 106 | W89: =H91-H93 -> 0.00 | X89: =H91-H89/F89*100 -> 3.038920527 | AE89: =IF(LEFT(R87,1)="県",2,-1) -> -1
D90: 2015年 | F90: =IFERROR(OFFSET(INDIRECT($Y$4),$V$4,$V96-1),"nc") -> 44,596 | G90: =IFERROR(OFFSET(INDIRECT($Y$4),$V$4,$V96),"nc") -> 32,240 | H90: =IFERROR(OFFSET(INDIRECT($Y$4),$V$4,$V96+1),"nc") -> 20,360 | I90: =IFERROR(OFFSET(INDIRECT($Y$4),$V$4,$V96+2),"nc") -> 10,008 | J90: =IFERROR(OFFSET(INDIRECT($Y$4),$V$4,$V96+3),"nc") -> 1,872 | K90: =IFERROR(OFFSET(INDIRECT($Y$4),$V$4,$V96+4),"nc") -> 5,233 | L90: =IFERROR(OFFSET(INDIRECT($Y$4),$V$4,$V96+5),"nc") -> 3,292 | M90: =IFERROR(OFFSET(INDIRECT($Y$4),$V$4,$V96+6),"nc") -> 3,831 | V90: =CELL("col",'2015年'!DC6)-1 -> 106 | W90: =" "&IF(W89=0,"と同率である"," を "&TEXT(ABS(W89),"0.0")&"ポイント "&IF(W89>0,"上回る","下回る")) -> と同率である | X90: =IF(X89=0,"と同率である"," を "&TEXT(ABS(X89),"0.0")&"ポイント "&IF(X89>0,"上回る","下回る")) -> を 3.0ポイント 上回る
E91: 構成比(%) | F91: =IF(OR(AND(ISTEXT($F90),$F90<>"X",$F90<>"-"),AND(ISTEXT(F90),F90<>"X",F90<>"-")),"nc",IF(OR($F90="X",F90="X"),"X",IF(ROUND(SUM($F90),0)=0,"nc",SUM(F90)/$F90%))) -> 100.0 | G91: 72.3 | H91: 45.7 | I91: 22.4 | J91: 4.2 | K91: 11.7 | L91: 7.4 | M91: 8.6
E92: 県計 実数 | F92: =IFERROR(OFFSET(INDIRECT($Y$4),5,V96-1),"nc") -> 44,596 | G92: =IFERROR(OFFSET(INDIRECT($Y$4),5,$V$96),"nc") -> 32,240 | H92: =IFERROR(OFFSET(INDIRECT($Y$4),5,V96+1),"nc") -> 20,360 | I92: =IFERROR(OFFSET(INDIRECT($Y$4),5,V96+2),"nc") -> 10,008 | J92: =IFERROR(OFFSET(INDIRECT($Y$4),5,V96+3),"nc") -> 1,872 | K92: =IFERROR(OFFSET(INDIRECT($Y$4),5,V96+4),"nc") -> 5,233 | L92: =IFERROR(OFFSET(INDIRECT($Y$4),5,V96+5),"nc") -> 3,292 | M92: =IFERROR(OFFSET(INDIRECT($Y$4),5,V96+6),"nc") -> 3,831
E93: 県計 構成比(%) | F93: 100.0 | G93: =IFERROR(OFFSET(INDIRECT($Y$4),5,$V$96)/OFFSET(INDIRECT($Y$4),5,$V$96-1)*100,"nc") -> 72.3 | H93: =IFERROR(OFFSET(INDIRECT($Y$4),5,$V$96+F1)/OFFSET(INDIRECT($Y$4),5,$V$96-1)*100,"nc") -> 45.7 | I93: 22.4 | J93: 4.2 | K93: 11.7 | L93: 7.4 | M93: 8.6 | V93: 列番号 | W93: 概要 | Y93: 縦棒 左 | Z93: 縦棒 右 | AA93: 凡例
V94: =IF(C84="過去１年間の生活の主な状態別世帯員数（計）",1,IF(C84="過去１年間の生活の主な状態別世帯員数（男）",2,IF(C84="過去１年間の生活の主な状態別世帯員数（女）",3,ERROR.TYPE(5)))) -> 1 | W94: 人数 | X94: 平均年齢 | Y94: =IF(LEFT(R100,1)="県",3,-1) -> -1 | Z94: =IF(LEFT(R100,1)="県",1,0) -> 0 | AA94: =IF(LEFT(R100,1)="県",$D$4,$D94) -> 0
V95: =IFERROR(CHOOSE(V94,CELL("col",'2010年'!DD6),CELL("col",'2010年'!EG6),CELL("col",'2010年'!EO6))-1,555) -> 107 | W95: =F95/F94-1 ->  | X95: =S95-IF(LEFT(R100,1)="県",S98,S94) -> 0.0 | AA95: =IF(LEFT(R100,1)="県",AA75,D95) -> 0
V96: =IFERROR(CHOOSE(V94,CELL("col",'2015年'!DD6),CELL("col",'2015年'!EG6),CELL("col",'2015年'!EO6))-1,555) -> 107 | W96: =IF(W95=0,"変化なし",TEXT(ABS(F95-F94),"#,##0人")&"（"&TEXT(ABS(W95),"0.0%")&"） "&IF(W95>0,"増加","減少")) ->  | X96: =IF(X95=0,"と同じである","を "&TEXT(ABS(X95),"0.0歳")&IF(X95>0,"上回る","下回る")) -> と同じである
C98: 農産物販売金額１位の部門別農家数（販売のあった農家）
D99: =IF(AA105="",""," ◎ "&AA105&"（"&TEXT(Z105,"0.0")&"%） が最も多く、次いで"&SUBSTITUTE(AA106&AA107,"」「","」、「")&"の順で、この"&DBCS(COUNTIF(AB103:AN103,"<4"))&"部門で全体の "&TEXT(Z104,"0.0")&"% を占める") -> ◎ 「露地野菜」（40.0%） が最も多く、次いで「果樹類」、「稲作」の順で、この３部門で全体の 79.8% を占める
S100: 単位：戸
F101: 計 | G101: 稲作 | H101: 麦類作 | I101: 雑穀・ いも類・ 豆類 | J101: 工芸農作物 | K101: 野菜類 | M101: 果樹類 | N101: 花き・ 花木 | O101: その他の作物 | P101: 酪農 | Q101: 肉用牛 | R101: 養豚 | S101: 養鶏
K102: 露地 | L102: 施設 | O102: その他の作物 | P102: 畜産 | V102: 列番号 | W102: offset行数 | Y102: 凡例 | Z102: 上位 | AB102: 稲作 | AC102: 麦類作 | AD102: 雑穀・ いも類・ 豆類 | AE102: 工芸 農作物 | AF102: 露地 野菜 | AG102: 施設 野菜 | AH102: 果樹類 | AI102: 花き・ 花木 | AJ102: その他 の作物 | AK102: 酪農 | AL102: 肉用牛 | AM102: 養豚 | AN102: 養鶏
D103: 2010年 | F103: =IFERROR(OFFSET(INDIRECT($Y$3),$V$3,$V103),"nc") -> 12,751 | G103: =IFERROR(OFFSET(INDIRECT($Y$3),$V$3,$V103+F$1),"nc") -> 2,083 | H103: 7 | I103: 353 | J103: 229 | K103: 5,060 | L103: 726 | M103: 2,887 | N103: 896 | O103: 97 | P103: =IFERROR(OFFSET(INDIRECT($Y$3),$V$3,$V103+O$1),"nc") -> 267 | Q103: =IFERROR(OFFSET(INDIRECT($Y$3),$V$3,$V103+P$1),"nc") -> 38 | R103: =IFERROR(OFFSET(INDIRECT($Y$3),$V$3,$V103+Q$1),"nc") -> 43 | S103: =IFERROR(OFFSET(INDIRECT($Y$3),$V$3,$V103+R$1),"nc") -> 55 | V103: =CELL("col",'2010年'!DK6)-1 -> 114 | W103: 縦棒左 | X103: 縦棒右 | Y103: =IF(LEFT(R108,1)="県",D4,D103) -> 2010年 | Z103: ３品目計 | AA103: 順位 | AB103: =IFERROR(RANK(G104,$G$104:$S$104,0),99) -> 3 | AC103: 13 | AD103: 6 | AE103: 8 | AF103: 1 | AG103: 5 | AH103: 2 | AI103: 4 | AJ103: 9 | AK103: 7 | AL103: 11 | AM103: 12 | AN103: 10
D104: 2015年 | F104: =IFERROR(OFFSET(INDIRECT($Y$4),$V$4,V104),"nc") -> 10,933 | G104: =IFERROR(OFFSET(INDIRECT($Y$4),$V$4,$V104+F1),"nc") -> 1,802 | H104: 5 | I104: 259 | J104: 159 | K104: 4,370 | L104: 628 | M104: 2,549 | N104: 759 | O104: 127 | P104: =IFERROR(OFFSET(INDIRECT($Y$4),$V$4,$V104+O1),"nc") -> 185 | Q104: =IFERROR(OFFSET(INDIRECT($Y$4),$V$4,$V104+P1),"nc") -> 28 | R104: =IFERROR(OFFSET(INDIRECT($Y$4),$V$4,$V104+Q1),"nc") -> 24 | S104: =IFERROR(OFFSET(INDIRECT($Y$4),$V$4,$V104+R1),"nc") -> 32 | V104: =CELL("col",'2015年'!DK6)-1 -> 114 | W104: =IF(LEFT(R108,1)="県",2,-1) -> -1 | X104: =IF(LEFT(R108,1)="県",1,0) -> 0 | Y104: =IF(AND(LEFT(R108,1)="県",G4=""),D4,IF(LEFT(R108,1)="県",AA3,D104)) -> 2015年 | Z104: =SUM(AB104:AN104) -> 79.76767584 | AA104: ％ | AB104: =IF(AB103<4,G104/$F$104%,0) -> 16.48220982 | AC104: =IF(AC103<4,H104/$F$104%,0) -> 0 | AD104: =IF(AD103<4,I104/$F$104%,0) -> 0 | AE104: 0 | AF104: 39.97073081 | AG104: 0 | AH104: 23.31473521 | AI104: 0 | AJ104: 0 | AK104: 0 | AL104: 0 | AM104: 0 | AN104: 0
E105: 構成比(%) | F105: =IF(OR(AND(ISTEXT($F104),$F104<>"X",$F104<>"-"),AND(ISTEXT(F104),F104<>"X",F104<>"-")),"nc",IF(OR($F104="X",F104="X"),"X",IF(ROUND(SUM($F104),0)=0,"nc",SUM(F104)/$F104%))) -> 100.0 | G105: 16.5 | H105: 0.0 | I105: 2.4 | J105: 1.5 | K105: 40.0 | L105: 5.7 | M105: 23.3 | N105: 6.9 | O105: 1.2 | P105: 1.7 | Q105: 0.3 | R105: 0.2 | S105: 0.3 | Y105: １位 | Z105: =SUMIF($AB$103:$AN$103,1,AB104:AN104) -> 39.97073081 | AA105: =SUBSTITUTE(AB105&AC105&AD105&AE105&AF105&AG105&AH105&AI105&AJ105&AK105&AL105&AM105&AN105,"」「","」と「") -> 「露地野菜」 | AB105: =IF(AB103=1,"「"&CLEAN(AB102)&"」","") ->  | AF105: 「露地野菜」
E106: 県計 構成比(%) | F106: 100.0 | G106: =IFERROR(IF(OFFSET(INDIRECT($Y$4),5,$V$104+F1)="-","-",ROUND(OFFSET(INDIRECT($Y$4),5,$V$104+F1)/OFFSET(INDIRECT($Y$4),5,$V$104)*100,1)),"nc") -> 16.5 | H106: =IFERROR(IF(OFFSET(INDIRECT($Y$4),5,$V$104+G1)="-","-",ROUND(OFFSET(INDIRECT($Y$4),5,$V$104+G1)/OFFSET(INDIRECT($Y$4),5,$V$104)*100,1)),"nc") -> 0.0 | I106: =IFERROR(IF(OFFSET(INDIRECT($Y$4),5,$V$104+H1)="-","-",ROUND(OFFSET(INDIRECT($Y$4),5,$V$104+H1)/OFFSET(INDIRECT($Y$4),5,$V$104)*100,1)),"nc") -> 2.4 | J106: =IFERROR(IF(OFFSET(INDIRECT($Y$4),5,$V$104+I1)="-","-",ROUND(OFFSET(INDIRECT($Y$4),5,$V$104+I1)/OFFSET(INDIRECT($Y$4),5,$V$104)*100,1)),"nc") -> 1.5 | K106: =IFERROR(IF(OFFSET(INDIRECT($Y$4),5,$V$104+J1)="-","-",ROUND(OFFSET(INDIRECT($Y$4),5,$V$104+J1)/OFFSET(INDIRECT($Y$4),5,$V$104)*100,1)),"nc") -> 40.0 | L106: 5.7 | M106: 23.3 | N106: 6.9 | O106: 1.2 | P106: =IFERROR(IF(OFFSET(INDIRECT($Y$4),5,$V$104+O1)="-","-",ROUND(OFFSET(INDIRECT($Y$4),5,$V$104+O1)/OFFSET(INDIRECT($Y$4),5,$V$104)*100,1)),"nc") -> 1.7 | Q106: =IFERROR(IF(OFFSET(INDIRECT($Y$4),5,$V$104+P1)="-","-",ROUND(OFFSET(INDIRECT($Y$4),5,$V$104+P1)/OFFSET(INDIRECT($Y$4),5,$V$104)*100,1)),"nc") -> 0.3 | R106: =IFERROR(IF(OFFSET(INDIRECT($Y$4),5,$V$104+Q1)="-","-",ROUND(OFFSET(INDIRECT($Y$4),5,$V$104+Q1)/OFFSET(INDIRECT($Y$4),5,$V$104)*100,1)),"nc") -> 0.2 | S106: =IFERROR(IF(OFFSET(INDIRECT($Y$4),5,$V$104+R1)="-","-",ROUND(OFFSET(INDIRECT($Y$4),5,$V$104+R1)/OFFSET(INDIRECT($Y$4),5,$V$104)*100,1)),"nc") -> 0.3 | Y106: ２位 | Z106: =SUMIF($AB$103:$AN$103,2,$AB$104:$AN$104) -> 23.31473521 | AA106: =SUBSTITUTE(AB106&AC106&AD106&AE106&AF106&AG106&AH106&AI106&AJ106&AK106&AL106&AM106&AN106,"」「","」と「") -> 「果樹類」 | AB106: =IF(AB103=2,"「"&CLEAN(AB102)&"」","") ->  | AH106: 「果樹類」
D107: =IF(LEFT(R108,1)="県","（％）","（戸）") -> （戸） | H107: ="《農産物販売金額１位の部門別農家数"&IF(LEFT(R108,1)="県","割合","")&"》 "&IF(AND(LEFT(R108,1)<>"県",G4=""),D4,IF(LEFT(R108,1)="県","2015年",AA3)) -> 《農産物販売金額１位の部門別農家数》 神奈川県 | Y107: ３位 | Z107: =SUMIF($AB$103:$AN$103,3,$AB$104:$AN$104) -> 16.48220982 | AA107: =SUBSTITUTE(AB107&AC107&AD107&AE107&AF107&AG107&AH107&AI107&AJ107&AK107&AL107&AM107&AN107,"」「","」と「") -> 「稲作」 | AB107: =IF(AB103=3,"「"&CLEAN(AB102)&"」","") -> 「稲作」
R108: 前回との比較
C121: 経営耕地面積（販売農家） | I121: =IFERROR(" ◎ 経営耕地面積は "&IF(G126=G125,"変化なし",TEXT(ABS(G126-G125),"#,##0")&"ha（"&TEXT(ABS(G126/G125-1),"0.0%"&"） "))&IF(F126=F125,"",IF(G126<G125,"減少","増加"))&"、１戸当たりでは "&IF(X125=0,"変動無し",TEXT(ABS(X125),"0.00")&"ha "&IF(X125>0,"増加","減少")),"") -> ◎ 経営耕地面積は 1,510ha（12.2%) 減少、１戸当たりでは 0.02ha 増加
D122: =AA3 -> 神奈川県 | K122: 単位：ha
F123: 経 営 耕 地 のある農家数 | G123: 経 営 耕 地 面 積 | K123: １戸当たり経営耕地面積
H124: 田 | I124: 畑 （樹園地を除く） | J124: 樹園地 | V124: 列番号 | W124: 凡例用 | X124: １戸当たり増減
D125: 2010年 | F125: =IFERROR(OFFSET(INDIRECT($Y$3),$V$3,V125),"nc") -> 14,794 | G125: =IFERROR(ROUND(OFFSET(INDIRECT($Y$3),$V$3,$V$125+F1)/100,0),OFFSET(INDIRECT($Y$3),$V$3,$V$125+F1)) -> 12,360 | H125: =IFERROR(ROUND(OFFSET(INDIRECT($Y$3),$V$3,$V$125+G1)/100,0),OFFSET(INDIRECT($Y$3),$V$3,$V$125+G1)) -> 2,990 | I125: =IFERROR(ROUND(OFFSET(INDIRECT($Y$3),$V$3,$V$125+H1)/100,0),OFFSET(INDIRECT($Y$3),$V$3,$V$125+H1)) -> 6,720 | J125: =IFERROR(ROUND(OFFSET(INDIRECT($Y$3),$V$3,$V$125+I1)/100,0),OFFSET(INDIRECT($Y$3),$V$3,$V$125+I1)) -> 2,650 | K125: =IF(OR(AND(ISTEXT($F125),$F125<>"X",$F125<>"-"),AND(ISTEXT(G125),G125<>"X",G125<>"-")),"nc",IF(OR($F125="X",G125="X"),"X",IF(ROUND(SUM($F125),0)=0,"nc",ROUND(SUM(G125)/$F125,2)))) -> 0.84 | V125: =CELL("col",'2010年'!EA6)-1 -> 130 | W125: 田 | X125: =K126-K125 -> 0.02
D126: 2015年 | F126: =IFERROR(OFFSET(INDIRECT($Y$4),$V$4,$V126),"nc") -> 12,591 | G126: =IFERROR(ROUND(OFFSET(INDIRECT($Y$4),$V$4,$V126+F1)/100,0),OFFSET(INDIRECT($Y$4),$V$4,$V126+F1)) -> 10,850 | H126: =IFERROR(ROUND(OFFSET(INDIRECT($Y$4),$V$4,$V126+G1)/100,0),OFFSET(INDIRECT($Y$4),$V$4,$V126+G1)) -> 2,606 | I126: =IFERROR(ROUND(OFFSET(INDIRECT($Y$4),$V$4,$V126+H1)/100,0),OFFSET(INDIRECT($Y$4),$V$4,$V126+H1)) -> 6,090 | J126: =IFERROR(ROUND(OFFSET(INDIRECT($Y$4),$V$4,$V126+I1)/100,0),OFFSET(INDIRECT($Y$4),$V$4,$V126+I1)) -> 2,155 | K126: =IF(OR(AND(ISTEXT($F126),$F126<>"X",$F126<>"-"),AND(ISTEXT(G126),G126<>"X",G126<>"-")),"nc",IF(OR($F126="X",G126="X"),"X",IF(ROUND(SUM($F126),0)=0,"nc",ROUND(SUM(G126)/$F126,2)))) -> 0.86 | V126: =CELL("col",'2015年'!EA6)-1 -> 130 | W126: 畑
E127: 構成比(%) | G127: =IF(OR(AND(ISTEXT($G126),$G126<>"X",$G126<>"-"),AND(ISTEXT(G126),G126<>"X",G126<>"-")),"nc",IF(OR($G126="X",G126="X"),"X",IF(ROUND(SUM($G126),0)=0,"nc",SUM(G126)/$G126%))) -> 100.0 | H127: =IF(OR(AND(ISTEXT($G126),$G126<>"X",$G126<>"-"),AND(ISTEXT(H126),H126<>"X",H126<>"-")),"nc",IF(OR($G126="X",H126="X"),"X",IF(ROUND(SUM($G126),0)=0,"nc",SUM(H126)/$G126%))) -> 24.0 | I127: 56.1 | J127: 19.9 | W127: 樹園地
E128: 県計 構成比(%) | G128: 100.0 | H128: =IFERROR(ROUND(OFFSET(INDIRECT($Y$4),5,$V$126+G1)/OFFSET(INDIRECT($Y$4),5,$V$126+1)*100,1),"nc") -> 24.0 | I128: =IFERROR(ROUND(OFFSET(INDIRECT($Y$4),5,$V$126+H1)/OFFSET(INDIRECT($Y$4),5,$V$126+1)*100,1),"nc") -> 56.1 | J128: =IFERROR(ROUND(OFFSET(INDIRECT($Y$4),5,$V$126+I1)/OFFSET(INDIRECT($Y$4),5,$V$126+1)*100,1),"nc") -> 19.9 | K128: =IFERROR(OFFSET(INDIRECT($Y$4),5,V126+1)/OFFSET(INDIRECT($Y$4),5,V126)/100,"nc") -> 0.86
D129: =IFERROR("《参考》"&G4&"の経営耕地面積の全国順位："&TEXT(OFFSET(#REF!,MATCH(Info!G4,#REF!,0),0),"#,##0")&"位","") -> 

Sheet 2010年 (hidden)
A1: 都道府県名（支庁名） | B1: 市区町村名 | C1: 旧市区町村名 | D1: 農業集落名 | E1: 総農家数 | M1: （７）年齢別の農業従事者数（自営農業に従事した世帯員数）男女計 | AC1: 農業従事者の平均年齢 | AF1: 年齢別の農業就業人口（自営農業に主として従事した世帯員数）男女計 | AV1: 農業就業人口 | AY1: （11）年齢別の基幹的農業従事者数（自営農業に主として従事した世帯員のうち仕事が主の世帯員数）男女計 | BO1: 基幹的農業従事者 平均年齢 | BR1: （２）年齢別の経営者数 男 女 計 | CH1: ウ 後継者がいる経営者 | CV1: 家族経営構成別農家数 | DC1: （６）過去１年間の生活の主な状態別世帯員数 | DH1: 男 女 計 | DK1: （４）農産物販売金額１位の部門別農家数 | EA1: （１）経営耕地の状況 | EF1: （６）過去１年間の生活の主な状態別世帯員数(男) | EN1: （６）過去１年間の生活の主な状態別世帯員数(女)
F2: 販売農家数 | L2: 自給的農家 | M2: 計 | N2: 15 ～ 19歳 | O2: 20 ～ 24 | P2: 25 ～ 29 | Q2: 30 ～ 34 | R2: 35 ～ 39 | S2: 40 ～ 44 | T2: 45 ～ 49 | U2: 50 ～ 54 | V2: 55 ～ 59 | W2: 60 ～ 64 | X2: 65 ～ 69 | Y2: 70 ～ 74 | Z2: 75 ～ 79 | AA2: 80 ～ 84 | AB2: 85歳以上 | AC2: 男 女 計 | AD2: 男 | AE2: 女 | AF2: 計 | AG2: 15 ～ 19歳 | AH2: 20 ～ 24 | AI2: 25 ～ 29 | AJ2: 30 ～ 34 | AK2: 35 ～ 39 | AL2: 40 ～ 44 | AM2: 45 ～ 49 | AN2: 50 ～ 54 | AO2: 55 ～ 59 | AP2: 60 ～ 64 | AQ2: 65 ～ 69 | AR2: 70 ～ 74 | AS2: 75 ～ 79 | AT2: 80 ～ 84 | AU2: 85歳以上 | AY2: 計 | AZ2: 15 ～ 19歳 | BA2: 20 ～ 24 | BB2: 25 ～ 29 | BC2: 30 ～ 34 | BD2: 35 ～ 39 | BE2: 40 ～ 44 | BF2: 45 ～ 49 | BG2: 50 ～ 54 | BH2: 55 ～ 59 | BI2: 60 ～ 64 | BJ2: 65 ～ 69 | BK2: 70 ～ 74 | BL2: 75 ～ 79 | BM2: 80 ～ 84 | BN2: 85歳以上 | BR2: 計 | BS2: 15 ～ 19歳 | BT2: 20 ～ 24 | BU2: 25 ～ 29 | BV2: 30 ～ 34 | BW2: 35 ～ 39 | BX2: 40 ～ 44 | BY2: 45 ～ 49 | BZ2: 50 ～ 54 | CA2: 55 ～ 59 | CB2: 60 ～ 64 | CC2: 65 ～ 69 | CD2: 70 ～ 74 | CE2: 75～79 | CF2: 80～84 | CG2: 85歳以上 | CH2: 計 | CI2: 30歳未満 | CJ2: 30 ～ 34 | CK2: 35 ～ 39 | CL2: 40 ～ 44 | CM2: 45 ～ 49 | CN2: 50 ～ 54 | CO2: 55 ～ 59 | CP2: 60 ～ 64 | CQ2: 65 ～ 69 | CR2: 70 ～ 74 | CS2: 75～79 | CT2: 80～84 | CU2: 85歳以上 | DD2: 主に仕事 | DN2: 雑 穀 ・ | EA2: 経営耕地 のある 農家数 | EB2: 経営耕地 総面積 | EC2: 田 | ED2: 畑（樹園地を除く） | EE2: 樹園地 | EF2: 計 | EG2: 主に仕事 | EK2: 主に家事 ・育児 | EL2: 学生 | EM2: その他 | EN2: 計 | EO2: 主に仕事 | ES2: 主に家事 ・育児 | ET2: 学生 | EU2: その他
G3: 主業農家 | I3: 準主業農家 | K3: 副業的農家 | AV3: 男女計の 平均年齢 | AW3: 男 の 平均年齢 | AX3: 女 の 平均年齢 | BO3: 男女計 | BP3: 男 | BQ3: 女 | DC3: 計 | DD3: 小計 | DE3: 自営農業 が 主 | DF3: 勤務が主 | DG3: 農業以外の | DH3: 主に家事 ・育児 | DI3: 学生 | DJ3: その他 | DK3: 計 | DL3: 稲 作 | DM3: 麦 類 作 | DN3: い も 類 | DO3: 工芸農作物 | DP3: 露地野菜 | DQ3: 施設野菜 | DR3: 果 樹 類 | DS3: 花き・花木 | DT3: その他の 作 物 | DU3: 酪 農 | DV3: 肉 用 牛 | DW3: 養 豚 | DX3: 養 鶏 | DY3: 養 蚕 | DZ3: その他の 畜 産 | EG3: 小計 | EH3: 自営農業 が 主 | EI3: 勤務が主 | EJ3: 農業以外の 自営業が主 | EO3: 小計 | EP3: 自営農業 が 主 | EQ3: 勤務が主 | ER3: 農業以外の 自営業が主
H4: 65歳未満の農業専従者がいる | J4: 65歳未満の農業専従者がいる | DG4: 自営業が主 | DN4: ・ 豆 類
A6: 神奈川県 | E6: 27,996 | F6: 14,863 | G6: 4,315 | H6: 3,897 | I6: 3,718 | J6: 1,878 | K6: 6,830 | L6: 13,133 | M6: 42,696 | N6: 738 | O6: 1,274 | P6: 1,416 | Q6: 1,492 | R6: 1,958 | S6: 2,342 | T6: 2,857 | U6: 3,654 | V6: 4,498 | W6: 4,684 | X6: 4,263 | Y6: 4,387 | Z6: 4,200 | AA6: 3,158 | AB6: 1,775 | AC6: 58.7 | AD6: 57.4 | AE6: 60.3 | AF6: 28,331 | AG6: 231 | AH6: 334 | AI6: 421 | AJ6: 560 | AK6: 827 | AL6: 1,070 | AM6: 1,334 | AN6: 1,797 | AO6: 2,494 | AP6: 3,310 | AQ6: 3,663 | AR6: 3,905 | AS6: 3,910 | AT6: 2,880 | AU6: 1,595 | AV6: 64.4 | AW6: 63.8 | AX6: 64.9 | AY6: 24,046 | AZ6: 7 | BA6: 150 | BB6: 328 | BC6: 450 | BD6: 636 | BE6: 808 | BF6: 1,093 | BG6: 1,504 | BH6: 2,206 | BI6: 2,957 | BJ6: 3,295 | BK6: 3,499 | BL6: 3,434 | BM6: 2,459 | BN6: 1,220 | BO6: 65.2 | BP6: 64.4 | BQ6: 66.3 | BR6: 14,863 | BS6: - | BT6: 3 | BU6: 12 | BV6: 35 | BW6: 118 | BX6: 263 | BY6: 502 | BZ6: 967 | CA6: 1,665 | CB6: 2,170 | CC6: 2,036 | CD6: 2,223 | CE6: 2,230 | CF6: 1,638 | CG6: 1,001 | CH6: 9,650 | CI6: 2 | CJ6: 1 | CK6: 7 | CL6: 41 | CM6: 158 | CN6: 451 | CO6: 973 | CP6: 1,354 | CQ6: 1,324 | CR6: 1,533 | CS6: 1,620 | CT6: 1,310 | CU6: 876 | CV6: 0 | CW6: 0 | CX6: 0 | CY6: 0 | CZ6: 0 | DA6: 0 | DB6: 0 | DC6: 56,435 | DD6: 39,530 | DE6: 24,050 | DF6: 13,702 | DG6: 1,778 | DH6: 7,356 | DI6: 4,801 | DJ6: 4,748 | DK6: 12,751 | DL6: 2,083 | DM6: 7 | DN6: 353 | DO6: 229 | DP6: 5,060 | DQ6: 726 | DR6: 2,887 | DS6: 896 | DT6: 97 | DU6: 267 | DV6: 38 | DW6: 43 | DX6: 55 | DY6: 6 | DZ6: 4 | EA6: 14,794 | EB6: 1,235,995 | EC6: 298,956 | ED6: 672,009 | EE6: 265,030 | EF6: 27,947 | EG6: 23,603 | EH6: 14,027 | EI6: 8,428 | EJ6: 1,148 | EK6: 74 | EL6: 2,549 | EM6: 1,721 | EN6: 28,488 | EO6: 15,927 | EP6: 10,023 | EQ6: 5,274 | ER6: 630 | ES6: 7,282 | ET6: 2,252 | EU6: 3,027
A7: 神奈川県 | B7: 横浜市 | E7: 4,202 | F7: 2,430 | G7: 952 | H7: 882 | I7: 618 | J7: 418 | K7: 860 | L7: 1,772 | M7: 7,080 | N7: 84 | O7: 170 | P7: 231 | Q7: 233 | R7: 340 | S7: 463 | T7: 527 | U7: 637 | V7: 722 | W7: 684 | X7: 650 | Y7: 744 | Z7: 759 | AA7: 554 | AB7: 282 | AC7: 59.1 | AD7: 57.9 | AE7: 60.4 | AF7: 5,416 | AG7: 43 | AH7: 75 | AI7: 99 | AJ7: 126 | AK7: 199 | AL7: 322 | AM7: 335 | AN7: 421 | AO7: 520 | AP7: 548 | AQ7: 573 | AR7: 667 | AS7: 707 | AT7: 516 | AU7: 265 | AV7: 62.4 | AW7: 61.6 | AX7: 63.2 | AY7: 4,508 | AZ7: - | BA7: 24 | BB7: 76 | BC7: 100 | BD7: 137 | BE7: 210 | BF7: 262 | BG7: 349 | BH7: 462 | BI7: 494 | BJ7: 519 | BK7: 590 | BL7: 618 | BM7: 449 | BN7: 218 | BO7: 63.9 | BP7: 62.4 | BQ7: 66.3 | BR7: 2,430 | BS7: - | BT7: 1 | BU7: 2 | BV7: 6 | BW7: 21 | BX7: 32 | BY7: 90 | BZ7: 149 | CA7: 245 | CB7: 311 | CC7: 306 | CD7: 353 | CE7: 428 | CF7: 307 | CG7: 179 | CH7: 1,673 | CI7: - | CJ7: - | CK7: - | CL7: 2 | CM7: 24 | CN7: 59 | CO7: 154 | CP7: 205 | CQ7: 225 | CR7: 260 | CS7: 329 | CT7: 253 | CU7: 162 | CV7: 0 | CW7: 0 | CX7: 0 | CY7: 0 | CZ7: 0 | DA7: 0 | DB7: 0 | DC7: 9,639 | DD7: 6,529 | DE7: 4,509 | DF7: 1,640 | DG7: 380 | DH7: 1,438 | DI7: 899 | DJ7: 773 | DK7: 2,184 | DL7: 57 | DM7: - | DN7: 83 | DO7: 1 | DP7: 1,375 | DQ7: 107 | DR7: 266 | DS7: 220 | DT7: 38 | DU7: 16 | DV7: 5 | DW7: 8 | DX7: 7 | DY7: - | DZ7: 1 | EA7: 2,419 | EB7: 189,848 | EC7: 15,450 | ED7: 138,393 | EE7: 36,005 | EF7: 4,837 | EG7: 4,030 | EH7: 2,770 | EI7: 1,008 | EJ7: 252 | EK7: 18 | EL7: 494 | EM7: 295 | EN7: 4,802 | EO7: 2,499 | EP7: 1,739 | EQ7: 632 | ER7: 128 | ES7: 1,420 | ET7: 405 | EU7: 478
A8: 神奈川県 | B8: 鶴見区（横浜市） | C8: 鶴見区 | E8: 55 | F8: 22 | G8: 10 | H8: 8 | I8: 7 | J8: 6 | K8: 5 | L8: 33 | M8: 66 | N8: - | O8: - | P8: 4 | Q8: - | R8: - | S8: - | T8: 10 | U8: 5 | V8: 9 | W8: 5 | X8: 2 | Y8: 8 | Z8: 6 | AA8: 10 | AB8: 7 | AC8: 65.0 | AD8: 62.8 | AE8: 68.1 | AF8: 48 | AG8: - | AH8: - | AI8: 2 | AJ8: - | AK8: - | AL8: - | AM8: 6 | AN8: 3 | AO8: 7 | AP8: 4 | AQ8: 2 | AR8: 6 | AS8: 6 | AT8: 7 | AU8: 5 | AV8: 66.6 | AW8: 65.6 | AX8: 68.2 | AY8: 43 | AZ8: - | BA8: - | BB8: 2 | BC8: - | BD8: - | BE8: - | BF8: 5 | BG8: 3 | BH8: 7 | BI8: 3 | BJ8: 1 | BK8: 5 | BL8: 6 | BM8: 6 | BN8: 5 | BO8: 66.5 | BP8: 65.6 | BQ8: 68.8 | BR8: 22 | BS8: - | BT8: - | BU8: - | BV8: - | BW8: - | BX8: - | BY8: - | BZ8: 1 | CA8: 3 | CB8: - | CC8: - | CD8: 4 | CE8: 5 | CF8: 5 | CG8: 4 | CH8: 18 | CI8: - | CJ8: - | CK8: - | CL8: - | CM8: - | CN8: - | CO8: 3 | CP8: - | CQ8: - | CR8: 2 | CS8: 4 | CT8: 5 | CU8: 4 | CV8: 0 | CW8: 0 | CX8: 0 | CY8: 0 | CZ8: 0 | DA8: 0 | DB8: 0 | DC8: 102 | DD8: 68 | DE8: 43 | DF8: 13 | DG8: 12 | DH8: 14 | DI8: 10 | DJ8: 10 | DK8: 20 | DL8: - | DM8: - | DN8: 1 | DO8: - | DP8: 16 | DQ8: 1 | DR8: - | DS8: 2 | DT8: - | DU8: - | DV8: - | DW8: - | DX8: - | DY8: - | DZ8: - | EA8: 22 | EB8: 3,528 | EC8: 1,568 | ED8: 1,907 | EE8: 53 | EF8: 55 | EG8: 45 | EH8: 31 | EI8: 7 | EJ8: 7 | EK8: - | EL8: 6 | EM8: 4 | EN8: 47 | EO8: 23 | EP8: 12 | EQ8: 6 | ER8: 5 | ES8: 14 | ET8: 4 | EU8: 6
A9: 神奈川県 | B9: 鶴見区（横浜市） | C9: 鶴見区 | D9: 東寺尾 | E9: 3 | F9: 3 | G9: x | H9: x | I9: x | J9: x | K9: x | L9: - | M9: x | N9: x | O9: x | P9: x | Q9: x | R9: x | S9: x | T9: x | U9: x | V9: x | W9: x | X9: x | Y9: x | Z9: x | AA9: x | AB9: x | AC9: 63.8 | AD9: 62.9 | AE9: 65.0 | AF9: x | AG9: x | AH9: x | AI9: x | AJ9: x | AK9: x | AL9: x | AM9: x | AN9: x | AO9: x | AP9: x | AQ9: x | AR9: x | AS9: x | AT9: x | AU9: x | AV9: 63.6 | AW9: 63.0 | AX9: 65.0 | AY9: x | AZ9: x | BA9: x | BB9: x | BC9: x | BD9: x | BE9: x | BF9: x | BG9: x | BH9: x | BI9: x | BJ9: x | BK9: x | BL9: x | BM9: x | BN9: x | BO9: 63.6 | BP9: 63.0 | BQ9: 65.0 | BR9: 3 | BS9: - | BT9: - | BU9: - | BV9: - | BW9: - | BX9: - | BY9: - | BZ9: - | CA9: 1 | CB9: - | CC9: - | CD9: - | CE9: - | CF9: - | CG9: 2 | CH9: 3 | CI9: - | CJ9: - | CK9: - | CL9: - | CM9: - | CN9: - | CO9: 1 | CP9: - | CQ9: - | CR9: - | CS9: - | CT9: - | CU9: 2 | CV9: 0 | CW9: 0 | CX9: 0 | CY9: 0 | CZ9: 0 | DA9: 0 | DB9: 0 | DC9: 17 | DD9: 15 | DE9: 10 | DF9: 4 | DG9: 1 | DH9: - | DI9: - | DJ9: 2 | DK9: 3 | DL9: - | DM9: - | DN9: - | DO9: - | DP9: 2 | DQ9: - | DR9: - | DS9: 1 | DT9: - | DU9: - | DV9: - | DW9: - | DX9: - | DY9: - | DZ9: - | EA9: 3 | EB9: 95 | EC9: - | ED9: 95 | EE9: - | EF9: 8 | EG9: 8 | EH9: 7 | EI9: - | EJ9: 1 | EK9: - | EL9: - | EM9: - | EN9: 9 | EO9: 7 | EP9: 3 | EQ9: 4 | ER9: - | ES9: - | ET9: - | EU9: 2
A10: 神奈川県 | B10: 鶴見区（横浜市） | C10: 鶴見区 | D10: 山手 | E10: 3 | F10: - | G10: - | H10: - | I10: - | J10: - | K10: - | L10: 3 | M10: - | N10: - | O10: - | P10: - | Q10: - | R10: - | S10: - | T10: - | U10: - | V10: - | W10: - | X10: - | Y10: - | Z10: - | AA10: - | AB10: - | AC10: … | AD10: … | AE10: … | AF10: - | AG10: - | AH10: - | AI10: - | AJ10: - | AK10: - | AL10: - | AM10: - | AN10: - | AO10: - | AP10: - | AQ10: - | AR10: - | AS10: - | AT10: - | AU10: - | AV10: … | AW10: … | AX10: … | AY10: - | AZ10: - | BA10: - | BB10: - | BC10: - | BD10: - | BE10: - | BF10: - | BG10: - | BH10: - | BI10: - | BJ10: - | BK10: - | BL10: - | BM10: - | BN10: - | BO10: … | BP10: … | BQ10: … | BR10: - | BS10: - | BT10: - | BU10: - | BV10: - | BW10: - | BX10: - | BY10: - | BZ10: - | CA10: - | CB10: - | CC10: - | CD10: - | CE10: - | CF10: - | CG10: - | CH10: - | CI10: - | CJ10: - | CK10: - | CL10: - | CM10: - | CN10: - | CO10: - | CP10: - | CQ10: - | CR10: - | CS10: - | CT10: - | CU10: - | CV10: 0 | CW10: 0 | CX10: 0 | CY10: 0 | CZ10: 0 | DA10: 0 | DB10: 0 | DC10: - | DD10: - | DE10: - | DF10: - | DG10: - | DH10: - | DI10: - | DJ10: - | DK10: - | DL10: - | DM10: - | DN10: - | DO10: - | DP10: - | DQ10: - | DR10: - | DS10: - | DT10: - | DU10: - | DV10: - | DW10: - | DX10: - | DY10: - | DZ10: - | EA10: - | EB10: - | EC10: - | ED10: - | EE10: - | EF10: - | EG10: - | EH10: - | EI10: - | EJ10: - | EK10: - | EL10: - | EM10: - | EN10: - | EO10: - | EP10: - | EQ10: - | ER10: - | ES10: - | ET10: - | EU10: -
A11: 神奈川県 | B11: 鶴見区（横浜市） | C11: 鶴見区 | D11: 馬場 | E11: 2 | F11: - | G11: - | H11: - | I11: - | J11: - | K11: - | L11: 2 | M11: - | N11: - | O11: - | P11: - | Q11: - | R11: - | S11: - | T11: - | U11: - | V11: - | W11: - | X11: - | Y11: - | Z11: - | AA11: - | AB11: - | AC11: … | AD11: … | AE11: … | AF11: - | AG11: - | AH11: - | AI11: - | AJ11: - | AK11: - | AL11: - | AM11: - | AN11: - | AO11: - | AP11: - | AQ11: - | AR11: - | AS11: - | AT11: - | AU11: - | AV11: … | AW11: … | AX11: … | AY11: - | AZ11: - | BA11: - | BB11: - | BC11: - | BD11: - | BE11: - | BF11: - | BG11: - | BH11: - | BI11: - | BJ11: - | BK11: - | BL11: - | BM11: - | BN11: - | BO11: … | BP11: … | BQ11: … | BR11: - | BS11: - | BT11: - | BU11: - | BV11: - | BW11: - | BX11: - | BY11: - | BZ11: - | CA11: - | CB11: - | CC11: - | CD11: - | CE11: - | CF11: - | CG11: - | CH11: - | CI11: - | CJ11: - | CK11: - | CL11: - | CM11: - | CN11: - | CO11: - | CP11: - | CQ11: - | CR11: - | CS11: - | CT11: - | CU11: - | CV11: 0 | CW11: 0 | CX11: 0 | CY11: 0 | CZ11: 0 | DA11: 0 | DB11: 0 | DC11: - | DD11: - | DE11: - | DF11: - | DG11: - | DH11: - | DI11: - | DJ11: - | DK11: - | DL11: - | DM11: - | DN11: - | DO11: - | DP11: - | DQ11: - | DR11: - | DS11: - | DT11: - | DU11: - | DV11: - | DW11: - | DX11: - | DY11: - | DZ11: - | EA11: - | EB11: - | EC11: - | ED11: - | EE11: - | EF11: - | EG11: - | EH11: - | EI11: - | EJ11: - | EK11: - | EL11: - | EM11: - | EN11: - | EO11: - | EP11: - | EQ11: - | ER11: - | ES11: - | ET11: - | EU11: -
A12: 神奈川県 | B12: 鶴見区（横浜市） | C12: 鶴見区 | D12: 北寺尾 | E12: 8 | F12: 5 | G12: 3 | H12: 3 | I12: 1 | J12: 1 | K12: 1 | L12: 3 | M12: 14 | N12: - | O12: - | P12: 1 | Q12: - | R12: - | S12: - | T12: 4 | U12: 1 | V12: 2 | W12: - | X12: - | Y12: 3 | Z12: 2 | AA12: 1 | AB12: - | AC12: 59.6 | AD12: 57.4 | AE12: 62.7 | AF12: 12 | AG12: - | AH12: - | AI12: - | AJ12: - | AK12: - | AL12: - | AM12: 3 | AN12: 1 | AO12: 2 | AP12: - | AQ12: - | AR12: 3 | AS12: 2 | AT12: 1 | AU12: - | AV12: 63.4 | AW12: 62.0 | AX12: 65.4 | AY12: 11 | AZ12: - | BA12: - | BB12: - | BC12: - | BD12: - | BE12: - | BF12: 3 | BG12: 1 | BH12: 2 | BI12: - | BJ12: - | BK12: 2 | BL12: 2 | BM12: 1 | BN12: - | BO12: 62.5 | BP12: 62.0 | BQ12: 63.3 | BR12: 5 | BS12: - | BT12: - | BU12: - | BV12: - | BW12: - | BX12: - | BY12: - | BZ12: - | CA12: 1 | CB12: - | CC12: - | CD12: 1 | CE12: 2 | CF12: 1 | CG12: - | CH12: 5 | CI12: - | CJ12: - | CK12: - | CL12: - | CM12: - | CN12: - | CO12: 1 | CP12: - | CQ12: - | CR12: 1 | CS12: 2 | CT12: 1 | CU12: - | CV12: 0 | CW12: 0 | CX12: 0 | CY12: 0 | CZ12: 0 | DA12: 0 | DB12: 0 | DC12: 27 | DD12: 18 | DE12: 11 | DF12: 2 | DG12: 5 | DH12: 2 | DI12: 5 | DJ12: 2 | DK12: 4 | DL12: - | DM12: - | DN12: - | DO12: - | DP12: 3 | DQ12: - | DR12: - | DS12: 1 | DT12: - | DU12: - | DV12: - | DW12: - | DX12: - | DY12: - | DZ12: - | EA12: 5 | EB12: 370 | EC12: - | ED12: 335 | EE12: 35 | EF12: 14 | EG12: 11 | EH12: 7 | EI12: 1 | EJ12: 3 | EK12: - | EL12: 2 | EM12: 1 | EN12: 13 | EO12: 7 | EP12: 4 | EQ12: 1 | ER12: 2 | ES12: 2 | ET12: 3 | EU12: 1
A13: 神奈川県 | B13: 鶴見区（横浜市） | C13: 鶴見区 | D13: 獅子ケ谷 | E13: 17 | F13: 4 | G13: 2 | H13: 1 | I13: 1 | J13: 1 | K13: 1 | L13: 13 | M13: 9 | N13: - | O13: - | P13: - | Q13: - | R13: - | S13: - | T13: 2 | U13: - | V13: 1 | W13: 1 | X13: 1 | Y13: 1 | Z13: 1 | AA13: 1 | AB13: 1 | AC13: 66.7 | AD13: 67.7 | AE13: 64.7 | AF13: 9 | AG13: - | AH13: - | AI13: - | AJ13: - | AK13: - | AL13: - | AM13: 2 | AN13: - | AO13: 1 | AP13: 1 | AQ13: 1 | AR13: 1 | AS13: 1 | AT13: 1 | AU13: 1 | AV13: 66.7 | AW13: 67.7 | AX13: 64.7 | AY13: 8 | AZ13: - | BA13: - | BB13: - | BC13: - | BD13: - | BE13: - | BF13: 1 | BG13: - | BH13: 1 | BI13: 1 | BJ13: 1 | BK13: 1 | BL13: 1 | BM13: 1 | BN13: 1 | BO13: 69.0 | BP13: 67.7 | BQ13: 73.0 | BR13: 4 | BS13: - | BT13: - | BU13: - | BV13: - | BW13: - | BX13: - | BY13: - | BZ13: - | CA13: - | CB13: - | CC13: - | CD13: 1 | CE13: 1 | CF13: 1 | CG13: 1 | CH13: 3 | CI13: - | CJ13: - | CK13: - | CL13: - | CM13: - | CN13: - | CO13: - | CP13: - | CQ13: - | CR13: - | CS13: 1 | CT13: 1 | CU13: 1 | CV13: 0 | CW13: 0 | CX13: 0 | CY13: 0 | CZ13: 0 | DA13: 0 | DB13: 0 | DC13: 14 | DD13: 8 | DE13: 8 | DF13: - | DG13: - | DH13: 2 | DI13: - | DJ13: 4 | DK13: 4 | DL13: - | DM13: - | DN13: - | DO13: - | DP13: 3 | DQ13: 1 | DR13: - | DS13: - | DT13: - | DU13: - | DV13: - | DW13: - | DX13: - | DY13: - | DZ13: - | EA13: 4 | EB13: 2,715 | EC13: 1,568 | ED13: 1,147 | EE13: - | EF13: 9 | EG13: 6 | EH13: 6 | EI13: - | EJ13: - | EK13: - | EL13: - | EM13: 3 | EN13: 5 | EO13: 2 | EP13: 2 | EQ13: - | ER13: - | ES13: 2 | ET13: - | EU13: 1
A14: 神奈川県 | B14: 鶴見区（横浜市） | C14: 鶴見区 | D14: 駒岡 | E14: 16 | F14: 9 | G14: 3 | H14: 2 | I14: 4 | J14: 4 | K14: 2 | L14: 7 | M14: 25 | N14: - | O14: - | P14: - | Q14: - | R14: - | S14: - | T14: 3 | U14: 2 | V14: 4 | W14: 2 | X14: 1 | Y14: 4 | Z14: 2 | AA14: 5 | AB14: 2 | AC14: 68.1 | AD14: 64.6 | AE14: 72.5 | AF14: 15 | AG14: - | AH14: - | AI14: - | AJ14: - | AK14: - | AL14: - | AM14: 1 | AN14: 1 | AO14: 2 | AP14: 2 | AQ14: 1 | AR14: 2 | AS14: 2 | AT14: 3 | AU14: 1 | AV14: 69.3 | AW14: 67.5 | AX14: 72.8 | AY14: 12 | AZ14: - | BA14: - | BB14: - | BC14: - | BD14: - | BE14: - | BF14: 1 | BG14: 1 | BH14: 2 | BI14: 1 | BJ14: - | BK14: 2 | BL14: 2 | BM14: 2 | BN14: 1 | BO14: 68.9 | BP14: 67.5 | BQ14: 76.0 | BR14: 9 | BS14: - | BT14: - | BU14: - | BV14: - | BW14: - | BX14: - | BY14: - | BZ14: 1 | CA14: 1 | CB14: - | CC14: - | CD14: 2 | CE14: 1 | CF14: 3 | CG14: 1 | CH14: 7 | CI14: - | CJ14: - | CK14: - | CL14: - | CM14: - | CN14: - | CO14: 1 | CP14: - | CQ14: - | CR14: 1 | CS14: 1 | CT14: 3 | CU14: 1 | CV14: 0 | CW14: 0 | CX14: 0 | CY14: 0 | CZ14: 0 | DA14: 0 | DB14: 0 | DC14: 39 | DD14: 22 | DE14: 12 | DF14: 4 | DG14: 6 | DH14: 10 | DI14: 5 | DJ14: 2 | DK14: 8 | DL14: - | DM14: - | DN14: 1 | DO14: - | DP14: 7 | DQ14: - | DR14: - | DS14: - | DT14: - | DU14: - | DV14: - | DW14: - | DX14: - | DY14: - | DZ14: - | EA14: 9 | EB14: 298 | EC14: - | ED14: 280 | EE14: 18 | EF14: 20 | EG14: 16 | EH14: 10 | EI14: 3 | EJ14: 3 | EK14: - | EL14: 4 | EM14: - | EN14: 19 | EO14: 6 | EP14: 2 | EQ14: 1 | ER14: 3 | ES14: 10 | ET14: 1 | EU14: 2
A15: 神奈川県 | B15: 鶴見区（横浜市） | C15: 鶴見区 | D15: 上末吉 | E15: 4 | F15: 1 | G15: x | H15: x | I15: x | J15: x | K15: x | L15: 3 | M15: x | N15: x | O15: x | P15: x | Q15: x | R15: x | S15: x | T15: x | U15: x | V15: x | W15: x | X15: x | Y15: x | Z15: x | AA15: x | AB15: x | AC15: 64.5 | AD15: 59.3 | AE15: 80.0 | AF15: x | AG15: x | AH15: x | AI15: x | AJ15: x | AK15: x | AL15: x | AM15: x | AN15: x | AO15: x | AP15: x | AQ15: x | AR15: x | AS15: x | AT15: x | AU15: x | AV15: 79.5 | AW15: 79.0 | AX15: 80.0 | AY15: x | AZ15: x | BA15: x | BB15: x | BC15: x | BD15: x | BE15: x | BF15: x | BG15: x | BH15: x | BI15: x | BJ15: x | BK15: x | BL15: x | BM15: x | BN15: x | BO15: 79.5 | BP15: 79.0 | BQ15: 80.0 | BR15: 1 | BS15: - | BT15: - | BU15: - | BV15: - | BW15: - | BX15: - | BY15: - | BZ15: - | CA15: - | CB15: - | CC15: - | CD15: - | CE15: 1 | CF15: - | CG15: - | CH15: - | CI15: - | CJ15: - | CK15: - | CL15: - | CM15: - | CN15: - | CO15: - | CP15: - | CQ15: - | CR15: - | CS15: - | CT15: - | CU15: - | CV15: 0 | CW15: 0 | CX15: 0 | CY15: 0 | CZ15: 0 | DA15: 0 | DB15: 0 | DC15: 5 | DD15: 5 | DE15: 2 | DF15: 3 | DG15: - | DH15: - | DI15: - | DJ15: - | DK15: 1 | DL15: - | DM15: - | DN15: - | DO15: - | DP15: 1 | DQ15: - | DR15: - | DS15: - | DT15: - | DU15: - | DV15: - | DW15: - | DX15: - | DY15: - | DZ15: - | EA15: 1 | EB15: 50 | EC15: - | ED15: 50 | EE15: - | EF15: 4 | EG15: 4 | EH15: 1 | EI15: 3 | EJ15: - | EK15: - | EL15: - | EM15: - | EN15: 1 | EO15: 1 | EP15: 1 | EQ15: - | ER15: - | ES15: - | ET15: - | EU15: -
A16: 神奈川県 | B16: 鶴見区（横浜市） | C16: 鶴見区 | D16: 江ケ崎 | E16: 2 | F16: - | G16: - | H16: - | I16: - | J16: - | K16: - | L16: 2 | M16: - | N16: - | O16: - | P16: - | Q16: - | R16: - | S16: - | T16: - | U16: - | V16: - | W16: - | X16: - | Y16: - | Z16: - | AA16: - | AB16: - | AC16: … | AD16: … | AE16: … | AF16: - | AG16: - | AH16: - | AI16: - | AJ16: - | AK16: - | AL16: - | AM16: - | AN16: - | AO16: - | AP16: - | AQ16: - | AR16: - | AS16: - | AT16: - | AU16: - | AV16: … | AW16: … | AX16: … | AY16: - | AZ16: - | BA16: - | BB16: - | BC16: - | BD16: - | BE16: - | BF16: - | BG16: - | BH16: - | BI16: - | BJ16: - | BK16: - | BL16: - | BM16: - | BN16: - | BO16: … | BP16: … | BQ16: … | BR16: - | BS16: - | BT16: - | BU16: - | BV16: - | BW16: - | BX16: - | BY16: - | BZ16: - | CA16: - | CB16: - | CC16: - | CD16: - | CE16: - | CF16: - | CG16: - | CH16: - | CI16: - | CJ16: - | CK16: - | CL16: - | CM16: - | CN16: - | CO16: - | CP16: - | CQ16: - | CR16: - | CS16: - | CT16: - | CU16: - | CV16: 0 | CW16: 0 | CX16: 0 | CY16: 0 | CZ16: 0 | DA16: 0 | DB16: 0 | DC16: - | DD16: - | DE16: - | DF16: - | DG16: - | DH16: - | DI16: - | DJ16: - | DK16: - | DL16: - | DM16: - | DN16: - | DO16: - | DP16: - | DQ16: - | DR16: - | DS16: - | DT16: - | DU16: - | DV16: - | DW16: - | DX16: - | DY16: - | DZ16: - | EA16: - | EB16: - | EC16: - | ED16: - | EE16: - | EF16: - | EG16: - | EH16: - | EI16: - | EJ16: - | EK16: - | EL16: - | EM16: - | EN16: - | EO16: - | EP16: - | EQ16: - | ER16: - | ES16: - | ET16: - | EU16: -
A17: 神奈川県 | B17: 鶴見区（横浜市） | C17: 鶴見区 | D17: 矢向，尻手 | E17: - | F17: - | G17: - | H17: - | I17: - | J17: - | K17: - | L17: - | M17: - | N17: - | O17: - | P17: - | Q17: - | R17: - | S17: - | T17: - | U17: - | V17: - | W17: - | X17: - | Y17: - | Z17: - | AA17: - | AB17: - | AC17: … | AD17: … | AE17: … | AF17: - | AG17: - | AH17: - | AI17: - | AJ17: - | AK17: - | AL17: - | AM17: - | AN17: - | AO17: - | AP17: - | AQ17: - | AR17: - | AS17: - | AT17: - | AU17: - | AV17: … | AW17: … | AX17: … | AY17: - | AZ17: - | BA17: - | BB17: - | BC17: - | BD17: - | BE17: - | BF17: - | BG17: - | BH17: - | BI17: - | BJ17: - | BK17: - | BL17: - | BM17: - | BN17: - | BO17: … | BP17: … | BQ17: … | BR17: - | BS17: - | BT17: - | BU17: - | BV17: - | BW17: - | BX17: - | BY17: - | BZ17: - | CA17: - | CB17: - | CC17: - | CD17: - | CE17: - | CF17: - | CG17: - | CH17: - | CI17: - | CJ17: - | CK17: - | CL17: - | CM17: - | CN17: - | CO17: - | CP17: - | CQ17: - | CR17: - | CS17: - | CT17: - | CU17: - | CV17: 0 | CW17: 0 | CX17: 0 | CY17: 0 | CZ17: 0 | DA17: 0 | DB17: 0 | DC17: - | DD17: - | DE17: - | DF17: - | DG17: - | DH17: - | DI17: - | DJ17: - | DK17: - | DL17: - | DM17: - | DN17: - | DO17: - | DP17: - | DQ17: - | DR17: - | DS17: - | DT17: - | DU17: - | DV17: - | DW17: - | DX17: - | DY17: - | DZ17: - | EA17: - | EB17: - | EC17: - | ED17: - | EE17: - | EF17: - | EG17: - | EH17: - | EI17: - | EJ17: - | EK17: - | EL17: - | EM17: - | EN17: - | EO17: - | EP17: - | EQ17: - | ER17: - | ES17: - | ET17: - | EU17: -
A18: 神奈川県 | B18: 神奈川区（横浜市） | C18: 神奈川区 | E18: 197 | F18: 151 | G18: 86 | H18: 83 | I18: 37 | J18: 30 | K18: 28 | L18: 46 | M18: 439 | N18: 2 | O18: 10 | P18: 21 | Q18: 10 | R18: 28 | S18: 42 | T18: 40 | U18: 44 | V18: 51 | W18: 38 | X18: 34 | Y18: 45 | Z18: 41 | AA18: 26 | AB18: 7 | AC18: 56.5 | AD18: 54.9 | AE18: 58.5 | AF18: 396 | AG18: 2 | AH18: 8 | AI18: 15 | AJ18: 8 | AK18: 24 | AL18: 37 | AM18: 33 | AN18: 41 | AO18: 44 | AP18: 37 | AQ18: 33 | AR18: 42 | AS18: 41 | AT18: 25 | AU18: 6 | AV18: 57.5 | AW18: 55.8 | AX18: 59.6 | AY18: 319 | AZ18: - | BA18: 3 | BB18: 12 | BC18: 6 | BD18: 17 | BE18: 27 | BF18: 25 | BG18: 30 | BH18: 42 | BI18: 32 | BJ18: 30 | BK18: 37 | BL18: 33 | BM18: 20 | BN18: 5 | BO18: 58.8 | BP18: 56.8 | BQ18: 62.5 | BR18: 151 | BS18: - | BT18: - | BU18: - | BV18: - | BW18: 1 | BX18: 5 | BY18: 7 | BZ18: 13 | CA18: 26 | CB18: 14 | CC18: 18 | CD18: 24 | CE18: 21 | CF18: 14 | CG18: 8 | CH18: 100 | CI18: - | CJ18: - | CK18: - | CL18: 1 | CM18: 1 | CN18: 5 | CO18: 15 | CP18: 10 | CQ18: 16 | CR18: 17 | CS18: 17 | CT18: 11 | CU18: 7 | CV18: 0 | CW18: 0 | CX18: 0 | CY18: 0 | CZ18: 0 | DA18: 0 | DB18: 0 | DC18: 631 | DD18: 418 | DE18: 319 | DF18: 87 | DG18: 12 | DH18: 93 | DI18: 62 | DJ18: 58 | DK18: 143 | DL18: - | DM18: - | DN18: - | DO18: - | DP18: 94 | DQ18: 1 | DR18: 1 | DS18: 44 | DT18: 1 | DU18: - | DV18: 1 | DW18: - | DX18: 1 | DY18: - | DZ18: - | EA18: 150 | EB18: 14,323 | EC18: 16 | ED18: 10,497 | EE18: 3,810 | EF18: 304 | EG18: 252 | EH18: 208 | EI18: 38 | EJ18: 6 | EK18: 1 | EL18: 31 | EM18: 20 | EN18: 327 | EO18: 166 | EP18: 111 | EQ18: 49 | ER18: 6 | ES18: 92 | ET18: 31 | EU18: 38
A19: 神奈川県 | B19: 神奈川区（横浜市） | C19: 神奈川区 | D19: 菅田東部 | E19: 32 | F19: 27 | G19: 25 | H19: 24 | I19: 1 | J19: 1 | K19: 1 | L19: 5 | M19: 83 | N19: - | O19: 1 | P19: 1 | Q19: 2 | R19: 7 | S19: 7 | T19: 8 | U19: 10 | V19: 3 | W19: 10 | X19: 8 | Y19: 12 | Z19: 8 | AA19: 6 | AB19: - | AC19: 58.7 | AD19: 57.2 | AE19: 60.7 | AF19: 79 | AG19: - | AH19: 1 | AI19: 1 | AJ19: 2 | AK19: 6 | AL19: 5 | AM19: 7 | AN19: 10 | AO19: 3 | AP19: 10 | AQ19: 8 | AR19: 12 | AS19: 8 | AT19: 6 | AU19: - | AV19: 59.5 | AW19: 57.9 | AX19: 61.8 | AY19: 72 | AZ19: - | BA19: 1 | BB19: 1 | BC19: 2 | BD19: 5 | BE19: 5 | BF19: 6 | BG19: 9 | BH19: 3 | BI19: 9 | BJ19: 7 | BK19: 11 | BL19: 8 | BM19: 5 | BN19: - | BO19: 59.4 | BP19: 57.4 | BQ19: 62.9 | BR19: 27 | BS19: - | BT19: - | BU19: - | BV19: - | BW19: 1 | BX19: 1 | BY19: 2 | BZ19: 2 | CA19: - | CB19: 2 | CC19: 5 | CD19: 7 | CE19: 3 | CF19: 4 | CG19: - | CH19: 18 | CI19: - | CJ19: - | CK19: - | CL19: - | CM19: - | CN19: - | CO19: - | CP19: 2 | CQ19: 5 | CR19: 4 | CS19: 3 | CT19: 4 | CU19: - | CV19: 0 | CW19: 0 | CX19: 0 | CY19: 0 | CZ19: 0 | DA19: 0 | DB19: 0 | DC19: 111 | DD19: 84 | DE19: 72 | DF19: 12 | DG19: - | DH19: 16 | DI19: 2 | DJ19: 9 | DK19: 27 | DL19: - | DM19: - | DN19: - | DO19: - | DP19: 21 | DQ19: - | DR19: - | DS19: 6 | DT19: - | DU19: - | DV19: - | DW19: - | DX19: - | DY19: - | DZ19: - | EA19: 27 | EB19: 3,043 | EC19: - | ED19: 2,645 | EE19: 398 | EF19: 51 | EG19: 50 | EH19: 46 | EI19: 4 | EJ19: - | EK19: - | EL19: - | EM19: 1 | EN19: 60 | EO19: 34 | EP19: 26 | EQ19: 8 | ER19: - | ES19: 16 | ET19: 2 | EU19: 8
A20: 神奈川県 | B20: 神奈川区（横浜市） | C20: 神奈川区 | D20: 菅田南部 | E20: 26 | F20: 22 | G20: 6 | H20: 5 | I20: 7 | J20: 6 | K20: 9 | L20: 4 | M20: 57 | N20: - | O20: - | P20: 10 | Q20: 3 | R20: 2 | S20: 2 | T20: 4 | U20: 6 | V20: 13 | W20: 5 | X20: 2 | Y20: 3 | Z20: 4 | AA20: 2 | AB20: 1 | AC20: 52.4 | AD20: 50.9 | AE20: 54.7 | AF20: 45 | AG20: - | AH20: - | AI20: 6 | AJ20: 2 | AK20: 1 | AL20: 1 | AM20: 3 | AN20: 4 | AO20: 11 | AP20: 5 | AQ20: 2 | AR20: 3 | AS20: 4 | AT20: 2 | AU20: 1 | AV20: 55.7 | AW20: 55.3 | AX20: 56.3 | AY20: 34 | AZ20: - | BA20: - | BB20: 5 | BC20: 2 | BD20: - | BE20: 1 | BF20: 2 | BG20: 1 | BH20: 10 | BI20: 4 | BJ20: 2 | BK20: 2 | BL20: 2 | BM20: 2 | BN20: 1 | BO20: 55.6 | BP20: 55.5 | BQ20: 55.6 | BR20: 22 | BS20: - | BT20: - | BU20: - | BV20: - | BW20: - | BX20: - | BY20: 1 | BZ20: 1 | CA20: 9 | CB20: 2 | CC20: 2 | CD20: 1 | CE20: 3 | CF20: 2 | CG20: 1 | CH20: 15 | CI20: - | CJ20: - | CK20: - | CL20: - | CM20: 1 | CN20: - | CO20: 6 | CP20: 2 | CQ20: 1 | CR20: 1 | CS20: 2 | CT20: 1 | CU20: 1 | CV20: 0 | CW20: 0 | CX20: 0 | CY20: 0 | CZ20: 0 | DA20: 0 | DB20: 0 | DC20: 96 | DD20: 60 | DE20: 34 | DF20: 25 | DG20: 1 | DH20: 14 | DI20: 10 | DJ20: 12 | DK20: 17 | DL20: - | DM20: - | DN20: - | DO20: - | DP20: 4 | DQ20: 1 | DR20: - | DS20: 12 | DT20: - | DU20: - | DV20: - | DW20: - | DX20: - | DY20: - | DZ20: - | EA20: 22 | EB20: 2,077 | EC20: 16 | ED20: 706 | EE20: 1,355 | EF20: 48 | EG20: 37 | EH20: 24 | EI20: 13 | EJ20: - | EK20: - | EL20: 5 | EM20: 6 | EN20: 48 | EO20: 23 | EP20: 10 | EQ20: 12 | ER20: 1 | ES20: 14 | ET20: 5 | EU20: 6
A21: 神奈川県 | B21: 神奈川区（横浜市） | C21: 神奈川区 | D21: 羽沢北部 | E21: 40 | F21: 37 | G21: 20 | H21: 20 | I21: 9 | J21: 6 | K21: 8 | L21: 3 | M21: 103 | N21: 1 | O21: 3 | P21: 4 | Q21: 2 | R21: 10 | S21: 13 | T21: 8 | U21: 6 | V21: 10 | W21: 10 | X21: 9 | Y21: 12 | Z21: 5 | AA21: 8 | AB21: 2 | AC21: 55.6 | AD21: 52.6 | AE21: 59.2 | AF21: 92 | AG21: 1 | AH21: 3 | AI21: 2 | AJ21: 2 | AK21: 9 | AL21: 13 | AM21: 7 | AN21: 6 | AO21: 6 | AP21: 9 | AQ21: 9 | AR21: 10 | AS21: 5 | AT21: 8 | AU21: 2 | AV21: 56.0 | AW21: 53.2 | AX21: 59.3 | AY21: 75 | AZ21: - | BA21: 2 | BB21: 2 | BC21: 1 | BD21: 6 | BE21: 8 | BF21: 6 | BG21: 6 | BH21: 6 | BI21: 7 | BJ21: 9 | BK21: 10 | BL21: 5 | BM21: 6 | BN21: 1 | BO21: 57.9 | BP21: 54.3 | BQ21: 63.8 | BR21: 37 | BS21: - | BT21: - | BU21: - | BV21: - | BW21: - | BX21: 3 | BY21: 2 | BZ21: 2 | CA21: 6 | CB21: 3 | CC21: 3 | CD21: 7 | CE21: 3 | CF21: 3 | CG21: 5 | CH21: 23 | CI21: - | CJ21: - | CK21: - | CL21: 1 | CM21: - | CN21: 1 | CO21: 5 | CP21: 2 | CQ21: 2 | CR21: 4 | CS21: 2 | CT21: 2 | CU21: 4 | CV21: 0 | CW21: 0 | CX21: 0 | CY21: 0 | CZ21: 0 | DA21: 0 | DB21: 0 | DC21: 129 | DD21: 91 | DE21: 75 | DF21: 12 | DG21: 4 | DH21: 18 | DI21: 7 | DJ21: 13 | DK21: 36 | DL21: - | DM21: - | DN21: - | DO21: - | DP21: 23 | DQ21: - | DR21: 1 | DS21: 12 | DT21: - | DU21: - | DV21: - | DW21: - | DX21: - | DY21: - | DZ21: - | EA21: 37 | EB21: 3,794 | EC21: - | ED21: 2,913 | EE21: 881 | EF21: 67 | EG21: 57 | EH21: 47 | EI21: 7 | EJ21: 3 | EK21: - | EL21: 3 | EM21: 7 | EN21: 62 | EO21: 34 | EP21: 28 | EQ21: 5 | ER21: 1 | ES21: 18 | ET21: 4 | EU21: 6
A22: 神奈川県 | B22: 神奈川区（横浜市） | C22: 神奈川区 | D22: 羽沢侑生 | E22: 1 | F22: 1 | G22: x | H22: x | I22: x | J22: x | K22: x | L22: - | M22: x | N22: x | O22: x | P22: x | Q22: x | R22: x | S22: x | T22: x | U22: x | V22: x | W22: x | X22: x | Y22: x | Z22: x | AA22: x | AB22: x | AC22: 49.0 | AD22: 49.0 | AE22: … | AF22: x | AG22: x | AH22: x | AI22: x | AJ22: x | AK22: x | AL22: x | AM22: x | AN22: x | AO22: x | AP22: x | AQ22: x | AR22: x | AS22: x | AT22: x | AU22: x | AV22: 49.0 | AW22: 49.0 | AX22: … | AY22: x | AZ22: x | BA22: x | BB22: x | BC22: x | BD22: x | BE22: x | BF22: x | BG22: x | BH22: x | BI22: x | BJ22: x | BK22: x | BL22: x | BM22: x | BN22: x | BO22: … | BP22: … | BQ22: … | BR22: 1 | BS22: - | BT22: - | BU22: - | BV22: - | BW22: - | BX22: - | BY22: 1 | BZ22: - | CA22: - | CB22: - | CC22: - | CD22: - | CE22: - | CF22: - | CG22: - | CH22: - | CI22: - | CJ22: - | CK22: - | CL22: - | CM22: - | CN22: - | CO22: - | CP22: - | CQ22: - | CR22: - | CS22: - | CT22: - | CU22: - | CV22: 0 | CW22: 0 | CX22: 0 | CY22: 0 | CZ22: 0 | DA22: 0 | DB22: 0 | DC22: 2 | DD22: - | DE22: - | DF22: - | DG22: - | DH22: - | DI22: - | DJ22: 2 | DK22: 1 | DL22: - | DM22: - | DN22: - | DO22: - | DP22: 1 | DQ22: - | DR22: - | DS22: - | DT22: - | DU22: - | DV22: - | DW22: - | DX22: - | DY22: - | DZ22: - | EA22: 1 | EB22: 30 | EC22: - | ED22: 30 | EE22: - | EF22: 1 | EG22: - | EH22: - | EI22: - | EJ22: - | EK22: - | EL22: - | EM22: 1 | EN22: 1 | EO22: - | EP22: - | EQ22: - | ER22: - | ES22: - | ET22: - | EU22: 1
A23: 神奈川県 | B23: 神奈川区（横浜市） | C23: 神奈川区 | D23: 羽沢南部 | E23: 32 | F23: 24 | G23: 15 | H23: 15 | I23: 6 | J23: 5 | K23: 3 | L23: 8 | M23: 67 | N23: 1 | O23: 1 | P23: 1 | Q23: 1 | R23: 6 | S23: 11 | T23: 6 | U23: 2 | V23: 7 | W23: 8 | X23: 9 | Y23: 11 | Z23: - | AA23: 3 | AB23: - | AC23: 55.2 | AD23: 54.2 | AE23: 56.6 | AF23: 63 | AG23: 1 | AH23: 1 | AI23: 1 | AJ23: 1 | AK23: 6 | AL23: 11 | AM23: 3 | AN23: 2 | AO23: 7 | AP23: 8 | AQ23: 9 | AR23: 10 | AS23: - | AT23: 3 | AU23: - | AV23: 55.4 | AW23: 53.8 | AX23: 57.8 | AY23: 52 | AZ23: - | BA23: - | BB23: 1 | BC23: - | BD23: 4 | BE23: 11 | BF23: 1 | BG23: 2 | BH23: 7 | BI23: 7 | BJ23: 8 | BK23: 9 | BL23: - | BM23: 2 | BN23: - | BO23: 57.1 | BP23: 56.1 | BQ23: 59.0 | BR23: 24 | BS23: - | BT23: - | BU23: - | BV23: - | BW23: - | BX23: 1 | BY23: - | BZ23: 2 | CA23: 3 | CB23: 4 | CC23: 4 | CD23: 7 | CE23: 1 | CF23: 2 | CG23: - | CH23: 18 | CI23: - | CJ23: - | CK23: - | CL23: - | CM23: - | CN23: 1 | CO23: 2 | CP23: 2 | CQ23: 4 | CR23: 6 | CS23: 1 | CT23: 2 | CU23: - | CV23: 0 | CW23: 0 | CX23: 0 | CY23: 0 | CZ23: 0 | DA23: 0 | DB23: 0 | DC23: 100 | DD23: 67 | DE23: 52 | DF23: 14 | DG23: 1 | DH23: 17 | DI23: 6 | DJ23: 10 | DK23: 24 | DL23: - | DM23: - | DN23: - | DO23: - | DP23: 15 | DQ23: - | DR23: - | DS23: 8 | DT23: - | DU23: - | DV23: 1 | DW23: - | DX23: - | DY23: - | DZ23: - | EA23: 24 | EB23: 2,144 | EC23: - | ED23: 1,618 | EE23: 526 | EF23: 46 | EG23: 39 | EH23: 34 | EI23: 5 | EJ23: - | EK23: 1 | EL23: 3 | EM23: 3 | EN23: 54 | EO23: 28 | EP23: 18 | EQ23: 9 | ER23: 1 | ES23: 16 | ET23: 3 | EU23: 7
A24: 神奈川県 | B24: 神奈川区（横浜市） | C24: 神奈川区 | D24: 三枚 | E24: 13 | F24: 9 | G24: 4 | H24: 3 | I24: 5 | J24: 5 | K24: - | L24: 4 | M24: 26 | N24: - | O24: - | P24: 2 | Q24: - | R24: 2 | S24: 2 | T24: - | U24: 5 | V24: 6 | W24: 2 | X24: 2 | Y24: - | Z24: 2 | AA24: 1 | AB24: 2 | AC24: 57.5 | AD24: 54.1 | AE24: 61.5 | AF24: 25 | AG24: - | AH24: - | AI24: 2 | AJ24: - | AK24: 1 | AL24: 2 | AM24: - | AN24: 5 | AO24: 6 | AP24: 2 | AQ24: 2 | AR24: - | AS24: 2 | AT24: 1 | AU24: 2 | AV24: 58.3 | AW24: 55.4 | AX24: 61.5 | AY24: 21 | AZ24: - | BA24: - | BB24: 2 | BC24: - | BD24: 1 | BE24: 1 | BF24: - | BG24: 3 | BH24: 6 | BI24: 2 | BJ24: 2 | BK24: - | BL24: 1 | BM24: 1 | BN24: 2 | BO24: 58.7 | BP24: 55.4 | BQ24: 64.0 | BR24: 9 | BS24: - | BT24: - | BU24: - | BV24: - | BW24: - | BX24: - | BY24: - | BZ24: 1 | CA24: 4 | CB24: - | CC24: 2 | CD24: - | CE24: 1 | CF24: - | CG24: 1 | CH24: 4 | CI24: - | CJ24: - | CK24: - | CL24: - | CM24: - | CN24: 1 | CO24: - | CP24: - | CQ24: 2 | CR24: - | CS24: - | CT24: - | CU24: 1 | CV24: 0 | CW24: 0 | CX24: 0 | CY24: 0 | CZ24: 0 | DA24: 0 | DB24: 0 | DC24: 40 | DD24: 30 | DE24: 21 | DF24: 9 | DG24: - | DH24: 5 | DI24: 3 | DJ24: 2 | DK24: 9 | DL24: - | DM24: - | DN24: - | DO24: - | DP24: 5 | DQ24: - | DR24: - | DS24: 3 | DT24: 1 | DU24: - | DV24: - | DW24: - | DX24: - | DY24: - | DZ24: - | EA24: 9 | EB24: 840 | EC24: - | ED24: 470 | EE24: 370 | EF24: 17 | EG24: 16 | EH24: 13 | EI24: 3 | EJ24: - | EK24: - | EL24: 1 | EM24: - | EN24: 23 | EO24: 14 | EP24: 8 | EQ24: 6 | ER24: - | ES24: 5 | ET24: 2 | EU24: 2
A25: 神奈川県 | B25: 神奈川区（横浜市） | C25: 神奈川区 | D25: 片倉 | E25: 19 | F25: 10 | G25: 5 | H25: 5 | I25: 5 | J25: 4 | K25: - | L25: 9 | M25: 31 | N25: - | O25: 2 | P25: - | Q25: 2 | R25: - | S25: 1 | T25: 3 | U25: 7 | V25: 6 | W25: 2 | X25: - | Y25: 1 | Z25: 5 | AA25: 2 | AB25: - | AC25: 56.1 | AD25: 58.0 | AE25: 54.0 | AF25: 28 | AG25: - | AH25: 1 | AI25: - | AJ25: 1 | AK25: - | AL25: 1 | AM25: 3 | AN25: 6 | AO25: 6 | AP25: 2 | AQ25: - | AR25: 1 | AS25: 5 | AT25: 2 | AU25: - | AV25: 58.4 | AW25: 58.5 | AX25: 58.2 | AY25: 24 | AZ25: - | BA25: - | BB25: - | BC25: 1 | BD25: - | BE25: 1 | BF25: 3 | BG25: 4 | BH25: 6 | BI25: 2 | BJ25: - | BK25: 1 | BL25: 4 | BM25: 2 | BN25: - | BO25: 59.9 | BP25: 58.5 | BQ25: 62.1 | BR25: 10 | BS25: - | BT25: - | BU25: - | BV25: - | BW25: - | BX25: - | BY25: - | BZ25: 2 | CA25: 2 | CB25: 2 | CC25: - | CD25: 1 | CE25: 2 | CF25: 1 | CG25: - | CH25: 6 | CI25: - | CJ25: - | CK25: - | CL25: - | CM25: - | CN25: 1 | CO25: - | CP25: 1 | CQ25: - | CR25: 1 | CS25: 2 | CT25: 1 | CU25: - | CV25: 0 | CW25: 0 | CX25: 0 | CY25: 0 | CZ25: 0 | DA25: 0 | DB25: 0 | DC25: 53 | DD25: 31 | DE25: 24 | DF25: 6 | DG25: 1 | DH25: 5 | DI25: 12 | DJ25: 5 | DK25: 10 | DL25: - | DM25: - | DN25: - | DO25: - | DP25: 8 | DQ25: - | DR25: - | DS25: 2 | DT25: - | DU25: - | DV25: - | DW25: - | DX25: - | DY25: - | DZ25: - | EA25: 10 | EB25: 935 | EC25: - | ED25: 755 | EE25: 180 | EF25: 24 | EG25: 17 | EH25: 15 | EI25: 2 | EJ25: - | EK25: - | EL25: 6 | EM25: 1 | EN25: 29 | EO25: 14 | EP25: 9 | EQ25: 4 | ER25: 1 | ES25: 5 | ET25: 6 | EU25: 4
A26: 神奈川県 | B26: 神奈川区（横浜市） | C26: 神奈川区 | D26: 神大寺 | E26: 20 | F26: 16 | G26: 9 | H26: 9 | I26: 4 | J26: 3 | K26: 3 | L26: 4 | M26: 61 | N26: - | O26: 3 | P26: 3 | Q26: - | R26: 1 | S26: 6 | T26: 9 | U26: 6 | V26: 6 | W26: 1 | X26: 2 | Y26: 5 | Z26: 14 | AA26: 3 | AB26: 2 | AC26: 58.4 | AD26: 57.3 | AE26: 59.4 | AF26: 55 | AG26: - | AH26: 2 | AI26: 3 | AJ26: - | AK26: 1 | AL26: 4 | AM26: 8 | AN26: 6 | AO26: 5 | AP26: 1 | AQ26: 2 | AR26: 5 | AS26: 14 | AT26: 3 | AU26: 1 | AV26: 59.2 | AW26: 58.2 | AX26: 60.2 | AY26: 37 | AZ26: - | BA26: - | BB26: 1 | BC26: - | BD26: 1 | BE26: - | BF26: 6 | BG26: 4 | BH26: 4 | BI26: 1 | BJ26: 2 | BK26: 4 | BL26: 11 | BM26: 2 | BN26: 1 | BO26: 63.7 | BP26: 61.1 | BQ26: 69.2 | BR26: 16 | BS26: - | BT26: - | BU26: - | BV26: - | BW26: - | BX26: - | BY26: 1 | BZ26: 2 | CA26: 2 | CB26: 1 | CC26: 1 | CD26: 1 | CE26: 6 | CF26: 1 | CG26: 1 | CH26: 14 | CI26: - | CJ26: - | CK26: - | CL26: - | CM26: - | CN26: 1 | CO26: 2 | CP26: 1 | CQ26: 1 | CR26: 1 | CS26: 6 | CT26: 1 | CU26: 1 | CV26: 0 | CW26: 0 | CX26: 0 | CY26: 0 | CZ26: 0 | DA26: 0 | DB26: 0 | DC26: 86 | DD26: 49 | DE26: 37 | DF26: 8 | DG26: 4 | DH26: 14 | DI26: 20 | DJ26: 3 | DK26: 15 | DL26: - | DM26: - | DN26: - | DO26: - | DP26: 14 | DQ26: - | DR26: - | DS26: - | DT26: - | DU26: - | DV26: - | DW26: - | DX26: 1 | DY26: - | DZ26: - | EA26: 15 | EB26: 1,280 | EC26: - | ED26: 1,280 | EE26: - | EF26: 42 | EG26: 30 | EH26: 25 | EI26: 3 | EJ26: 2 | EK26: - | EL26: 12 | EM26: - | EN26: 44 | EO26: 19 | EP26: 12 | EQ26: 5 | ER26: 2 | ES26: 14 | ET26: 8 | EU26: 3
A27: 神奈川県 | B27: 神奈川区（横浜市） | C27: 神奈川区 | D27: 西寺尾 | E27: 3 | F27: - | G27: - | H27: - | I27: - | J27: - | K27: - | L27: 3 | M27: - | N27: - | O27: - | P27: - | Q27: - | R27: - | S27: - | T27: - | U27: - | V27: - | W27: - | X27: - | Y27: - | Z27: - | AA27: - | AB27: - | AC27: … | AD27: … | AE27: … | AF27: - | AG27: - | AH27: - | AI27: - | AJ27: - | AK27: - | AL27: - | AM27: - | AN27: - | AO27: - | AP27: - | AQ27: - | AR27: - | AS27: - | AT27: - | AU27: - | AV27: … | AW27: … | AX27: … | AY27: - | AZ27: - | BA27: - | BB27: - | BC27: - | BD27: - | BE27: - | BF27: - | BG27: - | BH27: - | BI27: - | BJ27: - | BK27: - | BL27: - | BM27: - | BN27: - | BO27: … | BP27: … | BQ27: … | BR27: - | BS27: - | BT27: - | BU27: - | BV27: - | BW27: - | BX27: - | BY27: - | BZ27: - | CA27: - | CB27: - | CC27: - | CD27: - | CE27: - | CF27: - | CG27: - | CH27: - | CI27: - | CJ27: - | CK27: - | CL27: - | CM27: - | CN27: - | CO27: - | CP27: - | CQ27: - | CR27: - | CS27: - | CT27: - | CU27: - | CV27: 0 | CW27: 0 | CX27: 0 | CY27: 0 | CZ27: 0 | DA27: 0 | DB27: 0 | DC27: - | DD27: - | DE27: - | DF27: - | DG27: - | DH27: - | DI27: - | DJ27: - | DK27: - | DL27: - | DM27: - | DN27: - | DO27: - | DP27: - | DQ27: - | DR27: - | DS27: - | DT27: - | DU27: - | DV27: - | DW27: - | DX27: - | DY27: - | DZ27: - | EA27: - | EB27: - | EC27: - | ED27: - | EE27: - | EF27: - | EG27: - | EH27: - | EI27: - | EJ27: - | EK27: - | EL27: - | EM27: - | EN27: - | EO27: - | EP27: - | EQ27: - | ER27: - | ES27: - | ET27: - | EU27: -
A28: 神奈川県 | B28: 神奈川区（横浜市） | C28: 神奈川区 | D28: 西寺尾東部 | E28: 2 | F28: 1 | G28: x | H28: x | I28: x | J28: x | K28: x | L28: 1 | M28: x | N28: x | O28: x | P28: x | Q28: x | R28: x | S28: x | T28: x | U28: x | V28: x | W28: x | X28: x | Y28: x | Z28: x | AA28: x | AB28: x | AC28: 63.0 | AD28: 63.0 | AE28: … | AF28: x | AG28: x | AH28: x | AI28: x | AJ28: x | AK28: x | AL28: x | AM28: x | AN28: x | AO28: x | AP28: x | AQ28: x | AR28: x | AS28: x | AT28: x | AU28: x | AV28: 63.0 | AW28: 63.0 | AX28: … | AY28: x | AZ28: x | BA28: x | BB28: x | BC28: x | BD28: x | BE28: x | BF28: x | BG28: x | BH28: x | BI28: x | BJ28: x | BK28: x | BL28: x | BM28: x | BN28: x | BO28: 63.0 | BP28: 63.0 | BQ28: … | BR28: 1 | BS28: - | BT28: - | BU28: - | BV28: - | BW28: - | BX28: - | BY28: - | BZ28: - | CA28: - | CB28: - | CC28: - | CD28: - | CE28: 1 | CF28: - | CG28: - | CH28: 1 | CI28: - | CJ28: - | CK28: - | CL28: - | CM28: - | CN28: - | CO28: - | CP28: - | CQ28: - | CR28: - | CS28: 1 | CT28: - | CU28: - | CV28: 0 | CW28: 0 | CX28: 0 | CY28: 0 | CZ28: 0 | DA28: 0 | DB28: 0 | DC28: 2 | DD28: 2 | DE28: 2 | DF28: - | DG28: - | DH28: - | DI28: - | DJ28: - | DK28: 1 | DL28: - | DM28: - | DN28: - | DO28: - | DP28: 1 | DQ28: - | DR28: - | DS28: - | DT28: - | DU28: - | DV28: - | DW28: - | DX28: - | DY28: - | DZ28: - | EA28: 1 | EB28: 20 | EC28: - | ED28: 20 | EE28: - | EF28: 2 | EG28: 2 | EH28: 2 | EI28: - | EJ28: - | EK28: - | EL28: - | EM28: - | EN28: - | EO28: - | EP28: - | EQ28: - | ER28: - | ES28: - | ET28: - | EU28: -
A29: 神奈川県 | B29: 神奈川区（横浜市） | C29: 神奈川区 | D29: 三ツ沢 | E29: 5 | F29: - | G29: - | H29: - | I29: - | J29: - | K29: - | L29: 5 | M29: - | N29: - | O29: - | P29: - | Q29: - | R29: - | S29: - | T29: - | U29: - | V29: - | W29: - | X29: - | Y29: - | Z29: - | AA29: - | AB29: - | AC29: … | AD29: … | AE29: … | AF29: - | AG29: - | AH29: - | AI29: - | AJ29: - | AK29: - | AL29: - | AM29: - | AN29: - | AO29: - | AP29: - | AQ29: - | AR29: - | AS29: - | AT29: - | AU29: - | AV29: … | AW29: … | AX29: … | AY29: - | AZ29: - | BA29: - | BB29: - | BC29: - | BD29: - | BE29: - | BF29: - | BG29: - | BH29: - | BI29: - | BJ29: - | BK29: - | BL29: - | BM29: - | BN29: - | BO29: … | BP29: … | BQ29: … | BR29: - | BS29: - | BT29: - | BU29: - | BV29: - | BW29: - | BX29: - | BY29: - | BZ29: - | CA29: - | CB29: - | CC29: - | CD29: - | CE29: - | CF29: - | CG29: - | CH29: - | CI29: - | CJ29: - | CK29: - | CL29: - | CM29: - | CN29: - | CO29: - | CP29: - | CQ29: - | CR29: - | CS29: - | CT29: - | CU29: - | CV29: 0 | CW29: 0 | CX29: 0 | CY29: 0 | CZ29: 0 | DA29: 0 | DB29: 0 | DC29: - | DD29: - | DE29: - | DF29: - | DG29: - | DH29: - | DI29: - | DJ29: - | DK29: - | DL29: - | DM29: - | DN29: - | DO29: - | DP29: - | DQ29: - | DR29: - | DS29: - | DT29: - | DU29: - | DV29: - | DW29: - | DX29: - | DY29: - | DZ29: - | EA29: - | EB29: - | EC29: - | ED29: - | EE29: - | EF29: - | EG29: - | EH29: - | EI29: - | EJ29: - | EK29: - | EL29: - | EM29: - | EN29: - | EO29: - | EP29: - | EQ29: - | ER29: - | ES29: - | ET29: - | EU29: -
A30: 神奈川県 | B30: 神奈川区（横浜市） | C30: 神奈川区 | D30: 三ッ沢東部，栗田谷 | E30: 1 | F30: 1 | G30: x | H30: x | I30: x | J30: x | K30: x | L30: - | M30: x | N30: x | O30: x | P30: x | Q30: x | R30: x | S30: x | T30: x | U30: x | V30: x | W30: x | X30: x | Y30: x | Z30: x | AA30: x | AB30: x | AC30: 65.5 | AD30: 66.0 | AE30: 65.0 | AF30: x | AG30: x | AH30: x | AI30: x | AJ30: x | AK30: x | AL30: x | AM30: x | AN30: x | AO30: x | AP30: x | AQ30: x | AR30: x | AS30: x | AT30: x | AU30: x | AV30: 65.0 | AW30: … | AX30: 65.0 | AY30: x | AZ30: x | BA30: x | BB30: x | BC30: x | BD30: x | BE30: x | BF30: x | BG30: x | BH30: x | BI30: x | BJ30: x | BK30: x | BL30: x | BM30: x | BN30: x | BO30: … | BP30: … | BQ30: … | BR30: 1 | BS30: - | BT30: - | BU30: - | BV30: - | BW30: - | BX30: - | BY30: - | BZ30: - | CA30: - | CB30: - | CC30: 1 | CD30: - | CE30: - | CF30: - | CG30: - | CH30: 1 | CI30: - | CJ30: - | CK30: - | CL30: - | CM30: - | CN30: - | CO30: - | CP30: - | CQ30: 1 | CR30: - | CS30: - | CT30: - | CU30: - | CV30: 0 | CW30: 0 | CX30: 0 | CY30: 0 | CZ30: 0 | DA30: 0 | DB30: 0 | DC30: 2 | DD30: 1 | DE30: - | DF30: 1 | DG30: - | DH30: 1 | DI30: - | DJ30: - | DK30: - | DL30: - | DM30: - | DN30: - | DO30: - | DP30: - | DQ30: - | DR30: - | DS30: - | DT30: - | DU30: - | DV30: - | DW30: - | DX30: - | DY30: - | DZ30: - | EA30: 1 | EB30: 30 | EC30: - | ED30: 10 | EE30: 20 | EF30: 1 | EG30: 1 | EH30: - | EI30: 1 | EJ30: - | EK30: - | EL30: - | EM30: - | EN30: 1 | EO30: - | EP30: - | EQ30: - | ER30: - | ES30: 1 | ET30: - | EU30: -
A31: 神奈川県 | B31: 神奈川区（横浜市） | C31: 神奈川区 | D31: 六角橋 | E31: 3 | F31: 3 | G31: 1 | H31: 1 | I31: - | J31: - | K31: 2 | L31: - | M31: 6 | N31: - | O31: - | P31: - | Q31: - | R31: - | S31: - | T31: - | U31: 2 | V31: - | W31: - | X31: - | Y31: 1 | Z31: 2 | AA31: 1 | AB31: - | AC31: 68.3 | AD31: 70.0 | AE31: 66.7 | AF31: 5 | AG31: - | AH31: - | AI31: - | AJ31: - | AK31: - | AL31: - | AM31: - | AN31: 2 | AO31: - | AP31: - | AQ31: - | AR31: 1 | AS31: 2 | AT31: - | AU31: - | AV31: 65.8 | AW31: 64.5 | AX31: 66.7 | AY31: 2 | AZ31: - | BA31: - | BB31: - | BC31: - | BD31: - | BE31: - | BF31: - | BG31: 1 | BH31: - | BI31: - | BJ31: - | BK31: - | BL31: 1 | BM31: - | BN31: - | BO31: 64.5 | BP31: 64.5 | BQ31: … | BR31: 3 | BS31: - | BT31: - | BU31: - | BV31: - | BW31: - | BX31: - | BY31: - | BZ31: 1 | CA31: - | CB31: - | CC31: - | CD31: - | CE31: 1 | CF31: 1 | CG31: - | CH31: - | CI31: - | CJ31: - | CK31: - | CL31: - | CM31: - | CN31: - | CO31: - | CP31: - | CQ31: - | CR31: - | CS31: - | CT31: - | CU31: - | CV31: 0 | CW31: 0 | CX31: 0 | CY31: 0 | CZ31: 0 | DA31: 0 | DB31: 0 | DC31: 10 | DD31: 3 | DE31: 2 | DF31: - | DG31: 1 | DH31: 3 | DI31: 2 | DJ31: 2 | DK31: 3 | DL31: - | DM31: - | DN31: - | DO31: - | DP31: 2 | DQ31: - | DR31: - | DS31: 1 | DT31: - | DU31: - | DV31: - | DW31: - | DX31: - | DY31: - | DZ31: - | EA31: 3 | EB31: 130 | EC31: - | ED31: 50 | EE31: 80 | EF31: 5 | EG31: 3 | EH31: 2 | EI31: - | EJ31: 1 | EK31: - | EL31: 1 | EM31: 1 | EN31: 5 | EO31: - | EP31: - | EQ31: - | ER31: - | ES31: 3 | ET31: 1 | EU31: 1
A32: 神奈川県 | B32: 神奈川区（横浜市） | C32: 神奈川区 | D32: 白幡 | E32: - | F32: - | G32: - | H32: - | I32: - | J32: - | K32: - | L32: - | M32: - | N32: - | O32: - | P32: - | Q32: - | R32: - | S32: - | T32: - | U32: - | V32: - | W32: - | X32: - | Y32: - | Z32: - | AA32: - | AB32: - | AC32: … | AD32: … | AE32: … | AF32: - | AG32: - | AH32: - | AI32: - | AJ32: - | AK32: - | AL32: - | AM32: - | AN32: - | AO32: - | AP32: - | AQ32: - | AR32: - | AS32: - | AT32: - | AU32: - | AV32: … | AW32: … | AX32: … | AY32: - | AZ32: - | BA32: - | BB32: - | BC32: - | BD32: - | BE32: - | BF32: - | BG32: - | BH32: - | BI32: - | BJ32: - | BK32: - | BL32: - | BM32: - | BN32: - | BO32: … | BP32: … | BQ32: … | BR32: - | BS32: - | BT32: - | BU32: - | BV32: - | BW32: - | BX32: - | BY32: - | BZ32: - | CA32: - | CB32: - | CC32: - | CD32: - | CE32: - | CF32: - | CG32: - | CH32: - | CI32: - | CJ32: - | CK32: - | CL32: - | CM32: - | CN32: - | CO32: - | CP32: - | CQ32: - | CR32: - | CS32: - | CT32: - | CU32: - | CV32: 0 | CW32: 0 | CX32: 0 | CY32: 0 | CZ32: 0 | DA32: 0 | DB32: 0 | DC32: - | DD32: - | DE32: - | DF32: - | DG32: - | DH32: - | DI32: - | DJ32: - | DK32: - | DL32: - | DM32: - | DN32: - | DO32: - | DP32: - | DQ32: - | DR32: - | DS32: - | DT32: - | DU32: - | DV32: - | DW32: - | DX32: - | DY32: - | DZ32: - | EA32: - | EB32: - | EC32: - | ED32: - | EE32: - | EF32: - | EG32: - | EH32: - | EI32: - | EJ32: - | EK32: - | EL32: - | EM32: - | EN32: - | EO32: - | EP32: - | EQ32: - | ER32: - | ES32: - | ET32: - | EU32: -
A33: 神奈川県 | B33: 神奈川区（横浜市） | C33: 神奈川区 | D33: 大口子安 | E33: - | F33: - | G33: - | H33: - | I33: - | J33: - | K33: - | L33: - | M33: - | N33: - | O33: - | P33: - | Q33: - | R33: - | S33: - | T33: - | U33: - | V33: - | W33: - | X33: - | Y33: - | Z33: - | AA33: - | AB33: - | AC33: … | AD33: … | AE33: … | AF33: - | AG33: - | AH33: - | AI33: - | AJ33: - | AK33: - | AL33: - | AM33: - | AN33: - | AO33: - | AP33: - | AQ33: - | AR33: - | AS33: - | AT33: - | AU33: - | AV33: … | AW33: … | AX33: … | AY33: - | AZ33: - | BA33: - | BB33: - | BC33: - | BD33: - | BE33: - | BF33: - | BG33: - | BH33: - | BI33: - | BJ33: - | BK33: - | BL33: - | BM33: - | BN33: - | BO33: … | BP33: … | BQ33: … | BR33: - | BS33: - | BT33: - | BU33: - | BV33: - | BW33: - | BX33: - | BY33: - | BZ33: - | CA33: - | CB33: - | CC33: - | CD33: - | CE33: - | CF33: - | CG33: - | CH33: - | CI33: - | CJ33: - | CK33: - | CL33: - | CM33: - | CN33: - | CO33: - | CP33: - | CQ33: - | CR33: - | CS33: - | CT33: - | CU33: - | CV33: 0 | CW33: 0 | CX33: 0 | CY33: 0 | CZ33: 0 | DA33: 0 | DB33: 0 | DC33: - | DD33: - | DE33: - | DF33: - | DG33: - | DH33: - | DI33: - | DJ33: - | DK33: - | DL33: - | DM33: - | DN33: - | DO33: - | DP33: - | DQ33: - | DR33: - | DS33: - | DT33: - | DU33: - | DV33: - | DW33: - | DX33: - | DY33: - | DZ33: - | EA33: - | EB33: - | EC33: - | ED33: - | EE33: - | EF33: - | EG33: - | EH33: - | EI33: - | EJ33: - | EK33: - | EL33: - | EM33: - | EN33: - | EO33: - | EP33: - | EQ33: - | ER33: - | ES33: - | ET33: - | EU33: -
A34: 神奈川県 | B34: 西区（横浜市） | C34: 西区 | E34: - | F34: - | G34: - | H34: - | I34: - | J34: - | K34: - | L34: - | M34: - | N34: - | O34: - | P34: - | Q34: - | R34: - | S34: - | T34: - | U34: - | V34: - | W34: - | X34: - | Y34: - | Z34: - | AA34: - | AB34: - | AC34: - | AD34: - | AE34: - | AF34: - | AG34: - | AH34: - | AI34: - | AJ34: - | AK34: - | AL34: - | AM34: - | AN34: - | AO34: - | AP34: - | AQ34: - | AR34: - | AS34: - | AT34: - | AU34: - | AV34: - | AW34: - | AX34: - | AY34: - | AZ34: - | BA34: - | BB34: - | BC34: - | BD34: - | BE34: - | BF34: - | BG34: - | BH34: - | BI34: - | BJ34: - | BK34: - | BL34: - | BM34: - | BN34: - | BO34: - | BP34: - | BQ34: - | BR34: - | BS34: - | BT34: - | BU34: - | BV34: - | BW34: - | BX34: - | BY34: - | BZ34: - | CA34: - | CB34: - | CC34: - | CD34: - | CE34: - | CF34: - | CG34: - | CH34: - | CI34: - | CJ34: - | CK34: - | CL34: - | CM34: - | CN34: - | CO34: - | CP34: - | CQ34: - | CR34: - | CS34: - | CT34: - | CU34: - | CV34: 0 | CW34: 0 | CX34: 0 | CY34: 0 | CZ34: 0 | DA34: 0 | DB34: 0 | DC34: - | DD34: - | DE34: - | DF34: - | DG34: - | DH34: - | DI34: - | DJ34: - | DK34: - | DL34: - | DM34: - | DN34: - | DO34: - | DP34: - | DQ34: - | DR34: - | DS34: - | DT34: - | DU34: - | DV34: - | DW34: - | DX34: - | DY34: - | DZ34: - | EA34: - | EB34: - | EC34: - | ED34: - | EE34: - | EF34: - | EG34: - | EH34: - | EI34: - | EJ34: - | EK34: - | EL34: - | EM34: - | EN34: - | EO34: - | EP34: - | EQ34: - | ER34: - | ES34: - | ET34: - | EU34: -
A35: 神奈川県 | B35: 西区（横浜市） | C35: 西区 | D35: 西区全域 | E35: - | F35: - | G35: - | H35: - | I35: - | J35: - | K35: - | L35: - | M35: - | N35: - | O35: - | P35: - | Q35: - | R35: - | S35: - | T35: - | U35: - | V35: - | W35: - | X35: - | Y35: - | Z35: - | AA35: - | AB35: - | AC35: … | AD35: … | AE35: … | AF35: - | AG35: - | AH35: - | AI35: - | AJ35: - | AK35: - | AL35: - | AM35: - | AN35: - | AO35: - | AP35: - | AQ35: - | AR35: - | AS35: - | AT35: - | AU35: - | AV35: … | AW35: … | AX35: … | AY35: - | AZ35: - | BA35: - | BB35: - | BC35: - | BD35: - | BE35: - | BF35: - | BG35: - | BH35: - | BI35: - | BJ35: - | BK35: - | BL35: - | BM35: - | BN35: - | BO35: … | BP35: … | BQ35: … | BR35: - | BS35: - | BT35: - | BU35: - | BV35: - | BW35: - | BX35: - | BY35: - | BZ35: - | CA35: - | CB35: - | CC35: - | CD35: - | CE35: - | CF35: - | CG35: - | CH35: - | CI35: - | CJ35: - | CK35: - | CL35: - | CM35: - | CN35: - | CO35: - | CP35: - | CQ35: - | CR35: - | CS35: - | CT35: - | CU35: - | CV35: 0 | CW35: 0 | CX35: 0 | CY35: 0 | CZ35: 0 | DA35: 0 | DB35: 0 | DC35: - | DD35: - | DE35: - | DF35: - | DG35: - | DH35: - | DI35: - | DJ35: - | DK35: - | DL35: - | DM35: - | DN35: - | DO35: - | DP35: - | DQ35: - | DR35: - | DS35: - | DT35: - | DU35: - | DV35: - | DW35: - | DX35: - | DY35: - | DZ35: - | EA35: - | EB35: - | EC35: - | ED35: - | EE35: - | EF35: - | EG35: - | EH35: - | EI35: - | EJ35: - | EK35: - | EL35: - | EM35: - | EN35: - | EO35: - | EP35: - | EQ35: - | ER35: - | ES35: - | ET35: - | EU35: -
A36: 神奈川県 | B36: 中区（横浜市） | C36: 中区 | E36: 1 | F36: - | G36: - | H36: - | I36: - | J36: - | K36: - | L36: 1 | M36: - | N36: - | O36: - | P36: - | Q36: - | R36: - | S36: - | T36: - | U36: - | V36: - | W36: - | X36: - | Y36: - | Z36: - | AA36: - | AB36: - | AC36: - | AD36: - | AE36: - | AF36: - | AG36: - | AH36: - | AI36: - | AJ36: - | AK36: - | AL36: - | AM36: - | AN36: - | AO36: - | AP36: - | AQ36: - | AR36: - | AS36: - | AT36: - | AU36: - | AV36: - | AW36: - | AX36: - | AY36: - | AZ36: - | BA36: - | BB36: - | BC36: - | BD36: - | BE36: - | BF36: - | BG36: - | BH36: - | BI36: - | BJ36: - | BK36: - | BL36: - | BM36: - | BN36: - | BO36: - | BP36: - | BQ36: - | BR36: - | BS36: - | BT36: - | BU36: - | BV36: - | BW36: - | BX36: - | BY36: - | BZ36: - | CA36: - | CB36: - | CC36: - | CD36: - | CE36: - | CF36: - | CG36: - | CH36: - | CI36: - | CJ36: - | CK36: - | CL36: - | CM36: - | CN36: - | CO36: - | CP36: - | CQ36: - | CR36: - | CS36: - | CT36: - | CU36: - | CV36: 0 | CW36: 0 | CX36: 0 | CY36: 0 | CZ36: 0 | DA36: 0 | DB36: 0 | DC36: - | DD36: - | DE36: - | DF36: - | DG36: - | DH36: - | DI36: - | DJ36: - | DK36: - | DL36: - | DM36: - | DN36: - | DO36: - | DP36: - | DQ36: - | DR36: - | DS36: - | DT36: - | DU36: - | DV36: - | DW36: - | DX36: - | DY36: - | DZ36: - | EA36: - | EB36: - | EC36: - | ED36: - | EE36: - | EF36: - | EG36: - | EH36: - | EI36: - | EJ36: - | EK36: - | EL36: - | EM36: - | EN36: - | EO36: - | EP36: - | EQ36: - | ER36: - | ES36: - | ET36: - | EU36: -
A37: 神奈川県 | B37: 中区（横浜市） | C37: 中区 | D37: 本牧１・２丁目 | E37: 1 | F37: - | G37: - | H37: - | I37: - | J37: - | K37: - | L37: 1 | M37: - | N37: - | O37: - | P37: - | Q37: - | R37: - | S37: - | T37: - | U37: - | V37: - | W37: - | X37: - | Y37: - | Z37: - | AA37: - | AB37: - | AC37: … | AD37: … | AE37: … | AF37: - | AG37: - | AH37: - | AI37: - | AJ37: - | AK37: - | AL37: - | AM37: - | AN37: - | AO37: - | AP37: - | AQ37: - | AR37: - | AS37: - | AT37: - | AU37: - | AV37: … | AW37: … | AX37: … | AY37: - | AZ37: - | BA37: - | BB37: - | BC37: - | BD37: - | BE37: - | BF37: - | BG37: - | BH37: - | BI37: - | BJ37: - | BK37: - | BL37: - | BM37: - | BN37: - | BO37: … | BP37: … | BQ37: … | BR37: - | BS37: - | BT37: - | BU37: - | BV37: - | BW37: - | BX37: - | BY37: - | BZ37: - | CA37: - | CB37: - | CC37: - | CD37: - | CE37: - | CF37: - | CG37: - | CH37: - | CI37: - | CJ37: - | CK37: - | CL37: - | CM37: - | CN37: - | CO37: - | CP37: - | CQ37: - | CR37: - | CS37: - | CT37: - | CU37: - | CV37: 0 | CW37: 0 | CX37: 0 | CY37: 0 | CZ37: 0 | DA37: 0 | DB37: 0 | DC37: - | DD37: - | DE37: - | DF37: - | DG37: - | DH37: - | DI37: - | DJ37: - | DK37: - | DL37: - | DM37: - | DN37: - | DO37: - | DP37: - | DQ37: - | DR37: - | DS37: - | DT37: - | DU37: - | DV37: - | DW37: - | DX37: - | DY37: - | DZ37: - | EA37: - | EB37: - | EC37: - | ED37: - | EE37: - | EF37: - | EG37: - | EH37: - | EI37: - | EJ37: - | EK37: - | EL37: - | EM37: - | EN37: - | EO37: - | EP37: - | EQ37: - | ER37: - | ES37: - | ET37: - | EU37: -
A38: 神奈川県 | B38: 中区（横浜市） | C38: 中区 | D38: 根岸その他 | E38: - | F38: - | G38: - | H38: - | I38: - | J38: - | K38: - | L38: - | M38: - | N38: - | O38: - | P38: - | Q38: - | R38: - | S38: - | T38: - | U38: - | V38: - | W38: - | X38: - | Y38: - | Z38: - | AA38: - | AB38: - | AC38: … | AD38: … | AE38: … | AF38: - | AG38: - | AH38: - | AI38: - | AJ38: - | AK38: - | AL38: - | AM38: - | AN38: - | AO38: - | AP38: - | AQ38: - | AR38: - | AS38: - | AT38: - | AU38: - | AV38: … | AW38: … | AX38: … | AY38: - | AZ38: - | BA38: - | BB38: - | BC38: - | BD38: - | BE38: - | BF38: - | BG38: - | BH38: - | BI38: - | BJ38: - | BK38: - | BL38: - | BM38: - | BN38: - | BO38: … | BP38: … | BQ38: … | BR38: - | BS38: - | BT38: - | BU38: - | BV38: - | BW38: - | BX38: - | BY38: - | BZ38: - | CA38: - | CB38: - | CC38: - | CD38: - | CE38: - | CF38: - | CG38: - | CH38: - | CI38: - | CJ38: - | CK38: - | CL38: - | CM38: - | CN38: - | CO38: - | CP38: - | CQ38: - | CR38: - | CS38: - | CT38: - | CU38: - | CV38: 0 | CW38: 0 | CX38: 0 | CY38: 0 | CZ38: 0 | DA38: 0 | DB38: 0 | DC38: - | DD38: - | DE38: - | DF38: - | DG38: - | DH38: - | DI38: - | DJ38: - | DK38: - | DL38: - | DM38: - | DN38: - | DO38: - | DP38: - | DQ38: - | DR38: - | DS38: - | DT38: - | DU38: - | DV38: - | DW38: - | DX38: - | DY38: - | DZ38: - | EA38: - | EB38: - | EC38: - | ED38: - | EE38: - | EF38: - | EG38: - | EH38: - | EI38: - | EJ38: - | EK38: - | EL38: - | EM38: - | EN38: - | EO38: - | EP38: - | EQ38: - | ER38: - | ES38: - | ET38: - | EU38: -
A39: 神奈川県 | B39: 南区（南区２－１）（横浜市） | C39: 南区（南区２－１） | E39: 11 | F39: 3 | G39: 2 | H39: 2 | I39: - | J39: - | K39: 1 | L39: 8 | M39: 9 | N39: - | O39: - | P39: - | Q39: 1 | R39: - | S39: 2 | T39: - | U39: - | V39: - | W39: - | X39: 3 | Y39: 2 | Z39: 1 | AA39: - | AB39: - | AC39: 59.9 | AD39: 60.0 | AE39: 59.8 | AF39: 8 | AG39: - | AH39: - | AI39: - | AJ39: 1 | AK39: - | AL39: 1 | AM39: - | AN39: - | AO39: - | AP39: - | AQ39: 3 | AR39: 2 | AS39: 1 | AT39: - | AU39: - | AV39: 62.4 | AW39: 65.0 | AX39: 59.8 | AY39: 8 | AZ39: - | BA39: - | BB39: - | BC39: 1 | BD39: - | BE39: 1 | BF39: - | BG39: - | BH39: - | BI39: - | BJ39: 3 | BK39: 2 | BL39: 1 | BM39: - | BN39: - | BO39: 62.4 | BP39: 65.0 | BQ39: 59.8 | BR39: 3 | BS39: - | BT39: - | BU39: - | BV39: - | BW39: - | BX39: - | BY39: - | BZ39: - | CA39: - | CB39: - | CC39: 1 | CD39: 1 | CE39: 1 | CF39: - | CG39: - | CH39: 3 | CI39: - | CJ39: - | CK39: - | CL39: - | CM39: - | CN39: - | CO39: - | CP39: - | CQ39: 1 | CR39: 1 | CS39: 1 | CT39: - | CU39: - | CV39: 0 | CW39: 0 | CX39: 0 | CY39: 0 | CZ39: 0 | DA39: 0 | DB39: 0 | DC39: 14 | DD39: 11 | DE39: 8 | DF39: 3 | DG39: - | DH39: 2 | DI39: 1 | DJ39: - | DK39: 3 | DL39: - | DM39: - | DN39: - | DO39: - | DP39: 1 | DQ39: - | DR39: - | DS39: 1 | DT39: - | DU39: - | DV39: - | DW39: - | DX39: 1 | DY39: - | DZ39: - | EA39: 2 | EB39: 48 | EC39: - | ED39: 23 | EE39: 25 | EF39: 8 | EG39: 7 | EH39: 4 | EI39: 3 | EJ39: - | EK39: - | EL39: 1 | EM39: - | EN39: 6 | EO39: 4 | EP39: 4 | EQ39: - | ER39: - | ES39: 2 | ET39: - | EU39: -
A40: 神奈川県 | B40: 南区（南区２－１）（横浜市） | C40: 南区（南区２－１） | D40: 大岡 | E40: 2 | F40: - | G40: - | H40: - | I40: - | J40: - | K40: - | L40: 2 | M40: - | N40: - | O40: - | P40: - | Q40: - | R40: - | S40: - | T40: - | U40: - | V40: - | W40: - | X40: - | Y40: - | Z40: - | AA40: - | AB40: - | AC40: … | AD40: … | AE40: … | AF40: - | AG40: - | AH40: - | AI40: - | AJ40: - | AK40: - | AL40: - | AM40: - | AN40: - | AO40: - | AP40: - | AQ40: - | AR40: - | AS40: - | AT40: - | AU40: - | AV40: … | AW40: … | AX40: … | AY40: - | AZ40: - | BA40: - | BB40: - | BC40: - | BD40: - | BE40: - | BF40: - | BG40: - | BH40: - | BI40: - | BJ40: - | BK40: - | BL40: - | BM40: - | BN40: - | BO40: … | BP40: … | BQ40: … | BR40: - | BS40: - | BT40: - | BU40: - | BV40: - | BW40: - | BX40: - | BY40: - | BZ40: - | CA40: - | CB40: - | CC40: - | CD40: - | CE40: - | CF40: - | CG40: - | CH40: - | CI40: - | CJ40: - | CK40: - | CL40: - | CM40: - | CN40: - | CO40: - | CP40: - | CQ40: - | CR40: - | CS40: - | CT40: - | CU40: - | CV40: 0 | CW40: 0 | CX40: 0 | CY40: 0 | CZ40: 0 | DA40: 0 | DB40: 0 | DC40: - | DD40: - | DE40: - | DF40: - | DG40: - | DH40: - | DI40: - | DJ40: - | DK40: - | DL40: - | DM40: - | DN40: - | DO40: - | DP40: - | DQ40: - | DR40: - | DS40: - | DT40: - | DU40: - | DV40: - | DW40: - | DX40: - | DY40: - | DZ40: - | EA40: - | EB40: - | EC40: - | ED40: - | EE40: - | EF40: - | EG40: - | EH40: - | EI40: - | EJ40: - | EK40: - | EL40: - | EM40: - | EN40: - | EO40: - | EP40: - | EQ40: - | ER40: - | ES40: - | ET40: - | EU40: -
A41: 神奈川県 | B41: 南区（南区２－１）（横浜市） | C41: 南区（南区２－１） | D41: 別所 | E41: 5 | F41: 2 | G41: x | H41: x | I41: x | J41: x | K41: x | L41: 3 | M41: x | N41: x | O41: x | P41: x | Q41: x | R41: x | S41: x | T41: x | U41: x | V41: x | W41: x | X41: x | Y41: x | Z41: x | AA41: x | AB41: x | AC41: 58.2 | AD41: 61.0 | AE41: 55.3 | AF41: x | AG41: x | AH41: x | AI41: x | AJ41: x | AK41: x | AL41: x | AM41: x | AN41: x | AO41: x | AP41: x | AQ41: x | AR41: x | AS41: x | AT41: x | AU41: x | AV41: 58.2 | AW41: 61.0 | AX41: 55.3 | AY41: x | AZ41: x | BA41: x | BB41: x | BC41: x | BD41: x | BE41: x | BF41: x | BG41: x | BH41: x | BI41: x | BJ41: x | BK41: x | BL41: x | BM41: x | BN41: x | BO41: 58.2 | BP41: 61.0 | BQ41: 55.3 | BR41: 2 | BS41: - | BT41: - | BU41: - | BV41: - | BW41: - | BX41: - | BY41: - | BZ41: - | CA41: - | CB41: - | CC41: 1 | CD41: 1 | CE41: - | CF41: - | CG41: - | CH41: 2 | CI41: - | CJ41: - | CK41: - | CL41: - | CM41: - | CN41: - | CO41: - | CP41: - | CQ41: 1 | CR41: 1 | CS41: - | CT41: - | CU41: - | CV41: 0 | CW41: 0 | CX41: 0 | CY41: 0 | CZ41: 0 | DA41: 0 | DB41: 0 | DC41: 9 | DD41: 6 | DE41: 6 | DF41: - | DG41: - | DH41: 2 | DI41: 1 | DJ41: - | DK41: 2 | DL41: - | DM41: - | DN41: - | DO41: - | DP41: 1 | DQ41: - | DR41: - | DS41: 1 | DT41: - | DU41: - | DV41: - | DW41: - | DX41: - | DY41: - | DZ41: - | EA41: 2 | EB41: 48 | EC41: - | ED41: 23 | EE41: 25 | EF41: 4 | EG41: 3 | EH41: 3 | EI41: - | EJ41: - | EK41: - | EL41: 1 | EM41: - | EN41: 5 | EO41: 3 | EP41: 3 | EQ41: - | ER41: - | ES41: 2 | ET41: - | EU41: -
A42: 神奈川県 | B42: 南区（南区２－１）（横浜市） | C42: 南区（南区２－１） | D42: 中里 | E42: - | F42: - | G42: - | H42: - | I42: - | J42: - | K42: - | L42: - | M42: - | N42: - | O42: - | P42: - | Q42: - | R42: - | S42: - | T42: - | U42: - | V42: - | W42: - | X42: - | Y42: - | Z42: - | AA42: - | AB42: - | AC42: … | AD42: … | AE42: … | AF42: - | AG42: - | AH42: - | AI42: - | AJ42: - | AK42: - | AL42: - | AM42: - | AN42: - | AO42: - | AP42: - | AQ42: - | AR42: - | AS42: - | AT42: - | AU42: - | AV42: … | AW42: … | AX42: … | AY42: - | AZ42: - | BA42: - | BB42: - | BC42: - | BD42: - | BE42: - | BF42: - | BG42: - | BH42: - | BI42: - | BJ42: - | BK42: - | BL42: - | BM42: - | BN42: - | BO42: … | BP42: … | BQ42: … | BR42: - | BS42: - | BT42: - | BU42: - | BV42: - | BW42: - | BX42: - | BY42: - | BZ42: - | CA42: - | CB42: - | CC42: - | CD42: - | CE42: - | CF42: - | CG42: - | CH42: - | CI42: - | CJ42: - | CK42: - | CL42: - | CM42: - | CN42: - | CO42: - | CP42: - | CQ42: - | CR42: - | CS42: - | CT42: - | CU42: - | CV42: 0 | CW42: 0 | CX42: 0 | CY42: 0 | CZ42: 0 | DA42: 0 | DB42: 0 | DC42: - | DD42: - | DE42: - | DF42: - | DG42: - | DH42: - | DI42: - | DJ42: - | DK42: - | DL42: - | DM42: - | DN42: - | DO42: - | DP42: - | DQ42: - | DR42: - | DS42: - | DT42: - | DU42: - | DV42: - | DW42: - | DX42: - | DY42: - | DZ42: - | EA42: - | EB42: - | EC42: - | ED42: - | EE42: - | EF42: - | EG42: - | EH42: - | EI42: - | EJ42: - | EK42: - | EL42: - | EM42: - | EN42: - | EO42: - | EP42: - | EQ42: - | ER42: - | ES42: - | ET42: - | EU42: -
A43: 神奈川県 | B43: 南区（南区２－１）（横浜市） | C43: 南区（南区２－１） | D43: 六ツ川 | E43: 3 | F43: - | G43: - | H43: - | I43: - | J43: - | K43: - | L43: 3 | M43: - | N43: - | O43: - | P43: - | Q43: - | R43: - | S43: - | T43: - | U43: - | V43: - | W43: - | X43: - | Y43: - | Z43: - | AA43: - | AB43: - | AC43: … | AD43: … | AE43: … | AF43: - | AG43: - | AH43: - | AI43: - | AJ43: - | AK43: - | AL43: - | AM43: - | AN43: - | AO43: - | AP43: - | AQ43: - | AR43: - | AS43: - | AT43: - | AU43: - | AV43: … | AW43: … | AX43: … | AY43: - | AZ43: - | BA43: - | BB43: - | BC43: - | BD43: - | BE43: - | BF43: - | BG43: - | BH43: - | BI43: - | BJ43: - | BK43: - | BL43: - | BM43: - | BN43: - | BO43: … | BP43: … | BQ43: … | BR43: - | BS43: - | BT43: - | BU43: - | BV43: - | BW43: - | BX43: - | BY43: - | BZ43: - | CA43: - | CB43: - | CC43: - | CD43: - | CE43: - | CF43: - | CG43: - | CH43: - | CI43: - | CJ43: - | CK43: - | CL43: - | CM43: - | CN43: - | CO43: - | CP43: - | CQ43: - | CR43: - | CS43: - | CT43: - | CU43: - | CV43: 0 | CW43: 0 | CX43: 0 | CY43: 0 | CZ43: 0 | DA43: 0 | DB43: 0 | DC43: - | DD43: - | DE43: - | DF43: - | DG43: - | DH43: - | DI43: - | DJ43: - | DK43: - | DL43: - | DM43: - | DN43: - | DO43: - | DP43: - | DQ43: - | DR43: - | DS43: - | DT43: - | DU43: - | DV43: - | DW43: - | DX43: - | DY43: - | DZ43: - | EA43: - | EB43: - | EC43: - | ED43: - | EE43: - | EF43: - | EG43: - | EH43: - | EI43: - | EJ43: - | EK43: - | EL43: - | EM43: - | EN43: - | EO43: - | EP43: - | EQ43: - | ER43: - | ES43: - | ET43: - | EU43: -
A44: 神奈川県 | B44: 南区（南区２－１）（横浜市） | C44: 南区（南区２－１） | D44: 永田南 | E44: - | F44: - | G44: - | H44: - | I44: - | J44: - | K44: - | L44: - | M44: - | N44: - | O44: - | P44: - | Q44: - | R44: - | S44: - | T44: - | U44: - | V44: - | W44: - | X44: - | Y44: - | Z44: - | AA44: - | AB44: - | AC44: … | AD44: … | AE44: … | AF44: - | AG44: - | AH44: - | AI44: - | AJ44: - | AK44: - | AL44: - | AM44: - | AN44: - | AO44: - | AP44: - | AQ44: - | AR44: - | AS44: - | AT44: - | AU44: - | AV44: … | AW44: … | AX44: … | AY44: - | AZ44: - | BA44: - | BB44: - | BC44: - | BD44: - | BE44: - | BF44: - | BG44: - | BH44: - | BI44: - | BJ44: - | BK44: - | BL44: - | BM44: - | BN44: - | BO44: … | BP44: … | BQ44: … | BR44: - | BS44: - | BT44: - | BU44: - | BV44: - | BW44: - | BX44: - | BY44: - | BZ44: - | CA44: - | CB44: - | CC44: - | CD44: - | CE44: - | CF44: - | CG44: - | CH44: - | CI44: - | CJ44: - | CK44: - | CL44: - | CM44: - | CN44: - | CO44: - | CP44: - | CQ44: - | CR44: - | CS44: - | CT44: - | CU44: - | CV44: 0 | CW44: 0 | CX44: 0 | CY44: 0 | CZ44: 0 | DA44: 0 | DB44: 0 | DC44: - | DD44: - | DE44: - | DF44: - | DG44: - | DH44: - | DI44: - | DJ44: - | DK44: - | DL44: - | DM44: - | DN44: - | DO44: - | DP44: - | DQ44: - | DR44: - | DS44: - | DT44: - | DU44: - | DV44: - | DW44: - | DX44: - | DY44: - | DZ44: - | EA44: - | EB44: - | EC44: - | ED44: - | EE44: - | EF44: - | EG44: - | EH44: - | EI44: - | EJ44: - | EK44: - | EL44: - | EM44: - | EN44: - | EO44: - | EP44: - | EQ44: - | ER44: - | ES44: - | ET44: - | EU44: -
A45: 神奈川県 | B45: 南区（南区２－１）（横浜市） | C45: 南区（南区２－１） | D45: 永田北 | E45: - | F45: - | G45: - | H45: - | I45: - | J45: - | K45: - | L45: - | M45: - | N45: - | O45: - | P45: - | Q45: - | R45: - | S45: - | T45: - | U45: - | V45: - | W45: - | X45: - | Y45: - | Z45: - | AA45: - | AB45: - | AC45: … | AD45: … | AE45: … | AF45: - | AG45: - | AH45: - | AI45: - | AJ45: - | AK45: - | AL45: - | AM45: - | AN45: - | AO45: - | AP45: - | AQ45: - | AR45: - | AS45: - | AT45: - | AU45: - | AV45: … | AW45: … | AX45: … | AY45: - | AZ45: - | BA45: - | BB45: - | BC45: - | BD45: - | BE45: - | BF45: - | BG45: - | BH45: - | BI45: - | BJ45: - | BK45: - | BL45: - | BM45: - | BN45: - | BO45: … | BP45: … | BQ45: … | BR45: - | BS45: - | BT45: - | BU45: - | BV45: - | BW45: - | BX45: - | BY45: - | BZ45: - | CA45: - | CB45: - | CC45: - | CD45: - | CE45: - | CF45: - | CG45: - | CH45: - | CI45: - | CJ45: - | CK45: - | CL45: - | CM45: - | CN45: - | CO45: - | CP45: - | CQ45: - | CR45: - | CS45: - | CT45: - | CU45: - | CV45: 0 | CW45: 0 | CX45: 0 | CY45: 0 | CZ45: 0 | DA45: 0 | DB45: 0 | DC45: - | DD45: - | DE45: - | DF45: - | DG45: - | DH45: - | DI45: - | DJ45: - | DK45: - | DL45: - | DM45: - | DN45: - | DO45: - | DP45: - | DQ45: - | DR45: - | DS45: - | DT45: - | DU45: - | DV45: - | DW45: - | DX45: - | DY45: - | DZ45: - | EA45: - | EB45: - | EC45: - | ED45: - | EE45: - | EF45: - | EG45: - | EH45: - | EI45: - | EJ45: - | EK45: - | EL45: - | EM45: - | EN45: - | EO45: - | EP45: - | EQ45: - | ER45: - | ES45: - | ET45: - | EU45: -
A46: 神奈川県 | B46: 南区（南区２－１）（横浜市） | C46: 南区（南区２－１） | D46: 南太田外 | E46: - | F46: - | G46: - | H46: - | I46: - | J46: - | K46: - | L46: - | M46: - | N46: - | O46: - | P46: - | Q46: - | R46: - | S46: - | T46: - | U46: - | V46: - | W46: - | X46: - | Y46: - | Z46: - | AA46: - | AB46: - | AC46: … | AD46: … | AE46: … | AF46: - | AG46: - | AH46: - | AI46: - | AJ46: - | AK46: - | AL46: - | AM46: - | AN46: - | AO46: - | AP46: - | AQ46: - | AR46: - | AS46: - | AT46: - | AU46: - | AV46: … | AW46: … | AX46: … | AY46: - | AZ46: - | BA46: - | BB46: - | BC46: - | BD46: - | BE46: - | BF46: - | BG46: - | BH46: - | BI46: - | BJ46: - | BK46: - | BL46: - | BM46: - | BN46: - | BO46: … | BP46: … | BQ46: … | BR46: - | BS46: - | BT46: - | BU46: - | BV46: - | BW46: - | BX46: - | BY46: - | BZ46: - | CA46: - | CB46: - | CC46: - | CD46: - | CE46: - | CF46: - | CG46: - | CH46: - | CI46: - | CJ46: - | CK46: - | CL46: - | CM46: - | CN46: - | CO46: - | CP46: - | CQ46: - | CR46: - | CS46: - | CT46: - | CU46: - | CV46: 0 | CW46: 0 | CX46: 0 | CY46: 0 | CZ46: 0 | DA46: 0 | DB46: 0 | DC46: - | DD46: - | DE46: - | DF46: - | DG46: - | DH46: - | DI46: - | DJ46: - | DK46: - | DL46: - | DM46: - | DN46: - | DO46: - | DP46: - | DQ46: - | DR46: - | DS46: - | DT46: - | DU46: - | DV46: - | DW46: - | DX46: - | DY46: - | DZ46: - | EA46: - | EB46: - | EC46: - | ED46: - | EE46: - | EF46: - | EG46: - | EH46: - | EI46: - | EJ46: - | EK46: - | EL46: - | EM46: - | EN46: - | EO46: - | EP46: - | EQ46: - | ER46: - | ES46: - | ET46: - | EU46: -
A47: 神奈川県 | B47: 南区（南区２－１）（横浜市） | C47: 南区（南区２－１） | D47: 中村町外 | E47: 1 | F47: 1 | G47: x | H47: x | I47: x | J47: x | K47: x | L47: - | M47: x | N47: x | O47: x | P47: x | Q47: x | R47: x | S47: x | T47: x | U47: x | V47: x | W47: x | X47: x | Y47: x | Z47: x | AA47: x | AB47: x | AC47: 63.3 | AD47: 58.5 | AE47: 73.0 | AF47: x | AG47: x | AH47: x | AI47: x | AJ47: x | AK47: x | AL47: x | AM47: x | AN47: x | AO47: x | AP47: x | AQ47: x | AR47: x | AS47: x | AT47: x | AU47: x | AV47: 75.0 | AW47: 77.0 | AX47: 73.0 | AY47: x | AZ47: x | BA47: x | BB47: x | BC47: x | BD47: x | BE47: x | BF47: x | BG47: x | BH47: x | BI47: x | BJ47: x | BK47: x | BL47: x | BM47: x | BN47: x | BO47: 75.0 | BP47: 77.0 | BQ47: 73.0 | BR47: 1 | BS47: - | BT47: - | BU47: - | BV47: - | BW47: - | BX47: - | BY47: - | BZ47: - | CA47: - | CB47: - | CC47: - | CD47: - | CE47: 1 | CF47: - | CG47: - | CH47: 1 | CI47: - | CJ47: - | CK47: - | CL47: - | CM47: - | CN47: - | CO47: - | CP47: - | CQ47: - | CR47: - | CS47: 1 | CT47: - | CU47: - | CV47: 0 | CW47: 0 | CX47: 0 | CY47: 0 | CZ47: 0 | DA47: 0 | DB47: 0 | DC47: 5 | DD47: 5 | DE47: 2 | DF47: 3 | DG47: - | DH47: - | DI47: - | DJ47: - | DK47: 1 | DL47: - | DM47: - | DN47: - | DO47: - | DP47: - | DQ47: - | DR47: - | DS47: - | DT47: - | DU47: - | DV47: - | DW47: - | DX47: 1 | DY47: - | DZ47: - | EA47: - | EB47: - | EC47: - | ED47: - | EE47: - | EF47: 4 | EG47: 4 | EH47: 1 | EI47: 3 | EJ47: - | EK47: - | EL47: - | EM47: - | EN47: 1 | EO47: 1 | EP47: 1 | EQ47: - | ER47: - | ES47: - | ET47: - | EU47: -
A48: 神奈川県 | B48: 保土ケ谷区（横浜市） | E48: 144 | F48: 95 | G48: 47 | H48: 45 | I48: 14 | J48: 9 | K48: 34 | L48: 49 | M48: 289 | N48: 5 | O48: 9 | P48: 19 | Q48: 13 | R48: 19 | S48: 15 | T48: 13 | U48: 29 | V48: 33 | W48: 30 | X48: 25 | Y48: 24 | Z48: 28 | AA48: 19 | AB48: 8 | AC48: 56.2 | AD48: 55.9 | AE48: 56.6 | AF48: 211 | AG48: 1 | AH48: 2 | AI48: 8 | AJ48: 10 | AK48: 9 | AL48: 8 | AM48: 10 | AN48: 22 | AO48: 24 | AP48: 26 | AQ48: 20 | AR48: 22 | AS48: 26 | AT48: 16 | AU48: 7 | AV48: 60.4 | AW48: 59.7 | AX48: 61.2 | AY48: 183 | AZ48: - | BA48: 2 | BB48: 5 | BC48: 10 | BD48: 7 | BE48: 7 | BF48: 8 | BG48: 20 | BH48: 21 | BI48: 23 | BJ48: 18 | BK48: 19 | BL48: 23 | BM48: 15 | BN48: 5 | BO48: 60.8 | BP48: 58.9 | BQ48: 64.1 | BR48: 95 | BS48: - | BT48: - | BU48: - | BV48: - | BW48: 3 | BX48: 1 | BY48: 1 | BZ48: 10 | CA48: 9 | CB48: 14 | CC48: 13 | CD48: 11 | CE48: 15 | CF48: 8 | CG48: 10 | CH48: 70 | CI48: - | CJ48: - | CK48: - | CL48: - | CM48: 1 | CN48: 5 | CO48: 5 | CP48: 12 | CQ48: 11 | CR48: 9 | CS48: 11 | CT48: 6 | CU48: 10 | CV48: 0 | CW48: 0 | CX48: 0 | CY48: 0 | CZ48: 0 | DA48: 0 | DB48: 0 | DC48: 388 | DD48: 251 | DE48: 183 | DF48: 57 | DG48: 11 | DH48: 65 | DI48: 39 | DJ48: 33 | DK48: 88 | DL48: - | DM48: - | DN48: 6 | DO48: - | DP48: 59 | DQ48: 10 | DR48: 3 | DS48: 8 | DT48: 1 | DU48: - | DV48: - | DW48: 1 | DX48: - | DY48: - | DZ48: - | EA48: 94 | EB48: 8,143 | EC48: 23 | ED48: 7,533 | EE48: 587 | EF48: 193 | EG48: 161 | EH48: 116 | EI48: 36 | EJ48: 9 | EK48: - | EL48: 20 | EM48: 12 | EN48: 195 | EO48: 90 | EP48: 67 | EQ48: 21 | ER48: 2 | ES48: 65 | ET48: 19 | EU48: 21
A49: 神奈川県 | B49: 保土ケ谷区（横浜市） | C49: 保土ケ谷区２－１ | E49: 102 | F49: 75 | G49: 38 | H49: 37 | I49: 10 | J49: 6 | K49: 27 | L49: 27 | M49: 222 | N49: 2 | O49: 5 | P49: 17 | Q49: 11 | R49: 18 | S49: 11 | T49: 8 | U49: 21 | V49: 31 | W49: 21 | X49: 17 | Y49: 14 | Z49: 24 | AA49: 16 | AB49: 6 | AC49: 56.2 | AD49: 55.4 | AE49: 57.1 | AF49: 165 | AG49: 1 | AH49: 2 | AI49: 8 | AJ49: 9 | AK49: 8 | AL49: 7 | AM49: 6 | AN49: 17 | AO49: 23 | AP49: 18 | AQ49: 12 | AR49: 14 | AS49: 22 | AT49: 13 | AU49: 5 | AV49: 59.3 | AW49: 58.8 | AX49: 59.9 | AY49: 144 | AZ49: - | BA49: 2 | BB49: 5 | BC49: 9 | BD49: 6 | BE49: 6 | BF49: 5 | BG49: 15 | BH49: 20 | BI49: 17 | BJ49: 11 | BK49: 13 | BL49: 19 | BM49: 12 | BN49: 4 | BO49: 60.1 | BP49: 58.3 | BQ49: 63.2 | BR49: 75 | BS49: - | BT49: - | BU49: - | BV49: - | BW49: 3 | BX49: 1 | BY49: 1 | BZ49: 8 | CA49: 7 | CB49: 11 | CC49: 8 | CD49: 8 | CE49: 12 | CF49: 8 | CG49: 8 | CH49: 53 | CI49: - | CJ49: - | CK49: - | CL49: - | CM49: 1 | CN49: 4 | CO49: 4 | CP49: 9 | CQ49: 6 | CR49: 6 | CS49: 9 | CT49: 6 | CU49: 8 | CV49: 0 | CW49: 0 | CX49: 0 | CY49: 0 | CZ49: 0 | DA49: 0 | DB49: 0 | DC49: 300 | DD49: 197 | DE49: 144 | DF49: 45 | DG49: 8 | DH49: 51 | DI49: 25 | DJ49: 27 | DK49: 71 | DL49: - | DM49: - | DN49: 5 | DO49: - | DP49: 46 | DQ49: 10 | DR49: 3 | DS49: 7 | DT49: - | DU49: - | DV49: - | DW49: - | DX49: - | DY49: - | DZ49: - | EA49: 74 | EB49: 6,323 | EC49: 23 | ED49: 5,824 | EE49: 476 | EF49: 150 | EG49: 128 | EH49: 92 | EI49: 29 | EJ49: 7 | EK49: - | EL49: 12 | EM49: 10 | EN49: 150 | EO49: 69 | EP49: 52 | EQ49: 16 | ER49: 1 | ES49: 51 | ET49: 13 | EU49: 17
A50: 神奈川県 | B50: 保土ケ谷区（横浜市） | C50: 保土ケ谷区２－１ | D50: 上星川 | E50: 4 | F50: 2 | G50: x | H50: x | I50: x | J50: x | K50: x | L50: 2 | M50: x | N50: x | O50: x | P50: x | Q50: x | R50: x | S50: x | T50: x | U50: x | V50: x | W50: x | X50: x | Y50: x | Z50: x | AA50: x | AB50: x | AC50: 58.3 | AD50: 58.3 | AE50: … | AF50: x | AG50: x | AH50: x | AI50: x | AJ50: x | AK50: x | AL50: x | AM50: x | AN50: x | AO50: x | AP50: x | AQ50: x | AR50: x | AS50: x | AT50: x | AU50: x | AV50: 69.0 | AW50: 69.0 | AX50: … | AY50: x | AZ50: x | BA50: x | BB50: x | BC50: x | BD50: x | BE50: x | BF50: x | BG50: x | BH50: x | BI50: x | BJ50: x | BK50: x | BL50: x | BM50: x | BN50: x | BO50: 69.0 | BP50: 69.0 | BQ50: … | BR50: 2 | BS50: - | BT50: - | BU50: - | BV50: - | BW50: 1 | BX50: - | BY50: - | BZ50: - | CA50: - | CB50: - | CC50: - | CD50: - | CE50: - | CF50: 1 | CG50: - | CH50: 1 | CI50: - | CJ50: - | CK50: - | CL50: - | CM50: - | CN50: - | CO50: - | CP50: - | CQ50: - | CR50: - | CS50: - | CT50: 1 | CU50: - | CV50: 0 | CW50: 0 | CX50: 0 | CY50: 0 | CZ50: 0 | DA50: 0 | DB50: 0 | DC50: 5 | DD50: 3 | DE50: 2 | DF50: - | DG50: 1 | DH50: 1 | DI50: - | DJ50: 1 | DK50: 2 | DL50: - | DM50: - | DN50: - | DO50: - | DP50: 2 | DQ50: - | DR50: - | DS50: - | DT50: - | DU50: - | DV50: - | DW50: - | DX50: - | DY50: - | DZ50: - | EA50: 2 | EB50: 82 | EC50: - | ED50: 82 | EE50: - | EF50: 3 | EG50: 3 | EH50: 2 | EI50: - | EJ50: 1 | EK50: - | EL50: - | EM50: - | EN50: 2 | EO50: - | EP50: - | EQ50: - | ER50: - | ES50: 1 | ET50: - | EU50: 1
A51: 神奈川県 | B51: 保土ケ谷区（横浜市） | C51: 保土ケ谷区２－１ | D51: 西谷 | E51: 15 | F51: 14 | G51: 10 | H51: 10 | I51: 1 | J51: 1 | K51: 3 | L51: 1 | M51: 43 | N51: 1 | O51: 2 | P51: 5 | Q51: 2 | R51: 5 | S51: 3 | T51: - | U51: 4 | V51: 6 | W51: 5 | X51: 2 | Y51: 5 | Z51: 1 | AA51: 2 | AB51: - | AC51: 50.6 | AD51: 49.0 | AE51: 52.2 | AF51: 37 | AG51: 1 | AH51: 1 | AI51: 3 | AJ51: 2 | AK51: 4 | AL51: 2 | AM51: - | AN51: 3 | AO51: 6 | AP51: 5 | AQ51: 2 | AR51: 5 | AS51: 1 | AT51: 2 | AU51: - | AV51: 53.3 | AW51: 51.4 | AX51: 55.3 | AY51: 32 | AZ51: - | BA51: 1 | BB51: 1 | BC51: 2 | BD51: 3 | BE51: 2 | BF51: - | BG51: 3 | BH51: 6 | BI51: 5 | BJ51: 2 | BK51: 4 | BL51: 1 | BM51: 2 | BN51: - | BO51: 55.8 | BP51: 51.4 | BQ51: 62.3 | BR51: 14 | BS51: - | BT51: - | BU51: - | BV51: - | BW51: 1 | BX51: 1 | BY51: - | BZ51: 1 | CA51: 3 | CB51: 3 | CC51: 1 | CD51: 2 | CE51: 1 | CF51: - | CG51: 1 | CH51: 10 | CI51: - | CJ51: - | CK51: - | CL51: - | CM51: - | CN51: 1 | CO51: 3 | CP51: 2 | CQ51: 1 | CR51: 2 | CS51: - | CT51: - | CU51: 1 | CV51: 0 | CW51: 0 | CX51: 0 | CY51: 0 | CZ51: 0 | DA51: 0 | DB51: 0 | DC51: 53 | DD51: 38 | DE51: 32 | DF51: 6 | DG51: - | DH51: 6 | DI51: 4 | DJ51: 5 | DK51: 14 | DL51: - | DM51: - | DN51: - | DO51: - | DP51: 11 | DQ51: 2 | DR51: 1 | DS51: - | DT51: - | DU51: - | DV51: - | DW51: - | DX51: - | DY51: - | DZ51: - | EA51: 14 | EB51: 1,646 | EC51: - | ED51: 1,493 | EE51: 153 | EF51: 27 | EG51: 23 | EH51: 19 | EI51: 4 | EJ51: - | EK51: - | EL51: 2 | EM51: 2 | EN51: 26 | EO51: 15 | EP51: 13 | EQ51: 2 | ER51: - | ES51: 6 | ET51: 2 | EU51: 3
A52: 神奈川県 | B52: 保土ケ谷区（横浜市） | C52: 保土ケ谷区２－１ | D52: 川島 | E52: 26 | F52: 13 | G52: 6 | H52: 5 | I52: 3 | J52: 3 | K52: 4 | L52: 13 | M52: 38 | N52: - | O52: 2 | P52: 5 | Q52: 2 | R52: - | S52: 1 | T52: 1 | U52: 7 | V52: 5 | W52: 3 | X52: 2 | Y52: 2 | Z52: 4 | AA52: 3 | AB52: 1 | AC52: 54.9 | AD52: 57.1 | AE52: 52.7 | AF52: 26 | AG52: - | AH52: 1 | AI52: - | AJ52: 2 | AK52: - | AL52: - | AM52: 1 | AN52: 5 | AO52: 4 | AP52: 3 | AQ52: 2 | AR52: 2 | AS52: 4 | AT52: 2 | AU52: - | AV52: 60.1 | AW52: 60.6 | AX52: 59.5 | AY52: 22 | AZ52: - | BA52: 1 | BB52: - | BC52: 2 | BD52: - | BE52: - | BF52: 1 | BG52: 3 | BH52: 3 | BI52: 2 | BJ52: 2 | BK52: 2 | BL52: 4 | BM52: 2 | BN52: - | BO52: 61.1 | BP52: 60.6 | BQ52: 62.0 | BR52: 13 | BS52: - | BT52: - | BU52: - | BV52: - | BW52: - | BX52: - | BY52: - | BZ52: 2 | CA52: - | CB52: 2 | CC52: 1 | CD52: 1 | CE52: 3 | CF52: 2 | CG52: 2 | CH52: 8 | CI52: - | CJ52: - | CK52: - | CL52: - | CM52: - | CN52: - | CO52: - | CP52: 1 | CQ52: - | CR52: 1 | CS52: 3 | CT52: 1 | CU52: 2 | CV52: 0 | CW52: 0 | CX52: 0 | CY52: 0 | CZ52: 0 | DA52: 0 | DB52: 0 | DC52: 58 | DD52: 35 | DE52: 22 | DF52: 13 | DG52: - | DH52: 9 | DI52: 5 | DJ52: 9 | DK52: 13 | DL52: - | DM52: - | DN52: 2 | DO52: - | DP52: 9 | DQ52: 1 | DR52: - | DS52: 1 | DT52: - | DU52: - | DV52: - | DW52: - | DX52: - | DY52: - | DZ52: - | EA52: 13 | EB52: 786 | EC52: 23 | ED52: 669 | EE52: 94 | EF52: 25 | EG52: 19 | EH52: 14 | EI52: 5 | EJ52: - | EK52: - | EL52: 3 | EM52: 3 | EN52: 33 | EO52: 16 | EP52: 8 | EQ52: 8 | ER52: - | ES52: 9 | ET52: 2 | EU52: 6
A53: 神奈川県 | B53: 保土ケ谷区（横浜市） | C53: 保土ケ谷区２－１ | D53: 仏向 | E53: 31 | F53: 25 | G53: 11 | H53: 11 | I53: 3 | J53: 1 | K53: 11 | L53: 6 | M53: 75 | N53: 1 | O53: 1 | P53: 3 | Q53: 3 | R53: 7 | S53: 3 | T53: 6 | U53: 5 | V53: 11 | W53: 5 | X53: 6 | Y53: 5 | Z53: 10 | AA53: 7 | AB53: 2 | AC53: 58.2 | AD53: 55.9 | AE53: 61.1 | AF53: 56 | AG53: - | AH53: - | AI53: 3 | AJ53: 2 | AK53: 2 | AL53: 2 | AM53: 4 | AN53: 4 | AO53: 8 | AP53: 4 | AQ53: 5 | AR53: 5 | AS53: 9 | AT53: 6 | AU53: 2 | AV53: 61.9 | AW53: 59.8 | AX53: 64.6 | AY53: 54 | AZ53: - | BA53: - | BB53: 3 | BC53: 2 | BD53: 2 | BE53: 2 | BF53: 4 | BG53: 4 | BH53: 7 | BI53: 4 | BJ53: 5 | BK53: 5 | BL53: 8 | BM53: 6 | BN53: 2 | BO53: 61.6 | BP53: 59.2 | BQ53: 64.9 | BR53: 25 | BS53: - | BT53: - | BU53: - | BV53: - | BW53: - | BX53: - | BY53: 1 | BZ53: 2 | CA53: 3 | CB53: 1 | CC53: 5 | CD53: 3 | CE53: 4 | CF53: 4 | CG53: 2 | CH53: 18 | CI53: - | CJ53: - | CK53: - | CL53: - | CM53: 1 | CN53: 1 | CO53: 1 | CP53: 1 | CQ53: 4 | CR53: 2 | CS53: 3 | CT53: 3 | CU53: 2 | CV53: 0 | CW53: 0 | CX53: 0 | CY53: 0 | CZ53: 0 | DA53: 0 | DB53: 0 | DC53: 104 | DD53: 72 | DE53: 54 | DF53: 14 | DG53: 4 | DH53: 15 | DI53: 12 | DJ53: 5 | DK53: 22 | DL53: - | DM53: - | DN53: - | DO53: - | DP53: 13 | DQ53: 6 | DR53: 2 | DS53: 1 | DT53: - | DU53: - | DV53: - | DW53: - | DX53: - | DY53: - | DZ53: - | EA53: 25 | EB53: 2,176 | EC53: - | ED53: 2,010 | EE53: 166 | EF53: 53 | EG53: 45 | EH53: 31 | EI53: 11 | EJ53: 3 | EK53: - | EL53: 5 | EM53: 3 | EN53: 51 | EO53: 27 | EP53: 23 | EQ53: 3 | ER53: 1 | ES53: 15 | ET53: 7 | EU53: 2
A54: 神奈川県 | B54: 保土ケ谷区（横浜市） | C54: 保土ケ谷区２－１ | D54: 峯沢 | E54: 8 | F54: 7 | G54: 4 | H54: 4 | I54: - | J54: - | K54: 3 | L54: 1 | M54: 20 | N54: - | O54: - | P54: - | Q54: 1 | R54: 1 | S54: 2 | T54: - | U54: 1 | V54: 5 | W54: 2 | X54: 4 | Y54: - | Z54: 2 | AA54: - | AB54: 2 | AC54: 60.5 | AD54: 64.1 | AE54: 55.1 | AF54: 14 | AG54: - | AH54: - | AI54: - | AJ54: 1 | AK54: - | AL54: 2 | AM54: - | AN54: 1 | AO54: 2 | AP54: 2 | AQ54: 2 | AR54: - | AS54: 2 | AT54: - | AU54: 2 | AV54: 62.0 | AW54: 65.0 | AX54: 56.6 | AY54: 11 | AZ54: - | BA54: - | BB54: - | BC54: 1 | BD54: - | BE54: 1 | BF54: - | BG54: 1 | BH54: 1 | BI54: 2 | BJ54: 2 | BK54: - | BL54: 2 | BM54: - | BN54: 1 | BO54: 62.3 | BP54: 62.3 | BQ54: 62.3 | BR54: 7 | BS54: - | BT54: - | BU54: - | BV54: - | BW54: - | BX54: - | BY54: - | BZ54: 1 | CA54: 1 | CB54: 1 | CC54: 1 | CD54: - | CE54: 1 | CF54: - | CG54: 2 | CH54: 6 | CI54: - | CJ54: - | CK54: - | CL54: - | CM54: - | CN54: 1 | CO54: - | CP54: 1 | CQ54: 1 | CR54: - | CS54: 1 | CT54: - | CU54: 2 | CV54: 0 | CW54: 0 | CX54: 0 | CY54: 0 | CZ54: 0 | DA54: 0 | DB54: 0 | DC54: 25 | DD54: 15 | DE54: 11 | DF54: 3 | DG54: 1 | DH54: 6 | DI54: 1 | DJ54: 3 | DK54: 7 | DL54: - | DM54: - | DN54: 1 | DO54: - | DP54: 6 | DQ54: - | DR54: - | DS54: - | DT54: - | DU54: - | DV54: - | DW54: - | DX54: - | DY54: - | DZ54: - | EA54: 7 | EB54: 625 | EC54: - | ED54: 622 | EE54: 3 | EF54: 12 | EG54: 11 | EH54: 8 | EI54: 2 | EJ54: 1 | EK54: - | EL54: - | EM54: 1 | EN54: 13 | EO54: 4 | EP54: 3 | EQ54: 1 | ER54: - | ES54: 6 | ET54: 1 | EU54: 2
A55: 神奈川県 | B55: 保土ケ谷区（横浜市） | C55: 保土ケ谷区２－１ | D55: 岡沢 | E55: 3 | F55: 3 | G55: x | H55: x | I55: x | J55: x | K55: x | L55: - | M55: x | N55: x | O55: x | P55: x | Q55: x | R55: x | S55: x | T55: x | U55: x | V55: x | W55: x | X55: x | Y55: x | Z55: x | AA55: x | AB55: x | AC55: 51.4 | AD55: 50.0 | AE55: 53.4 | AF55: x | AG55: x | AH55: x | AI55: x | AJ55: x | AK55: x | AL55: x | AM55: x | AN55: x | AO55: x | AP55: x | AQ55: x | AR55: x | AS55: x | AT55: x | AU55: x | AV55: 51.0 | AW55: 50.0 | AX55: 52.8 | AY55: x | AZ55: x | BA55: x | BB55: x | BC55: x | BD55: x | BE55: x | BF55: x | BG55: x | BH55: x | BI55: x | BJ55: x | BK55: x | BL55: x | BM55: x | BN55: x | BO55: 53.5 | BP55: 50.0 | BQ55: 61.7 | BR55: 3 | BS55: - | BT55: - | BU55: - | BV55: - | BW55: - | BX55: - | BY55: - | BZ55: 1 | CA55: - | CB55: 1 | CC55: - | CD55: - | CE55: - | CF55: 1 | CG55: - | CH55: 3 | CI55: - | CJ55: - | CK55: - | CL55: - | CM55: - | CN55: 1 | CO55: - | CP55: 1 | CQ55: - | CR55: - | CS55: - | CT55: 1 | CU55: - | CV55: 0 | CW55: 0 | CX55: 0 | CY55: 0 | CZ55: 0 | DA55: 0 | DB55: 0 | DC55: 19 | DD55: 13 | DE55: 10 | DF55: 3 | DG55: - | DH55: 3 | DI55: - | DJ55: 3 | DK55: 3 | DL55: - | DM55: - | DN55: - | DO55: - | DP55: 3 | DQ55: - | DR55: - | DS55: - | DT55: - | DU55: - | DV55: - | DW55: - | DX55: - | DY55: - | DZ55: - | EA55: 3 | EB55: 422 | EC55: - | ED55: 422 | EE55: - | EF55: 10 | EG55: 9 | EH55: 7 | EI55: 2 | EJ55: - | EK55: - | EL55: - | EM55: 1 | EN55: 9 | EO55: 4 | EP55: 3 | EQ55: 1 | ER55: - | ES55: 3 | ET55: - | EU55: 2
A56: 神奈川県 | B56: 保土ケ谷区（横浜市） | C56: 保土ケ谷区２－１ | D56: 鎌谷，宮田，天王 | E56: - | F56: - | G56: - | H56: - | I56: - | J56: - | K56: - | L56: - | M56: - | N56: - | O56: - | P56: - | Q56: - | R56: - | S56: - | T56: - | U56: - | V56: - | W56: - | X56: - | Y56: - | Z56: - | AA56: - | AB56: - | AC56: … | AD56: … | AE56: … | AF56: - | AG56: - | AH56: - | AI56: - | AJ56: - | AK56: - | AL56: - | AM56: - | AN56: - | AO56: - | AP56: - | AQ56: - | AR56: - | AS56: - | AT56: - | AU56: - | AV56: … | AW56: … | AX56: … | AY56: - | AZ56: - | BA56: - | BB56: - | BC56: - | BD56: - | BE56: - | BF56: - | BG56: - | BH56: - | BI56: - | BJ56: - | BK56: - | BL56: - | BM56: - | BN56: - | BO56: … | BP56: … | BQ56: … | BR56: - | BS56: - | BT56: - | BU56: - | BV56: - | BW56: - | BX56: - | BY56: - | BZ56: - | CA56: - | CB56: - | CC56: - | CD56: - | CE56: - | CF56: - | CG56: - | CH56: - | CI56: - | CJ56: - | CK56: - | CL56: - | CM56: - | CN56: - | CO56: - | CP56: - | CQ56: - | CR56: - | CS56: - | CT56: - | CU56: - | CV56: 0 | CW56: 0 | CX56: 0 | CY56: 0 | CZ56: 0 | DA56: 0 | DB56: 0 | DC56: - | DD56: - | DE56: - | DF56: - | DG56: - | DH56: - | DI56: - | DJ56: - | DK56: - | DL56: - | DM56: - | DN56: - | DO56: - | DP56: - | DQ56: - | DR56: - | DS56: - | DT56: - | DU56: - | DV56: - | DW56: - | DX56: - | DY56: - | DZ56: - | EA56: - | EB56: - | EC56: - | ED56: - | EE56: - | EF56: - | EG56: - | EH56: - | EI56: - | EJ56: - | EK56: - | EL56: - | EM56: - | EN56: - | EO56: - | EP56: - | EQ56: - | ER56: - | ES56: - | ET56: - | EU56: -
A57: 神奈川県 | B57: 保土ケ谷区（横浜市） | C57: 保土ケ谷区２－１ | D57: 峰岡 | E57: - | F57: - | G57: - | H57: - | I57: - | J57: - | K57: - | L57: - | M57: - | N57: - | O57: - | P57: - | Q57: - | R57: - | S57: - | T57: - | U57: - | V57: - | W57: - | X57: - | Y57: - | Z57: - | AA57: - | AB57: - | AC57: … | AD57: … | AE57: … | AF57: - | AG57: - | AH57: - | AI57: - | AJ57: - | AK57: - | AL57: - | AM57: - | AN57: - | AO57: - | AP57: - | AQ57: - | AR57: - | AS57: - | AT57: - | AU57: - | AV57: … | AW57: … | AX57: … | AY57: - | AZ57: - | BA57: - | BB57: - | BC57: - | BD57: - | BE57: - | BF57: - | BG57: - | BH57: - | BI57: - | BJ57: - | BK57: - | BL57: - | BM57: - | BN57: - | BO57: … | BP57: … | BQ57: … | BR57: - | BS57: - | BT57: - | BU57: - | BV57: - | BW57: - | BX57: - | BY57: - | BZ57: - | CA57: - | CB57: - | CC57: - | CD57: - | CE57: - | CF57: - | CG57: - | CH57: - | CI57: - | CJ57: - | CK57: - | CL57: - | CM57: - | CN57: - | CO57: - | CP57: - | CQ57: - | CR57: - | CS57: - | CT57: - | CU57: - | CV57: 0 | CW57: 0 | CX57: 0 | CY57: 0 | CZ57: 0 | DA57: 0 | DB57: 0 | DC57: - | DD57: - | DE57: - | DF57: - | DG57: - | DH57: - | DI57: - | DJ57: - | DK57: - | DL57: - | DM57: - | DN57: - | DO57: - | DP57: - | DQ57: - | DR57: - | DS57: - | DT57: - | DU57: - | DV57: - | DW57: - | DX57: - | DY57: - | DZ57: - | EA57: - | EB57: - | EC57: - | ED57: - | EE57: - | EF57: - | EG57: - | EH57: - | EI57: - | EJ57: - | EK57: - | EL57: - | EM57: - | EN57: - | EO57: - | EP57: - | EQ57: - | ER57: - | ES57: - | ET57: - | EU57: -
A58: 神奈川県 | B58: 保土ケ谷区（横浜市） | C58: 保土ケ谷区２－１ | D58: 常盤台・釜台 | E58: 3 | F58: 3 | G58: 1 | H58: 1 | I58: - | J58: - | K58: 2 | L58: - | M58: 9 | N58: - | O58: - | P58: - | Q58: - | R58: 1 | S58: 2 | T58: - | U58: - | V58: - | W58: - | X58: 1 | Y58: 2 | Z58: 3 | AA58: - | AB58: - | AC58: 62.9 | AD58: 62.4 | AE58: 63.5 | AF58: 8 | AG58: - | AH58: - | AI58: - | AJ58: - | AK58: 1 | AL58: 1 | AM58: - | AN58: - | AO58: - | AP58: - | AQ58: 1 | AR58: 2 | AS58: 3 | AT58: - | AU58: - | AV58: 65.5 | AW58: 67.5 | AX58: 63.5 | AY58: 4 | AZ58: - | BA58: - | BB58: - | BC58: - | BD58: - | BE58: 1 | BF58: - | BG58: - | BH58: - | BI58: - | BJ58: - | BK58: 2 | BL58: 1 | BM58: - | BN58: - | BO58: 67.5 | BP58: 67.5 | BQ58: … | BR58: 3 | BS58: - | BT58: - | BU58: - | BV58: - | BW58: - | BX58: - | BY58: - | BZ58: - | CA58: - | CB58: - | CC58: - | CD58: 2 | CE58: 1 | CF58: - | CG58: - | CH58: 2 | CI58: - | CJ58: - | CK58: - | CL58: - | CM58: - | CN58: - | CO58: - | CP58: - | CQ58: - | CR58: 1 | CS58: 1 | CT58: - | CU58: - | CV58: 0 | CW58: 0 | CX58: 0 | CY58: 0 | CZ58: 0 | DA58: 0 | DB58: 0 | DC58: 9 | DD58: 5 | DE58: 4 | DF58: 1 | DG58: - | DH58: 4 | DI58: - | DJ58: - | DK58: 3 | DL58: - | DM58: - | DN58: 1 | DO58: - | DP58: - | DQ58: 1 | DR58: - | DS58: 1 | DT58: - | DU58: - | DV58: - | DW58: - | DX58: - | DY58: - | DZ58: - | EA58: 2 | EB58: 55 | EC58: - | ED58: 55 | EE58: - | EF58: 5 | EG58: 5 | EH58: 4 | EI58: 1 | EJ58: - | EK58: - | EL58: - | EM58: - | EN58: 4 | EO58: - | EP58: - | EQ58: - | ER58: - | ES58: 4 | ET58: - | EU58: -
A59: 神奈川県 | B59: 保土ケ谷区（横浜市） | C59: 保土ケ谷区２－１ | D59: 和田 | E59: - | F59: - | G59: - | H59: - | I59: - | J59: - | K59: - | L59: - | M59: - | N59: - | O59: - | P59: - | Q59: - | R59: - | S59: - | T59: - | U59: - | V59: - | W59: - | X59: - | Y59: - | Z59: - | AA59: - | AB59: - | AC59: … | AD59: … | AE59: … | AF59: - | AG59: - | AH59: - | AI59: - | AJ59: - | AK59: - | AL59: - | AM59: - | AN59: - | AO59: - | AP59: - | AQ59: - | AR59: - | AS59: - | AT59: - | AU59: - | AV59: … | AW59: … | AX59: … | AY59: - | AZ59: - | BA59: - | BB59: - | BC59: - | BD59: - | BE59: - | BF59: - | BG59: - | BH59: - | BI59: - | BJ59: - | BK59: - | BL59: - | BM59: - | BN59: - | BO59: … | BP59: … | BQ59: … | BR59: - | BS59: - | BT59: - | BU59: - | BV59: - | BW59: - | BX59: - | BY59: - | BZ59: - | CA59: - | CB59: - | CC59: - | CD59: - | CE59: - | CF59: - | CG59: - | CH59: - | CI59: - | CJ59: - | CK59: - | CL59: - | CM59: - | CN59: - | CO59: - | CP59: - | CQ59: - | CR59: - | CS59: - | CT59: - | CU59: - | CV59: 0 | CW59: 0 | CX59: 0 | CY59: 0 | CZ59: 0 | DA59: 0 | DB59: 0 | DC59: - | DD59: - | DE59: - | DF59: - | DG59: - | DH59: - | DI59: - | DJ59: - | DK59: - | DL59: - | DM59: - | DN59: - | DO59: - | DP59: - | DQ59: - | DR59: - | DS59: - | DT59: - | DU59: - | DV59: - | DW59: - | DX59: - | DY59: - | DZ59: - | EA59: - | EB59: - | EC59: - | ED59: - | EE59: - | EF59: - | EG59: - | EH59: - | EI59: - | EJ59: - | EK59: - | EL59: - | EM59: - | EN59: - | EO59: - | EP59: - | EQ59: - | ER59: - | ES59: - | ET59: - | EU59: -
A60: 神奈川県 | B60: 保土ケ谷区（横浜市） | C60: 保土ケ谷区２－１ | D60: 星川 | E60: - | F60: - | G60: - | H60: - | I60: - | J60: - | K60: - | L60: - | M60: - | N60: - | O60: - | P60: - | Q60: - | R60: - | S60: - | T60: - | U60: - | V60: - | W60: - | X60: - | Y60: - | Z60: - | AA60: - | AB60: - | AC60: … | AD60: … | AE60: … | AF60: - | AG60: - | AH60: - | AI60: - | AJ60: - | AK60: - | AL60: - | AM60: - | AN60: - | AO60: - | AP60: - | AQ60: - | AR60: - | AS60: - | AT60: - | AU60: - | AV60: … | AW60: … | AX60: … | AY60: - | AZ60: - | BA60: - | BB60: - | BC60: - | BD60: - | BE60: - | BF60: - | BG60: - | BH60: - | BI60: - | BJ60: - | BK60: - | BL60: - | BM60: - | BN60: - | BO60: … | BP60: … | BQ60: … | BR60: - | BS60: - | BT60: - | BU60: - | BV60: - | BW60: - | BX60: - | BY60: - | BZ60: - | CA60: - | CB60: - | CC60: - | CD60: - | CE60: - | CF60: - | CG60: - | CH60: - | CI60: - | CJ60: - | CK60: - | CL60: - | CM60: - | CN60: - | CO60: - | CP60: - | CQ60: - | CR60: - | CS60: - | CT60: - | CU60: - | CV60: 0 | CW60: 0 | CX60: 0 | CY60: 0 | CZ60: 0 | DA60: 0 | DB60: 0 | DC60: - | DD60: - | DE60: - | DF60: - | DG60: - | DH60: - | DI60: - | DJ60: - | DK60: - | DL60: - | DM60: - | DN60: - | DO60: - | DP60: - | DQ60: - | DR60: - | DS60: - | DT60: - | DU60: - | DV60: - | DW60: - | DX60: - | DY60: - | DZ60: - | EA60: - | EB60: - | EC60: - | ED60: - | EE60: - | EF60: - | EG60: - | EH60: - | EI60: - | EJ60: - | EK60: - | EL60: - | EM60: - | EN60: - | EO60: - | EP60: - | EQ60: - | ER60: - | ES60: - | ET60: - | EU60: -
A61: 神奈川県 | B61: 保土ケ谷区（横浜市） | C61: 保土ケ谷区２－１ | D61: 保土ケ谷 | E61: 9 | F61: 5 | G61: - | H61: - | I61: 2 | J61: - | K61: 3 | L61: 4 | M61: 13 | N61: - | O61: - | P61: 2 | Q61: 1 | R61: 2 | S61: - | T61: - | U61: - | V61: 1 | W61: 2 | X61: 2 | Y61: - | Z61: 3 | AA61: - | AB61: - | AC61: 54.9 | AD61: 50.5 | AE61: 62.0 | AF61: 3 | AG61: - | AH61: - | AI61: - | AJ61: - | AK61: - | AL61: - | AM61: - | AN61: - | AO61: 1 | AP61: - | AQ61: - | AR61: - | AS61: 2 | AT61: - | AU61: - | AV61: 69.7 | AW61: 75.5 | AX61: 58.0 | AY61: 3 | AZ61: - | BA61: - | BB61: - | BC61: - | BD61: - | BE61: - | BF61: - | BG61: - | BH61: 1 | BI61: - | BJ61: - | BK61: - | BL61: 2 | BM61: - | BN61: - | BO61: 69.7 | BP61: 75.5 | BQ61: 58.0 | BR61: 5 | BS61: - | BT61: - | BU61: - | BV61: - | BW61: 1 | BX61: - | BY61: - | BZ61: - | CA61: - | CB61: 2 | CC61: - | CD61: - | CE61: 2 | CF61: - | CG61: - | CH61: 3 | CI61: - | CJ61: - | CK61: - | CL61: - | CM61: - | CN61: - | CO61: - | CP61: 2 | CQ61: - | CR61: - | CS61: 1 | CT61: - | CU61: - | CV61: 0 | CW61: 0 | CX61: 0 | CY61: 0 | CZ61: 0 | DA61: 0 | DB61: 0 | DC61: 14 | DD61: 9 | DE61: 3 | DF61: 4 | DG61: 2 | DH61: 4 | DI61: 1 | DJ61: - | DK61: 4 | DL61: - | DM61: - | DN61: 1 | DO61: - | DP61: 2 | DQ61: - | DR61: - | DS61: 1 | DT61: - | DU61: - | DV61: - | DW61: - | DX61: - | DY61: - | DZ61: - | EA61: 5 | EB61: 270 | EC61: - | ED61: 210 | EE61: 60 | EF61: 9 | EG61: 8 | EH61: 2 | EI61: 4 | EJ61: 2 | EK61: - | EL61: 1 | EM61: - | EN61: 5 | EO61: 1 | EP61: 1 | EQ61: - | ER61: - | ES61: 4 | ET61: - | EU61: -
A62: 神奈川県 | B62: 保土ケ谷区（横浜市） | C62: 保土ケ谷区２－１ | D62: 仏向・藤塚 | E62: 3 | F62: 3 | G62: 3 | H62: 3 | I62: - | J62: - | K62: - | L62: - | M62: 9 | N62: - | O62: - | P62: - | Q62: 1 | R62: - | S62: - | T62: 1 | U62: 1 | V62: 1 | W62: 2 | X62: - | Y62: - | Z62: - | AA62: 2 | AB62: 1 | AC62: 62.8 | AD62: 58.8 | AE62: 67.8 | AF62: 8 | AG62: - | AH62: - | AI62: - | AJ62: 1 | AK62: - | AL62: - | AM62: 1 | AN62: 1 | AO62: 1 | AP62: 2 | AQ62: - | AR62: - | AS62: - | AT62: 1 | AU62: 1 | AV62: 60.5 | AW62: 58.8 | AX62: 63.3 | AY62: 6 | AZ62: - | BA62: - | BB62: - | BC62: 1 | BD62: - | BE62: - | BF62: - | BG62: 1 | BH62: 1 | BI62: 2 | BJ62: - | BK62: - | BL62: - | BM62: - | BN62: 1 | BO62: 59.0 | BP62: 58.8 | BQ62: 60.0 | BR62: 3 | BS62: - | BT62: - | BU62: - | BV62: - | BW62: - | BX62: - | BY62: - | BZ62: 1 | CA62: - | CB62: 1 | CC62: - | CD62: - | CE62: - | CF62: - | CG62: 1 | CH62: 2 | CI62: - | CJ62: - | CK62: - | CL62: - | CM62: - | CN62: - | CO62: - | CP62: 1 | CQ62: - | CR62: - | CS62: - | CT62: - | CU62: 1 | CV62: 0 | CW62: 0 | CX62: 0 | CY62: 0 | CZ62: 0 | DA62: 0 | DB62: 0 | DC62: 13 | DD62: 7 | DE62: 6 | DF62: 1 | DG62: - | DH62: 3 | DI62: 2 | DJ62: 1 | DK62: 3 | DL62: - | DM62: - | DN62: - | DO62: - | DP62: - | DQ62: - | DR62: - | DS62: 3 | DT62: - | DU62: - | DV62: - | DW62: - | DX62: - | DY62: - | DZ62: - | EA62: 3 | EB62: 261 | EC62: - | ED62: 261 | EE62: - | EF62: 6 | EG62: 5 | EH62: 5 | EI62: - | EJ62: - | EK62: - | EL62: 1 | EM62: - | EN62: 7 | EO62: 2 | EP62: 1 | EQ62: 1 | ER62: - | ES62: 3 | ET62: 1 | EU62: 1
A63: 神奈川県 | B63: 保土ケ谷区（横浜市） | C63: 保土ケ谷区２－１ | D63: 霞台、神戸、月見台、桜ケ丘 | E63: - | F63: - | G63: - | H63: - | I63: - | J63: - | K63: - | L63: - | M63: - | N63: - | O63: - | P63: - | Q63: - | R63: - | S63: - | T63: - | U63: - | V63: - | W63: - | X63: - | Y63: - | Z63: - | AA63: - | AB63: - | AC63: … | AD63: … | AE63: … | AF63: - | AG63: - | AH63: - | AI63: - | AJ63: - | AK63: - | AL63: - | AM63: - | AN63: - | AO63: - | AP63: - | AQ63: - | AR63: - | AS63: - | AT63: - | AU63: - | AV63: … | AW63: … | AX63: … | AY63: - | AZ63: - | BA63: - | BB63: - | BC63: - | BD63: - | BE63: - | BF63: - | BG63: - | BH63: - | BI63: - | BJ63: - | BK63: - | BL63: - | BM63: - | BN63: - | BO63: … | BP63: … | BQ63: … | BR63: - | BS63: - | BT63: - | BU63: - | BV63: - | BW63: - | BX63: - | BY63: - | BZ63: - | CA63: - | CB63: - | CC63: - | CD63: - | CE63: - | CF63: - | CG63: - | CH63: - | CI63: - | CJ63: - | CK63: - | CL63: - | CM63: - | CN63: - | CO63: - | CP63: - | CQ63: - | CR63: - | CS63: - | CT63: - | CU63: - | CV63: 0 | CW63: 0 | CX63: 0 | CY63: 0 | CZ63: 0 | DA63: 0 | DB63: 0 | DC63: - | DD63: - | DE63: - | DF63: - | DG63: - | DH63: - | DI63: - | DJ63: - | DK63: - | DL63: - | DM63: - | DN63: - | DO63: - | DP63: - | DQ63: - | DR63: - | DS63: - | DT63: - | DU63: - | DV63: - | DW63: - | DX63: - | DY63: - | DZ63: - | EA63: - | EB63: - | EC63: - | ED63: - | EE63: - | EF63: - | EG63: - | EH63: - | EI63: - | EJ63: - | EK63: - | EL63: - | EM63: - | EN63: - | EO63: - | EP63: - | EQ63: - | ER63: - | ES63: - | ET63: - | EU63: -
A64: 神奈川県 | B64: 保土ケ谷区（横浜市） | C64: 保土ケ谷区２－１ | D64: 岩井外 | E64: - | F64: - | G64: - | H64: - | I64: - | J64: - | K64: - | L64: - | M64: - | N64: - | O64: - | P64: - | Q64: - | R64: - | S64: - | T64: - | U64: - | V64: - | W64: - | X64: - | Y64: - | Z64: - | AA64: - | AB64: - | AC64: … | AD64: … | AE64: … | AF64: - | AG64: - | AH64: - | AI64: - | AJ64: - | AK64: - | AL64: - | AM64: - | AN64: - | AO64: - | AP64: - | AQ64: - | AR64: - | AS64: - | AT64: - | AU64: - | AV64: … | AW64: … | AX64: … | AY64: - | AZ64: - | BA64: - | BB64: - | BC64: - | BD64: - | BE64: - | BF64: - | BG64: - | BH64: - | BI64: - | BJ64: - | BK64: - | BL64: - | BM64: - | BN64: - | BO64: … | BP64: … | BQ64: … | BR64: - | BS64: - | BT64: - | BU64: - | BV64: - | BW64: - | BX64: - | BY64: - | BZ64: - | CA64: - | CB64: - | CC64: - | CD64: - | CE64: - | CF64: - | CG64: - | CH64: - | CI64: - | CJ64: - | CK64: - | CL64: - | CM64: - | CN64: - | CO64: - | CP64: - | CQ64: - | CR64: - | CS64: - | CT64: - | CU64: - | CV64: 0 | CW64: 0 | CX64: 0 | CY64: 0 | CZ64: 0 | DA64: 0 | DB64: 0 | DC64: - | DD64: - | DE64: - | DF64: - | DG64: - | DH64: - | DI64: - | DJ64: - | DK64: - | DL64: - | DM64: - | DN64: - | DO64: - | DP64: - | DQ64: - | DR64: - | DS64: - | DT64: - | DU64: - | DV64: - | DW64: - | DX64: - | DY64: - | DZ64: - | EA64: - | EB64: - | EC64: - | ED64: - | EE64: - | EF64: - | EG64: - | EH64: - | EI64: - | EJ64: - | EK64: - | EL64: - | EM64: - | EN64: - | EO64: - | EP64: - | EQ64: - | ER64: - | ES64: - | ET64: - | EU64: -
A65: 神奈川県 | B65: 保土ケ谷区（横浜市） | C65: 二俣川村２－１ | E65: 15 | F65: 1 | G65: x | H65: x | I65: x | J65: x | K65: x | L65: 14 | M65: x | N65: x | O65: x | P65: x | Q65: x | R65: x | S65: x | T65: x | U65: x | V65: x | W65: x | X65: x | Y65: x | Z65: x | AA65: x | AB65: x | AC65: x | AD65: x | AE65: x | AF65: x | AG65: x | AH65: x | AI65: x | AJ65: x | AK65: x | AL65: x | AM65: x | AN65: x | AO65: x | AP65: x | AQ65: x | AR65: x | AS65: x | AT65: x | AU65: x | AV65: x | AW65: x | AX65: x | AY65: x | AZ65: x | BA65: x | BB65: x | BC65: x | BD65: x | BE65: x | BF65: x | BG65: x | BH65: x | BI65: x | BJ65: x | BK65: x | BL65: x | BM65: x | BN65: x | BO65: x | BP65: x | BQ65: x | BR65: x | BS65: x | BT65: x | BU65: x | BV65: x | BW65: x | BX65: x | BY65: x | BZ65: x | CA65: x | CB65: x | CC65: x | CD65: x | CE65: x | CF65: x | CG65: x | CH65: x | CI65: x | CJ65: x | CK65: x | CL65: x | CM65: x | CN65: x | CO65: x | CP65: x | CQ65: x | CR65: x | CS65: x | CT65: x | CU65: x | CV65: x | CW65: x | CX65: x | CY65: x | CZ65: x | DA65: x | DB65: x | DC65: x | DD65: x | DE65: x | DF65: x | DG65: x | DH65: x | DI65: x | DJ65: x | DK65: x | DL65: x | DM65: x | DN65: x | DO65: x | DP65: x | DQ65: x | DR65: x | DS65: x | DT65: x | DU65: x | DV65: x | DW65: x | DX65: x | DY65: x | DZ65: x | EA65: x | EB65: x | EC65: x | ED65: x | EE65: x | EF65: x | EG65: x | EH65: x | EI65: x | EJ65: x | EK65: x | EL65: x | EM65: x | EN65: x | EO65: x | EP65: x | EQ65: x | ER65: x | ES65: x | ET65: x | EU65: x
A66: 神奈川県 | B66: 保土ケ谷区（横浜市） | C66: 二俣川村２－１ | D66: 今井 | E66: 15 | F66: 1 | G66: x | H66: x | I66: x | J66: x | K66: x | L66: 14 | M66: x | N66: x | O66: x | P66: x | Q66: x | R66: x | S66: x | T66: x | U66: x | V66: x | W66: x | X66: x | Y66: x | Z66: x | AA66: x | AB66: x | AC66: 68.0 | AD66: 75.5 | AE66: 53.0 | AF66: x | AG66: x | AH66: x | AI66: x | AJ66: x | AK66: x | AL66: x | AM66: x | AN66: x | AO66: x | AP66: x | AQ66: x | AR66: x | AS66: x | AT66: x | AU66: x | AV66: 75.5 | AW66: 75.5 | AX66: … | AY66: x | AZ66: x | BA66: x | BB66: x | BC66: x | BD66: x | BE66: x | BF66: x | BG66: x | BH66: x | BI66: x | BJ66: x | BK66: x | BL66: x | BM66: x | BN66: x | BO66: 75.5 | BP66: 75.5 | BQ66: … | BR66: 1 | BS66: - | BT66: - | BU66: - | BV66: - | BW66: - | BX66: - | BY66: - | BZ66: - | CA66: - | CB66: - | CC66: - | CD66: - | CE66: - | CF66: - | CG66: 1 | CH66: 1 | CI66: - | CJ66: - | CK66: - | CL66: - | CM66: - | CN66: - | CO66: - | CP66: - | CQ66: - | CR66: - | CS66: - | CT66: - | CU66: 1 | CV66: 0 | CW66: 0 | CX66: 0 | CY66: 0 | CZ66: 0 | DA66: 0 | DB66: 0 | DC66: 5 | DD66: 4 | DE66: 2 | DF66: 2 | DG66: - | DH66: 1 | DI66: - | DJ66: - | DK66: 1 | DL66: - | DM66: - | DN66: - | DO66: - | DP66: 1 | DQ66: - | DR66: - | DS66: - | DT66: - | DU66: - | DV66: - | DW66: - | DX66: - | DY66: - | DZ66: - | EA66: 1 | EB66: 121 | EC66: - | ED66: 109 | EE66: 12 | EF66: 4 | EG66: 4 | EH66: 2 | EI66: 2 | EJ66: - | EK66: - | EL66: - | EM66: - | EN66: 1 | EO66: - | EP66: - | EQ66: - | ER66: - | ES66: 1 | ET66: - | EU66: -
A67: 神奈川県 | B67: 保土ケ谷区（横浜市） | C67: 新治村２－１ | E67: 27 | F67: 19 | G67: x | H67: x | I67: x | J67: x | K67: x | L67: 8 | M67: x | N67: x | O67: x | P67: x | Q67: x | R67: x | S67: x | T67: x | U67: x | V67: x | W67: x | X67: x | Y67: x | Z67: x | AA67: x | AB67: x | AC67: x | AD67: x | AE67: x | AF67: x | AG67: x | AH67: x | AI67: x | AJ67: x | AK67: x | AL67: x | AM67: x | AN67: x | AO67: x | AP67: x | AQ67: x | AR67: x | AS67: x | AT67: x | AU67: x | AV67: x | AW67: x | AX67: x | AY67: x | AZ67: x | BA67: x | BB67: x | BC67: x | BD67: x | BE67: x | BF67: x | BG67: x | BH67: x | BI67: x | BJ67: x | BK67: x | BL67: x | BM67: x | BN67: x | BO67: x | BP67: x | BQ67: x | BR67: x | BS67: x | BT67: x | BU67: x | BV67: x | BW67: x | BX67: x | BY67: x | BZ67: x | CA67: x | CB67: x | CC67: x | CD67: x | CE67: x | CF67: x | CG67: x | CH67: x | CI67: x | CJ67: x | CK67: x | CL67: x | CM67: x | CN67: x | CO67: x | CP67: x | CQ67: x | CR67: x | CS67: x | CT67: x | CU67: x | CV67: x | CW67: x | CX67: x | CY67: x | CZ67: x | DA67: x | DB67: x | DC67: x | DD67: x | DE67: x | DF67: x | DG67: x | DH67: x | DI67: x | DJ67: x | DK67: x | DL67: x | DM67: x | DN67: x | DO67: x | DP67: x | DQ67: x | DR67: x | DS67: x | DT67: x | DU67: x | DV67: x | DW67: x | DX67: x | DY67: x | DZ67: x | EA67: x | EB67: x | EC67: x | ED67: x | EE67: x | EF67: x | EG67: x | EH67: x | EI67: x | EJ67: x | EK67: x | EL67: x | EM67: x | EN67: x | EO67: x | EP67: x | EQ67: x | ER67: x | ES67: x | ET67: x | EU67: x
A68: 神奈川県 | B68: 保土ケ谷区（横浜市） | C68: 新治村２－１ | D68: 上菅田 | E68: 23 | F68: 17 | G68: 8 | H68: 7 | I68: 3 | J68: 2 | K68: 6 | L68: 6 | M68: 60 | N68: 3 | O68: 4 | P68: 2 | Q68: 2 | R68: 1 | S68: 4 | T68: 5 | U68: 7 | V68: 2 | W68: 6 | X68: 6 | Y68: 10 | Z68: 4 | AA68: 3 | AB68: 1 | AC68: 55.1 | AD68: 55.8 | AE68: 54.4 | AF68: 40 | AG68: - | AH68: - | AI68: - | AJ68: 1 | AK68: 1 | AL68: 1 | AM68: 4 | AN68: 5 | AO68: 1 | AP68: 5 | AQ68: 6 | AR68: 8 | AS68: 4 | AT68: 3 | AU68: 1 | AV68: 63.6 | AW68: 61.7 | AX68: 65.8 | AY68: 35 | AZ68: - | BA68: - | BB68: - | BC68: 1 | BD68: 1 | BE68: 1 | BF68: 3 | BG68: 5 | BH68: 1 | BI68: 4 | BJ68: 6 | BK68: 6 | BL68: 4 | BM68: 3 | BN68: - | BO68: 62.7 | BP68: 59.6 | BQ68: 66.9 | BR68: 17 | BS68: - | BT68: - | BU68: - | BV68: - | BW68: - | BX68: - | BY68: - | BZ68: 2 | CA68: 2 | CB68: 2 | CC68: 4 | CD68: 3 | CE68: 3 | CF68: - | CG68: 1 | CH68: 14 | CI68: - | CJ68: - | CK68: - | CL68: - | CM68: - | CN68: 1 | CO68: 1 | CP68: 2 | CQ68: 4 | CR68: 3 | CS68: 2 | CT68: - | CU68: 1 | CV68: 0 | CW68: 0 | CX68: 0 | CY68: 0 | CZ68: 0 | DA68: 0 | DB68: 0 | DC68: 77 | DD68: 47 | DE68: 35 | DF68: 9 | DG68: 3 | DH68: 11 | DI68: 14 | DJ68: 5 | DK68: 14 | DL68: - | DM68: - | DN68: 1 | DO68: - | DP68: 10 | DQ68: - | DR68: - | DS68: 1 | DT68: 1 | DU68: - | DV68: - | DW68: 1 | DX68: - | DY68: - | DZ68: - | EA68: 17 | EB68: 1,637 | EC68: - | ED68: 1,545 | EE68: 92 | EF68: 36 | EG68: 26 | EH68: 20 | EI68: 4 | EJ68: 2 | EK68: - | EL68: 8 | EM68: 2 | EN68: 41 | EO68: 21 | EP68: 15 | EQ68: 5 | ER68: 1 | ES68: 11 | ET68: 6 | EU68: 3
A69: 神奈川県 | B69: 保土ケ谷区（横浜市） | C69: 新治村２－１ | D69: 新井 | E69: 4 | F69: 2 | G69: x | H69: x | I69: x | J69: x | K69: x | L69: 2 | M69: x | N69: x | O69: x | P69: x | Q69: x | R69: x | S69: x | T69: x | U69: x | V69: x | W69: x | X69: x | Y69: x | Z69: x | AA69: x | AB69: x | AC69: 65.0 | AD69: 65.0 | AE69: 65.0 | AF69: x | AG69: x | AH69: x | AI69: x | AJ69: x | AK69: x | AL69: x | AM69: x | AN69: x | AO69: x | AP69: x | AQ69: x | AR69: x | AS69: x | AT69: x | AU69: x | AV69: 65.0 | AW69: 65.0 | AX69: 65.0 | AY69: x | AZ69: x | BA69: x | BB69: x | BC69: x | BD69: x | BE69: x | BF69: x | BG69: x | BH69: x | BI69: x | BJ69: x | BK69: x | BL69: x | BM69: x | BN69: x | BO69: 65.0 | BP69: 65.0 | BQ69: … | BR69: 2 | BS69: - | BT69: - | BU69: - | BV69: - | BW69: - | BX69: - | BY69: - | BZ69: - | CA69: - | CB69: 1 | CC69: 1 | CD69: - | CE69: - | CF69: - | CG69: - | CH69: 2 | CI69: - | CJ69: - | CK69: - | CL69: - | CM69: - | CN69: - | CO69: - | CP69: 1 | CQ69: 1 | CR69: - | CS69: - | CT69: - | CU69: - | CV69: 0 | CW69: 0 | CX69: 0 | CY69: 0 | CZ69: 0 | DA69: 0 | DB69: 0 | DC69: 6 | DD69: 3 | DE69: 2 | DF69: 1 | DG69: - | DH69: 2 | DI69: - | DJ69: 1 | DK69: 2 | DL69: - | DM69: - | DN69: - | DO69: - | DP69: 2 | DQ69: - | DR69: - | DS69: - | DT69: - | DU69: - | DV69: - | DW69: - | DX69: - | DY69: - | DZ69: - | EA69: 2 | EB69: 62 | EC69: - | ED69: 55 | EE69: 7 | EF69: 3 | EG69: 3 | EH69: 2 | EI69: 1 | EJ69: - | EK69: - | EL69: - | EM69: - | EN69: 3 | EO69: - | EP69: - | EQ69: - | ER69: - | ES69: 2 | ET69: - | EU69: 1
A70: 神奈川県 | B70: 磯子区（横浜市） | C70: 磯子区 | E70: 36 | F70: 20 | G70: 6 | H70: 5 | I70: 4 | J70: 2 | K70: 10 | L70: 16 | M70: 45 | N70: - | O70: 4 | P70: - | Q70: - | R70: 2 | S70: 1 | T70: 3 | U70: 7 | V70: 3 | W70: 3 | X70: 3 | Y70: 5 | Z70: 10 | AA70: 3 | AB70: 1 | AC70: 61.0 | AD70: 58.3 | AE70: 64.0 | AF70: 33 | AG70: - | AH70: 2 | AI70: - | AJ70: - | AK70: - | AL70: - | AM70: 1 | AN70: 4 | AO70: 2 | AP70: 3 | AQ70: 3 | AR70: 5 | AS70: 9 | AT70: 3 | AU70: 1 | AV70: 66.7 | AW70: 65.7 | AX70: 67.8 | AY70: 33 | AZ70: - | BA70: 2 | BB70: - | BC70: - | BD70: - | BE70: - | BF70: 1 | BG70: 4 | BH70: 2 | BI70: 3 | BJ70: 3 | BK70: 5 | BL70: 9 | BM70: 3 | BN70: 1 | BO70: 66.7 | BP70: 65.7 | BQ70: 67.8 | BR70: 20 | BS70: - | BT70: - | BU70: - | BV70: - | BW70: 1 | BX70: - | BY70: - | BZ70: 1 | CA70: 1 | CB70: 2 | CC70: 2 | CD70: 3 | CE70: 7 | CF70: 2 | CG70: 1 | CH70: 11 | CI70: - | CJ70: - | CK70: - | CL70: - | CM70: - | CN70: 1 | CO70: - | CP70: - | CQ70: 1 | CR70: 1 | CS70: 5 | CT70: 2 | CU70: 1 | CV70: 0 | CW70: 0 | CX70: 0 | CY70: 0 | CZ70: 0 | DA70: 0 | DB70: 0 | DC70: 66 | DD70: 44 | DE70: 33 | DF70: 10 | DG70: 1 | DH70: 10 | DI70: 9 | DJ70: 3 | DK70: 19 | DL70: - | DM70: - | DN70: - | DO70: - | DP70: 15 | DQ70: 1 | DR70: - | DS70: - | DT70: 1 | DU70: 1 | DV70: - | DW70: - | DX70: 1 | DY70: - | DZ70: - | EA70: 18 | EB70: 629 | EC70: 20 | ED70: 561 | EE70: 48 | EF70: 35 | EG70: 26 | EH70: 17 | EI70: 8 | EJ70: 1 | EK70: - | EL70: 6 | EM70: 3 | EN70: 31 | EO70: 18 | EP70: 16 | EQ70: 2 | ER70: - | ES70: 10 | ET70: 3 | EU70: -
A71: 神奈川県 | B71: 磯子区（横浜市） | C71: 磯子区 | D71: 岡村 | E71: 1 | F71: - | G71: - | H71: - | I71: - | J71: - | K71: - | L71: 1 | M71: - | N71: - | O71: - | P71: - | Q71: - | R71: - | S71: - | T71: - | U71: - | V71: - | W71: - | X71: - | Y71: - | Z71: - | AA71: - | AB71: - | AC71: … | AD71: … | AE71: … | AF71: - | AG71: - | AH71: - | AI71: - | AJ71: - | AK71: - | AL71: - | AM71: - | AN71: - | AO71: - | AP71: - | AQ71: - | AR71: - | AS71: - | AT71: - | AU71: - | AV71: … | AW71: … | AX71: … | AY71: - | AZ71: - | BA71: - | BB71: - | BC71: - | BD71: - | BE71: - | BF71: - | BG71: - | BH71: - | BI71: - | BJ71: - | BK71: - | BL71: - | BM71: - | BN71: - | BO71: … | BP71: … | BQ71: … | BR71: - | BS71: - | BT71: - | BU71: - | BV71: - | BW71: - | BX71: - | BY71: - | BZ71: - | CA71: - | CB71: - | CC71: - | CD71: - | CE71: - | CF71: - | CG71: - | CH71: - | CI71: - | CJ71: - | CK71: - | CL71: - | CM71: - | CN71: - | CO71: - | CP71: - | CQ71: - | CR71: - | CS71: - | CT71: - | CU71: - | CV71: 0 | CW71: 0 | CX71: 0 | CY71: 0 | CZ71: 0 | DA71: 0 | DB71: 0 | DC71: - | DD71: - | DE71: - | DF71: - | DG71: - | DH71: - | DI71: - | DJ71: - | DK71: - | DL71: - | DM71: - | DN71: - | DO71: - | DP71: - | DQ71: - | DR71: - | DS71: - | DT71: - | DU71: - | DV71: - | DW71: - | DX71: - | DY71: - | DZ71: - | EA71: - | EB71: - | EC71: - | ED71: - | EE71: - | EF71: - | EG71: - | EH71: - | EI71: - | EJ71: - | EK71: - | EL71: - | EM71: - | EN71: - | EO71: - | EP71: - | EQ71: - | ER71: - | ES71: - | ET71: - | EU71: -
A72: 神奈川県 | B72: 磯子区（横浜市） | C72: 磯子区 | D72: 磯子 | E72: - | F72: - | G72: - | H72: - | I72: - | J72: - | K72: - | L72: - | M72: - | N72: - | O72: - | P72: - | Q72: - | R72: - | S72: - | T72: - | U72: - | V72: - | W72: - | X72: - | Y72: - | Z72: - | AA72: - | AB72: - | AC72: … | AD72: … | AE72: … | AF72: - | AG72: - | AH72: - | AI72: - | AJ72: - | AK72: - | AL72: - | AM72: - | AN72: - | AO72: - | AP72: - | AQ72: - | AR72: - | AS72: - | AT72: - | AU72: - | AV72: … | AW72: … | AX72: … | AY72: - | AZ72: - | BA72: - | BB72: - | BC72: - | BD72: - | BE72: - | BF72: - | BG72: - | BH72: - | BI72: - | BJ72: - | BK72: - | BL72: - | BM72: - | BN72: - | BO72: … | BP72: … | BQ72: … | BR72: - | BS72: - | BT72: - | BU72: - | BV72: - | BW72: - | BX72: - | BY72: - | BZ72: - | CA72: - | CB72: - | CC72: - | CD72: - | CE72: - | CF72: - | CG72: - | CH72: - | CI72: - | CJ72: - | CK72: - | CL72: - | CM72: - | CN72: - | CO72: - | CP72: - | CQ72: - | CR72: - | CS72: - | CT72: - | CU72: - | CV72: 0 | CW72: 0 | CX72: 0 | CY72: 0 | CZ72: 0 | DA72: 0 | DB72: 0 | DC72: - | DD72: - | DE72: - | DF72: - | DG72: - | DH72: - | DI72: - | DJ72: - | DK72: - | DL72: - | DM72: - | DN72: - | DO72: - | DP72: - | DQ72: - | DR72: - | DS72: - | DT72: - | DU72: - | DV72: - | DW72: - | DX72: - | DY72: - | DZ72: - | EA72: - | EB72: - | EC72: - | ED72: - | EE72: - | EF72: - | EG72: - | EH72: - | EI72: - | EJ72: - | EK72: - | EL72: - | EM72: - | EN72: - | EO72: - | EP72: - | EQ72: - | ER72: - | ES72: - | ET72: - | EU72: -
A73: 神奈川県 | B73: 磯子区（横浜市） | C73: 磯子区 | D73: 中原 | E73: - | F73: - | G73: - | H73: - | I73: - | J73: - | K73: - | L73: - | M73: - | N73: - | O73: - | P73: - | Q73: - | R73: - | S73: - | T73: - | U73: - | V73: - | W73: - | X73: - | Y73: - | Z73: - | AA73: - | AB73: - | AC73: … | AD73: … | AE73: … | AF73: - | AG73: - | AH73: - | AI73: - | AJ73: - | AK73: - | AL73: - | AM73: - | AN73: - | AO73: - | AP73: - | AQ73: - | AR73: - | AS73: - | AT73: - | AU73: - | AV73: … | AW73: … | AX73: … | AY73: - | AZ73: - | BA73: - | BB73: - | BC73: - | BD73: - | BE73: - | BF73: - | BG73: - | BH73: - | BI73: - | BJ73: - | BK73: - | BL73: - | BM73: - | BN73: - | BO73: … | BP73: … | BQ73: … | BR73: - | BS73: - | BT73: - | BU73: - | BV73: - | BW73: - | BX73: - | BY73: - | BZ73: - | CA73: - | CB73: - | CC73: - | CD73: - | CE73: - | CF73: - | CG73: - | CH73: - | CI73: - | CJ73: - | CK73: - | CL73: - | CM73: - | CN73: - | CO73: - | CP73: - | CQ73: - | CR73: - | CS73: - | CT73: - | CU73: - | CV73: 0 | CW73: 0 | CX73: 0 | CY73: 0 | CZ73: 0 | DA73: 0 | DB73: 0 | DC73: - | DD73: - | DE73: - | DF73: - | DG73: - | DH73: - | DI73: - | DJ73: - | DK73: - | DL73: - | DM73: - | DN73: - | DO73: - | DP73: - | DQ73: - | DR73: - | DS73: - | DT73: - | DU73: - | DV73: - | DW73: - | DX73: - | DY73: - | DZ73: - | EA73: - | EB73: - | EC73: - | ED73: - | EE73: - | EF73: - | EG73: - | EH73: - | EI73: - | EJ73: - | EK73: - | EL73: - | EM73: - | EN73: - | EO73: - | EP73: - | EQ73: - | ER73: - | ES73: - | ET73: - | EU73: -
A74: 神奈川県 | B74: 磯子区（横浜市） | C74: 磯子区 | D74: 杉田 | E74: 1 | F74: - | G74: - | H74: - | I74: - | J74: - | K74: - | L74: 1 | M74: - | N74: - | O74: - | P74: - | Q74: - | R74: - | S74: - | T74: - | U74: - | V74: - | W74: - | X74: - | Y74: - | Z74: - | AA74: - | AB74: - | AC74: … | AD74: … | AE74: … | AF74: - | AG74: - | AH74: - | AI74: - | AJ74: - | AK74: - | AL74: - | AM74: - | AN74: - | AO74: - | AP74: - | AQ74: - | AR74: - | AS74: - | AT74: - | AU74: - | AV74: … | AW74: … | AX74: … | AY74: - | AZ74: - | BA74: - | BB74: - | BC74: - | BD74: - | BE74: - | BF74: - | BG74: - | BH74: - | BI74: - | BJ74: - | BK74: - | BL74: - | BM74: - | BN74: - | BO74: … | BP74: … | BQ74: … | BR74: - | BS74: - | BT74: - | BU74: - | BV74: - | BW74: - | BX74: - | BY74: - | BZ74: - | CA74: - | CB74: - | CC74: - | CD74: - | CE74: - | CF74: - | CG74: - | CH74: - | CI74: - | CJ74: - | CK74: - | CL74: - | CM74: - | CN74: - | CO74: - | CP74: - | CQ74: - | CR74: - | CS74: - | CT74: - | CU74: - | CV74: 0 | CW74: 0 | CX74: 0 | CY74: 0 | CZ74: 0 | DA74: 0 | DB74: 0 | DC74: - | DD74: - | DE74: - | DF74: - | DG74: - | DH74: - | DI74: - | DJ74: - | DK74: - | DL74: - | DM74: - | DN74: - | DO74: - | DP74: - | DQ74: - | DR74: - | DS74: - | DT74: - | DU74: - | DV74: - | DW74: - | DX74: - | DY74: - | DZ74: - | EA74: - | EB74: - | EC74: - | ED74: - | EE74: - | EF74: - | EG74: - | EH74: - | EI74: - | EJ74: - | EK74: - | EL74: - | EM74: - | EN74: - | EO74: - | EP74: - | EQ74: - | ER74: - | ES74: - | ET74: - | EU74: -
A75: 神奈川県 | B75: 磯子区（横浜市） | C75: 磯子区 | D75: 上中里 | E75: 4 | F75: 2 | G75: x | H75: x | I75: x | J75: x | K75: x | L75: 2 | M75: x | N75: x | O75: x | P75: x | Q75: x | R75: x | S75: x | T75: x | U75: x | V75: x | W75: x | X75: x | Y75: x | Z75: x | AA75: x | AB75: x | AC75: 67.0 | AD75: 63.3 | AE75: 78.0 | AF75: x | AG75: x | AH75: x | AI75: x | AJ75: x | AK75: x | AL75: x | AM75: x | AN75: x | AO75: x | AP75: x | AQ75: x | AR75: x | AS75: x | AT75: x | AU75: x | AV75: 72.3 | AW75: 69.5 | AX75: 78.0 | AY75: x | AZ75: x | BA75: x | BB75: x | BC75: x | BD75: x | BE75: x | BF75: x | BG75: x | BH75: x | BI75: x | BJ75: x | BK75: x | BL75: x | BM75: x | BN75: x | BO75: 72.3 | BP75: 69.5 | BQ75: 78.0 | BR75: 2 | BS75: - | BT75: - | BU75: - | BV75: - | BW75: - | BX75: - | BY75: - | BZ75: - | CA75: - | CB75: - | CC75: - | CD75: - | CE75: 1 | CF75: 1 | CG75: - | CH75: 2 | CI75: - | CJ75: - | CK75: - | CL75: - | CM75: - | CN75: - | CO75: - | CP75: - | CQ75: - | CR75: - | CS75: 1 | CT75: 1 | CU75: - | CV75: 0 | CW75: 0 | CX75: 0 | CY75: 0 | CZ75: 0 | DA75: 0 | DB75: 0 | DC75: 11 | DD75: 4 | DE75: 3 | DF75: 1 | DG75: - | DH75: 2 | DI75: 4 | DJ75: 1 | DK75: 2 | DL75: - | DM75: - | DN75: - | DO75: - | DP75: 2 | DQ75: - | DR75: - | DS75: - | DT75: - | DU75: - | DV75: - | DW75: - | DX75: - | DY75: - | DZ75: - | EA75: 2 | EB75: 38 | EC75: - | ED75: 33 | EE75: 5 | EF75: 7 | EG75: 3 | EH75: 2 | EI75: 1 | EJ75: - | EK75: - | EL75: 3 | EM75: 1 | EN75: 4 | EO75: 1 | EP75: 1 | EQ75: - | ER75: - | ES75: 2 | ET75: 1 | EU75: -
A76: 神奈川県 | B76: 磯子区（横浜市） | C76: 磯子区 | D76: 氷取沢 | E76: 20 | F76: 14 | G76: 4 | H76: 3 | I76: 3 | J76: 2 | K76: 7 | L76: 6 | M76: 32 | N76: - | O76: 2 | P76: - | Q76: - | R76: 1 | S76: 1 | T76: 3 | U76: 4 | V76: 2 | W76: 3 | X76: 3 | Y76: 3 | Z76: 9 | AA76: - | AB76: 1 | AC76: 61.8 | AD76: 57.4 | AE76: 66.7 | AF76: 22 | AG76: - | AH76: - | AI76: - | AJ76: - | AK76: - | AL76: - | AM76: 1 | AN76: 2 | AO76: 1 | AP76: 3 | AQ76: 3 | AR76: 3 | AS76: 8 | AT76: - | AU76: 1 | AV76: 69.1 | AW76: 67.6 | AX76: 70.5 | AY76: 22 | AZ76: - | BA76: - | BB76: - | BC76: - | BD76: - | BE76: - | BF76: 1 | BG76: 2 | BH76: 1 | BI76: 3 | BJ76: 3 | BK76: 3 | BL76: 8 | BM76: - | BN76: 1 | BO76: 69.1 | BP76: 67.6 | BQ76: 70.5 | BR76: 14 | BS76: - | BT76: - | BU76: - | BV76: - | BW76: - | BX76: - | BY76: - | BZ76: - | CA76: 1 | CB76: 2 | CC76: 2 | CD76: 2 | CE76: 6 | CF76: - | CG76: 1 | CH76: 7 | CI76: - | CJ76: - | CK76: - | CL76: - | CM76: - | CN76: - | CO76: - | CP76: - | CQ76: 1 | CR76: 1 | CS76: 4 | CT76: - | CU76: 1 | CV76: 0 | CW76: 0 | CX76: 0 | CY76: 0 | CZ76: 0 | DA76: 0 | DB76: 0 | DC76: 41 | DD76: 30 | DE76: 22 | DF76: 8 | DG76: - | DH76: 7 | DI76: 3 | DJ76: 1 | DK76: 14 | DL76: - | DM76: - | DN76: - | DO76: - | DP76: 12 | DQ76: 1 | DR76: - | DS76: - | DT76: 1 | DU76: - | DV76: - | DW76: - | DX76: - | DY76: - | DZ76: - | EA76: 14 | EB76: 531 | EC76: 20 | ED76: 468 | EE76: 43 | EF76: 21 | EG76: 18 | EH76: 11 | EI76: 7 | EJ76: - | EK76: - | EL76: 2 | EM76: 1 | EN76: 20 | EO76: 12 | EP76: 11 | EQ76: 1 | ER76: - | ES76: 7 | ET76: 1 | EU76: -
A77: 神奈川県 | B77: 磯子区（横浜市） | C77: 磯子区 | D77: 峰 | E77: 6 | F77: 3 | G77: 1 | H77: 1 | I77: - | J77: - | K77: 2 | L77: 3 | M77: 7 | N77: - | O77: 2 | P77: - | Q77: - | R77: 1 | S77: - | T77: - | U77: 2 | V77: - | W77: - | X77: - | Y77: - | Z77: - | AA77: 2 | AB77: - | AC77: 50.9 | AD77: 54.0 | AE77: 48.5 | AF77: 6 | AG77: - | AH77: 2 | AI77: - | AJ77: - | AK77: - | AL77: - | AM77: - | AN77: 2 | AO77: - | AP77: - | AQ77: - | AR77: - | AS77: - | AT77: 2 | AU77: - | AV77: 53.3 | AW77: 54.0 | AX77: 52.7 | AY77: 6 | AZ77: - | BA77: 2 | BB77: - | BC77: - | BD77: - | BE77: - | BF77: - | BG77: 2 | BH77: - | BI77: - | BJ77: - | BK77: - | BL77: - | BM77: 2 | BN77: - | BO77: 53.3 | BP77: 54.0 | BQ77: 52.7 | BR77: 3 | BS77: - | BT77: - | BU77: - | BV77: - | BW77: 1 | BX77: - | BY77: - | BZ77: 1 | CA77: - | CB77: - | CC77: - | CD77: - | CE77: - | CF77: 1 | CG77: - | CH77: 2 | CI77: - | CJ77: - | CK77: - | CL77: - | CM77: - | CN77: 1 | CO77: - | CP77: - | CQ77: - | CR77: - | CS77: - | CT77: 1 | CU77: - | CV77: 0 | CW77: 0 | CX77: 0 | CY77: 0 | CZ77: 0 | DA77: 0 | DB77: 0 | DC77: 12 | DD77: 8 | DE77: 6 | DF77: 1 | DG77: 1 | DH77: 1 | DI77: 2 | DJ77: 1 | DK77: 2 | DL77: - | DM77: - | DN77: - | DO77: - | DP77: 1 | DQ77: - | DR77: - | DS77: - | DT77: - | DU77: 1 | DV77: - | DW77: - | DX77: - | DY77: - | DZ77: - | EA77: 2 | EB77: 60 | EC77: - | ED77: 60 | EE77: - | EF77: 6 | EG77: 4 | EH77: 3 | EI77: - | EJ77: 1 | EK77: - | EL77: 1 | EM77: 1 | EN77: 6 | EO77: 4 | EP77: 3 | EQ77: 1 | ER77: - | ES77: 1 | ET77: 1 | EU77: -
A78: 神奈川県 | B78: 磯子区（横浜市） | C78: 磯子区 | D78: 栗木 | E78: - | F78: - | G78: - | H78: - | I78: - | J78: - | K78: - | L78: - | M78: - | N78: - | O78: - | P78: - | Q78: - | R78: - | S78: - | T78: - | U78: - | V78: - | W78: - | X78: - | Y78: - | Z78: - | AA78: - | AB78: - | AC78: … | AD78: … | AE78: … | AF78: - | AG78: - | AH78: - | AI78: - | AJ78: - | AK78: - | AL78: - | AM78: - | AN78: - | AO78: - | AP78: - | AQ78: - | AR78: - | AS78: - | AT78: - | AU78: - | AV78: … | AW78: … | AX78: … | AY78: - | AZ78: - | BA78: - | BB78: - | BC78: - | BD78: - | BE78: - | BF78: - | BG78: - | BH78: - | BI78: - | BJ78: - | BK78: - | BL78: - | BM78: - | BN78: - | BO78: … | BP78: … | BQ78: … | BR78: - | BS78: - | BT78: - | BU78: - | BV78: - | BW78: - | BX78: - | BY78: - | BZ78: - | CA78: - | CB78: - | CC78: - | CD78: - | CE78: - | CF78: - | CG78: - | CH78: - | CI78: - | CJ78: - | CK78: - | CL78: - | CM78: - | CN78: - | CO78: - | CP78: - | CQ78: - | CR78: - | CS78: - | CT78: - | CU78: - | CV78: 0 | CW78: 0 | CX78: 0 | CY78: 0 | CZ78: 0 | DA78: 0 | DB78: 0 | DC78: - | DD78: - | DE78: - | DF78: - | DG78: - | DH78: - | DI78: - | DJ78: - | DK78: - | DL78: - | DM78: - | DN78: - | DO78: - | DP78: - | DQ78: - | DR78: - | DS78: - | DT78: - | DU78: - | DV78: - | DW78: - | DX78: - | DY78: - | DZ78: - | EA78: - | EB78: - | EC78: - | ED78: - | EE78: - | EF78: - | EG78: - | EH78: - | EI78: - | EJ78: - | EK78: - | EL78: - | EM78: - | EN78: - | EO78: - | EP78: - | EQ78: - | ER78: - | ES78: - | ET78: - | EU78: -
A79: 神奈川県 | B79: 磯子区（横浜市） | C79: 磯子区 | D79: 田中 | E79: 2 | F79: - | G79: - | H79: - | I79: - | J79: - | K79: - | L79: 2 | M79: - | N79: - | O79: - | P79: - | Q79: - | R79: - | S79: - | T79: - | U79: - | V79: - | W79: - | X79: - | Y79: - | Z79: - | AA79: - | AB79: - | AC79: … | AD79: … | AE79: … | AF79: - | AG79: - | AH79: - | AI79: - | AJ79: - | AK79: - | AL79: - | AM79: - | AN79: - | AO79: - | AP79: - | AQ79: - | AR79: - | AS79: - | AT79: - | AU79: - | AV79: … | AW79: … | AX79: … | AY79: - | AZ79: - | BA79: - | BB79: - | BC79: - | BD79: - | BE79: - | BF79: - | BG79: - | BH79: - | BI79: - | BJ79: - | BK79: - | BL79: - | BM79: - | BN79: - | BO79: … | BP79: … | BQ79: … | BR79: - | BS79: - | BT79: - | BU79: - | BV79: - | BW79: - | BX79: - | BY79: - | BZ79: - | CA79: - | CB79: - | CC79: - | CD79: - | CE79: - | CF79: - | CG79: - | CH79: - | CI79: - | CJ79: - | CK79: - | CL79: - | CM79: - | CN79: - | CO79: - | CP79: - | CQ79: - | CR79: - | CS79: - | CT79: - | CU79: - | CV79: 0 | CW79: 0 | CX79: 0 | CY79: 0 | CZ79: 0 | DA79: 0 | DB79: 0 | DC79: - | DD79: - | DE79: - | DF79: - | DG79: - | DH79: - | DI79: - | DJ79: - | DK79: - | DL79: - | DM79: - | DN79: - | DO79: - | DP79: - | DQ79: - | DR79: - | DS79: - | DT79: - | DU79: - | DV79: - | DW79: - | DX79: - | DY79: - | DZ79: - | EA79: - | EB79: - | EC79: - | ED79: - | EE79: - | EF79: - | EG79: - | EH79: - | EI79: - | EJ79: - | EK79: - | EL79: - | EM79: - | EN79: - | EO79: - | EP79: - | EQ79: - | ER79: - | ES79: - | ET79: - | EU79: -
A80: 神奈川県 | B80: 磯子区（横浜市） | C80: 磯子区 | D80: 矢部野 | E80: 1 | F80: - | G80: - | H80: - | I80: - | J80: - | K80: - | L80: 1 | M80: - | N80: - | O80: - | P80: - | Q80: - | R80: - | S80: - | T80: - | U80: - | V80: - | W80: - | X80: - | Y80: - | Z80: - | AA80: - | AB80: - | AC80: … | AD80: … | AE80: … | AF80: - | AG80: - | AH80: - | AI80: - | AJ80: - | AK80: - | AL80: - | AM80: - | AN80: - | AO80: - | AP80: - | AQ80: - | AR80: - | AS80: - | AT80: - | AU80: - | AV80: … | AW80: … | AX80: … | AY80: - | AZ80: - | BA80: - | BB80: - | BC80: - | BD80: - | BE80: - | BF80: - | BG80: - | BH80: - | BI80: - | BJ80: - | BK80: - | BL80: - | BM80: - | BN80: - | BO80: … | BP80: … | BQ80: … | BR80: - | BS80: - | BT80: - | BU80: - | BV80: - | BW80: - | BX80: - | BY80: - | BZ80: - | CA80: - | CB80: - | CC80: - | CD80: - | CE80: - | CF80: - | CG80: - | CH80: - | CI80: - | CJ80: - | CK80: - | CL80: - | CM80: - | CN80: - | CO80: - | CP80: - | CQ80: - | CR80: - | CS80: - | CT80: - | CU80: - | CV80: 0 | CW80: 0 | CX80: 0 | CY80: 0 | CZ80: 0 | DA80: 0 | DB80: 0 | DC80: - | DD80: - | DE80: - | DF80: - | DG80: - | DH80: - | DI80: - | DJ80: - | DK80: - | DL80: - | DM80: - | DN80: - | DO80: - | DP80: - | DQ80: - | DR80: - | DS80: - | DT80: - | DU80: - | DV80: - | DW80: - | DX80: - | DY80: - | DZ80: - | EA80: - | EB80: - | EC80: - | ED80: - | EE80: - | EF80: - | EG80: - | EH80: - | EI80: - | EJ80: - | EK80: - | EL80: - | EM80: - | EN80: - | EO80: - | EP80: - | EQ80: - | ER80: - | ES80: - | ET80: - | EU80: -
A81: 神奈川県 | B81: 磯子区（横浜市） | C81: 磯子区 | D81: 森 | E81: - | F81: - | G81: - | H81: - | I81: - | J81: - | K81: - | L81: - | M81: - | N81: - | O81: - | P81: - | Q81: - | R81: - | S81: - | T81: - | U81: - | V81: - | W81: - | X81: - | Y81: - | Z81: - | AA81: - | AB81: - | AC81: … | AD81: … | AE81: … | AF81: - | AG81: - | AH81: - | AI81: - | AJ81: - | AK81: - | AL81: - | AM81: - | AN81: - | AO81: - | AP81: - | AQ81: - | AR81: - | AS81: - | AT81: - | AU81: - | AV81: … | AW81: … | AX81: … | AY81: - | AZ81: - | BA81: - | BB81: - | BC81: - | BD81: - | BE81: - | BF81: - | BG81: - | BH81: - | BI81: - | BJ81: - | BK81: - | BL81: - | BM81: - | BN81: - | BO81: … | BP81: … | BQ81: … | BR81: - | BS81: - | BT81: - | BU81: - | BV81: - | BW81: - | BX81: - | BY81: - | BZ81: - | CA81: - | CB81: - | CC81: - | CD81: - | CE81: - | CF81: - | CG81: - | CH81: - | CI81: - | CJ81: - | CK81: - | CL81: - | CM81: - | CN81: - | CO81: - | CP81: - | CQ81: - | CR81: - | CS81: - | CT81: - | CU81: - | CV81: 0 | CW81: 0 | CX81: 0 | CY81: 0 | CZ81: 0 | DA81: 0 | DB81: 0 | DC81: - | DD81: - | DE81: - | DF81: - | DG81: - | DH81: - | DI81: - | DJ81: - | DK81: - | DL81: - | DM81: - | DN81: - | DO81: - | DP81: - | DQ81: - | DR81: - | DS81: - | DT81: - | DU81: - | DV81: - | DW81: - | DX81: - | DY81: - | DZ81: - | EA81: - | EB81: - | EC81: - | ED81: - | EE81: - | EF81: - | EG81: - | EH81: - | EI81: - | EJ81: - | EK81: - | EL81: - | EM81: - | EN81: - | EO81: - | EP81: - | EQ81: - | ER81: - | ES81: - | ET81: - | EU81: -
A82: 神奈川県 | B82: 磯子区（横浜市） | C82: 磯子区 | D82: 根岸・滝頭その他 | E82: 1 | F82: 1 | G82: x | H82: x | I82: x | J82: x | K82: x | L82: - | M82: x | N82: x | O82: x | P82: x | Q82: x | R82: x | S82: x | T82: x | U82: x | V82: x | W82: x | X82: x | Y82: x | Z82: x | AA82: x | AB82: x | AC82: 72.0 | AD82: 72.0 | AE82: 72.0 | AF82: x | AG82: x | AH82: x | AI82: x | AJ82: x | AK82: x | AL82: x | AM82: x | AN82: x | AO82: x | AP82: x | AQ82: x | AR82: x | AS82: x | AT82: x | AU82: x | AV82: 72.0 | AW82: 72.0 | AX82: 72.0 | AY82: x | AZ82: x | BA82: x | BB82: x | BC82: x | BD82: x | BE82: x | BF82: x | BG82: x | BH82: x | BI82: x | BJ82: x | BK82: x | BL82: x | BM82: x | BN82: x | BO82: 72.0 | BP82: 72.0 | BQ82: 72.0 | BR82: 1 | BS82: - | BT82: - | BU82: - | BV82: - | BW82: - | BX82: - | BY82: - | BZ82: - | CA82: - | CB82: - | CC82: - | CD82: 1 | CE82: - | CF82: - | CG82: - | CH82: - | CI82: - | CJ82: - | CK82: - | CL82: - | CM82: - | CN82: - | CO82: - | CP82: - | CQ82: - | CR82: - | CS82: - | CT82: - | CU82: - | CV82: 0 | CW82: 0 | CX82: 0 | CY82: 0 | CZ82: 0 | DA82: 0 | DB82: 0 | DC82: 2 | DD82: 2 | DE82: 2 | DF82: - | DG82: - | DH82: - | DI82: - | DJ82: - | DK82: 1 | DL82: - | DM82: - | DN82: - | DO82: - | DP82: - | DQ82: - | DR82: - | DS82: - | DT82: - | DU82: - | DV82: - | DW82: - | DX82: 1 | DY82: - | DZ82: - | EA82: - | EB82: - | EC82: - | ED82: - | EE82: - | EF82: 1 | EG82: 1 | EH82: 1 | EI82: - | EJ82: - | EK82: - | EL82: - | EM82: - | EN82: 1 | EO82: 1 | EP82: 1 | EQ82: - | ER82: - | ES82: - | ET82: - | EU82: -
A83: 神奈川県 | B83: 金沢区（横浜市） | C83: 金沢区 | E83: 73 | F83: 31 | G83: 7 | H83: 7 | I83: 12 | J83: 6 | K83: 12 | L83: 42 | M83: 100 | N83: 1 | O83: 5 | P83: 3 | Q83: 5 | R83: 2 | S83: 6 | T83: 8 | U83: 9 | V83: 10 | W83: 10 | X83: 4 | Y83: 16 | Z83: 9 | AA83: 9 | AB83: 3 | AC83: 58.4 | AD83: 55.8 | AE83: 61.3 | AF83: 65 | AG83: 1 | AH83: 1 | AI83: - | AJ83: 1 | AK83: 1 | AL83: 3 | AM83: 3 | AN83: 5 | AO83: 7 | AP83: 6 | AQ83: 4 | AR83: 12 | AS83: 9 | AT83: 9 | AU83: 3 | AV83: 65.1 | AW83: 63.8 | AX83: 66.3 | AY83: 53 | AZ83: - | BA83: - | BB83: - | BC83: 1 | BD83: 1 | BE83: 2 | BF83: 1 | BG83: 5 | BH83: 5 | BI83: 5 | BJ83: 4 | BK83: 12 | BL83: 9 | BM83: 7 | BN83: 1 | BO83: 66.9 | BP83: 66.3 | BQ83: 67.5 | BR83: 31 | BS83: - | BT83: - | BU83: - | BV83: - | BW83: 1 | BX83: - | BY83: 1 | BZ83: - | CA83: 4 | CB83: 4 | CC83: 1 | CD83: 6 | CE83: 6 | CF83: 6 | CG83: 2 | CH83: 21 | CI83: - | CJ83: - | CK83: - | CL83: - | CM83: - | CN83: - | CO83: 3 | CP83: 1 | CQ83: 1 | CR83: 5 | CS83: 3 | CT83: 6 | CU83: 2 | CV83: 0 | CW83: 0 | CX83: 0 | CY83: 0 | CZ83: 0 | DA83: 0 | DB83: 0 | DC83: 131 | DD83: 96 | DE83: 53 | DF83: 36 | DG83: 7 | DH83: 16 | DI83: 14 | DJ83: 5 | DK83: 30 | DL83: - | DM83: - | DN83: - | DO83: - | DP83: 19 | DQ83: 7 | DR83: 1 | DS83: 2 | DT83: 1 | DU83: - | DV83: - | DW83: - | DX83: - | DY83: - | DZ83: - | EA83: 31 | EB83: 1,116 | EC83: - | ED83: 926 | EE83: 190 | EF83: 65 | EG83: 52 | EH83: 27 | EI83: 18 | EJ83: 7 | EK83: - | EL83: 11 | EM83: 2 | EN83: 66 | EO83: 44 | EP83: 26 | EQ83: 18 | ER83: - | ES83: 16 | ET83: 3 | EU83: 3
A84: 神奈川県 | B84: 金沢区（横浜市） | C84: 金沢区 | D84: 富岡 | E84: 4 | F84: 1 | G84: x | H84: x | I84: x | J84: x | K84: x | L84: 3 | M84: x | N84: x | O84: x | P84: x | Q84: x | R84: x | S84: x | T84: x | U84: x | V84: x | W84: x | X84: x | Y84: x | Z84: x | AA84: x | AB84: x | AC84: 63.0 | AD84: 59.5 | AE84: 70.0 | AF84: x | AG84: x | AH84: x | AI84: x | AJ84: x | AK84: x | AL84: x | AM84: x | AN84: x | AO84: x | AP84: x | AQ84: x | AR84: x | AS84: x | AT84: x | AU84: x | AV84: 79.0 | AW84: 79.0 | AX84: … | AY84: x | AZ84: x | BA84: x | BB84: x | BC84: x | BD84: x | BE84: x | BF84: x | BG84: x | BH84: x | BI84: x | BJ84: x | BK84: x | BL84: x | BM84: x | BN84: x | BO84: 79.0 | BP84: 79.0 | BQ84: … | BR84: 1 | BS84: - | BT84: - | BU84: - | BV84: - | BW84: - | BX84: - | BY84: - | BZ84: - | CA84: - | CB84: - | CC84: - | CD84: - | CE84: 1 | CF84: - | CG84: - | CH84: 1 | CI84: - | CJ84: - | CK84: - | CL84: - | CM84: - | CN84: - | CO84: - | CP84: - | CQ84: - | CR84: - | CS84: 1 | CT84: - | CU84: - | CV84: 0 | CW84: 0 | CX84: 0 | CY84: 0 | CZ84: 0 | DA84: 0 | DB84: 0 | DC84: 3 | DD84: 2 | DE84: 1 | DF84: 1 | DG84: - | DH84: 1 | DI84: - | DJ84: - | DK84: 1 | DL84: - | DM84: - | DN84: - | DO84: - | DP84: - | DQ84: - | DR84: - | DS84: - | DT84: 1 | DU84: - | DV84: - | DW84: - | DX84: - | DY84: - | DZ84: - | EA84: 1 | EB84: 120 | EC84: - | ED84: 90 | EE84: 30 | EF84: 2 | EG84: 2 | EH84: 1 | EI84: 1 | EJ84: - | EK84: - | EL84: - | EM84: - | EN84: 1 | EO84: - | EP84: - | EQ84: - | ER84: - | ES84: 1 | ET84: - | EU84: -
A85: 神奈川県 | B85: 金沢区（横浜市） | C85: 金沢区 | D85: 柴 | E85: 40 | F85: 13 | G85: 1 | H85: 1 | I85: 7 | J85: 1 | K85: 5 | L85: 27 | M85: 40 | N85: 1 | O85: 1 | P85: 1 | Q85: 3 | R85: - | S85: 1 | T85: 6 | U85: 3 | V85: 3 | W85: 5 | X85: 1 | Y85: 7 | Z85: 4 | AA85: 3 | AB85: 1 | AC85: 58.7 | AD85: 58.5 | AE85: 59.0 | AF85: 21 | AG85: 1 | AH85: - | AI85: - | AJ85: - | AK85: - | AL85: - | AM85: 1 | AN85: 1 | AO85: 1 | AP85: 3 | AQ85: 1 | AR85: 5 | AS85: 4 | AT85: 3 | AU85: 1 | AV85: 68.1 | AW85: 67.8 | AX85: 68.3 | AY85: 18 | AZ85: - | BA85: - | BB85: - | BC85: - | BD85: - | BE85: - | BF85: - | BG85: 1 | BH85: 1 | BI85: 3 | BJ85: 1 | BK85: 5 | BL85: 4 | BM85: 3 | BN85: - | BO85: 70.9 | BP85: 74.7 | BQ85: 68.5 | BR85: 13 | BS85: - | BT85: - | BU85: - | BV85: - | BW85: - | BX85: - | BY85: - | BZ85: - | CA85: 1 | CB85: 3 | CC85: 1 | CD85: 2 | CE85: 3 | CF85: 3 | CG85: - | CH85: 9 | CI85: - | CJ85: - | CK85: - | CL85: - | CM85: - | CN85: - | CO85: 1 | CP85: 1 | CQ85: 1 | CR85: 2 | CS85: 1 | CT85: 3 | CU85: - | CV85: 0 | CW85: 0 | CX85: 0 | CY85: 0 | CZ85: 0 | DA85: 0 | DB85: 0 | DC85: 54 | DD85: 42 | DE85: 18 | DF85: 18 | DG85: 6 | DH85: 6 | DI85: 5 | DJ85: 1 | DK85: 13 | DL85: - | DM85: - | DN85: - | DO85: - | DP85: 10 | DQ85: 2 | DR85: 1 | DS85: - | DT85: - | DU85: - | DV85: - | DW85: - | DX85: - | DY85: - | DZ85: - | EA85: 13 | EB85: 211 | EC85: - | ED85: 155 | EE85: 56 | EF85: 25 | EG85: 22 | EH85: 7 | EI85: 9 | EJ85: 6 | EK85: - | EL85: 3 | EM85: - | EN85: 29 | EO85: 20 | EP85: 11 | EQ85: 9 | ER85: - | ES85: 6 | ET85: 2 | EU85: 1
A86: 神奈川県 | B86: 金沢区（横浜市） | C86: 金沢区 | D86: 谷津 | E86: - | F86: - | G86: - | H86: - | I86: - | J86: - | K86: - | L86: - | M86: - | N86: - | O86: - | P86: - | Q86: - | R86: - | S86: - | T86: - | U86: - | V86: - | W86: - | X86: - | Y86: - | Z86: - | AA86: - | AB86: - | AC86: … | AD86: … | AE86: … | AF86: - | AG86: - | AH86: - | AI86: - | AJ86: - | AK86: - | AL86: - | AM86: - | AN86: - | AO86: - | AP86: - | AQ86: - | AR86: - | AS86: - | AT86: - | AU86: - | AV86: … | AW86: … | AX86: … | AY86: - | AZ86: - | BA86: - | BB86: - | BC86: - | BD86: - | BE86: - | BF86: - | BG86: - | BH86: - | BI86: - | BJ86: - | BK86: - | BL86: - | BM86: - | BN86: - | BO86: … | BP86: … | BQ86: … | BR86: - | BS86: - | BT86: - | BU86: - | BV86: - | BW86: - | BX86: - | BY86: - | BZ86: - | CA86: - | CB86: - | CC86: - | CD86: - | CE86: - | CF86: - | CG86: - | CH86: - | CI86: - | CJ86: - | CK86: - | CL86: - | CM86: - | CN86: - | CO86: - | CP86: - | CQ86: - | CR86: - | CS86: - | CT86: - | CU86: - | CV86: 0 | CW86: 0 | CX86: 0 | CY86: 0 | CZ86: 0 | DA86: 0 | DB86: 0 | DC86: - | DD86: - | DE86: - | DF86: - | DG86: - | DH86: - | DI86: - | DJ86: - | DK86: - | DL86: - | DM86: - | DN86: - | DO86: - | DP86: - | DQ86: - | DR86: - | DS86: - | DT86: - | DU86: - | DV86: - | DW86: - | DX86: - | DY86: - | DZ86: - | EA86: - | EB86: - | EC86: - | ED86: - | EE86: - | EF86: - | EG86: - | EH86: - | EI86: - | EJ86: - | EK86: - | EL86: - | EM86: - | EN86: - | EO86: - | EP86: - | EQ86: - | ER86: - | ES86: - | ET86: - | EU86: -
A87: 神奈川県 | B87: 金沢区（横浜市） | C87: 金沢区 | D87: 六浦 | E87: 1 | F87: - | G87: - | H87: - | I87: - | J87: - | K87: - | L87: 1 | M87: - | N87: - | O87: - | P87: - | Q87: - | R87: - | S87: - | T87: - | U87: - | V87: - | W87: - | X87: - | Y87: - | Z87: - | AA87: - | AB87: - | AC87: … | AD87: … | AE87: … | AF87: - | AG87: - | AH87: - | AI87: - | AJ87: - | AK87: - | AL87: - | AM87: - | AN87: - | AO87: - | AP87: - | AQ87: - | AR87: - | AS87: - | AT87: - | AU87: - | AV87: … | AW87: … | AX87: … | AY87: - | AZ87: - | BA87: - | BB87: - | BC87: - | BD87: - | BE87: - | BF87: - | BG87: - | BH87: - | BI87: - | BJ87: - | BK87: - | BL87: - | BM87: - | BN87: - | BO87: … | BP87: … | BQ87: … | BR87: - | BS87: - | BT87: - | BU87: - | BV87: - | BW87: - | BX87: - | BY87: - | BZ87: - | CA87: - | CB87: - | CC87: - | CD87: - | CE87: - | CF87: - | CG87: - | CH87: - | CI87: - | CJ87: - | CK87: - | CL87: - | CM87: - | CN87: - | CO87: - | CP87: - | CQ87: - | CR87: - | CS87: - | CT87: - | CU87: - | CV87: 0 | CW87: 0 | CX87: 0 | CY87: 0 | CZ87: 0 | DA87: 0 | DB87: 0 | DC87: - | DD87: - | DE87: - | DF87: - | DG87: - | DH87: - | DI87: - | DJ87: - | DK87: - | DL87: - | DM87: - | DN87: - | DO87: - | DP87: - | DQ87: - | DR87: - | DS87: - | DT87: - | DU87: - | DV87: - | DW87: - | DX87: - | DY87: - | DZ87: - | EA87: - | EB87: - | EC87: - | ED87: - | EE87: - | EF87: - | EG87: - | EH87: - | EI87: - | EJ87: - | EK87: - | EL87: - | EM87: - | EN87: - | EO87: - | EP87: - | EQ87: - | ER87: - | ES87: - | ET87: - | EU87: -
A88: 神奈川県 | B88: 金沢区（横浜市） | C88: 金沢区 | D88: 朝比奈 | E88: 9 | F88: 5 | G88: 2 | H88: 2 | I88: 2 | J88: 2 | K88: 1 | L88: 4 | M88: 17 | N88: - | O88: 1 | P88: - | Q88: 1 | R88: 2 | S88: 1 | T88: - | U88: 1 | V88: 1 | W88: 5 | X88: 1 | Y88: 1 | Z88: - | AA88: 2 | AB88: 1 | AC88: 56.8 | AD88: 51.0 | AE88: 63.3 | AF88: 12 | AG88: - | AH88: - | AI88: - | AJ88: - | AK88: 1 | AL88: 1 | AM88: - | AN88: 1 | AO88: 1 | AP88: 3 | AQ88: 1 | AR88: 1 | AS88: - | AT88: 2 | AU88: 1 | AV88: 63.1 | AW88: 57.8 | AX88: 68.3 | AY88: 8 | AZ88: - | BA88: - | BB88: - | BC88: - | BD88: 1 | BE88: 1 | BF88: - | BG88: 1 | BH88: 1 | BI88: 2 | BJ88: 1 | BK88: 1 | BL88: - | BM88: - | BN88: - | BO88: 55.4 | BP88: 52.6 | BQ88: 60.0 | BR88: 5 | BS88: - | BT88: - | BU88: - | BV88: - | BW88: 1 | BX88: - | BY88: - | BZ88: - | CA88: - | CB88: 1 | CC88: - | CD88: 1 | CE88: - | CF88: 1 | CG88: 1 | CH88: 3 | CI88: - | CJ88: - | CK88: - | CL88: - | CM88: - | CN88: - | CO88: - | CP88: - | CQ88: - | CR88: 1 | CS88: - | CT88: 1 | CU88: 1 | CV88: 0 | CW88: 0 | CX88: 0 | CY88: 0 | CZ88: 0 | DA88: 0 | DB88: 0 | DC88: 23 | DD88: 16 | DE88: 8 | DF88: 8 | DG88: - | DH88: 3 | DI88: 2 | DJ88: 2 | DK88: 4 | DL88: - | DM88: - | DN88: - | DO88: - | DP88: 4 | DQ88: - | DR88: - | DS88: - | DT88: - | DU88: - | DV88: - | DW88: - | DX88: - | DY88: - | DZ88: - | EA88: 5 | EB88: 276 | EC88: - | ED88: 198 | EE88: 78 | EF88: 11 | EG88: 8 | EH88: 5 | EI88: 3 | EJ88: - | EK88: - | EL88: 2 | EM88: 1 | EN88: 12 | EO88: 8 | EP88: 3 | EQ88: 5 | ER88: - | ES88: 3 | ET88: - | EU88: 1
A89: 神奈川県 | B89: 金沢区（横浜市） | C89: 金沢区 | D89: 釜利谷南 | E89: 8 | F89: 5 | G89: 3 | H89: 3 | I89: 1 | J89: 1 | K89: 1 | L89: 3 | M89: 18 | N89: - | O89: 1 | P89: - | Q89: 1 | R89: - | S89: 2 | T89: 1 | U89: 3 | V89: 2 | W89: - | X89: 1 | Y89: 3 | Z89: 1 | AA89: 3 | AB89: - | AC89: 59.3 | AD89: 59.0 | AE89: 59.6 | AF89: 15 | AG89: - | AH89: 1 | AI89: - | AJ89: 1 | AK89: - | AL89: 1 | AM89: 1 | AN89: 3 | AO89: 1 | AP89: - | AQ89: 1 | AR89: 2 | AS89: 1 | AT89: 3 | AU89: - | AV89: 59.9 | AW89: 59.3 | AX89: 60.7 | AY89: 13 | AZ89: - | BA89: - | BB89: - | BC89: 1 | BD89: - | BE89: 1 | BF89: - | BG89: 3 | BH89: 1 | BI89: - | BJ89: 1 | BK89: 2 | BL89: 1 | BM89: 3 | BN89: - | BO89: 63.8 | BP89: 64.7 | BQ89: 62.7 | BR89: 5 | BS89: - | BT89: - | BU89: - | BV89: - | BW89: - | BX89: - | BY89: - | BZ89: - | CA89: 2 | CB89: - | CC89: - | CD89: 2 | CE89: - | CF89: 1 | CG89: - | CH89: 4 | CI89: - | CJ89: - | CK89: - | CL89: - | CM89: - | CN89: - | CO89: 1 | CP89: - | CQ89: - | CR89: 2 | CS89: - | CT89: 1 | CU89: - | CV89: 0 | CW89: 0 | CX89: 0 | CY89: 0 | CZ89: 0 | DA89: 0 | DB89: 0 | DC89: 21 | DD89: 16 | DE89: 13 | DF89: 2 | DG89: 1 | DH89: 2 | DI89: 2 | DJ89: 1 | DK89: 5 | DL89: - | DM89: - | DN89: - | DO89: - | DP89: - | DQ89: 3 | DR89: - | DS89: 2 | DT89: - | DU89: - | DV89: - | DW89: - | DX89: - | DY89: - | DZ89: - | EA89: 5 | EB89: 184 | EC89: - | ED89: 184 | EE89: - | EF89: 10 | EG89: 8 | EH89: 7 | EI89: - | EJ89: 1 | EK89: - | EL89: 2 | EM89: - | EN89: 11 | EO89: 8 | EP89: 6 | EQ89: 2 | ER89: - | ES89: 2 | ET89: - | EU89: 1
A90: 神奈川県 | B90: 金沢区（横浜市） | C90: 金沢区 | D90: 北谷 | E90: 3 | F90: 3 | G90: - | H90: - | I90: - | J90: - | K90: 3 | L90: - | M90: 8 | N90: - | O90: 1 | P90: 1 | Q90: - | R90: - | S90: - | T90: - | U90: 2 | V90: - | W90: - | X90: - | Y90: 1 | Z90: 3 | AA90: - | AB90: - | AC90: 57.1 | AD90: 51.2 | AE90: 67.0 | AF90: 4 | AG90: - | AH90: - | AI90: - | AJ90: - | AK90: - | AL90: - | AM90: - | AN90: - | AO90: - | AP90: - | AQ90: - | AR90: 1 | AS90: 3 | AT90: - | AU90: - | AV90: 75.5 | AW90: 76.5 | AX90: 74.5 | AY90: 4 | AZ90: - | BA90: - | BB90: - | BC90: - | BD90: - | BE90: - | BF90: - | BG90: - | BH90: - | BI90: - | BJ90: - | BK90: 1 | BL90: 3 | BM90: - | BN90: - | BO90: 75.5 | BP90: 76.5 | BQ90: 74.5 | BR90: 3 | BS90: - | BT90: - | BU90: - | BV90: - | BW90: - | BX90: - | BY90: - | BZ90: - | CA90: - | CB90: - | CC90: - | CD90: - | CE90: 2 | CF90: 1 | CG90: - | CH90: 2 | CI90: - | CJ90: - | CK90: - | CL90: - | CM90: - | CN90: - | CO90: - | CP90: - | CQ90: - | CR90: - | CS90: 1 | CT90: 1 | CU90: - | CV90: 0 | CW90: 0 | CX90: 0 | CY90: 0 | CZ90: 0 | DA90: 0 | DB90: 0 | DC90: 9 | DD90: 8 | DE90: 4 | DF90: 4 | DG90: - | DH90: - | DI90: - | DJ90: 1 | DK90: 3 | DL90: - | DM90: - | DN90: - | DO90: - | DP90: 1 | DQ90: 2 | DR90: - | DS90: - | DT90: - | DU90: - | DV90: - | DW90: - | DX90: - | DY90: - | DZ90: - | EA90: 3 | EB90: 155 | EC90: - | ED90: 155 | EE90: - | EF90: 6 | EG90: 5 | EH90: 2 | EI90: 3 | EJ90: - | EK90: - | EL90: - | EM90: 1 | EN90: 3 | EO90: 3 | EP90: 2 | EQ90: 1 | ER90: - | ES90: - | ET90: - | EU90: -
A91: 神奈川県 | B91: 金沢区（横浜市） | C91: 金沢区 | D91: 宮谷 | E91: 3 | F91: 2 | G91: x | H91: x | I91: x | J91: x | K91: x | L91: 1 | M91: x | N91: x | O91: x | P91: x | Q91: x | R91: x | S91: x | T91: x | U91: x | V91: x | W91: x | X91: x | Y91: x | Z91: x | AA91: x | AB91: x | AC91: 57.0 | AD91: 49.4 | AE91: 66.5 | AF91: x | AG91: x | AH91: x | AI91: x | AJ91: x | AK91: x | AL91: x | AM91: x | AN91: x | AO91: x | AP91: x | AQ91: x | AR91: x | AS91: x | AT91: x | AU91: x | AV91: 66.4 | AW91: 66.3 | AX91: 66.5 | AY91: x | AZ91: x | BA91: x | BB91: x | BC91: x | BD91: x | BE91: x | BF91: x | BG91: x | BH91: x | BI91: x | BJ91: x | BK91: x | BL91: x | BM91: x | BN91: x | BO91: 70.8 | BP91: 66.3 | BQ91: 77.5 | BR91: 2 | BS91: - | BT91: - | BU91: - | BV91: - | BW91: - | BX91: - | BY91: - | BZ91: - | CA91: 1 | CB91: - | CC91: - | CD91: - | CE91: - | CF91: - | CG91: 1 | CH91: 2 | CI91: - | CJ91: - | CK91: - | CL91: - | CM91: - | CN91: - | CO91: 1 | CP91: - | CQ91: - | CR91: - | CS91: - | CT91: - | CU91: 1 | CV91: 0 | CW91: 0 | CX91: 0 | CY91: 0 | CZ91: 0 | DA91: 0 | DB91: 0 | DC91: 12 | DD91: 7 | DE91: 5 | DF91: 2 | DG91: - | DH91: 2 | DI91: 3 | DJ91: - | DK91: 2 | DL91: - | DM91: - | DN91: - | DO91: - | DP91: 2 | DQ91: - | DR91: - | DS91: - | DT91: - | DU91: - | DV91: - | DW91: - | DX91: - | DY91: - | DZ91: - | EA91: 2 | EB91: 117 | EC91: - | ED91: 91 | EE91: 26 | EF91: 6 | EG91: 4 | EH91: 3 | EI91: 1 | EJ91: - | EK91: - | EL91: 2 | EM91: - | EN91: 6 | EO91: 3 | EP91: 2 | EQ91: 1 | ER91: - | ES91: 2 | ET91: 1 | EU91: -
A92: 神奈川県 | B92: 金沢区（横浜市） | C92: 金沢区 | D92: 釜利谷東 | E92: 5 | F92: 2 | G92: x | H92: x | I92: x | J92: x | K92: x | L92: 3 | M92: x | N92: x | O92: x | P92: x | Q92: x | R92: x | S92: x | T92: x | U92: x | V92: x | W92: x | X92: x | Y92: x | Z92: x | AA92: x | AB92: x | AC92: 60.2 | AD92: 59.5 | AE92: 60.7 | AF92: x | AG92: x | AH92: x | AI92: x | AJ92: x | AK92: x | AL92: x | AM92: x | AN92: x | AO92: x | AP92: x | AQ92: x | AR92: x | AS92: x | AT92: x | AU92: x | AV92: 60.2 | AW92: 59.5 | AX92: 60.7 | AY92: x | AZ92: x | BA92: x | BB92: x | BC92: x | BD92: x | BE92: x | BF92: x | BG92: x | BH92: x | BI92: x | BJ92: x | BK92: x | BL92: x | BM92: x | BN92: x | BO92: 65.0 | BP92: 59.5 | BQ92: 70.5 | BR92: 2 | BS92: - | BT92: - | BU92: - | BV92: - | BW92: - | BX92: - | BY92: 1 | BZ92: - | CA92: - | CB92: - | CC92: - | CD92: 1 | CE92: - | CF92: - | CG92: - | CH92: - | CI92: - | CJ92: - | CK92: - | CL92: - | CM92: - | CN92: - | CO92: - | CP92: - | CQ92: - | CR92: - | CS92: - | CT92: - | CU92: - | CV92: 0 | CW92: 0 | CX92: 0 | CY92: 0 | CZ92: 0 | DA92: 0 | DB92: 0 | DC92: 9 | DD92: 5 | DE92: 4 | DF92: 1 | DG92: - | DH92: 2 | DI92: 2 | DJ92: - | DK92: 2 | DL92: - | DM92: - | DN92: - | DO92: - | DP92: 2 | DQ92: - | DR92: - | DS92: - | DT92: - | DU92: - | DV92: - | DW92: - | DX92: - | DY92: - | DZ92: - | EA92: 2 | EB92: 53 | EC92: - | ED92: 53 | EE92: - | EF92: 5 | EG92: 3 | EH92: 2 | EI92: 1 | EJ92: - | EK92: - | EL92: 2 | EM92: - | EN92: 4 | EO92: 2 | EP92: 2 | EQ92: - | ER92: - | ES92: 2 | ET92: - | EU92: -
A93: 神奈川県 | B93: 金沢区（横浜市） | C93: 金沢区 | D93: 福浦 | E93: - | F93: - | G93: - | H93: - | I93: - | J93: - | K93: - | L93: - | M93: - | N93: - | O93: - | P93: - | Q93: - | R93: - | S93: - | T93: - | U93: - | V93: - | W93: - | X93: - | Y93: - | Z93: - | AA93: - | AB93: - | AC93: … | AD93: … | AE93: … | AF93: - | AG93: - | AH93: - | AI93: - | AJ93: - | AK93: - | AL93: - | AM93: - | AN93: - | AO93: - | AP93: - | AQ93: - | AR93: - | AS93: - | AT93: - | AU93: - | AV93: … | AW93: … | AX93: … | AY93: - | AZ93: - | BA93: - | BB93: - | BC93: - | BD93: - | BE93: - | BF93: - | BG93: - | BH93: - | BI93: - | BJ93: - | BK93: - | BL93: - | BM93: - | BN93: - | BO93: … | BP93: … | BQ93: … | BR93: - | BS93: - | BT93: - | BU93: - | BV93: - | BW93: - | BX93: - | BY93: - | BZ93: - | CA93: - | CB93: - | CC93: - | CD93: - | CE93: - | CF93: - | CG93: - | CH93: - | CI93: - | CJ93: - | CK93: - | CL93: - | CM93: - | CN93: - | CO93: - | CP93: - | CQ93: - | CR93: - | CS93: - | CT93: - | CU93: - | CV93: 0 | CW93: 0 | CX93: 0 | CY93: 0 | CZ93: 0 | DA93: 0 | DB93: 0 | DC93: - | DD93: - | DE93: - | DF93: - | DG93: - | DH93: - | DI93: - | DJ93: - | DK93: - | DL93: - | DM93: - | DN93: - | DO93: - | DP93: - | DQ93: - | DR93: - | DS93: - | DT93: - | DU93: - | DV93: - | DW93: - | DX93: - | DY93: - | DZ93: - | EA93: - | EB93: - | EC93: - | ED93: - | EE93: - | EF93: - | EG93: - | EH93: - | EI93: - | EJ93: - | EK93: - | EL93: - | EM93: - | EN93: - | EO93: - | EP93: - | EQ93: - | ER93: - | ES93: - | ET93: - | EU93: -
A94: 神奈川県 | B94: 港北区（横浜市） | E94: 448 | F94: 249 | G94: 120 | H94: 118 | I94: 71 | J94: 57 | K94: 58 | L94: 199 | M94: 771 | N94: 9 | O94: 22 | P94: 21 | Q94: 20 | R94: 43 | S94: 62 | T94: 62 | U94: 63 | V94: 69 | W94: 83 | X94: 74 | Y94: 68 | Z94: 78 | AA94: 57 | AB94: 40 | AC94: 58.8 | AD94: 57.8 | AE94: 59.9 | AF94: 654 | AG94: 2 | AH94: 15 | AI94: 13 | AJ94: 12 | AK94: 33 | AL94: 49 | AM94: 48 | AN94: 50 | AO94: 63 | AP94: 74 | AQ94: 66 | AR94: 62 | AS94: 75 | AT94: 53 | AU94: 39 | AV94: 60.9 | AW94: 59.9 | AX94: 62.1 | AY94: 529 | AZ94: - | BA94: 3 | BB94: 11 | BC94: 10 | BD94: 23 | BE94: 28 | BF94: 37 | BG94: 41 | BH94: 55 | BI94: 70 | BJ94: 60 | BK94: 55 | BL94: 62 | BM94: 47 | BN94: 27 | BO94: 62.4 | BP94: 60.6 | BQ94: 65.5 | BR94: 249 | BS94: - | BT94: - | BU94: - | BV94: 1 | BW94: 3 | BX94: 8 | BY94: 12 | BZ94: 10 | CA94: 21 | CB94: 39 | CC94: 30 | CD94: 32 | CE94: 38 | CF94: 39 | CG94: 16 | CH94: 167 | CI94: - | CJ94: - | CK94: - | CL94: - | CM94: 3 | CN94: 4 | CO94: 16 | CP94: 23 | CQ94: 24 | CR94: 22 | CS94: 31 | CT94: 30 | CU94: 14 | CV94: 0 | CW94: 0 | CX94: 0 | CY94: 0 | CZ94: 0 | DA94: 0 | DB94: 0 | DC94: 1,021 | DD94: 693 | DE94: 529 | DF94: 136 | DG94: 28 | DH94: 153 | DI94: 92 | DJ94: 83 | DK94: 230 | DL94: 1 | DM94: - | DN94: 4 | DO94: - | DP94: 147 | DQ94: 13 | DR94: 30 | DS94: 30 | DT94: 5 | DU94: - | DV94: - | DW94: - | DX94: - | DY94: - | DZ94: - | EA94: 247 | EB94: 16,268 | EC94: 762 | ED94: 12,877 | EE94: 2,629 | EF94: 493 | EG94: 413 | EH94: 326 | EI94: 69 | EJ94: 18 | EK94: 1 | EL94: 48 | EM94: 31 | EN94: 528 | EO94: 280 | EP94: 203 | EQ94: 67 | ER94: 10 | ES94: 152 | ET94: 44 | EU94: 52
A95: 神奈川県 | B95: 港北区（横浜市） | C95: 港北 | E95: 222 | F95: 101 | G95: 46 | H95: 45 | I95: 30 | J95: 22 | K95: 25 | L95: 121 | M95: 313 | N95: 2 | O95: 14 | P95: 12 | Q95: 10 | R95: 17 | S95: 17 | T95: 25 | U95: 26 | V95: 24 | W95: 34 | X95: 25 | Y95: 28 | Z95: 37 | AA95: 23 | AB95: 19 | AC95: 58.9 | AD95: 57.8 | AE95: 60.1 | AF95: 268 | AG95: 1 | AH95: 11 | AI95: 9 | AJ95: 7 | AK95: 14 | AL95: 13 | AM95: 21 | AN95: 20 | AO95: 23 | AP95: 30 | AQ95: 21 | AR95: 25 | AS95: 35 | AT95: 19 | AU95: 19 | AV95: 60.2 | AW95: 58.8 | AX95: 61.8 | AY95: 207 | AZ95: - | BA95: 2 | BB95: 7 | BC95: 6 | BD95: 10 | BE95: 6 | BF95: 17 | BG95: 15 | BH95: 21 | BI95: 29 | BJ95: 17 | BK95: 22 | BL95: 29 | BM95: 15 | BN95: 11 | BO95: 61.7 | BP95: 59.3 | BQ95: 65.8 | BR95: 101 | BS95: - | BT95: - | BU95: - | BV95: - | BW95: 2 | BX95: 2 | BY95: 5 | BZ95: 4 | CA95: 8 | CB95: 15 | CC95: 12 | CD95: 12 | CE95: 17 | CF95: 15 | CG95: 9 | CH95: 68 | CI95: - | CJ95: - | CK95: - | CL95: - | CM95: 1 | CN95: 1 | CO95: 7 | CP95: 7 | CQ95: 10 | CR95: 8 | CS95: 15 | CT95: 12 | CU95: 7 | CV95: 0 | CW95: 0 | CX95: 0 | CY95: 0 | CZ95: 0 | DA95: 0 | DB95: 0 | DC95: 410 | DD95: 270 | DE95: 207 | DF95: 45 | DG95: 18 | DH95: 66 | DI95: 44 | DJ95: 30 | DK95: 94 | DL95: 1 | DM95: - | DN95: 2 | DO95: - | DP95: 68 | DQ95: 10 | DR95: 6 | DS95: 6 | DT95: 1 | DU95: - | DV95: - | DW95: - | DX95: - | DY95: - | DZ95: - | EA95: 100 | EB95: 5,984 | EC95: 454 | ED95: 5,076 | EE95: 454 | EF95: 199 | EG95: 164 | EH95: 129 | EI95: 23 | EJ95: 12 | EK95: - | EL95: 23 | EM95: 12 | EN95: 211 | EO95: 106 | EP95: 78 | EQ95: 22 | ER95: 6 | ES95: 66 | ET95: 21 | EU95: 18
A96: 神奈川県 | B96: 港北区（横浜市） | C96: 港北 | D96: 下田 | E96: 7 | F96: 3 | G96: 1 | H96: 1 | I96: 2 | J96: 2 | K96: - | L96: 4 | M96: 8 | N96: - | O96: - | P96: - | Q96: - | R96: - | S96: 2 | T96: - | U96: 1 | V96: - | W96: 1 | X96: - | Y96: - | Z96: 1 | AA96: 3 | AB96: - | AC96: 64.9 | AD96: 59.3 | AE96: 70.5 | AF96: 7 | AG96: - | AH96: - | AI96: - | AJ96: - | AK96: - | AL96: 2 | AM96: - | AN96: 1 | AO96: - | AP96: 1 | AQ96: - | AR96: - | AS96: 1 | AT96: 2 | AU96: - | AV96: 62.7 | AW96: 59.3 | AX96: 67.3 | AY96: 6 | AZ96: - | BA96: - | BB96: - | BC96: - | BD96: - | BE96: 1 | BF96: - | BG96: 1 | BH96: - | BI96: 1 | BJ96: - | BK96: - | BL96: 1 | BM96: 2 | BN96: - | BO96: 66.5 | BP96: 59.3 | BQ96: 81.0 | BR96: 3 | BS96: - | BT96: - | BU96: - | BV96: - | BW96: - | BX96: - | BY96: - | BZ96: - | CA96: - | CB96: - | CC96: - | CD96: - | CE96: 1 | CF96: 1 | CG96: 1 | CH96: 3 | CI96: - | CJ96: - | CK96: - | CL96: - | CM96: - | CN96: - | CO96: - | CP96: - | CQ96: - | CR96: - | CS96: 1 | CT96: 1 | CU96: 1 | CV96: 0 | CW96: 0 | CX96: 0 | CY96: 0 | CZ96: 0 | DA96: 0 | DB96: 0 | DC96: 13 | DD96: 6 | DE96: 6 | DF96: - | DG96: - | DH96: 3 | DI96: 3 | DJ96: 1 | DK96: 3 | DL96: - | DM96: - | DN96: - | DO96: - | DP96: 3 | DQ96: - | DR96: - | DS96: - | DT96: - | DU96: - | DV96: - | DW96: - | DX96: - | DY96: - | DZ96: - | EA96: 3 | EB96: 173 | EC96: - | ED96: 133 | EE96: 40 | EF96: 5 | EG96: 4 | EH96: 4 | EI96: - | EJ96: - | EK96: - | EL96: - | EM96: 1 | EN96: 8 | EO96: 2 | EP96: 2 | EQ96: - | ER96: - | ES96: 3 | ET96: 3 | EU96: -
A97: 神奈川県 | B97: 港北区（横浜市） | C97: 港北 | D97: 矢上 | E97: 1 | F97: 1 | G97: x | H97: x | I97: x | J97: x | K97: x | L97: - | M97: x | N97: x | O97: x | P97: x | Q97: x | R97: x | S97: x | T97: x | U97: x | V97: x | W97: x | X97: x | Y97: x | Z97: x | AA97: x | AB97: x | AC97: 48.6 | AD97: 39.5 | AE97: 54.7 | AF97: x | AG97: x | AH97: x | AI97: x | AJ97: x | AK97: x | AL97: x | AM97: x | AN97: x | AO97: x | AP97: x | AQ97: x | AR97: x | AS97: x | AT97: x | AU97: x | AV97: 48.6 | AW97: 39.5 | AX97: 54.7 | AY97: x | AZ97: x | BA97: x | BB97: x | BC97: x | BD97: x | BE97: x | BF97: x | BG97: x | BH97: x | BI97: x | BJ97: x | BK97: x | BL97: x | BM97: x | BN97: x | BO97: 73.5 | BP97: 59.0 | BQ97: 88.0 | BR97: 1 | BS97: - | BT97: - | BU97: - | BV97: - | BW97: - | BX97: - | BY97: - | BZ97: - | CA97: - | CB97: - | CC97: - | CD97: - | CE97: - | CF97: - | CG97: 1 | CH97: 1 | CI97: - | CJ97: - | CK97: - | CL97: - | CM97: - | CN97: - | CO97: - | CP97: - | CQ97: - | CR97: - | CS97: - | CT97: - | CU97: 1 | CV97: 0 | CW97: 0 | CX97: 0 | CY97: 0 | CZ97: 0 | DA97: 0 | DB97: 0 | DC97: 7 | DD97: 3 | DE97: 2 | DF97: 1 | DG97: - | DH97: 1 | DI97: 2 | DJ97: 1 | DK97: 1 | DL97: - | DM97: - | DN97: - | DO97: - | DP97: - | DQ97: - | DR97: 1 | DS97: - | DT97: - | DU97: - | DV97: - | DW97: - | DX97: - | DY97: - | DZ97: - | EA97: 1 | EB97: 140 | EC97: - | ED97: 20 | EE97: 120 | EF97: 3 | EG97: 1 | EH97: 1 | EI97: - | EJ97: - | EK97: - | EL97: 1 | EM97: 1 | EN97: 4 | EO97: 2 | EP97: 1 | EQ97: 1 | ER97: - | ES97: 1 | ET97: 1 | EU97: -
A98: 神奈川県 | B98: 港北区（横浜市） | C98: 港北 | D98: 宮前 | E98: 9 | F98: 2 | G98: x | H98: x | I98: x | J98: x | K98: x | L98: 7 | M98: x | N98: x | O98: x | P98: x | Q98: x | R98: x | S98: x | T98: x | U98: x | V98: x | W98: x | X98: x | Y98: x | Z98: x | AA98: x | AB98: x | AC98: 70.5 | AD98: 71.0 | AE98: 70.0 | AF98: x | AG98: x | AH98: x | AI98: x | AJ98: x | AK98: x | AL98: x | AM98: x | AN98: x | AO98: x | AP98: x | AQ98: x | AR98: x | AS98: x | AT98: x | AU98: x | AV98: 70.5 | AW98: 71.0 | AX98: 70.0 | AY98: x | AZ98: x | BA98: x | BB98: x | BC98: x | BD98: x | BE98: x | BF98: x | BG98: x | BH98: x | BI98: x | BJ98: x | BK98: x | BL98: x | BM98: x | BN98: x | BO98: 65.0 | BP98: 65.0 | BQ98: … | BR98: 2 | BS98: - | BT98: - | BU98: - | BV98: - | BW98: - | BX98: - | BY98: - | BZ98: - | CA98: - | CB98: 1 | CC98: 1 | CD98: - | CE98: - | CF98: - | CG98: - | CH98: - | CI98: - | CJ98: - | CK98: - | CL98: - | CM98: - | CN98: - | CO98: - | CP98: - | CQ98: - | CR98: - | CS98: - | CT98: - | CU98: - | CV98: 0 | CW98: 0 | CX98: 0 | CY98: 0 | CZ98: 0 | DA98: 0 | DB98: 0 | DC98: 9 | DD98: 4 | DE98: 2 | DF98: 2 | DG98: - | DH98: 2 | DI98: - | DJ98: 3 | DK98: 2 | DL98: - | DM98: - | DN98: - | DO98: - | DP98: 1 | DQ98: - | DR98: 1 | DS98: - | DT98: - | DU98: - | DV98: - | DW98: - | DX98: - | DY98: - | DZ98: - | EA98: 2 | EB98: 62 | EC98: - | ED98: 41 | EE98: 21 | EF98: 4 | EG98: 3 | EH98: 2 | EI98: 1 | EJ98: - | EK98: - | EL98: - | EM98: 1 | EN98: 5 | EO98: 1 | EP98: - | EQ98: 1 | ER98: - | ES98: 2 | ET98: - | EU98: 2
A99: 神奈川県 | B99: 港北区（横浜市） | C99: 港北 | D99: 箕輪 | E99: 5 | F99: 1 | G99: x | H99: x | I99: x | J99: x | K99: x | L99: 4 | M99: x | N99: x | O99: x | P99: x | Q99: x | R99: x | S99: x | T99: x | U99: x | V99: x | W99: x | X99: x | Y99: x | Z99: x | AA99: x | AB99: x | AC99: 41.5 | AD99: 35.0 | AE99: 52.3 | AF99: x | AG99: x | AH99: x | AI99: x | AJ99: x | AK99: x | AL99: x | AM99: x | AN99: x | AO99: x | AP99: x | AQ99: x | AR99: x | AS99: x | AT99: x | AU99: x | AV99: 40.0 | AW99: 30.8 | AX99: 52.3 | AY99: x | AZ99: x | BA99: x | BB99: x | BC99: x | BD99: x | BE99: x | BF99: x | BG99: x | BH99: x | BI99: x | BJ99: x | BK99: x | BL99: x | BM99: x | BN99: x | BO99: 53.0 | BP99: 40.5 | BQ99: 78.0 | BR99: 1 | BS99: - | BT99: - | BU99: - | BV99: - | BW99: - | BX99: - | BY99: - | BZ99: - | CA99: - | CB99: - | CC99: - | CD99: - | CE99: 1 | CF99: - | CG99: - | CH99: 1 | CI99: - | CJ99: - | CK99: - | CL99: - | CM99: - | CN99: - | CO99: - | CP99: - | CQ99: - | CR99: - | CS99: 1 | CT99: - | CU99: - | CV99: 0 | CW99: 0 | CX99: 0 | CY99: 0 | CZ99: 0 | DA99: 0 | DB99: 0 | DC99: 8 | DD99: 4 | DE99: 3 | DF99: 1 | DG99: - | DH99: 1 | DI99: 3 | DJ99: - | DK99: 1 | DL99: - | DM99: - | DN99: - | DO99: - | DP99: - | DQ99: - | DR99: 1 | DS99: - | DT99: - | DU99: - | DV99: - | DW99: - | DX99: - | DY99: - | DZ99: - | EA99: 1 | EB99: 81 | EC99: 30 | ED99: 21 | EE99: 30 | EF99: 5 | EG99: 3 | EH99: 2 | EI99: 1 | EJ99: - | EK99: - | EL99: 2 | EM99: - | EN99: 3 | EO99: 1 | EP99: 1 | EQ99: - | ER99: - | ES99: 1 | ET99: 1 | EU99: -
A100: 神奈川県 | B100: 港北区（横浜市） | C100: 港北 | D100: 日吉本町 | E100: 13 | F100: 4 | G100: 2 | H100: 1 | I100: 1 | J100: 1 | K100: 1 | L100: 9 | M100: 12 | N100: - | O100: - | P100: - | Q100: - | R100: - | S100: 1 | T100: 4 | U100: 2 | V100: - | W100: - | X100: - | Y100: 2 | Z100: 2 | AA100: 1 | AB100: - | AC100: 59.8 | AD100: 61.4 | AE100: 57.6 | AF100: 9 | AG100: - | AH100: - | AI100: - | AJ100: - | AK100: - | AL100: 1 | AM100: 3 | AN100: 1 | AO100: - | AP100: - | AQ100: - | AR100: 2 | AS100: 2 | AT100: - | AU100: - | AV100: 59.3 | AW100: 59.0 | AX100: 59.8 | AY100: 7 | AZ100: - | BA100: - | BB100: - | BC100: - | BD100: - | BE100: - | BF100: 3 | BG100: 1 | BH100: - | BI100: - | BJ100: - | BK100: 2 | BL100: 1 | BM100: - | BN100: - | BO100: 59.3 | BP100: 59.0 | BQ100: 60.0 | BR100: 4 | BS100: - | BT100: - | BU100: - | BV100: - | BW100: - | BX100: - | BY100: - | BZ100: 2 | CA100: - | CB100: - | CC100: - | CD100: 1 | CE100: 1 | CF100: - | CG100: - | CH100: 3 | CI100: - | CJ100: - | CK100: - | CL100: - | CM100: - | CN100: 1 | CO100: - | CP100: - | CQ100: - | CR100: 1 | CS100: 1 | CT100: - | CU100: - | CV100: 0 | CW100: 0 | CX100: 0 | CY100: 0 | CZ100: 0 | DA100: 0 | DB100: 0 | DC100: 20 | DD100: 12 | DE100: 7 | DF100: 2 | DG100: 3 | DH100: 4 | DI100: 4 | DJ100: - | DK100: 4 | DL100: - | DM100: - | DN100: 1 | DO100: - | DP100: - | DQ100: - | DR100: - | DS100: 2 | DT100: 1 | DU100: - | DV100: - | DW100: - | DX100: - | DY100: - | DZ100: - | EA100: 4 | EB100: 157 | EC100: - | ED100: 93 | EE100: 64 | EF100: 10 | EG100: 7 | EH100: 5 | EI100: - | EJ100: 2 | EK100: - | EL100: 3 | EM100: - | EN100: 10 | EO100: 5 | EP100: 2 | EQ100: 2 | ER100: 1 | ES100: 4 | ET100: 1 | EU100: -
A101: 神奈川県 | B101: 港北区（横浜市） | C101: 港北 | D101: 上町 | E101: 8 | F101: 5 | G101: 2 | H101: 2 | I101: 2 | J101: 1 | K101: 1 | L101: 3 | M101: 14 | N101: - | O101: - | P101: - | Q101: 3 | R101: 1 | S101: - | T101: - | U101: 1 | V101: 3 | W101: 1 | X101: - | Y101: 2 | Z101: 2 | AA101: 1 | AB101: - | AC101: 57.1 | AD101: 58.3 | AE101: 55.5 | AF101: 7 | AG101: - | AH101: - | AI101: - | AJ101: - | AK101: 1 | AL101: - | AM101: - | AN101: 1 | AO101: 3 | AP101: - | AQ101: - | AR101: - | AS101: 1 | AT101: 1 | AU101: - | AV101: 59.6 | AW101: 60.0 | AX101: 57.0 | AY101: 6 | AZ101: - | BA101: - | BB101: - | BC101: - | BD101: 1 | BE101: - | BF101: - | BG101: 1 | BH101: 3 | BI101: - | BJ101: - | BK101: - | BL101: 1 | BM101: - | BN101: - | BO101: 56.2 | BP101: 56.0 | BQ101: 57.0 | BR101: 5 | BS101: - | BT101: - | BU101: - | BV101: - | BW101: - | BX101: - | BY101: - | BZ101: - | CA101: 1 | CB101: - | CC101: - | CD101: 1 | CE101: 1 | CF101: 2 | CG101: - | CH101: 4 | CI101: - | CJ101: - | CK101: - | CL101: - | CM101: - | CN101: - | CO101: 1 | CP101: - | CQ101: - | CR101: 1 | CS101: 1 | CT101: 1 | CU101: - | CV101: 0 | CW101: 0 | CX101: 0 | CY101: 0 | CZ101: 0 | DA101: 0 | DB101: 0 | DC101: 18 | DD101: 12 | DE101: 6 | DF101: 3 | DG101: 3 | DH101: 3 | DI101: - | DJ101: 3 | DK101: 4 | DL101: - | DM101: - | DN101: - | DO101: - | DP101: 3 | DQ101: - | DR101: 1 | DS101: - | DT101: - | DU101: - | DV101: - | DW101: - | DX101: - | DY101: - | DZ101: - | EA101: 5 | EB101: 194 | EC101: 10 | ED101: 162 | EE101: 22 | EF101: 9 | EG101: 8 | EH101: 5 | EI101: 1 | EJ101: 2 | EK101: - | EL101: - | EM101: 1 | EN101: 9 | EO101: 4 | EP101: 1 | EQ101: 2 | ER101: 1 | ES101: 3 | ET101: - | EU101: 2
A102: 神奈川県 | B102: 港北区（横浜市） | C102: 港北 | D102: 別所 | E102: 4 | F102: - | G102: - | H102: - | I102: - | J102: - | K102: - | L102: 4 | M102: - | N102: - | O102: - | P102: - | Q102: - | R102: - | S102: - | T102: - | U102: - | V102: - | W102: - | X102: - | Y102: - | Z102: - | AA102: - | AB102: - | AC102: … | AD102: … | AE102: … | AF102: - | AG102: - | AH102: - | AI102: - | AJ102: - | AK102: - | AL102: - | AM102: - | AN102: - | AO102: - | AP102: - | AQ102: - | AR102: - | AS102: - | AT102: - | AU102: - | AV102: … | AW102: … | AX102: … | AY102: - | AZ102: - | BA102: - | BB102: - | BC102: - | BD102: - | BE102: - | BF102: - | BG102: - | BH102: - | BI102: - | BJ102: - | BK102: - | BL102: - | BM102: - | BN102: - | BO102: … | BP102: … | BQ102: … | BR102: - | BS102: - | BT102: - | BU102: - | BV102: - | BW102: - | BX102: - | BY102: - | BZ102: - | CA102: - | CB102: - | CC102: - | CD102: - | CE102: - | CF102: - | CG102: - | CH102: - | CI102: - | CJ102: - | CK102: - | CL102: - | CM102: - | CN102: - | CO102: - | CP102: - | CQ102: - | CR102: - | CS102: - | CT102: - | CU102: - | CV102: 0 | CW102: 0 | CX102: 0 | CY102: 0 | CZ102: 0 | DA102: 0 | DB102: 0 | DC102: - | DD102: - | DE102: - | DF102: - | DG102: - | DH102: - | DI102: - | DJ102: - | DK102: - | DL102: - | DM102: - | DN102: - | DO102: - | DP102: - | DQ102: - | DR102: - | DS102: - | DT102: - | DU102: - | DV102: - | DW102: - | DX102: - | DY102: - | DZ102: - | EA102: - | EB102: - | EC102: - | ED102: - | EE102: - | EF102: - | EG102: - | EH102: - | EI102: - | EJ102: - | EK102: - | EL102: - | EM102: - | EN102: - | EO102: - | EP102: - | EQ102: - | ER102: - | ES102: - | ET102: - | EU102: -
A103: 神奈川県 | B103: 港北区（横浜市） | C103: 港北 | D103: 綱島 | E103: 19 | F103: 8 | G103: 4 | H103: 4 | I103: 3 | J103: 2 | K103: 1 | L103: 11 | M103: 22 | N103: - | O103: - | P103: 1 | Q103: - | R103: - | S103: 2 | T103: 3 | U103: 2 | V103: 3 | W103: 1 | X103: - | Y103: 2 | Z103: 1 | AA103: 6 | AB103: 1 | AC103: 63.1 | AD103: 59.9 | AE103: 67.7 | AF103: 18 | AG103: - | AH103: - | AI103: 1 | AJ103: - | AK103: - | AL103: 1 | AM103: 2 | AN103: 2 | AO103: 3 | AP103: - | AQ103: - | AR103: 2 | AS103: 1 | AT103: 5 | AU103: 1 | AV103: 63.9 | AW103: 60.6 | AX103: 68.1 | AY103: 16 | AZ103: - | BA103: - | BB103: 1 | BC103: - | BD103: - | BE103: 1 | BF103: 1 | BG103: 2 | BH103: 3 | BI103: - | BJ103: - | BK103: 2 | BL103: 1 | BM103: 4 | BN103: 1 | BO103: 64.0 | BP103: 60.6 | BQ103: 69.7 | BR103: 8 | BS103: - | BT103: - | BU103: - | BV103: - | BW103: - | BX103: 1 | BY103: - | BZ103: - | CA103: 2 | CB103: - | CC103: - | CD103: 1 | CE103: - | CF103: 4 | CG103: - | CH103: 5 | CI103: - | CJ103: - | CK103: - | CL103: - | CM103: - | CN103: - | CO103: 1 | CP103: - | CQ103: - | CR103: 1 | CS103: - | CT103: 3 | CU103: - | CV103: 0 | CW103: 0 | CX103: 0 | CY103: 0 | CZ103: 0 | DA103: 0 | DB103: 0 | DC103: 28 | DD103: 20 | DE103: 16 | DF103: 1 | DG103: 3 | DH103: 4 | DI103: 2 | DJ103: 2 | DK103: 8 | DL103: - | DM103: - | DN103: - | DO103: - | DP103: 6 | DQ103: - | DR103: 1 | DS103: 1 | DT103: - | DU103: - | DV103: - | DW103: - | DX103: - | DY103: - | DZ103: - | EA103: 7 | EB103: 265 | EC103: - | ED103: 220 | EE103: 45 | EF103: 14 | EG103: 13 | EH103: 10 | EI103: 1 | EJ103: 2 | EK103: - | EL103: 1 | EM103: - | EN103: 14 | EO103: 7 | EP103: 6 | EQ103: - | ER103: 1 | ES103: 4 | ET103: 1 | EU103: 2
A104: 神奈川県 | B104: 港北区（横浜市） | C104: 港北 | D104: 樽 | E104: 15 | F104: 9 | G104: 2 | H104: 2 | I104: 3 | J104: 1 | K104: 4 | L104: 6 | M104: 23 | N104: - | O104: - | P104: - | Q104: 1 | R104: 1 | S104: 2 | T104: 2 | U104: 2 | V104: - | W104: - | X104: 5 | Y104: 2 | Z104: 6 | AA104: - | AB104: 2 | AC104: 63.7 | AD104: 61.3 | AE104: 66.7 | AF104: 19 | AG104: - | AH104: - | AI104: - | AJ104: 1 | AK104: - | AL104: 1 | AM104: 1 | AN104: 2 | AO104: - | AP104: - | AQ104: 5 | AR104: 2 | AS104: 5 | AT104: - | AU104: 2 | AV104: 66.6 | AW104: 67.3 | AX104: 65.8 | AY104: 13 | AZ104: - | BA104: - | BB104: - | BC104: - | BD104: - | BE104: - | BF104: 1 | BG104: 2 | BH104: - | BI104: - | BJ104: 3 | BK104: 2 | BL104: 3 | BM104: - | BN104: 2 | BO104: 69.6 | BP104: 67.3 | BQ104: 77.3 | BR104: 9 | BS104: - | BT104: - | BU104: - | BV104: - | BW104: - | BX104: 1 | BY104: - | BZ104: 1 | CA104: - | CB104: - | CC104: 2 | CD104: 2 | CE104: 2 | CF104: - | CG104: 1 | CH104: 4 | CI104: - | CJ104: - | CK104: - | CL104: - | CM104: - | CN104: - | CO104: - | CP104: - | CQ104: 1 | CR104: 1 | CS104: 2 | CT104: - | CU104: - | CV104: 0 | CW104: 0 | CX104: 0 | CY104: 0 | CZ104: 0 | DA104: 0 | DB104: 0 | DC104: 29 | DD104: 18 | DE104: 13 | DF104: 4 | DG104: 1 | DH104: 9 | DI104: 2 | DJ104: - | DK104: 9 | DL104: - | DM104: - | DN104: - | DO104: - | DP104: 9 | DQ104: - | DR104: - | DS104: - | DT104: - | DU104: - | DV104: - | DW104: - | DX104: - | DY104: - | DZ104: - | EA104: 9 | EB104: 275 | EC104: 18 | ED104: 257 | EE104: - | EF104: 15 | EG104: 13 | EH104: 10 | EI104: 2 | EJ104: 1 | EK104: - | EL104: 2 | EM104: - | EN104: 14 | EO104: 5 | EP104: 3 | EQ104: 2 | ER104: - | ES104: 9 | ET104: - | EU104: -
A105: 神奈川県 | B105: 港北区（横浜市） | C105: 港北 | D105: 大曽根 | E105: 1 | F105: - | G105: - | H105: - | I105: - | J105: - | K105: - | L105: 1 | M105: - | N105: - | O105: - | P105: - | Q105: - | R105: - | S105: - | T105: - | U105: - | V105: - | W105: - | X105: - | Y105: - | Z105: - | AA105: - | AB105: - | AC105: … | AD105: … | AE105: … | AF105: - | AG105: - | AH105: - | AI105: - | AJ105: - | AK105: - | AL105: - | AM105: - | AN105: - | AO105: - | AP105: - | AQ105: - | AR105: - | AS105: - | AT105: - | AU105: - | AV105: … | AW105: … | AX105: … | AY105: - | AZ105: - | BA105: - | BB105: - | BC105: - | BD105: - | BE105: - | BF105: - | BG105: - | BH105: - | BI105: - | BJ105: - | BK105: - | BL105: - | BM105: - | BN105: - | BO105: … | BP105: … | BQ105: … | BR105: - | BS105: - | BT105: - | BU105: - | BV105: - | BW105: - | BX105: - | BY105: - | BZ105: - | CA105: - | CB105: - | CC105: - | CD105: - | CE105: - | CF105: - | CG105: - | CH105: - | CI105: - | CJ105: - | CK105: - | CL105: - | CM105: - | CN105: - | CO105: - | CP105: - | CQ105: - | CR105: - | CS105: - | CT105: - | CU105: - | CV105: 0 | CW105: 0 | CX105: 0 | CY105: 0 | CZ105: 0 | DA105: 0 | DB105: 0 | DC105: - | DD105: - | DE105: - | DF105: - | DG105: - | DH105: - | DI105: - | DJ105: - | DK105: - | DL105: - | DM105: - | DN105: - | DO105: - | DP105: - | DQ105: - | DR105: - | DS105: - | DT105: - | DU105: - | DV105: - | DW105: - | DX105: - | DY105: - | DZ105: - | EA105: - | EB105: - | EC105: - | ED105: - | EE105: - | EF105: - | EG105: - | EH105: - | EI105: - | EJ105: - | EK105: - | EL105: - | EM105: - | EN105: - | EO105: - | EP105: - | EQ105: - | ER105: - | ES105: - | ET105: - | EU105: -
A106: 神奈川県 | B106: 港北区（横浜市） | C106: 港北 | D106: 太尾 | E106: 11 | F106: 7 | G106: 2 | H106: 2 | I106: 4 | J106: 4 | K106: 1 | L106: 4 | M106: 24 | N106: 1 | O106: 3 | P106: 1 | Q106: - | R106: - | S106: 1 | T106: - | U106: 4 | V106: 5 | W106: 1 | X106: 2 | Y106: 1 | Z106: 2 | AA106: 3 | AB106: - | AC106: 55.2 | AD106: 57.5 | AE106: 53.2 | AF106: 19 | AG106: - | AH106: 2 | AI106: - | AJ106: - | AK106: - | AL106: 1 | AM106: - | AN106: 4 | AO106: 4 | AP106: 1 | AQ106: 2 | AR106: 1 | AS106: 2 | AT106: 2 | AU106: - | AV106: 58.8 | AW106: 58.4 | AX106: 59.1 | AY106: 16 | AZ106: - | BA106: 2 | BB106: - | BC106: - | BD106: - | BE106: 1 | BF106: - | BG106: 3 | BH106: 4 | BI106: 1 | BJ106: 1 | BK106: - | BL106: 2 | BM106: 2 | BN106: - | BO106: 57.8 | BP106: 58.4 | BQ106: 56.9 | BR106: 7 | BS106: - | BT106: - | BU106: - | BV106: - | BW106: - | BX106: - | BY106: - | BZ106: - | CA106: 2 | CB106: 1 | CC106: 1 | CD106: - | CE106: 2 | CF106: 1 | CG106: - | CH106: 6 | CI106: - | CJ106: - | CK106: - | CL106: - | CM106: - | CN106: - | CO106: 2 | CP106: - | CQ106: 1 | CR106: - | CS106: 2 | CT106: 1 | CU106: - | CV106: 0 | CW106: 0 | CX106: 0 | CY106: 0 | CZ106: 0 | DA106: 0 | DB106: 0 | DC106: 32 | DD106: 23 | DE106: 16 | DF106: 5 | DG106: 2 | DH106: 5 | DI106: 4 | DJ106: - | DK106: 6 | DL106: - | DM106: - | DN106: - | DO106: - | DP106: 4 | DQ106: 1 | DR106: 1 | DS106: - | DT106: - | DU106: - | DV106: - | DW106: - | DX106: - | DY106: - | DZ106: - | EA106: 7 | EB106: 269 | EC106: 15 | ED106: 232 | EE106: 22 | EF106: 15 | EG106: 14 | EH106: 9 | EI106: 3 | EJ106: 2 | EK106: - | EL106: 1 | EM106: - | EN106: 17 | EO106: 9 | EP106: 7 | EQ106: 2 | ER106: - | ES106: 5 | ET106: 3 | EU106: -
A107: 神奈川県 | B107: 港北区（横浜市） | C107: 港北 | D107: 師岡 | E107: 11 | F107: 9 | G107: 3 | H107: 3 | I107: 2 | J107: 2 | K107: 4 | L107: 2 | M107: 22 | N107: - | O107: - | P107: - | Q107: - | R107: 1 | S107: 1 | T107: 3 | U107: 2 | V107: 1 | W107: 2 | X107: 2 | Y107: 2 | Z107: 5 | AA107: 3 | AB107: - | AC107: 64.2 | AD107: 63.1 | AE107: 65.6 | AF107: 20 | AG107: - | AH107: - | AI107: - | AJ107: - | AK107: - | AL107: 1 | AM107: 3 | AN107: 2 | AO107: 1 | AP107: 1 | AQ107: 2 | AR107: 2 | AS107: 5 | AT107: 3 | AU107: - | AV107: 65.8 | AW107: 66.0 | AX107: 65.6 | AY107: 16 | AZ107: - | BA107: - | BB107: - | BC107: - | BD107: - | BE107: - | BF107: 3 | BG107: 1 | BH107: 1 | BI107: 1 | BJ107: 2 | BK107: 2 | BL107: 3 | BM107: 3 | BN107: - | BO107: 66.6 | BP107: 66.0 | BQ107: 67.5 | BR107: 9 | BS107: - | BT107: - | BU107: - | BV107: - | BW107: - | BX107: - | BY107: 1 | BZ107: 1 | CA107: - | CB107: 1 | CC107: 1 | CD107: 1 | CE107: 2 | CF107: 2 | CG107: - | CH107: 5 | CI107: - | CJ107: - | CK107: - | CL107: - | CM107: - | CN107: - | CO107: - | CP107: 1 | CQ107: 1 | CR107: - | CS107: 2 | CT107: 1 | CU107: - | CV107: 0 | CW107: 0 | CX107: 0 | CY107: 0 | CZ107: 0 | DA107: 0 | DB107: 0 | DC107: 35 | DD107: 22 | DE107: 16 | DF107: 4 | DG107: 2 | DH107: 5 | DI107: 4 | DJ107: 4 | DK107: 8 | DL107: - | DM107: - | DN107: - | DO107: - | DP107: 6 | DQ107: 1 | DR107: - | DS107: 1 | DT107: - | DU107: - | DV107: - | DW107: - | DX107: - | DY107: - | DZ107: - | EA107: 9 | EB107: 418 | EC107: - | ED107: 406 | EE107: 12 | EF107: 15 | EG107: 13 | EH107: 10 | EI107: 1 | EJ107: 2 | EK107: - | EL107: 2 | EM107: - | EN107: 20 | EO107: 9 | EP107: 6 | EQ107: 3 | ER107: - | ES107: 5 | ET107: 2 | EU107: 4
A108: 神奈川県 | B108: 港北区（横浜市） | C108: 港北 | D108: 菊名 | E108: 3 | F108: 3 | G108: 2 | H108: 2 | I108: - | J108: - | K108: 1 | L108: - | M108: 9 | N108: - | O108: - | P108: 1 | Q108: - | R108: 1 | S108: - | T108: - | U108: 1 | V108: 1 | W108: 2 | X108: 1 | Y108: 1 | Z108: 1 | AA108: - | AB108: - | AC108: 56.2 | AD108: 55.3 | AE108: 57.0 | AF108: 8 | AG108: - | AH108: - | AI108: 1 | AJ108: - | AK108: - | AL108: - | AM108: - | AN108: 1 | AO108: 1 | AP108: 2 | AQ108: 1 | AR108: 1 | AS108: 1 | AT108: - | AU108: - | AV108: 58.9 | AW108: 62.0 | AX108: 57.0 | AY108: 7 | AZ108: - | BA108: - | BB108: 1 | BC108: - | BD108: - | BE108: - | BF108: - | BG108: 1 | BH108: 1 | BI108: 2 | BJ108: - | BK108: 1 | BL108: 1 | BM108: - | BN108: - | BO108: 57.4 | BP108: 62.0 | BQ108: 54.0 | BR108: 3 | BS108: - | BT108: - | BU108: - | BV108: - | BW108: - | BX108: - | BY108: - | BZ108: - | CA108: 1 | CB108: 1 | CC108: - | CD108: 1 | CE108: - | CF108: - | CG108: - | CH108: 2 | CI108: - | CJ108: - | CK108: - | CL108: - | CM108: - | CN108: - | CO108: 1 | CP108: - | CQ108: - | CR108: 1 | CS108: - | CT108: - | CU108: - | CV108: 0 | CW108: 0 | CX108: 0 | CY108: 0 | CZ108: 0 | DA108: 0 | DB108: 0 | DC108: 10 | DD108: 9 | DE108: 7 | DF108: 2 | DG108: - | DH108: 1 | DI108: - | DJ108: - | DK108: 3 | DL108: - | DM108: - | DN108: - | DO108: - | DP108: 2 | DQ108: 1 | DR108: - | DS108: - | DT108: - | DU108: - | DV108: - | DW108: - | DX108: - | DY108: - | DZ108: - | EA108: 3 | EB108: 189 | EC108: - | ED108: 188 | EE108: 1 | EF108: 5 | EG108: 5 | EH108: 3 | EI108: 2 | EJ108: - | EK108: - | EL108: - | EM108: - | EN108: 5 | EO108: 4 | EP108: 4 | EQ108: - | ER108: - | ES108: 1 | ET108: - | EU108: -
A109: 神奈川県 | B109: 港北区（横浜市） | C109: 港北 | D109: 大豆戸 | E109: 5 | F109: 2 | G109: x | H109: x | I109: x | J109: x | K109: x | L109: 3 | M109: x | N109: x | O109: x | P109: x | Q109: x | R109: x | S109: x | T109: x | U109: x | V109: x | W109: x | X109: x | Y109: x | Z109: x | AA109: x | AB109: x | AC109: 59.5 | AD109: 55.0 | AE109: 73.0 | AF109: x | AG109: x | AH109: x | AI109: x | AJ109: x | AK109: x | AL109: x | AM109: x | AN109: x | AO109: x | AP109: x | AQ109: x | AR109: x | AS109: x | AT109: x | AU109: x | AV109: 59.5 | AW109: 55.0 | AX109: 73.0 | AY109: x | AZ109: x | BA109: x | BB109: x | BC109: x | BD109: x | BE109: x | BF109: x | BG109: x | BH109: x | BI109: x | BJ109: x | BK109: x | BL109: x | BM109: x | BN109: x | BO109: 59.5 | BP109: 55.0 | BQ109: 73.0 | BR109: 2 | BS109: - | BT109: - | BU109: - | BV109: - | BW109: - | BX109: - | BY109: - | BZ109: - | CA109: - | CB109: 1 | CC109: - | CD109: - | CE109: 1 | CF109: - | CG109: - | CH109: - | CI109: - | CJ109: - | CK109: - | CL109: - | CM109: - | CN109: - | CO109: - | CP109: - | CQ109: - | CR109: - | CS109: - | CT109: - | CU109: - | CV109: 0 | CW109: 0 | CX109: 0 | CY109: 0 | CZ109: 0 | DA109: 0 | DB109: 0 | DC109: 4 | DD109: 4 | DE109: 4 | DF109: - | DG109: - | DH109: - | DI109: - | DJ109: - | DK109: 2 | DL109: - | DM109: - | DN109: - | DO109: - | DP109: 2 | DQ109: - | DR109: - | DS109: - | DT109: - | DU109: - | DV109: - | DW109: - | DX109: - | DY109: - | DZ109: - | EA109: 2 | EB109: 83 | EC109: - | ED109: 83 | EE109: - | EF109: 3 | EG109: 3 | EH109: 3 | EI109: - | EJ109: - | EK109: - | EL109: - | EM109: - | EN109: 1 | EO109: 1 | EP109: 1 | EQ109: - | ER109: - | ES109: - | ET109: - | EU109: -
A110: 神奈川県 | B110: 港北区（横浜市） | C110: 港北 | D110: 表谷 | E110: 3 | F110: - | G110: - | H110: - | I110: - | J110: - | K110: - | L110: 3 | M110: - | N110: - | O110: - | P110: - | Q110: - | R110: - | S110: - | T110: - | U110: - | V110: - | W110: - | X110: - | Y110: - | Z110: - | AA110: - | AB110: - | AC110: … | AD110: … | AE110: … | AF110: - | AG110: - | AH110: - | AI110: - | AJ110: - | AK110: - | AL110: - | AM110: - | AN110: - | AO110: - | AP110: - | AQ110: - | AR110: - | AS110: - | AT110: - | AU110: - | AV110: … | AW110: … | AX110: … | AY110: - | AZ110: - | BA110: - | BB110: - | BC110: - | BD110: - | BE110: - | BF110: - | BG110: - | BH110: - | BI110: - | BJ110: - | BK110: - | BL110: - | BM110: - | BN110: - | BO110: … | BP110: … | BQ110: … | BR110: - | BS110: - | BT110: - | BU110: - | BV110: - | BW110: - | BX110: - | BY110: - | BZ110: - | CA110: - | CB110: - | CC110: - | CD110: - | CE110: - | CF110: - | CG110: - | CH110: - | CI110: - | CJ110: - | CK110: - | CL110: - | CM110: - | CN110: - | CO110: - | CP110: - | CQ110: - | CR110: - | CS110: - | CT110: - | CU110: - | CV110: 0 | CW110: 0 | CX110: 0 | CY110: 0 | CZ110: 0 | DA110: 0 | DB110: 0 | DC110: - | DD110: - | DE110: - | DF110: - | DG110: - | DH110: - | DI110: - | DJ110: - | DK110: - | DL110: - | DM110: - | DN110: - | DO110: - | DP110: - | DQ110: - | DR110: - | DS110: - | DT110: - | DU110: - | DV110: - | DW110: - | DX110: - | DY110: - | DZ110: - | EA110: - | EB110: - | EC110: - | ED110: - | EE110: - | EF110: - | EG110: - | EH110: - | EI110: - | EJ110: - | EK110: - | EL110: - | EM110: - | EN110: - | EO110: - | EP110: - | EQ110: - | ER110: - | ES110: - | ET110: - | EU110: -
A111: 神奈川県 | B111: 港北区（横浜市） | C111: 港北 | D111: 篠原 | E111: 7 | F111: - | G111: - | H111: - | I111: - | J111: - | K111: - | L111: 7 | M111: - | N111: - | O111: - | P111: - | Q111: - | R111: - | S111: - | T111: - | U111: - | V111: - | W111: - | X111: - | Y111: - | Z111: - | AA111: - | AB111: - | AC111: … | AD111: … | AE111: … | AF111: - | AG111: - | AH111: - | AI111: - | AJ111: - | AK111: - | AL111: - | AM111: - | AN111: - | AO111: - | AP111: - | AQ111: - | AR111: - | AS111: - | AT111: - | AU111: - | AV111: … | AW111: … | AX111: … | AY111: - | AZ111: - | BA111: - | BB111: - | BC111: - | BD111: - | BE111: - | BF111: - | BG111: - | BH111: - | BI111: - | BJ111: - | BK111: - | BL111: - | BM111: - | BN111: - | BO111: … | BP111: … | BQ111: … | BR111: - | BS111: - | BT111: - | BU111: - | BV111: - | BW111: - | BX111: - | BY111: - | BZ111: - | CA111: - | CB111: - | CC111: - | CD111: - | CE111: - | CF111: - | CG111: - | CH111: - | CI111: - | CJ111: - | CK111: - | CL111: - | CM111: - | CN111: - | CO111: - | CP111: - | CQ111: - | CR111: - | CS111: - | CT111: - | CU111: - | CV111: 0 | CW111: 0 | CX111: 0 | CY111: 0 | CZ111: 0 | DA111: 0 | DB111: 0 | DC111: - | DD111: - | DE111: - | DF111: - | DG111: - | DH111: - | DI111: - | DJ111: - | DK111: - | DL111: - | DM111: - | DN111: - | DO111: - | DP111: - | DQ111: - | DR111: - | DS111: - | DT111: - | DU111: - | DV111: - | DW111: - | DX111: - | DY111: - | DZ111: - | EA111: - | EB111: - | EC111: - | ED111: - | EE111: - | EF111: - | EG111: - | EH111: - | EI111: - | EJ111: - | EK111: - | EL111: - | EM111: - | EN111: - | EO111: - | EP111: - | EQ111: - | ER111: - | ES111: - | ET111: - | EU111: -
A112: 神奈川県 | B112: 港北区（横浜市） | C112: 港北 | D112: 更生 | E112: 6 | F112: 2 | G112: x | H112: x | I112: x | J112: x | K112: x | L112: 4 | M112: x | N112: x | O112: x | P112: x | Q112: x | R112: x | S112: x | T112: x | U112: x | V112: x | W112: x | X112: x | Y112: x | Z112: x | AA112: x | AB112: x | AC112: 64.2 | AD112: 62.5 | AE112: 65.3 | AF112: x | AG112: x | AH112: x | AI112: x | AJ112: x | AK112: x | AL112: x | AM112: x | AN112: x | AO112: x | AP112: x | AQ112: x | AR112: x | AS112: x | AT112: x | AU112: x | AV112: 75.5 | AW112: 71.0 | AX112: 80.0 | AY112: x | AZ112: x | BA112: x | BB112: x | BC112: x | BD112: x | BE112: x | BF112: x | BG112: x | BH112: x | BI112: x | BJ112: x | BK112: x | BL112: x | BM112: x | BN112: x | BO112: 75.5 | BP112: 71.0 | BQ112: 80.0 | BR112: 2 | BS112: - | BT112: - | BU112: - | BV112: - | BW112: - | BX112: - | BY112: - | BZ112: - | CA112: - | CB112: - | CC112: - | CD112: 1 | CE112: - | CF112: 1 | CG112: - | CH112: 1 | CI112: - | CJ112: - | CK112: - | CL112: - | CM112: - | CN112: - | CO112: - | CP112: - | CQ112: - | CR112: - | CS112: - | CT112: 1 | CU112: - | CV112: 0 | CW112: 0 | CX112: 0 | CY112: 0 | CZ112: 0 | DA112: 0 | DB112: 0 | DC112: 8 | DD112: 6 | DE112: 2 | DF112: 3 | DG112: 1 | DH112: 1 | DI112: 1 | DJ112: - | DK112: 2 | DL112: - | DM112: - | DN112: 1 | DO112: - | DP112: 1 | DQ112: - | DR112: - | DS112: - | DT112: - | DU112: - | DV112: - | DW112: - | DX112: - | DY112: - | DZ112: - | EA112: 2 | EB112: 91 | EC112: - | ED112: 91 | EE112: - | EF112: 3 | EG112: 3 | EH112: 1 | EI112: 2 | EJ112: - | EK112: - | EL112: - | EM112: - | EN112: 5 | EO112: 3 | EP112: 1 | EQ112: 1 | ER112: 1 | ES112: 1 | ET112: 1 | EU112: -
A113: 神奈川県 | B113: 港北区（横浜市） | C113: 港北 | D113: 岸根 | E113: 6 | F113: 1 | G113: x | H113: x | I113: x | J113: x | K113: x | L113: 5 | M113: x | N113: x | O113: x | P113: x | Q113: x | R113: x | S113: x | T113: x | U113: x | V113: x | W113: x | X113: x | Y113: x | Z113: x | AA113: x | AB113: x | AC113: 65.5 | AD113: 66.0 | AE113: 65.0 | AF113: x | AG113: x | AH113: x | AI113: x | AJ113: x | AK113: x | AL113: x | AM113: x | AN113: x | AO113: x | AP113: x | AQ113: x | AR113: x | AS113: x | AT113: x | AU113: x | AV113: … | AW113: … | AX113: … | AY113: x | AZ113: x | BA113: x | BB113: x | BC113: x | BD113: x | BE113: x | BF113: x | BG113: x | BH113: x | BI113: x | BJ113: x | BK113: x | BL113: x | BM113: x | BN113: x | BO113: … | BP113: … | BQ113: … | BR113: 1 | BS113: - | BT113: - | BU113: - | BV113: - | BW113: - | BX113: - | BY113: - | BZ113: - | CA113: - | CB113: - | CC113: 1 | CD113: - | CE113: - | CF113: - | CG113: - | CH113: 1 | CI113: - | CJ113: - | CK113: - | CL113: - | CM113: - | CN113: - | CO113: - | CP113: - | CQ113: 1 | CR113: - | CS113: - | CT113: - | CU113: - | CV113: 0 | CW113: 0 | CX113: 0 | CY113: 0 | CZ113: 0 | DA113: 0 | DB113: 0 | DC113: 2 | DD113: - | DE113: - | DF113: - | DG113: - | DH113: - | DI113: - | DJ113: 2 | DK113: - | DL113: - | DM113: - | DN113: - | DO113: - | DP113: - | DQ113: - | DR113: - | DS113: - | DT113: - | DU113: - | DV113: - | DW113: - | DX113: - | DY113: - | DZ113: - | EA113: 1 | EB113: 56 | EC113: - | ED113: 30 | EE113: 26 | EF113: 1 | EG113: - | EH113: - | EI113: - | EJ113: - | EK113: - | EL113: - | EM113: 1 | EN113: 1 | EO113: - | EP113: - | EQ113: - | ER113: - | ES113: - | ET113: - | EU113: 1
A114: 神奈川県 | B114: 港北区（横浜市） | C114: 港北 | D114: 鳥山 | E114: 22 | F114: 10 | G114: 3 | H114: 3 | I114: 3 | J114: 2 | K114: 4 | L114: 12 | M114: 34 | N114: 1 | O114: 1 | P114: 2 | Q114: 2 | R114: 3 | S114: 1 | T114: 2 | U114: 3 | V114: - | W114: 6 | X114: 2 | Y114: 2 | Z114: 2 | AA114: - | AB114: 7 | AC114: 58.5 | AD114: 55.1 | AE114: 62.8 | AF114: 30 | AG114: 1 | AH114: 1 | AI114: 2 | AJ114: 2 | AK114: 3 | AL114: 1 | AM114: 1 | AN114: 1 | AO114: - | AP114: 6 | AQ114: 1 | AR114: 2 | AS114: 2 | AT114: - | AU114: 7 | AV114: 59.0 | AW114: 55.4 | AX114: 63.8 | AY114: 21 | AZ114: - | BA114: - | BB114: 2 | BC114: 2 | BD114: 1 | BE114: - | BF114: 1 | BG114: - | BH114: - | BI114: 6 | BJ114: 1 | BK114: 2 | BL114: 1 | BM114: - | BN114: 5 | BO114: 62.6 | BP114: 56.2 | BQ114: 73.0 | BR114: 10 | BS114: - | BT114: - | BU114: - | BV114: - | BW114: 1 | BX114: - | BY114: 1 | BZ114: - | CA114: - | CB114: 2 | CC114: - | CD114: 1 | CE114: 1 | CF114: - | CG114: 4 | CH114: 6 | CI114: - | CJ114: - | CK114: - | CL114: - | CM114: - | CN114: - | CO114: - | CP114: 2 | CQ114: - | CR114: 1 | CS114: - | CT114: - | CU114: 3 | CV114: 0 | CW114: 0 | CX114: 0 | CY114: 0 | CZ114: 0 | DA114: 0 | DB114: 0 | DC114: 39 | DD114: 28 | DE114: 21 | DF114: 5 | DG114: 2 | DH114: 6 | DI114: 3 | DJ114: 2 | DK114: 8 | DL114: - | DM114: - | DN114: - | DO114: - | DP114: 6 | DQ114: 1 | DR114: - | DS114: 1 | DT114: - | DU114: - | DV114: - | DW114: - | DX114: - | DY114: - | DZ114: - | EA114: 10 | EB114: 682 | EC114: 35 | ED114: 647 | EE114: - | EF114: 20 | EG114: 16 | EH114: 13 | EI114: 3 | EJ114: - | EK114: - | EL114: 2 | EM114: 2 | EN114: 19 | EO114: 12 | EP114: 8 | EQ114: 2 | ER114: 2 | ES114: 6 | ET114: 1 | EU114: -
A115: 神奈川県 | B115: 港北区（横浜市） | C115: 港北 | D115: 小机 | E115: 66 | F115: 34 | G115: 24 | H115: 24 | I115: 6 | J115: 5 | K115: 4 | L115: 32 | M115: 115 | N115: - | O115: 5 | P115: 6 | Q115: 3 | R115: 10 | S115: 7 | T115: 11 | U115: 4 | V115: 7 | W115: 17 | X115: 9 | Y115: 12 | Z115: 13 | AA115: 4 | AB115: 7 | AC115: 57.7 | AD115: 57.9 | AE115: 57.6 | AF115: 107 | AG115: - | AH115: 3 | AI115: 4 | AJ115: 3 | AK115: 10 | AL115: 5 | AM115: 11 | AN115: 4 | AO115: 7 | AP115: 16 | AQ115: 9 | AR115: 11 | AS115: 13 | AT115: 4 | AU115: 7 | AV115: 59.0 | AW115: 58.4 | AX115: 59.7 | AY115: 86 | AZ115: - | BA115: - | BB115: 2 | BC115: 3 | BD115: 8 | BE115: 3 | BF115: 8 | BG115: 3 | BH115: 7 | BI115: 16 | BJ115: 9 | BK115: 9 | BL115: 13 | BM115: 3 | BN115: 2 | BO115: 60.1 | BP115: 57.8 | BQ115: 63.4 | BR115: 34 | BS115: - | BT115: - | BU115: - | BV115: - | BW115: 1 | BX115: - | BY115: 3 | BZ115: - | CA115: 2 | CB115: 8 | CC115: 6 | CD115: 3 | CE115: 5 | CF115: 4 | CG115: 2 | CH115: 26 | CI115: - | CJ115: - | CK115: - | CL115: - | CM115: 1 | CN115: - | CO115: 2 | CP115: 4 | CQ115: 6 | CR115: 2 | CS115: 5 | CT115: 4 | CU115: 2 | CV115: 0 | CW115: 0 | CX115: 0 | CY115: 0 | CZ115: 0 | DA115: 0 | DB115: 0 | DC115: 148 | DD115: 99 | DE115: 86 | DF115: 12 | DG115: 1 | DH115: 21 | DI115: 16 | DJ115: 12 | DK115: 33 | DL115: 1 | DM115: - | DN115: - | DO115: - | DP115: 25 | DQ115: 6 | DR115: - | DS115: 1 | DT115: - | DU115: - | DV115: - | DW115: - | DX115: - | DY115: - | DZ115: - | EA115: 34 | EB115: 2,849 | EC115: 346 | ED115: 2,452 | EE115: 51 | EF115: 72 | EG115: 58 | EH115: 51 | EI115: 6 | EJ115: 1 | EK115: - | EL115: 9 | EM115: 5 | EN115: 76 | EO115: 41 | EP115: 35 | EQ115: 6 | ER115: - | ES115: 21 | ET115: 7 | EU115: 7
A116: 神奈川県 | B116: 港北区（横浜市） | C116: 新田村２－１ | E116: 226 | F116: 148 | G116: 74 | H116: 73 | I116: 41 | J116: 35 | K116: 33 | L116: 78 | M116: 458 | N116: 7 | O116: 8 | P116: 9 | Q116: 10 | R116: 26 | S116: 45 | T116: 37 | U116: 37 | V116: 45 | W116: 49 | X116: 49 | Y116: 40 | Z116: 41 | AA116: 34 | AB116: 21 | AC116: 58.7 | AD116: 57.8 | AE116: 59.8 | AF116: 386 | AG116: 1 | AH116: 4 | AI116: 4 | AJ116: 5 | AK116: 19 | AL116: 36 | AM116: 27 | AN116: 30 | AO116: 40 | AP116: 44 | AQ116: 45 | AR116: 37 | AS116: 40 | AT116: 34 | AU116: 20 | AV116: 61.5 | AW116: 60.7 | AX116: 62.3 | AY116: 322 | AZ116: - | BA116: 1 | BB116: 4 | BC116: 4 | BD116: 13 | BE116: 22 | BF116: 20 | BG116: 26 | BH116: 34 | BI116: 41 | BJ116: 43 | BK116: 33 | BL116: 33 | BM116: 32 | BN116: 16 | BO116: 62.9 | BP116: 61.4 | BQ116: 65.3 | BR116: 148 | BS116: - | BT116: - | BU116: - | BV116: 1 | BW116: 1 | BX116: 6 | BY116: 7 | BZ116: 6 | CA116: 13 | CB116: 24 | CC116: 18 | CD116: 20 | CE116: 21 | CF116: 24 | CG116: 7 | CH116: 99 | CI116: - | CJ116: - | CK116: - | CL116: - | CM116: 2 | CN116: 3 | CO116: 9 | CP116: 16 | CQ116: 14 | CR116: 14 | CS116: 16 | CT116: 18 | CU116: 7 | CV116: 0 | CW116: 0 | CX116: 0 | CY116: 0 | CZ116: 0 | DA116: 0 | DB116: 0 | DC116: 611 | DD116: 423 | DE116: 322 | DF116: 91 | DG116: 10 | DH116: 87 | DI116: 48 | DJ116: 53 | DK116: 136 | DL116: - | DM116: - | DN116: 2 | DO116: - | DP116: 79 | DQ116: 3 | DR116: 24 | DS116: 24 | DT116: 4 | DU116: - | DV116: - | DW116: - | DX116: - | DY116: - | DZ116: - | EA116: 147 | EB116: 10,284 | EC116: 308 | ED116: 7,801 | EE116: 2,175 | EF116: 294 | EG116: 249 | EH116: 197 | EI116: 46 | EJ116: 6 | EK116: 1 | EL116: 25 | EM116: 19 | EN116: 317 | EO116: 174 | EP116: 125 | EQ116: 45 | ER116: 4 | ES116: 86 | ET116: 23 | EU116: 34
A117: 神奈川県 | B117: 港北区（横浜市） | C117: 新田村２－１ | D117: 第一生産班 | E117: 17 | F117: 11 | G117: 8 | H117: 8 | I117: 2 | J117: 2 | K117: 1 | L117: 6 | M117: 35 | N117: - | O117: 1 | P117: 2 | Q117: - | R117: 2 | S117: 5 | T117: 3 | U117: 4 | V117: 6 | W117: - | X117: 5 | Y117: 1 | Z117: 4 | AA117: 1 | AB117: 1 | AC117: 55.1 | AD117: 53.6 | AE117: 56.8 | AF117: 34 | AG117: - | AH117: 1 | AI117: 2 | AJ117: - | AK117: 2 | AL117: 5 | AM117: 2 | AN117: 4 | AO117: 6 | AP117: - | AQ117: 5 | AR117: 1 | AS117: 4 | AT117: 1 | AU117: 1 | AV117: 55.4 | AW117: 54.1 | AX117: 56.8 | AY117: 27 | AZ117: - | BA117: - | BB117: 2 | BC117: - | BD117: 1 | BE117: 2 | BF117: 2 | BG117: 2 | BH117: 6 | BI117: - | BJ117: 5 | BK117: 1 | BL117: 4 | BM117: 1 | BN117: 1 | BO117: 59.0 | BP117: 55.9 | BQ117: 63.5 | BR117: 11 | BS117: - | BT117: - | BU117: - | BV117: - | BW117: 1 | BX117: 1 | BY117: 1 | BZ117: - | CA117: 3 | CB117: - | CC117: 1 | CD117: 1 | CE117: 2 | CF117: - | CG117: 1 | CH117: 5 | CI117: - | CJ117: - | CK117: - | CL117: - | CM117: - | CN117: - | CO117: 2 | CP117: - | CQ117: - | CR117: - | CS117: 2 | CT117: - | CU117: 1 | CV117: 0 | CW117: 0 | CX117: 0 | CY117: 0 | CZ117: 0 | DA117: 0 | DB117: 0 | DC117: 51 | DD117: 31 | DE117: 27 | DF117: 2 | DG117: 2 | DH117: 6 | DI117: 7 | DJ117: 7 | DK117: 11 | DL117: - | DM117: - | DN117: - | DO117: - | DP117: 4 | DQ117: - | DR117: 1 | DS117: 6 | DT117: - | DU117: - | DV117: - | DW117: - | DX117: - | DY117: - | DZ117: - | EA117: 10 | EB117: 614 | EC117: - | ED117: 529 | EE117: 85 | EF117: 21 | EG117: 17 | EH117: 16 | EI117: - | EJ117: 1 | EK117: - | EL117: 1 | EM117: 3 | EN117: 30 | EO117: 14 | EP117: 11 | EQ117: 2 | ER117: 1 | ES117: 6 | ET117: 6 | EU117: 4
A118: 神奈川県 | B118: 港北区（横浜市） | C118: 新田村２－１ | D118: 第二生産班 | E118: 12 | F118: 5 | G118: 3 | H118: 3 | I118: 1 | J118: 1 | K118: 1 | L118: 7 | M118: 15 | N118: - | O118: - | P118: 1 | Q118: - | R118: 1 | S118: 1 | T118: - | U118: 2 | V118: 2 | W118: 3 | X118: 1 | Y118: 1 | Z118: - | AA118: 2 | AB118: 1 | AC118: 59.5 | AD118: 63.1 | AE118: 55.3 | AF118: 13 | AG118: - | AH118: - | AI118: - | AJ118: - | AK118: 1 | AL118: - | AM118: - | AN118: 2 | AO118: 2 | AP118: 3 | AQ118: 1 | AR118: 1 | AS118: - | AT118: 2 | AU118: 1 | AV118: 63.6 | AW118: 66.4 | AX118: 60.3 | AY118: 10 | AZ118: - | BA118: - | BB118: - | BC118: - | BD118: - | BE118: - | BF118: - | BG118: 2 | BH118: 1 | BI118: 3 | BJ118: 1 | BK118: - | BL118: - | BM118: 2 | BN118: 1 | BO118: 66.6 | BP118: 65.7 | BQ118: 68.0 | BR118: 5 | BS118: - | BT118: - | BU118: - | BV118: - | BW118: - | BX118: - | BY118: - | BZ118: 1 | CA118: - | CB118: 1 | CC118: - | CD118: 1 | CE118: - | CF118: 2 | CG118: - | CH118: 3 | CI118: - | CJ118: - | CK118: - | CL118: - | CM118: - | CN118: 1 | CO118: - | CP118: - | CQ118: - | CR118: 1 | CS118: - | CT118: 1 | CU118: - | CV118: 0 | CW118: 0 | CX118: 0 | CY118: 0 | CZ118: 0 | DA118: 0 | DB118: 0 | DC118: 20 | DD118: 12 | DE118: 10 | DF118: 2 | DG118: - | DH118: 3 | DI118: 2 | DJ118: 3 | DK118: 4 | DL118: - | DM118: - | DN118: - | DO118: - | DP118: 3 | DQ118: 1 | DR118: - | DS118: - | DT118: - | DU118: - | DV118: - | DW118: - | DX118: - | DY118: - | DZ118: - | EA118: 5 | EB118: 290 | EC118: 7 | ED118: 283 | EE118: - | EF118: 10 | EG118: 7 | EH118: 6 | EI118: 1 | EJ118: - | EK118: - | EL118: 1 | EM118: 2 | EN118: 10 | EO118: 5 | EP118: 4 | EQ118: 1 | ER118: - | ES118: 3 | ET118: 1 | EU118: 1
A119: 神奈川県 | B119: 港北区（横浜市） | C119: 新田村２－１ | D119: 第三生産班 | E119: 10 | F119: 8 | G119: 3 | H119: 3 | I119: 3 | J119: 3 | K119: 2 | L119: 2 | M119: 24 | N119: 1 | O119: - | P119: 1 | Q119: - | R119: - | S119: 2 | T119: 4 | U119: 2 | V119: 4 | W119: 2 | X119: 1 | Y119: 4 | Z119: 1 | AA119: 2 | AB119: - | AC119: 57.0 | AD119: 55.7 | AE119: 58.5 | AF119: 18 | AG119: - | AH119: - | AI119: - | AJ119: - | AK119: - | AL119: 1 | AM119: 2 | AN119: 2 | AO119: 4 | AP119: 1 | AQ119: 1 | AR119: 4 | AS119: 1 | AT119: 2 | AU119: - | AV119: 62.6 | AW119: 60.7 | AX119: 64.4 | AY119: 17 | AZ119: - | BA119: - | BB119: - | BC119: - | BD119: - | BE119: 1 | BF119: 2 | BG119: 2 | BH119: 3 | BI119: 1 | BJ119: 1 | BK119: 4 | BL119: 1 | BM119: 2 | BN119: - | BO119: 63.0 | BP119: 60.7 | BQ119: 65.6 | BR119: 8 | BS119: - | BT119: - | BU119: - | BV119: - | BW119: - | BX119: 1 | BY119: 1 | BZ119: - | CA119: - | CB119: 1 | CC119: 1 | CD119: 2 | CE119: - | CF119: 2 | CG119: - | CH119: 5 | CI119: - | CJ119: - | CK119: - | CL119: - | CM119: - | CN119: - | CO119: - | CP119: 1 | CQ119: - | CR119: 2 | CS119: - | CT119: 2 | CU119: - | CV119: 0 | CW119: 0 | CX119: 0 | CY119: 0 | CZ119: 0 | DA119: 0 | DB119: 0 | DC119: 36 | DD119: 27 | DE119: 17 | DF119: 9 | DG119: 1 | DH119: 2 | DI119: 4 | DJ119: 3 | DK119: 7 | DL119: - | DM119: - | DN119: - | DO119: - | DP119: 4 | DQ119: - | DR119: - | DS119: 3 | DT119: - | DU119: - | DV119: - | DW119: - | DX119: - | DY119: - | DZ119: - | EA119: 8 | EB119: 505 | EC119: - | ED119: 403 | EE119: 102 | EF119: 20 | EG119: 17 | EH119: 9 | EI119: 8 | EJ119: - | EK119: - | EL119: 2 | EM119: 1 | EN119: 16 | EO119: 10 | EP119: 8 | EQ119: 1 | ER119: 1 | ES119: 2 | ET119: 2 | EU119: 2
A120: 神奈川県 | B120: 港北区（横浜市） | C120: 新田村２－１ | D120: 第四生産班 | E120: 17 | F120: 11 | G120: 6 | H120: 6 | I120: 5 | J120: 4 | K120: - | L120: 6 | M120: 36 | N120: 2 | O120: 2 | P120: - | Q120: 2 | R120: 2 | S120: 2 | T120: 3 | U120: 1 | V120: 5 | W120: 9 | X120: - | Y120: - | Z120: 3 | AA120: 3 | AB120: 2 | AC120: 55.6 | AD120: 51.6 | AE120: 60.1 | AF120: 32 | AG120: - | AH120: 1 | AI120: - | AJ120: 1 | AK120: 2 | AL120: 2 | AM120: 3 | AN120: 1 | AO120: 5 | AP120: 9 | AQ120: - | AR120: - | AS120: 3 | AT120: 3 | AU120: 2 | AV120: 59.9 | AW120: 56.9 | AX120: 62.9 | AY120: 23 | AZ120: - | BA120: - | BB120: - | BC120: 1 | BD120: 1 | BE120: 1 | BF120: 2 | BG120: 1 | BH120: 4 | BI120: 7 | BJ120: - | BK120: - | BL120: 2 | BM120: 2 | BN120: 2 | BO120: 62.1 | BP120: 59.2 | BQ120: 67.5 | BR120: 11 | BS120: - | BT120: - | BU120: - | BV120: 1 | BW120: - | BX120: 1 | BY120: - | BZ120: - | CA120: 1 | CB120: 6 | CC120: - | CD120: - | CE120: 1 | CF120: 1 | CG120: - | CH120: 6 | CI120: - | CJ120: - | CK120: - | CL120: - | CM120: - | CN120: - | CO120: 1 | CP120: 4 | CQ120: - | CR120: - | CS120: 1 | CT120: - | CU120: - | CV120: 0 | CW120: 0 | CX120: 0 | CY120: 0 | CZ120: 0 | DA120: 0 | DB120: 0 | DC120: 52 | DD120: 29 | DE120: 23 | DF120: 6 | DG120: - | DH120: 12 | DI120: 7 | DJ120: 4 | DK120: 11 | DL120: - | DM120: - | DN120: - | DO120: - | DP120: 4 | DQ120: 2 | DR120: - | DS120: 5 | DT120: - | DU120: - | DV120: - | DW120: - | DX120: - | DY120: - | DZ120: - | EA120: 11 | EB120: 689 | EC120: 10 | ED120: 579 | EE120: 100 | EF120: 24 | EG120: 17 | EH120: 15 | EI120: 2 | EJ120: - | EK120: - | EL120: 5 | EM120: 2 | EN120: 28 | EO120: 12 | EP120: 8 | EQ120: 4 | ER120: - | ES120: 12 | ET120: 2 | EU120: 2
A121: 神奈川県 | B121: 港北区（横浜市） | C121: 新田村２－１ | D121: 第五生産班 | E121: 41 | F121: 29 | G121: 15 | H121: 15 | I121: 9 | J121: 7 | K121: 5 | L121: 12 | M121: 97 | N121: 2 | O121: - | P121: - | Q121: 4 | R121: 10 | S121: 11 | T121: 5 | U121: 6 | V121: 6 | W121: 11 | X121: 14 | Y121: 7 | Z121: 11 | AA121: 6 | AB121: 4 | AC121: 58.6 | AD121: 57.4 | AE121: 60.2 | AF121: 77 | AG121: - | AH121: - | AI121: - | AJ121: 2 | AK121: 8 | AL121: 9 | AM121: 3 | AN121: 3 | AO121: 4 | AP121: 8 | AQ121: 14 | AR121: 6 | AS121: 10 | AT121: 6 | AU121: 4 | AV121: 61.5 | AW121: 59.3 | AX121: 64.4 | AY121: 67 | AZ121: - | BA121: - | BB121: - | BC121: 2 | BD121: 5 | BE121: 7 | BF121: 3 | BG121: 3 | BH121: 4 | BI121: 8 | BJ121: 13 | BK121: 5 | BL121: 8 | BM121: 6 | BN121: 3 | BO121: 62.0 | BP121: 58.8 | BQ121: 67.5 | BR121: 29 | BS121: - | BT121: - | BU121: - | BV121: - | BW121: - | BX121: - | BY121: 1 | BZ121: - | CA121: 1 | CB121: 5 | CC121: 7 | CD121: 3 | CE121: 5 | CF121: 5 | CG121: 2 | CH121: 24 | CI121: - | CJ121: - | CK121: - | CL121: - | CM121: - | CN121: - | CO121: - | CP121: 5 | CQ121: 7 | CR121: 2 | CS121: 4 | CT121: 4 | CU121: 2 | CV121: 0 | CW121: 0 | CX121: 0 | CY121: 0 | CZ121: 0 | DA121: 0 | DB121: 0 | DC121: 128 | DD121: 90 | DE121: 67 | DF121: 19 | DG121: 4 | DH121: 19 | DI121: 6 | DJ121: 13 | DK121: 27 | DL121: - | DM121: - | DN121: - | DO121: - | DP121: 21 | DQ121: - | DR121: 3 | DS121: 2 | DT121: 1 | DU121: - | DV121: - | DW121: - | DX121: - | DY121: - | DZ121: - | EA121: 29 | EB121: 2,427 | EC121: 103 | ED121: 1,845 | EE121: 479 | EF121: 62 | EG121: 56 | EH121: 42 | EI121: 11 | EJ121: 3 | EK121: - | EL121: 2 | EM121: 4 | EN121: 66 | EO121: 34 | EP121: 25 | EQ121: 8 | ER121: 1 | ES121: 19 | ET121: 4 | EU121: 9
A122: 神奈川県 | B122: 港北区（横浜市） | C122: 新田村２－１ | D122: 第六生産班 | E122: 10 | F122: 5 | G122: - | H122: - | I122: 3 | J122: 3 | K122: 2 | L122: 5 | M122: 16 | N122: - | O122: - | P122: - | Q122: - | R122: 1 | S122: 4 | T122: 3 | U122: - | V122: - | W122: - | X122: 4 | Y122: 2 | Z122: - | AA122: 1 | AB122: 1 | AC122: 58.1 | AD122: 58.1 | AE122: 58.1 | AF122: 11 | AG122: - | AH122: - | AI122: - | AJ122: - | AK122: - | AL122: 3 | AM122: 2 | AN122: - | AO122: - | AP122: - | AQ122: 3 | AR122: 1 | AS122: - | AT122: 1 | AU122: 1 | AV122: 60.4 | AW122: 62.9 | AX122: 56.0 | AY122: 9 | AZ122: - | BA122: - | BB122: - | BC122: - | BD122: - | BE122: 2 | BF122: 1 | BG122: - | BH122: - | BI122: - | BJ122: 3 | BK122: 1 | BL122: - | BM122: 1 | BN122: 1 | BO122: 63.9 | BP122: 62.9 | BQ122: 67.5 | BR122: 5 | BS122: - | BT122: - | BU122: - | BV122: - | BW122: - | BX122: 1 | BY122: 1 | BZ122: - | CA122: - | CB122: - | CC122: 1 | CD122: 1 | CE122: - | CF122: 1 | CG122: - | CH122: 4 | CI122: - | CJ122: - | CK122: - | CL122: - | CM122: 1 | CN122: - | CO122: - | CP122: - | CQ122: 1 | CR122: 1 | CS122: - | CT122: 1 | CU122: - | CV122: 0 | CW122: 0 | CX122: 0 | CY122: 0 | CZ122: 0 | DA122: 0 | DB122: 0 | DC122: 22 | DD122: 15 | DE122: 9 | DF122: 4 | DG122: 2 | DH122: 5 | DI122: 1 | DJ122: 1 | DK122: 4 | DL122: - | DM122: - | DN122: - | DO122: - | DP122: 2 | DQ122: - | DR122: 1 | DS122: 1 | DT122: - | DU122: - | DV122: - | DW122: - | DX122: - | DY122: - | DZ122: - | EA122: 5 | EB122: 206 | EC122: 20 | ED122: 131 | EE122: 55 | EF122: 11 | EG122: 9 | EH122: 7 | EI122: 1 | EJ122: 1 | EK122: 1 | EL122: 1 | EM122: - | EN122: 11 | EO122: 6 | EP122: 2 | EQ122: 3 | ER122: 1 | ES122: 4 | ET122: - | EU122: 1
A123: 神奈川県 | B123: 港北区（横浜市） | C123: 新田村２－１ | D123: 第七生産班 | E123: 18 | F123: 12 | G123: 7 | H123: 7 | I123: 4 | J123: 4 | K123: 1 | L123: 6 | M123: 37 | N123: - | O123: - | P123: 2 | Q123: 2 | R123: - | S123: 3 | T123: 2 | U123: 4 | V123: 5 | W123: 8 | X123: 2 | Y123: 2 | Z123: 3 | AA123: 2 | AB123: 2 | AC123: 58.6 | AD123: 57.9 | AE123: 59.3 | AF123: 35 | AG123: - | AH123: - | AI123: 1 | AJ123: 2 | AK123: - | AL123: 3 | AM123: 2 | AN123: 3 | AO123: 5 | AP123: 8 | AQ123: 2 | AR123: 2 | AS123: 3 | AT123: 2 | AU123: 2 | AV123: 59.7 | AW123: 60.2 | AX123: 59.3 | AY123: 31 | AZ123: - | BA123: - | BB123: 1 | BC123: 1 | BD123: - | BE123: 2 | BF123: 2 | BG123: 3 | BH123: 5 | BI123: 8 | BJ123: 2 | BK123: 1 | BL123: 3 | BM123: 2 | BN123: 1 | BO123: 59.9 | BP123: 60.2 | BQ123: 59.5 | BR123: 12 | BS123: - | BT123: - | BU123: - | BV123: - | BW123: - | BX123: 1 | BY123: - | BZ123: - | CA123: 1 | CB123: 5 | CC123: 1 | CD123: 1 | CE123: 2 | CF123: 1 | CG123: - | CH123: 8 | CI123: - | CJ123: - | CK123: - | CL123: - | CM123: - | CN123: - | CO123: 1 | CP123: 3 | CQ123: - | CR123: 1 | CS123: 2 | CT123: 1 | CU123: - | CV123: 0 | CW123: 0 | CX123: 0 | CY123: 0 | CZ123: 0 | DA123: 0 | DB123: 0 | DC123: 54 | DD123: 43 | DE123: 31 | DF123: 12 | DG123: - | DH123: 3 | DI123: 6 | DJ123: 2 | DK123: 12 | DL123: - | DM123: - | DN123: - | DO123: - | DP123: 8 | DQ123: - | DR123: 2 | DS123: 1 | DT123: 1 | DU123: - | DV123: - | DW123: - | DX123: - | DY123: - | DZ123: - | EA123: 12 | EB123: 1,001 | EC123: - | ED123: 780 | EE123: 221 | EF123: 22 | EG123: 19 | EH123: 16 | EI123: 3 | EJ123: - | EK123: - | EL123: 3 | EM123: - | EN123: 32 | EO123: 24 | EP123: 15 | EQ123: 9 | ER123: - | ES123: 3 | ET123: 3 | EU123: 2
A124: 神奈川県 | B124: 港北区（横浜市） | C124: 新田村２－１ | D124: 第八生産班 | E124: 5 | F124: 3 | G124: - | H124: - | I124: 2 | J124: 2 | K124: 1 | L124: 2 | M124: 10 | N124: - | O124: - | P124: 1 | Q124: - | R124: - | S124: - | T124: - | U124: 1 | V124: 2 | W124: 1 | X124: 1 | Y124: - | Z124: - | AA124: 1 | AB124: 3 | AC124: 65.8 | AD124: 66.8 | AE124: 64.3 | AF124: 9 | AG124: - | AH124: - | AI124: - | AJ124: - | AK124: - | AL124: - | AM124: - | AN124: 1 | AO124: 2 | AP124: 1 | AQ124: 1 | AR124: - | AS124: - | AT124: 1 | AU124: 3 | AV124: 70.0 | AW124: 74.6 | AX124: 64.3 | AY124: 9 | AZ124: - | BA124: - | BB124: - | BC124: - | BD124: - | BE124: - | BF124: - | BG124: 1 | BH124: 2 | BI124: 1 | BJ124: 1 | BK124: - | BL124: - | BM124: 1 | BN124: 3 | BO124: 70.0 | BP124: 74.6 | BQ124: 64.3 | BR124: 3 | BS124: - | BT124: - | BU124: - | BV124: - | BW124: - | BX124: - | BY124: - | BZ124: - | CA124: 1 | CB124: 1 | CC124: - | CD124: - | CE124: - | CF124: - | CG124: 1 | CH124: 2 | CI124: - | CJ124: - | CK124: - | CL124: - | CM124: - | CN124: - | CO124: 1 | CP124: - | CQ124: - | CR124: - | CS124: - | CT124: - | CU124: 1 | CV124: 0 | CW124: 0 | CX124: 0 | CY124: 0 | CZ124: 0 | DA124: 0 | DB124: 0 | DC124: 13 | DD124: 12 | DE124: 9 | DF124: 3 | DG124: - | DH124: - | DI124: - | DJ124: 1 | DK124: 3 | DL124: - | DM124: - | DN124: - | DO124: - | DP124: 3 | DQ124: - | DR124: - | DS124: - | DT124: - | DU124: - | DV124: - | DW124: - | DX124: - | DY124: - | DZ124: - | EA124: 3 | EB124: 175 | EC124: 30 | ED124: 145 | EE124: - | EF124: 8 | EG124: 7 | EH124: 5 | EI124: 2 | EJ124: - | EK124: - | EL124: - | EM124: 1 | EN124: 5 | EO124: 5 | EP124: 4 | EQ124: 1 | ER124: - | ES124: - | ET124: - | EU124: -
A125: 神奈川県 | B125: 港北区（横浜市） | C125: 新田村２－１ | D125: 第九生産班 | E125: 36 | F125: 31 | G125: 18 | H125: 17 | I125: 5 | J125: 4 | K125: 8 | L125: 5 | M125: 93 | N125: 1 | O125: 4 | P125: - | Q125: 1 | R125: 5 | S125: 13 | T125: 9 | U125: 8 | V125: 5 | W125: 5 | X125: 9 | Y125: 14 | Z125: 8 | AA125: 7 | AB125: 4 | AC125: 58.8 | AD125: 58.7 | AE125: 58.8 | AF125: 80 | AG125: - | AH125: 1 | AI125: - | AJ125: - | AK125: 3 | AL125: 10 | AM125: 8 | AN125: 8 | AO125: 5 | AP125: 5 | AQ125: 8 | AR125: 13 | AS125: 8 | AT125: 7 | AU125: 4 | AV125: 62.0 | AW125: 62.4 | AX125: 61.5 | AY125: 64 | AZ125: - | BA125: - | BB125: - | BC125: - | BD125: 3 | BE125: 6 | BF125: 5 | BG125: 7 | BH125: 3 | BI125: 5 | BJ125: 8 | BK125: 12 | BL125: 7 | BM125: 6 | BN125: 2 | BO125: 63.4 | BP125: 63.4 | BQ125: 63.3 | BR125: 31 | BS125: - | BT125: - | BU125: - | BV125: - | BW125: - | BX125: 1 | BY125: 1 | BZ125: 3 | CA125: 3 | CB125: 1 | CC125: 4 | CD125: 6 | CE125: 5 | CF125: 6 | CG125: 1 | CH125: 19 | CI125: - | CJ125: - | CK125: - | CL125: - | CM125: - | CN125: 1 | CO125: 2 | CP125: 1 | CQ125: 3 | CR125: 4 | CS125: 4 | CT125: 3 | CU125: 1 | CV125: 0 | CW125: 0 | CX125: 0 | CY125: 0 | CZ125: 0 | DA125: 0 | DB125: 0 | DC125: 116 | DD125: 78 | DE125: 64 | DF125: 14 | DG125: - | DH125: 17 | DI125: 9 | DJ125: 12 | DK125: 28 | DL125: - | DM125: - | DN125: - | DO125: - | DP125: 10 | DQ125: - | DR125: 15 | DS125: 2 | DT125: 1 | DU125: - | DV125: - | DW125: - | DX125: - | DY125: - | DZ125: - | EA125: 31 | EB125: 2,052 | EC125: 68 | ED125: 1,271 | EE125: 713 | EF125: 60 | EG125: 49 | EH125: 42 | EI125: 7 | EJ125: - | EK125: - | EL125: 6 | EM125: 5 | EN125: 56 | EO125: 29 | EP125: 22 | EQ125: 7 | ER125: - | ES125: 17 | ET125: 3 | EU125: 7
A126: 神奈川県 | B126: 港北区（横浜市） | C126: 新田村２－１ | D126: 第十生産班 | E126: 20 | F126: 8 | G126: 3 | H126: 3 | I126: 2 | J126: 2 | K126: 3 | L126: 12 | M126: 26 | N126: - | O126: - | P126: 2 | Q126: 1 | R126: 2 | S126: - | T126: 1 | U126: 2 | V126: 3 | W126: 4 | X126: 3 | Y126: 2 | Z126: 1 | AA126: 4 | AB126: 1 | AC126: 60.3 | AD126: 58.6 | AE126: 61.8 | AF126: 21 | AG126: - | AH126: - | AI126: 1 | AJ126: - | AK126: 2 | AL126: - | AM126: 1 | AN126: 1 | AO126: 2 | AP126: 4 | AQ126: 3 | AR126: 2 | AS126: 1 | AT126: 4 | AU126: - | AV126: 62.5 | AW126: 59.3 | AX126: 65.5 | AY126: 19 | AZ126: - | BA126: - | BB126: 1 | BC126: - | BD126: 2 | BE126: - | BF126: - | BG126: 1 | BH126: 1 | BI126: 4 | BJ126: 3 | BK126: 2 | BL126: 1 | BM126: 4 | BN126: - | BO126: 63.6 | BP126: 59.3 | BQ126: 68.4 | BR126: 8 | BS126: - | BT126: - | BU126: - | BV126: - | BW126: - | BX126: - | BY126: - | BZ126: 1 | CA126: - | CB126: 2 | CC126: 1 | CD126: 2 | CE126: - | CF126: 2 | CG126: - | CH126: 5 | CI126: - | CJ126: - | CK126: - | CL126: - | CM126: - | CN126: - | CO126: - | CP126: 2 | CQ126: 1 | CR126: - | CS126: - | CT126: 2 | CU126: - | CV126: 0 | CW126: 0 | CX126: 0 | CY126: 0 | CZ126: 0 | DA126: 0 | DB126: 0 | DC126: 31 | DD126: 25 | DE126: 19 | DF126: 6 | DG126: - | DH126: 3 | DI126: 1 | DJ126: 2 | DK126: 6 | DL126: - | DM126: - | DN126: 1 | DO126: - | DP126: 5 | DQ126: - | DR126: - | DS126: - | DT126: - | DU126: - | DV126: - | DW126: - | DX126: - | DY126: - | DZ126: - | EA126: 8 | EB126: 608 | EC126: 70 | ED126: 518 | EE126: 20 | EF126: 13 | EG126: 13 | EH126: 10 | EI126: 3 | EJ126: - | EK126: - | EL126: - | EM126: - | EN126: 18 | EO126: 12 | EP126: 9 | EQ126: 3 | ER126: - | ES126: 3 | ET126: 1 | EU126: 2
A127: 神奈川県 | B127: 港北区（横浜市） | C127: 新田村２－１ | D127: 第十一生産班 | E127: 11 | F127: 5 | G127: 2 | H127: 2 | I127: 1 | J127: - | K127: 2 | L127: 6 | M127: 11 | N127: - | O127: - | P127: - | Q127: - | R127: - | S127: - | T127: 2 | U127: 1 | V127: 2 | W127: 1 | X127: 1 | Y127: 1 | Z127: 2 | AA127: 1 | AB127: - | AC127: 62.8 | AD127: 61.2 | AE127: 64.8 | AF127: 9 | AG127: - | AH127: - | AI127: - | AJ127: - | AK127: - | AL127: - | AM127: 1 | AN127: - | AO127: 2 | AP127: 1 | AQ127: 1 | AR127: 1 | AS127: 2 | AT127: 1 | AU127: - | AV127: 66.2 | AW127: 68.0 | AX127: 64.8 | AY127: 7 | AZ127: - | BA127: - | BB127: - | BC127: - | BD127: - | BE127: - | BF127: - | BG127: - | BH127: 2 | BI127: 1 | BJ127: 1 | BK127: 1 | BL127: 1 | BM127: 1 | BN127: - | BO127: 67.4 | BP127: 68.0 | BQ127: 66.7 | BR127: 5 | BS127: - | BT127: - | BU127: - | BV127: - | BW127: - | BX127: - | BY127: - | BZ127: - | CA127: 1 | CB127: 1 | CC127: - | CD127: 1 | CE127: 1 | CF127: 1 | CG127: - | CH127: 4 | CI127: - | CJ127: - | CK127: - | CL127: - | CM127: - | CN127: - | CO127: 1 | CP127: - | CQ127: - | CR127: 1 | CS127: 1 | CT127: 1 | CU127: - | CV127: 0 | CW127: 0 | CX127: 0 | CY127: 0 | CZ127: 0 | DA127: 0 | DB127: 0 | DC127: 20 | DD127: 11 | DE127: 7 | DF127: 4 | DG127: - | DH127: 6 | DI127: 1 | DJ127: 2 | DK127: 5 | DL127: - | DM127: - | DN127: - | DO127: - | DP127: 3 | DQ127: - | DR127: - | DS127: 1 | DT127: 1 | DU127: - | DV127: - | DW127: - | DX127: - | DY127: - | DZ127: - | EA127: 5 | EB127: 349 | EC127: - | ED127: 339 | EE127: 10 | EF127: 8 | EG127: 7 | EH127: 4 | EI127: 3 | EJ127: - | EK127: - | EL127: - | EM127: 1 | EN127: 12 | EO127: 4 | EP127: 3 | EQ127: 1 | ER127: - | ES127: 6 | ET127: 1 | EU127: 1
A128: 神奈川県 | B128: 港北区（横浜市） | C128: 新田村２－１ | D128: 第十二生産班 | E128: 8 | F128: 4 | G128: 1 | H128: 1 | I128: - | J128: - | K128: 3 | L128: 4 | M128: 9 | N128: - | O128: - | P128: - | Q128: - | R128: - | S128: 1 | T128: 1 | U128: - | V128: - | W128: - | X128: 3 | Y128: 3 | Z128: 1 | AA128: - | AB128: - | AC128: 65.3 | AD128: 66.3 | AE128: 64.6 | AF128: 7 | AG128: - | AH128: - | AI128: - | AJ128: - | AK128: - | AL128: 1 | AM128: 1 | AN128: - | AO128: - | AP128: - | AQ128: 1 | AR128: 3 | AS128: 1 | AT128: - | AU128: - | AV128: 64.6 | AW128: 65.3 | AX128: 64.0 | AY128: 6 | AZ128: - | BA128: - | BB128: - | BC128: - | BD128: - | BE128: - | BF128: 1 | BG128: - | BH128: - | BI128: - | BJ128: 1 | BK128: 3 | BL128: 1 | BM128: - | BN128: - | BO128: 68.0 | BP128: 65.3 | BQ128: 70.7 | BR128: 4 | BS128: - | BT128: - | BU128: - | BV128: - | BW128: - | BX128: - | BY128: 1 | BZ128: - | CA128: - | CB128: - | CC128: 1 | CD128: 1 | CE128: 1 | CF128: - | CG128: - | CH128: 2 | CI128: - | CJ128: - | CK128: - | CL128: - | CM128: - | CN128: - | CO128: - | CP128: - | CQ128: 1 | CR128: 1 | CS128: - | CT128: - | CU128: - | CV128: 0 | CW128: 0 | CX128: 0 | CY128: 0 | CZ128: 0 | DA128: 0 | DB128: 0 | DC128: 10 | DD128: 8 | DE128: 6 | DF128: 1 | DG128: 1 | DH128: 1 | DI128: - | DJ128: 1 | DK128: 4 | DL128: - | DM128: - | DN128: - | DO128: - | DP128: 4 | DQ128: - | DR128: - | DS128: - | DT128: - | DU128: - | DV128: - | DW128: - | DX128: - | DY128: - | DZ128: - | EA128: 4 | EB128: 138 | EC128: - | ED128: 138 | EE128: - | EF128: 4 | EG128: 4 | EH128: 3 | EI128: - | EJ128: 1 | EK128: - | EL128: - | EM128: - | EN128: 6 | EO128: 4 | EP128: 3 | EQ128: 1 | ER128: - | ES128: 1 | ET128: - | EU128: 1
A129: 神奈川県 | B129: 港北区（横浜市） | C129: 新田村２－１ | D129: 第十三生産班 | E129: 21 | F129: 16 | G129: 8 | H129: 8 | I129: 4 | J129: 3 | K129: 4 | L129: 5 | M129: 49 | N129: 1 | O129: 1 | P129: - | Q129: - | R129: 3 | S129: 3 | T129: 4 | U129: 6 | V129: 5 | W129: 5 | X129: 5 | Y129: 3 | Z129: 7 | AA129: 4 | AB129: 2 | AC129: 60.3 | AD129: 58.9 | AE129: 62.1 | AF129: 40 | AG129: 1 | AH129: 1 | AI129: - | AJ129: - | AK129: 1 | AL129: 2 | AM129: 2 | AN129: 5 | AO129: 3 | AP129: 4 | AQ129: 5 | AR129: 3 | AS129: 7 | AT129: 4 | AU129: 2 | AV129: 63.2 | AW129: 61.7 | AX129: 65.2 | AY129: 33 | AZ129: - | BA129: 1 | BB129: - | BC129: - | BD129: 1 | BE129: 1 | BF129: 2 | BG129: 4 | BH129: 3 | BI129: 3 | BJ129: 4 | BK129: 3 | BL129: 5 | BM129: 4 | BN129: 2 | BO129: 64.6 | BP129: 63.8 | BQ129: 66.2 | BR129: 16 | BS129: - | BT129: - | BU129: - | BV129: - | BW129: - | BX129: - | BY129: 1 | BZ129: 1 | CA129: 2 | CB129: 1 | CC129: 1 | CD129: 1 | CE129: 4 | CF129: 3 | CG129: 2 | CH129: 12 | CI129: - | CJ129: - | CK129: - | CL129: - | CM129: 1 | CN129: 1 | CO129: 1 | CP129: - | CQ129: 1 | CR129: 1 | CS129: 2 | CT129: 3 | CU129: 2 | CV129: 0 | CW129: 0 | CX129: 0 | CY129: 0 | CZ129: 0 | DA129: 0 | DB129: 0 | DC129: 58 | DD129: 42 | DE129: 33 | DF129: 9 | DG129: - | DH129: 10 | DI129: 4 | DJ129: 2 | DK129: 14 | DL129: - | DM129: - | DN129: 1 | DO129: - | DP129: 8 | DQ129: - | DR129: 2 | DS129: 3 | DT129: - | DU129: - | DV129: - | DW129: - | DX129: - | DY129: - | DZ129: - | EA129: 16 | EB129: 1,230 | EC129: - | ED129: 840 | EE129: 390 | EF129: 31 | EG129: 27 | EH129: 22 | EI129: 5 | EJ129: - | EK129: - | EL129: 4 | EM129: - | EN129: 27 | EO129: 15 | EP129: 11 | EQ129: 4 | ER129: - | ES129: 10 | ET129: - | EU129: 2
A130: 神奈川県 | B130: 戸塚区（横浜市） | E130: 389 | F130: 225 | G130: 94 | H130: 85 | I130: 46 | J130: 32 | K130: 85 | L130: 164 | M130: 653 | N130: 4 | O130: 14 | P130: 19 | Q130: 22 | R130: 25 | S130: 38 | T130: 58 | U130: 56 | V130: 62 | W130: 61 | X130: 50 | Y130: 86 | Z130: 78 | AA130: 49 | AB130: 31 | AC130: 60.2 | AD130: 59.0 | AE130: 61.8 | AF130: 531 | AG130: 3 | AH130: 7 | AI130: 9 | AJ130: 14 | AK130: 15 | AL130: 30 | AM130: 34 | AN130: 45 | AO130: 50 | AP130: 51 | AQ130: 47 | AR130: 79 | AS130: 72 | AT130: 45 | AU130: 30 | AV130: 62.8 | AW130: 62.0 | AX130: 63.8 | AY130: 436 | AZ130: - | BA130: 1 | BB130: 7 | BC130: 10 | BD130: 8 | BE130: 17 | BF130: 28 | BG130: 37 | BH130: 44 | BI130: 43 | BJ130: 46 | BK130: 72 | BL130: 62 | BM130: 36 | BN130: 25 | BO130: 64.6 | BP130: 63.2 | BQ130: 66.7 | BR130: 225 | BS130: - | BT130: - | BU130: - | BV130: - | BW130: 2 | BX130: 3 | BY130: 10 | BZ130: 19 | CA130: 22 | CB130: 32 | CC130: 24 | CD130: 37 | CE130: 46 | CF130: 19 | CG130: 11 | CH130: 135 | CI130: - | CJ130: - | CK130: - | CL130: - | CM130: 2 | CN130: 6 | CO130: 13 | CP130: 21 | CQ130: 16 | CR130: 26 | CS130: 30 | CT130: 13 | CU130: 8 | CV130: 0 | CW130: 0 | CX130: 0 | CY130: 0 | CZ130: 0 | DA130: 0 | DB130: 0 | DC130: 857 | DD130: 584 | DE130: 436 | DF130: 129 | DG130: 19 | DH130: 126 | DI130: 79 | DJ130: 68 | DK130: 207 | DL130: 1 | DM130: - | DN130: 8 | DO130: - | DP130: 136 | DQ130: 17 | DR130: 26 | DS130: 9 | DT130: 4 | DU130: 5 | DV130: - | DW130: 1 | DX130: - | DY130: - | DZ130: - | EA130: 225 | EB130: 18,178 | EC130: 1,289 | ED130: 14,395 | EE130: 2,494 | EF130: 439 | EG130: 362 | EH130: 269 | EI130: 84 | EJ130: 9 | EK130: 1 | EL130: 49 | EM130: 27 | EN130: 418 | EO130: 222 | EP130: 167 | EQ130: 45 | ER130: 10 | ES130: 125 | ET130: 30 | EU130: 41
A131: 神奈川県 | B131: 戸塚区（横浜市） | C131: 戸塚町 | E131: 42 | F131: 20 | G131: 10 | H131: 8 | I131: 4 | J131: 4 | K131: 6 | L131: 22 | M131: 64 | N131: - | O131: 2 | P131: 3 | Q131: 2 | R131: 2 | S131: 4 | T131: 10 | U131: 4 | V131: 4 | W131: 4 | X131: 8 | Y131: 12 | Z131: 6 | AA131: 3 | AB131: - | AC131: 57.5 | AD131: 56.5 | AE131: 58.7 | AF131: 50 | AG131: - | AH131: 1 | AI131: - | AJ131: - | AK131: 2 | AL131: 3 | AM131: 7 | AN131: 3 | AO131: 4 | AP131: 4 | AQ131: 7 | AR131: 11 | AS131: 5 | AT131: 3 | AU131: - | AV131: 61.3 | AW131: 60.1 | AX131: 62.7 | AY131: 43 | AZ131: - | BA131: - | BB131: - | BC131: - | BD131: 1 | BE131: 1 | BF131: 6 | BG131: 2 | BH131: 3 | BI131: 4 | BJ131: 7 | BK131: 11 | BL131: 5 | BM131: 3 | BN131: - | BO131: 64.4 | BP131: 62.4 | BQ131: 67.5 | BR131: 20 | BS131: - | BT131: - | BU131: - | BV131: - | BW131: - | BX131: - | BY131: 1 | BZ131: 1 | CA131: 1 | CB131: 2 | CC131: 4 | CD131: 6 | CE131: 3 | CF131: 2 | CG131: - | CH131: 14 | CI131: - | CJ131: - | CK131: - | CL131: - | CM131: - | CN131: - | CO131: 1 | CP131: 2 | CQ131: 3 | CR131: 6 | CS131: 1 | CT131: 1 | CU131: - | CV131: 0 | CW131: 0 | CX131: 0 | CY131: 0 | CZ131: 0 | DA131: 0 | DB131: 0 | DC131: 83 | DD131: 56 | DE131: 43 | DF131: 12 | DG131: 1 | DH131: 12 | DI131: 11 | DJ131: 4 | DK131: 18 | DL131: - | DM131: - | DN131: - | DO131: - | DP131: 15 | DQ131: 1 | DR131: - | DS131: - | DT131: - | DU131: 2 | DV131: - | DW131: - | DX131: - | DY131: - | DZ131: - | EA131: 20 | EB131: 1,295 | EC131: 59 | ED131: 1,156 | EE131: 80 | EF131: 41 | EG131: 34 | EH131: 26 | EI131: 7 | EJ131: 1 | EK131: - | EL131: 5 | EM131: 2 | EN131: 42 | EO131: 22 | EP131: 17 | EQ131: 5 | ER131: - | ES131: 12 | ET131: 6 | EU131: 2
A132: 神奈川県 | B132: 戸塚区（横浜市） | C132: 戸塚町 | D132: 下郷 | E132: 12 | F132: 8 | G132: 6 | H132: 5 | I132: 1 | J132: 1 | K132: 1 | L132: 4 | M132: 28 | N132: - | O132: - | P132: 1 | Q132: 1 | R132: 1 | S132: 3 | T132: 5 | U132: 1 | V132: 3 | W132: 3 | X132: 3 | Y132: 3 | Z132: 2 | AA132: 2 | AB132: - | AC132: 56.9 | AD132: 55.2 | AE132: 58.6 | AF132: 25 | AG132: - | AH132: - | AI132: - | AJ132: - | AK132: 1 | AL132: 3 | AM132: 4 | AN132: 1 | AO132: 3 | AP132: 3 | AQ132: 3 | AR132: 3 | AS132: 2 | AT132: 2 | AU132: - | AV132: 59.5 | AW132: 59.6 | AX132: 59.4 | AY132: 20 | AZ132: - | BA132: - | BB132: - | BC132: - | BD132: - | BE132: 1 | BF132: 3 | BG132: 1 | BH132: 2 | BI132: 3 | BJ132: 3 | BK132: 3 | BL132: 2 | BM132: 2 | BN132: - | BO132: 63.3 | BP132: 61.3 | BQ132: 65.7 | BR132: 8 | BS132: - | BT132: - | BU132: - | BV132: - | BW132: - | BX132: - | BY132: - | BZ132: - | CA132: - | CB132: 2 | CC132: 2 | CD132: 1 | CE132: 2 | CF132: 1 | CG132: - | CH132: 7 | CI132: - | CJ132: - | CK132: - | CL132: - | CM132: - | CN132: - | CO132: - | CP132: 2 | CQ132: 2 | CR132: 1 | CS132: 1 | CT132: 1 | CU132: - | CV132: 0 | CW132: 0 | CX132: 0 | CY132: 0 | CZ132: 0 | DA132: 0 | DB132: 0 | DC132: 37 | DD132: 25 | DE132: 20 | DF132: 5 | DG132: - | DH132: 5 | DI132: 6 | DJ132: 1 | DK132: 8 | DL132: - | DM132: - | DN132: - | DO132: - | DP132: 7 | DQ132: - | DR132: - | DS132: - | DT132: - | DU132: 1 | DV132: - | DW132: - | DX132: - | DY132: - | DZ132: - | EA132: 8 | EB132: 592 | EC132: - | ED132: 589 | EE132: 3 | EF132: 18 | EG132: 14 | EH132: 11 | EI132: 3 | EJ132: - | EK132: - | EL132: 3 | EM132: 1 | EN132: 19 | EO132: 11 | EP132: 9 | EQ132: 2 | ER132: - | ES132: 5 | ET132: 3 | EU132: -
A133: 神奈川県 | B133: 戸塚区（横浜市） | C133: 戸塚町 | D133: 和田 | E133: - | F133: - | G133: - | H133: - | I133: - | J133: - | K133: - | L133: - | M133: - | N133: - | O133: - | P133: - | Q133: - | R133: - | S133: - | T133: - | U133: - | V133: - | W133: - | X133: - | Y133: - | Z133: - | AA133: - | AB133: - | AC133: … | AD133: … | AE133: … | AF133: - | AG133: - | AH133: - | AI133: - | AJ133: - | AK133: - | AL133: - | AM133: - | AN133: - | AO133: - | AP133: - | AQ133: - | AR133: - | AS133: - | AT133: - | AU133: - | AV133: … | AW133: … | AX133: … | AY133: - | AZ133: - | BA133: - | BB133: - | BC133: - | BD133: - | BE133: - | BF133: - | BG133: - | BH133: - | BI133: - | BJ133: - | BK133: - | BL133: - | BM133: - | BN133: - | BO133: … | BP133: … | BQ133: … | BR133: - | BS133: - | BT133: - | BU133: - | BV133: - | BW133: - | BX133: - | BY133: - | BZ133: - | CA133: - | CB133: - | CC133: - | CD133: - | CE133: - | CF133: - | CG133: - | CH133: - | CI133: - | CJ133: - | CK133: - | CL133: - | CM133: - | CN133: - | CO133: - | CP133: - | CQ133: - | CR133: - | CS133: - | CT133: - | CU133: - | CV133: 0 | CW133: 0 | CX133: 0 | CY133: 0 | CZ133: 0 | DA133: 0 | DB133: 0 | DC133: - | DD133: - | DE133: - | DF133: - | DG133: - | DH133: - | DI133: - | DJ133: - | DK133: - | DL133: - | DM133: - | DN133: - | DO133: - | DP133: - | DQ133: - | DR133: - | DS133: - | DT133: - | DU133: - | DV133: - | DW133: - | DX133: - | DY133: - | DZ133: - | EA133: - | EB133: - | EC133: - | ED133: - | EE133: - | EF133: - | EG133: - | EH133: - | EI133: - | EJ133: - | EK133: - | EL133: - | EM133: - | EN133: - | EO133: - | EP133: - | EQ133: - | ER133: - | ES133: - | ET133: - | EU133: -
A134: 神奈川県 | B134: 戸塚区（横浜市） | C134: 戸塚町 | D134: 宮ノ谷 | E134: 4 | F134: 2 | G134: x | H134: x | I134: x | J134: x | K134: x | L134: 2 | M134: x | N134: x | O134: x | P134: x | Q134: x | R134: x | S134: x | T134: x | U134: x | V134: x | W134: x | X134: x | Y134: x | Z134: x | AA134: x | AB134: x | AC134: 50.0 | AD134: 48.4 | AE134: 58.0 | AF134: x | AG134: x | AH134: x | AI134: x | AJ134: x | AK134: x | AL134: x | AM134: x | AN134: x | AO134: x | AP134: x | AQ134: x | AR134: x | AS134: x | AT134: x | AU134: x | AV134: 59.0 | AW134: 60.0 | AX134: 58.0 | AY134: x | AZ134: x | BA134: x | BB134: x | BC134: x | BD134: x | BE134: x | BF134: x | BG134: x | BH134: x | BI134: x | BJ134: x | BK134: x | BL134: x | BM134: x | BN134: x | BO134: 59.0 | BP134: 60.0 | BQ134: 58.0 | BR134: 2 | BS134: - | BT134: - | BU134: - | BV134: - | BW134: - | BX134: - | BY134: - | BZ134: - | CA134: 1 | CB134: - | CC134: - | CD134: - | CE134: 1 | CF134: - | CG134: - | CH134: 1 | CI134: - | CJ134: - | CK134: - | CL134: - | CM134: - | CN134: - | CO134: 1 | CP134: - | CQ134: - | CR134: - | CS134: - | CT134: - | CU134: - | CV134: 0 | CW134: 0 | CX134: 0 | CY134: 0 | CZ134: 0 | DA134: 0 | DB134: 0 | DC134: 7 | DD134: 5 | DE134: 2 | DF134: 3 | DG134: - | DH134: 1 | DI134: - | DJ134: 1 | DK134: 1 | DL134: - | DM134: - | DN134: - | DO134: - | DP134: 1 | DQ134: - | DR134: - | DS134: - | DT134: - | DU134: - | DV134: - | DW134: - | DX134: - | DY134: - | DZ134: - | EA134: 2 | EB134: 67 | EC134: - | ED134: 20 | EE134: 47 | EF134: 5 | EG134: 4 | EH134: 1 | EI134: 3 | EJ134: - | EK134: - | EL134: - | EM134: 1 | EN134: 2 | EO134: 1 | EP134: 1 | EQ134: - | ER134: - | ES134: 1 | ET134: - | EU134: -
A135: 神奈川県 | B135: 戸塚区（横浜市） | C135: 戸塚町 | D135: 富塚 | E135: 1 | F135: - | G135: - | H135: - | I135: - | J135: - | K135: - | L135: 1 | M135: - | N135: - | O135: - | P135: - | Q135: - | R135: - | S135: - | T135: - | U135: - | V135: - | W135: - | X135: - | Y135: - | Z135: - | AA135: - | AB135: - | AC135: … | AD135: … | AE135: … | AF135: - | AG135: - | AH135: - | AI135: - | AJ135: - | AK135: - | AL135: - | AM135: - | AN135: - | AO135: - | AP135: - | AQ135: - | AR135: - | AS135: - | AT135: - | AU135: - | AV135: … | AW135: … | AX135: … | AY135: - | AZ135: - | BA135: - | BB135: - | BC135: - | BD135: - | BE135: - | BF135: - | BG135: - | BH135: - | BI135: - | BJ135: - | BK135: - | BL135: - | BM135: - | BN135: - | BO135: … | BP135: … | BQ135: … | BR135: - | BS135: - | BT135: - | BU135: - | BV135: - | BW135: - | BX135: - | BY135: - | BZ135: - | CA135: - | CB135: - | CC135: - | CD135: - | CE135: - | CF135: - | CG135: - | CH135: - | CI135: - | CJ135: - | CK135: - | CL135: - | CM135: - | CN135: - | CO135: - | CP135: - | CQ135: - | CR135: - | CS135: - | CT135: - | CU135: - | CV135: 0 | CW135: 0 | CX135: 0 | CY135: 0 | CZ135: 0 | DA135: 0 | DB135: 0 | DC135: - | DD135: - | DE135: - | DF135: - | DG135: - | DH135: - | DI135: - | DJ135: - | DK135: - | DL135: - | DM135: - | DN135: - | DO135: - | DP135: - | DQ135: - | DR135: - | DS135: - | DT135: - | DU135: - | DV135: - | DW135: - | DX135: - | DY135: - | DZ135: - | EA135: - | EB135: - | EC135: - | ED135: - | EE135: - | EF135: - | EG135: - | EH135: - | EI135: - | EJ135: - | EK135: - | EL135: - | EM135: - | EN135: - | EO135: - | EP135: - | EQ135: - | ER135: - | ES135: - | ET135: - | EU135: -
A136: 神奈川県 | B136: 戸塚区（横浜市） | C136: 戸塚町 | D136: 矢沢 | E136: 9 | F136: 3 | G136: 1 | H136: 1 | I136: - | J136: - | K136: 2 | L136: 6 | M136: 5 | N136: - | O136: - | P136: - | Q136: - | R136: - | S136: - | T136: 1 | U136: - | V136: - | W136: - | X136: 1 | Y136: 3 | Z136: - | AA136: - | AB136: - | AC136: 66.2 | AD136: 65.0 | AE136: 71.0 | AF136: 5 | AG136: - | AH136: - | AI136: - | AJ136: - | AK136: - | AL136: - | AM136: 1 | AN136: - | AO136: - | AP136: - | AQ136: 1 | AR136: 3 | AS136: - | AT136: - | AU136: - | AV136: 66.2 | AW136: 65.0 | AX136: 71.0 | AY136: 5 | AZ136: - | BA136: - | BB136: - | BC136: - | BD136: - | BE136: - | BF136: 1 | BG136: - | BH136: - | BI136: - | BJ136: 1 | BK136: 3 | BL136: - | BM136: - | BN136: - | BO136: 66.2 | BP136: 65.0 | BQ136: 71.0 | BR136: 3 | BS136: - | BT136: - | BU136: - | BV136: - | BW136: - | BX136: - | BY136: - | BZ136: - | CA136: - | CB136: - | CC136: 1 | CD136: 2 | CE136: - | CF136: - | CG136: - | CH136: 2 | CI136: - | CJ136: - | CK136: - | CL136: - | CM136: - | CN136: - | CO136: - | CP136: - | CQ136: - | CR136: 2 | CS136: - | CT136: - | CU136: - | CV136: 0 | CW136: 0 | CX136: 0 | CY136: 0 | CZ136: 0 | DA136: 0 | DB136: 0 | DC136: 8 | DD136: 5 | DE136: 5 | DF136: - | DG136: - | DH136: 1 | DI136: - | DJ136: 2 | DK136: 2 | DL136: - | DM136: - | DN136: - | DO136: - | DP136: 2 | DQ136: - | DR136: - | DS136: - | DT136: - | DU136: - | DV136: - | DW136: - | DX136: - | DY136: - | DZ136: - | EA136: 3 | EB136: 162 | EC136: 49 | ED136: 103 | EE136: 10 | EF136: 4 | EG136: 4 | EH136: 4 | EI136: - | EJ136: - | EK136: - | EL136: - | EM136: - | EN136: 4 | EO136: 1 | EP136: 1 | EQ136: - | ER136: - | ES136: 1 | ET136: - | EU136: 2
A137: 神奈川県 | B137: 戸塚区（横浜市） | C137: 戸塚町 | D137: 谷矢部 | E137: 11 | F137: 6 | G137: 3 | H137: 2 | I137: 2 | J137: 2 | K137: 1 | L137: 5 | M137: 23 | N137: - | O137: 2 | P137: - | Q137: 1 | R137: 1 | S137: 1 | T137: 4 | U137: 2 | V137: - | W137: - | X137: 4 | Y137: 6 | Z137: 2 | AA137: - | AB137: - | AC137: 56.3 | AD137: 56.7 | AE137: 55.9 | AF137: 16 | AG137: - | AH137: 1 | AI137: - | AJ137: - | AK137: 1 | AL137: - | AM137: 2 | AN137: 2 | AO137: - | AP137: - | AQ137: 3 | AR137: 5 | AS137: 2 | AT137: - | AU137: - | AV137: 60.6 | AW137: 56.9 | AX137: 66.7 | AY137: 14 | AZ137: - | BA137: - | BB137: - | BC137: - | BD137: 1 | BE137: - | BF137: 2 | BG137: 1 | BH137: - | BI137: - | BJ137: 3 | BK137: 5 | BL137: 2 | BM137: - | BN137: - | BO137: 64.1 | BP137: 61.0 | BQ137: 69.8 | BR137: 6 | BS137: - | BT137: - | BU137: - | BV137: - | BW137: - | BX137: - | BY137: 1 | BZ137: 1 | CA137: - | CB137: - | CC137: 1 | CD137: 3 | CE137: - | CF137: - | CG137: - | CH137: 4 | CI137: - | CJ137: - | CK137: - | CL137: - | CM137: - | CN137: - | CO137: - | CP137: - | CQ137: 1 | CR137: 3 | CS137: - | CT137: - | CU137: - | CV137: 0 | CW137: 0 | CX137: 0 | CY137: 0 | CZ137: 0 | DA137: 0 | DB137: 0 | DC137: 29 | DD137: 19 | DE137: 14 | DF137: 4 | DG137: 1 | DH137: 5 | DI137: 5 | DJ137: - | DK137: 6 | DL137: - | DM137: - | DN137: - | DO137: - | DP137: 5 | DQ137: 1 | DR137: - | DS137: - | DT137: - | DU137: - | DV137: - | DW137: - | DX137: - | DY137: - | DZ137: - | EA137: 6 | EB137: 454 | EC137: 10 | ED137: 424 | EE137: 20 | EF137: 13 | EG137: 11 | EH137: 9 | EI137: 1 | EJ137: 1 | EK137: - | EL137: 2 | EM137: - | EN137: 16 | EO137: 8 | EP137: 5 | EQ137: 3 | ER137: - | ES137: 5 | ET137: 3 | EU137: -
A138: 神奈川県 | B138: 戸塚区（横浜市） | C138: 戸塚町 | D138: 矢部 | E138: - | F138: - | G138: - | H138: - | I138: - | J138: - | K138: - | L138: - | M138: - | N138: - | O138: - | P138: - | Q138: - | R138: - | S138: - | T138: - | U138: - | V138: - | W138: - | X138: - | Y138: - | Z138: - | AA138: - | AB138: - | AC138: … | AD138: … | AE138: … | AF138: - | AG138: - | AH138: - | AI138: - | AJ138: - | AK138: - | AL138: - | AM138: - | AN138: - | AO138: - | AP138: - | AQ138: - | AR138: - | AS138: - | AT138: - | AU138: - | AV138: … | AW138: … | AX138: … | AY138: - | AZ138: - | BA138: - | BB138: - | BC138: - | BD138: - | BE138: - | BF138: - | BG138: - | BH138: - | BI138: - | BJ138: - | BK138: - | BL138: - | BM138: - | BN138: - | BO138: … | BP138: … | BQ138: … | BR138: - | BS138: - | BT138: - | BU138: - | BV138: - | BW138: - | BX138: - | BY138: - | BZ138: - | CA138: - | CB138: - | CC138: - | CD138: - | CE138: - | CF138: - | CG138: - | CH138: - | CI138: - | CJ138: - | CK138: - | CL138: - | CM138: - | CN138: - | CO138: - | CP138: - | CQ138: - | CR138: - | CS138: - | CT138: - | CU138: - | CV138: 0 | CW138: 0 | CX138: 0 | CY138: 0 | CZ138: 0 | DA138: 0 | DB138: 0 | DC138: - | DD138: - | DE138: - | DF138: - | DG138: - | DH138: - | DI138: - | DJ138: - | DK138: - | DL138: - | DM138: - | DN138: - | DO138: - | DP138: - | DQ138: - | DR138: - | DS138: - | DT138: - | DU138: - | DV138: - | DW138: - | DX138: - | DY138: - | DZ138: - | EA138: - | EB138: - | EC138: - | ED138: - | EE138: - | EF138: - | EG138: - | EH138: - | EI138: - | EJ138: - | EK138: - | EL138: - | EM138: - | EN138: - | EO138: - | EP138: - | EQ138: - | ER138: - | ES138: - | ET138: - | EU138: -
A139: 神奈川県 | B139: 戸塚区（横浜市） | C139: 戸塚町 | D139: 元町 | E139: 5 | F139: 1 | G139: x | H139: x | I139: x | J139: x | K139: x | L139: 4 | M139: x | N139: x | O139: x | P139: x | Q139: x | R139: x | S139: x | T139: x | U139: x | V139: x | W139: x | X139: x | Y139: x | Z139: x | AA139: x | AB139: x | AC139: 79.0 | AD139: 80.0 | AE139: 78.0 | AF139: x | AG139: x | AH139: x | AI139: x | AJ139: x | AK139: x | AL139: x | AM139: x | AN139: x | AO139: x | AP139: x | AQ139: x | AR139: x | AS139: x | AT139: x | AU139: x | AV139: 79.0 | AW139: 80.0 | AX139: 78.0 | AY139: x | AZ139: x | BA139: x | BB139: x | BC139: x | BD139: x | BE139: x | BF139: x | BG139: x | BH139: x | BI139: x | BJ139: x | BK139: x | BL139: x | BM139: x | BN139: x | BO139: 79.0 | BP139: 80.0 | BQ139: 78.0 | BR139: 1 | BS139: - | BT139: - | BU139: - | BV139: - | BW139: - | BX139: - | BY139: - | BZ139: - | CA139: - | CB139: - | CC139: - | CD139: - | CE139: - | CF139: 1 | CG139: - | CH139: - | CI139: - | CJ139: - | CK139: - | CL139: - | CM139: - | CN139: - | CO139: - | CP139: - | CQ139: - | CR139: - | CS139: - | CT139: - | CU139: - | CV139: 0 | CW139: 0 | CX139: 0 | CY139: 0 | CZ139: 0 | DA139: 0 | DB139: 0 | DC139: 2 | DD139: 2 | DE139: 2 | DF139: - | DG139: - | DH139: - | DI139: - | DJ139: - | DK139: 1 | DL139: - | DM139: - | DN139: - | DO139: - | DP139: - | DQ139: - | DR139: - | DS139: - | DT139: - | DU139: 1 | DV139: - | DW139: - | DX139: - | DY139: - | DZ139: - | EA139: 1 | EB139: 20 | EC139: - | ED139: 20 | EE139: - | EF139: 1 | EG139: 1 | EH139: 1 | EI139: - | EJ139: - | EK139: - | EL139: - | EM139: - | EN139: 1 | EO139: 1 | EP139: 1 | EQ139: - | ER139: - | ES139: - | ET139: - | EU139: -
A140: 神奈川県 | B140: 戸塚区（横浜市） | C140: 豊田村２－１ | E140: 10 | F140: 4 | G140: 1 | H140: 1 | I140: 1 | J140: 1 | K140: 2 | L140: 6 | M140: 9 | N140: - | O140: - | P140: - | Q140: - | R140: - | S140: 2 | T140: - | U140: - | V140: 1 | W140: 1 | X140: - | Y140: 3 | Z140: - | AA140: 1 | AB140: 1 | AC140: 66.0 | AD140: 70.8 | AE140: 60.0 | AF140: 7 | AG140: - | AH140: - | AI140: - | AJ140: - | AK140: - | AL140: 1 | AM140: - | AN140: - | AO140: 1 | AP140: 1 | AQ140: - | AR140: 2 | AS140: - | AT140: 1 | AU140: 1 | AV140: 68.6 | AW140: 70.8 | AX140: 63.0 | AY140: 6 | AZ140: - | BA140: - | BB140: - | BC140: - | BD140: - | BE140: 1 | BF140: - | BG140: - | BH140: - | BI140: 1 | BJ140: - | BK140: 2 | BL140: - | BM140: 1 | BN140: 1 | BO140: 70.7 | BP140: 70.8 | BQ140: 70.0 | BR140: 4 | BS140: - | BT140: - | BU140: - | BV140: - | BW140: - | BX140: 1 | BY140: - | BZ140: - | CA140: - | CB140: 1 | CC140: - | CD140: 1 | CE140: - | CF140: - | CG140: 1 | CH140: 1 | CI140: - | CJ140: - | CK140: - | CL140: - | CM140: - | CN140: - | CO140: - | CP140: - | CQ140: - | CR140: - | CS140: - | CT140: - | CU140: 1 | CV140: 0 | CW140: 0 | CX140: 0 | CY140: 0 | CZ140: 0 | DA140: 0 | DB140: 0 | DC140: 9 | DD140: 7 | DE140: 6 | DF140: - | DG140: 1 | DH140: 2 | DI140: - | DJ140: - | DK140: 4 | DL140: - | DM140: - | DN140: - | DO140: - | DP140: 4 | DQ140: - | DR140: - | DS140: - | DT140: - | DU140: - | DV140: - | DW140: - | DX140: - | DY140: - | DZ140: - | EA140: 4 | EB140: 115 | EC140: - | ED140: 102 | EE140: 13 | EF140: 5 | EG140: 5 | EH140: 5 | EI140: - | EJ140: - | EK140: - | EL140: - | EM140: - | EN140: 4 | EO140: 2 | EP140: 1 | EQ140: - | ER140: 1 | ES140: 2 | ET140: - | EU140: -
A141: 神奈川県 | B141: 戸塚区（横浜市） | C141: 豊田村２－１ | D141: 上倉田 | E141: 6 | F141: 3 | G141: x | H141: x | I141: x | J141: x | K141: x | L141: 3 | M141: x | N141: x | O141: x | P141: x | Q141: x | R141: x | S141: x | T141: x | U141: x | V141: x | W141: x | X141: x | Y141: x | Z141: x | AA141: x | AB141: x | AC141: 62.6 | AD141: 65.3 | AE141: 60.0 | AF141: x | AG141: x | AH141: x | AI141: x | AJ141: x | AK141: x | AL141: x | AM141: x | AN141: x | AO141: x | AP141: x | AQ141: x | AR141: x | AS141: x | AT141: x | AU141: x | AV141: 64.5 | AW141: 65.3 | AX141: 63.0 | AY141: x | AZ141: x | BA141: x | BB141: x | BC141: x | BD141: x | BE141: x | BF141: x | BG141: x | BH141: x | BI141: x | BJ141: x | BK141: x | BL141: x | BM141: x | BN141: x | BO141: 66.2 | BP141: 65.3 | BQ141: 70.0 | BR141: 3 | BS141: - | BT141: - | BU141: - | BV141: - | BW141: - | BX141: 1 | BY141: - | BZ141: - | CA141: - | CB141: 1 | CC141: - | CD141: 1 | CE141: - | CF141: - | CG141: - | CH141: - | CI141: - | CJ141: - | CK141: - | CL141: - | CM141: - | CN141: - | CO141: - | CP141: - | CQ141: - | CR141: - | CS141: - | CT141: - | CU141: - | CV141: 0 | CW141: 0 | CX141: 0 | CY141: 0 | CZ141: 0 | DA141: 0 | DB141: 0 | DC141: 8 | DD141: 6 | DE141: 5 | DF141: - | DG141: 1 | DH141: 2 | DI141: - | DJ141: - | DK141: 3 | DL141: - | DM141: - | DN141: - | DO141: - | DP141: 3 | DQ141: - | DR141: - | DS141: - | DT141: - | DU141: - | DV141: - | DW141: - | DX141: - | DY141: - | DZ141: - | EA141: 3 | EB141: 85 | EC141: - | ED141: 82 | EE141: 3 | EF141: 4 | EG141: 4 | EH141: 4 | EI141: - | EJ141: - | EK141: - | EL141: - | EM141: - | EN141: 4 | EO141: 2 | EP141: 1 | EQ141: - | ER141: 1 | ES141: 2 | ET141: - | EU141: -
A142: 神奈川県 | B142: 戸塚区（横浜市） | C142: 豊田村２－１ | D142: 下倉田 | E142: 4 | F142: 1 | G142: x | H142: x | I142: x | J142: x | K142: x | L142: 3 | M142: x | N142: x | O142: x | P142: x | Q142: x | R142: x | S142: x | T142: x | U142: x | V142: x | W142: x | X142: x | Y142: x | Z142: x | AA142: x | AB142: x | AC142: 93.0 | AD142: 93.0 | AE142: … | AF142: x | AG142: x | AH142: x | AI142: x | AJ142: x | AK142: x | AL142: x | AM142: x | AN142: x | AO142: x | AP142: x | AQ142: x | AR142: x | AS142: x | AT142: x | AU142: x | AV142: 93.0 | AW142: 93.0 | AX142: … | AY142: x | AZ142: x | BA142: x | BB142: x | BC142: x | BD142: x | BE142: x | BF142: x | BG142: x | BH142: x | BI142: x | BJ142: x | BK142: x | BL142: x | BM142: x | BN142: x | BO142: 93.0 | BP142: 93.0 | BQ142: … | BR142: 1 | BS142: - | BT142: - | BU142: - | BV142: - | BW142: - | BX142: - | BY142: - | BZ142: - | CA142: - | CB142: - | CC142: - | CD142: - | CE142: - | CF142: - | CG142: 1 | CH142: 1 | CI142: - | CJ142: - | CK142: - | CL142: - | CM142: - | CN142: - | CO142: - | CP142: - | CQ142: - | CR142: - | CS142: - | CT142: - | CU142: 1 | CV142: 0 | CW142: 0 | CX142: 0 | CY142: 0 | CZ142: 0 | DA142: 0 | DB142: 0 | DC142: 1 | DD142: 1 | DE142: 1 | DF142: - | DG142: - | DH142: - | DI142: - | DJ142: - | DK142: 1 | DL142: - | DM142: - | DN142: - | DO142: - | DP142: 1 | DQ142: - | DR142: - | DS142: - | DT142: - | DU142: - | DV142: - | DW142: - | DX142: - | DY142: - | DZ142: - | EA142: 1 | EB142: 30 | EC142: - | ED142: 20 | EE142: 10 | EF142: 1 | EG142: 1 | EH142: 1 | EI142: - | EJ142: - | EK142: - | EL142: - | EM142: - | EN142: - | EO142: - | EP142: - | EQ142: - | ER142: - | ES142: - | ET142: - | EU142: -
A143: 神奈川県 | B143: 戸塚区（横浜市） | C143: 川上村 | E143: 92 | F143: 51 | G143: 22 | H143: 19 | I143: 12 | J143: 8 | K143: 17 | L143: 41 | M143: 148 | N143: - | O143: - | P143: 7 | Q143: 4 | R143: 7 | S143: 8 | T143: 10 | U143: 14 | V143: 21 | W143: 13 | X143: 12 | Y143: 17 | Z143: 20 | AA143: 10 | AB143: 5 | AC143: 60.5 | AD143: 58.9 | AE143: 62.1 | AF143: 124 | AG143: - | AH143: - | AI143: 3 | AJ143: 3 | AK143: 7 | AL143: 6 | AM143: 5 | AN143: 12 | AO143: 15 | AP143: 12 | AQ143: 12 | AR143: 17 | AS143: 17 | AT143: 10 | AU143: 5 | AV143: 62.6 | AW143: 61.9 | AX143: 63.4 | AY143: 104 | AZ143: - | BA143: - | BB143: 2 | BC143: 2 | BD143: 4 | BE143: 5 | BF143: 5 | BG143: 7 | BH143: 13 | BI143: 9 | BJ143: 12 | BK143: 16 | BL143: 16 | BM143: 8 | BN143: 5 | BO143: 64.1 | BP143: 62.1 | BQ143: 67.4 | BR143: 51 | BS143: - | BT143: - | BU143: - | BV143: - | BW143: - | BX143: - | BY143: 1 | BZ143: 5 | CA143: 5 | CB143: 6 | CC143: 6 | CD143: 9 | CE143: 11 | CF143: 5 | CG143: 3 | CH143: 35 | CI143: - | CJ143: - | CK143: - | CL143: - | CM143: - | CN143: 2 | CO143: 4 | CP143: 5 | CQ143: 5 | CR143: 6 | CS143: 7 | CT143: 4 | CU143: 2 | CV143: 0 | CW143: 0 | CX143: 0 | CY143: 0 | CZ143: 0 | DA143: 0 | DB143: 0 | DC143: 211 | DD143: 138 | DE143: 104 | DF143: 29 | DG143: 5 | DH143: 31 | DI143: 23 | DJ143: 19 | DK143: 48 | DL143: - | DM143: - | DN143: 1 | DO143: - | DP143: 28 | DQ143: 4 | DR143: 11 | DS143: 1 | DT143: - | DU143: 2 | DV143: - | DW143: 1 | DX143: - | DY143: - | DZ143: - | EA143: 51 | EB143: 3,492 | EC143: 385 | ED143: 2,230 | EE143: 877 | EF143: 107 | EG143: 85 | EH143: 64 | EI143: 21 | EJ143: - | EK143: - | EL143: 14 | EM143: 8 | EN143: 104 | EO143: 53 | EP143: 40 | EQ143: 8 | ER143: 5 | ES143: 31 | ET143: 9 | EU143: 11
A144: 神奈川県 | B144: 戸塚区（横浜市） | C144: 川上村 | D144: 川上 | E144: 12 | F144: 6 | G144: 2 | H144: 1 | I144: 1 | J144: 1 | K144: 3 | L144: 6 | M144: 18 | N144: - | O144: - | P144: - | Q144: - | R144: - | S144: - | T144: 3 | U144: 1 | V144: 3 | W144: - | X144: 1 | Y144: 2 | Z144: 5 | AA144: 3 | AB144: - | AC144: 67.3 | AD144: 67.6 | AE144: 66.9 | AF144: 15 | AG144: - | AH144: - | AI144: - | AJ144: - | AK144: - | AL144: - | AM144: 1 | AN144: 1 | AO144: 2 | AP144: - | AQ144: 1 | AR144: 2 | AS144: 5 | AT144: 3 | AU144: - | AV144: 70.7 | AW144: 69.8 | AX144: 72.2 | AY144: 13 | AZ144: - | BA144: - | BB144: - | BC144: - | BD144: - | BE144: - | BF144: 1 | BG144: - | BH144: 2 | BI144: - | BJ144: 1 | BK144: 2 | BL144: 5 | BM144: 2 | BN144: - | BO144: 71.0 | BP144: 69.8 | BQ144: 73.8 | BR144: 6 | BS144: - | BT144: - | BU144: - | BV144: - | BW144: - | BX144: - | BY144: - | BZ144: - | CA144: - | CB144: - | CC144: - | CD144: 1 | CE144: 3 | CF144: 2 | CG144: - | CH144: 5 | CI144: - | CJ144: - | CK144: - | CL144: - | CM144: - | CN144: - | CO144: - | CP144: - | CQ144: - | CR144: - | CS144: 3 | CT144: 2 | CU144: - | CV144: 0 | CW144: 0 | CX144: 0 | CY144: 0 | CZ144: 0 | DA144: 0 | DB144: 0 | DC144: 28 | DD144: 16 | DE144: 13 | DF144: 3 | DG144: - | DH144: 6 | DI144: 5 | DJ144: 1 | DK144: 6 | DL144: - | DM144: - | DN144: - | DO144: - | DP144: 5 | DQ144: - | DR144: 1 | DS144: - | DT144: - | DU144: - | DV144: - | DW144: - | DX144: - | DY144: - | DZ144: - | EA144: 6 | EB144: 279 | EC144: - | ED144: 204 | EE144: 75 | EF144: 17 | EG144: 12 | EH144: 9 | EI144: 3 | EJ144: - | EK144: - | EL144: 4 | EM144: 1 | EN144: 11 | EO144: 4 | EP144: 4 | EQ144: - | ER144: - | ES144: 6 | ET144: 1 | EU144: -
A145: 神奈川県 | B145: 戸塚区（横浜市） | C145: 川上村 | D145: 品濃第一 | E145: 4 | F145: 3 | G145: - | H145: - | I145: 1 | J145: 1 | K145: 2 | L145: 1 | M145: 11 | N145: - | O145: - | P145: 2 | Q145: - | R145: - | S145: - | T145: 1 | U145: 1 | V145: 3 | W145: 1 | X145: - | Y145: - | Z145: 1 | AA145: - | AB145: 2 | AC145: 57.7 | AD145: 49.8 | AE145: 64.3 | AF145: 5 | AG145: - | AH145: - | AI145: - | AJ145: - | AK145: - | AL145: - | AM145: - | AN145: 1 | AO145: 1 | AP145: 1 | AQ145: - | AR145: - | AS145: - | AT145: - | AU145: 2 | AV145: 69.2 | AW145: 65.0 | AX145: 75.5 | AY145: 4 | AZ145: - | BA145: - | BB145: - | BC145: - | BD145: - | BE145: - | BF145: - | BG145: 1 | BH145: 1 | BI145: - | BJ145: - | BK145: - | BL145: - | BM145: - | BN145: 2 | BO145: 71.3 | BP145: 65.0 | BQ145: 90.0 | BR145: 3 | BS145: - | BT145: - | BU145: - | BV145: - | BW145: - | BX145: - | BY145: - | BZ145: 1 | CA145: - | CB145: - | CC145: - | CD145: - | CE145: - | CF145: - | CG145: 2 | CH145: 1 | CI145: - | CJ145: - | CK145: - | CL145: - | CM145: - | CN145: - | CO145: - | CP145: - | CQ145: - | CR145: - | CS145: - | CT145: - | CU145: 1 | CV145: 0 | CW145: 0 | CX145: 0 | CY145: 0 | CZ145: 0 | DA145: 0 | DB145: 0 | DC145: 13 | DD145: 7 | DE145: 4 | DF145: 2 | DG145: 1 | DH145: 4 | DI145: - | DJ145: 2 | DK145: 2 | DL145: - | DM145: - | DN145: - | DO145: - | DP145: 2 | DQ145: - | DR145: - | DS145: - | DT145: - | DU145: - | DV145: - | DW145: - | DX145: - | DY145: - | DZ145: - | EA145: 3 | EB145: 110 | EC145: - | ED145: 96 | EE145: 14 | EF145: 6 | EG145: 5 | EH145: 3 | EI145: 2 | EJ145: - | EK145: - | EL145: - | EM145: 1 | EN145: 7 | EO145: 2 | EP145: 1 | EQ145: - | ER145: 1 | ES145: 4 | ET145: - | EU145: 1
A146: 神奈川県 | B146: 戸塚区（横浜市） | C146: 川上村 | D146: 品濃第二 | E146: 5 | F146: 2 | G146: x | H146: x | I146: x | J146: x | K146: x | L146: 3 | M146: x | N146: x | O146: x | P146: x | Q146: x | R146: x | S146: x | T146: x | U146: x | V146: x | W146: x | X146: x | Y146: x | Z146: x | AA146: x | AB146: x | AC146: 58.0 | AD146: 56.0 | AE146: 58.7 | AF146: x | AG146: x | AH146: x | AI146: x | AJ146: x | AK146: x | AL146: x | AM146: x | AN146: x | AO146: x | AP146: x | AQ146: x | AR146: x | AS146: x | AT146: x | AU146: x | AV146: 58.7 | AW146: 56.0 | AX146: 60.0 | AY146: x | AZ146: x | BA146: x | BB146: x | BC146: x | BD146: x | BE146: x | BF146: x | BG146: x | BH146: x | BI146: x | BJ146: x | BK146: x | BL146: x | BM146: x | BN146: x | BO146: 58.7 | BP146: 56.0 | BQ146: 60.0 | BR146: 2 | BS146: - | BT146: - | BU146: - | BV146: - | BW146: - | BX146: - | BY146: - | BZ146: - | CA146: 1 | CB146: - | CC146: - | CD146: 1 | CE146: - | CF146: - | CG146: - | CH146: 1 | CI146: - | CJ146: - | CK146: - | CL146: - | CM146: - | CN146: - | CO146: - | CP146: - | CQ146: - | CR146: 1 | CS146: - | CT146: - | CU146: - | CV146: 0 | CW146: 0 | CX146: 0 | CY146: 0 | CZ146: 0 | DA146: 0 | DB146: 0 | DC146: 6 | DD146: 4 | DE146: 3 | DF146: 1 | DG146: - | DH146: 1 | DI146: - | DJ146: 1 | DK146: 2 | DL146: - | DM146: - | DN146: - | DO146: - | DP146: - | DQ146: - | DR146: - | DS146: - | DT146: - | DU146: 2 | DV146: - | DW146: - | DX146: - | DY146: - | DZ146: - | EA146: 2 | EB146: 110 | EC146: - | ED146: 110 | EE146: - | EF146: 2 | EG146: 2 | EH146: 1 | EI146: 1 | EJ146: - | EK146: - | EL146: - | EM146: - | EN146: 4 | EO146: 2 | EP146: 2 | EQ146: - | ER146: - | ES146: 1 | ET146: - | EU146: 1
A147: 神奈川県 | B147: 戸塚区（横浜市） | C147: 川上村 | D147: 蒔田野 | E147: 6 | F147: 4 | G147: 1 | H147: 1 | I147: 2 | J147: 1 | K147: 1 | L147: 2 | M147: 14 | N147: - | O147: - | P147: - | Q147: - | R147: 2 | S147: 2 | T147: 1 | U147: - | V147: 2 | W147: 1 | X147: 1 | Y147: 3 | Z147: - | AA147: 1 | AB147: 1 | AC147: 59.6 | AD147: 59.8 | AE147: 59.5 | AF147: 11 | AG147: - | AH147: - | AI147: - | AJ147: - | AK147: 2 | AL147: - | AM147: - | AN147: - | AO147: 2 | AP147: 1 | AQ147: 1 | AR147: 3 | AS147: - | AT147: 1 | AU147: 1 | AV147: 64.2 | AW147: 65.7 | AX147: 62.4 | AY147: 9 | AZ147: - | BA147: - | BB147: - | BC147: - | BD147: 1 | BE147: - | BF147: - | BG147: - | BH147: 1 | BI147: 1 | BJ147: 1 | BK147: 3 | BL147: - | BM147: 1 | BN147: 1 | BO147: 68.0 | BP147: 65.7 | BQ147: 72.7 | BR147: 4 | BS147: - | BT147: - | BU147: - | BV147: - | BW147: - | BX147: - | BY147: - | BZ147: - | CA147: - | CB147: - | CC147: 1 | CD147: 2 | CE147: - | CF147: 1 | CG147: - | CH147: 4 | CI147: - | CJ147: - | CK147: - | CL147: - | CM147: - | CN147: - | CO147: - | CP147: - | CQ147: 1 | CR147: 2 | CS147: - | CT147: 1 | CU147: - | CV147: 0 | CW147: 0 | CX147: 0 | CY147: 0 | CZ147: 0 | DA147: 0 | DB147: 0 | DC147: 17 | DD147: 14 | DE147: 9 | DF147: 5 | DG147: - | DH147: 3 | DI147: - | DJ147: - | DK147: 4 | DL147: - | DM147: - | DN147: - | DO147: - | DP147: 2 | DQ147: - | DR147: 2 | DS147: - | DT147: - | DU147: - | DV147: - | DW147: - | DX147: - | DY147: - | DZ147: - | EA147: 4 | EB147: 242 | EC147: - | ED147: 125 | EE147: 117 | EF147: 9 | EG147: 9 | EH147: 6 | EI147: 3 | EJ147: - | EK147: - | EL147: - | EM147: - | EN147: 8 | EO147: 5 | EP147: 3 | EQ147: 2 | ER147: - | ES147: 3 | ET147: - | EU147: -
A148: 神奈川県 | B148: 戸塚区（横浜市） | C148: 川上村 | D148: 会下根 | E148: 6 | F148: 4 | G148: 2 | H148: 2 | I148: 2 | J148: 1 | K148: - | L148: 2 | M148: 14 | N148: - | O148: - | P148: - | Q148: - | R148: 3 | S148: - | T148: - | U148: 3 | V148: - | W148: 2 | X148: 2 | Y148: - | Z148: 3 | AA148: 1 | AB148: - | AC148: 60.1 | AD148: 61.7 | AE148: 58.4 | AF148: 11 | AG148: - | AH148: - | AI148: - | AJ148: - | AK148: 3 | AL148: - | AM148: - | AN148: 2 | AO148: - | AP148: 2 | AQ148: 2 | AR148: - | AS148: 1 | AT148: 1 | AU148: - | AV148: 57.5 | AW148: 63.3 | AX148: 50.6 | AY148: 7 | AZ148: - | BA148: - | BB148: - | BC148: - | BD148: 1 | BE148: - | BF148: - | BG148: 1 | BH148: - | BI148: 1 | BJ148: 2 | BK148: - | BL148: 1 | BM148: 1 | BN148: - | BO148: 63.3 | BP148: 63.3 | BQ148: 63.0 | BR148: 4 | BS148: - | BT148: - | BU148: - | BV148: - | BW148: - | BX148: - | BY148: - | BZ148: 1 | CA148: - | CB148: - | CC148: 2 | CD148: - | CE148: 1 | CF148: - | CG148: - | CH148: 3 | CI148: - | CJ148: - | CK148: - | CL148: - | CM148: - | CN148: - | CO148: - | CP148: - | CQ148: 2 | CR148: - | CS148: 1 | CT148: - | CU148: - | CV148: 0 | CW148: 0 | CX148: 0 | CY148: 0 | CZ148: 0 | DA148: 0 | DB148: 0 | DC148: 19 | DD148: 11 | DE148: 7 | DF148: 3 | DG148: 1 | DH148: 5 | DI148: 2 | DJ148: 1 | DK148: 4 | DL148: - | DM148: - | DN148: - | DO148: - | DP148: 1 | DQ148: - | DR148: 3 | DS148: - | DT148: - | DU148: - | DV148: - | DW148: - | DX148: - | DY148: - | DZ148: - | EA148: 4 | EB148: 299 | EC148: - | ED148: 87 | EE148: 212 | EF148: 8 | EG148: 7 | EH148: 6 | EI148: 1 | EJ148: - | EK148: - | EL148: 1 | EM148: - | EN148: 11 | EO148: 4 | EP148: 1 | EQ148: 2 | ER148: 1 | ES148: 5 | ET148: 1 | EU148: 1
A149: 神奈川県 | B149: 戸塚区（横浜市） | C149: 川上村 | D149: 平戸台 | E149: 4 | F149: 2 | G149: x | H149: x | I149: x | J149: x | K149: x | L149: 2 | M149: x | N149: x | O149: x | P149: x | Q149: x | R149: x | S149: x | T149: x | U149: x | V149: x | W149: x | X149: x | Y149: x | Z149: x | AA149: x | AB149: x | AC149: 55.5 | AD149: 55.5 | AE149: 55.5 | AF149: x | AG149: x | AH149: x | AI149: x | AJ149: x | AK149: x | AL149: x | AM149: x | AN149: x | AO149: x | AP149: x | AQ149: x | AR149: x | AS149: x | AT149: x | AU149: x | AV149: 55.5 | AW149: 55.5 | AX149: 55.5 | AY149: x | AZ149: x | BA149: x | BB149: x | BC149: x | BD149: x | BE149: x | BF149: x | BG149: x | BH149: x | BI149: x | BJ149: x | BK149: x | BL149: x | BM149: x | BN149: x | BO149: 56.7 | BP149: 55.5 | BQ149: 59.0 | BR149: 2 | BS149: - | BT149: - | BU149: - | BV149: - | BW149: - | BX149: - | BY149: - | BZ149: 1 | CA149: 1 | CB149: - | CC149: - | CD149: - | CE149: - | CF149: - | CG149: - | CH149: 2 | CI149: - | CJ149: - | CK149: - | CL149: - | CM149: - | CN149: 1 | CO149: 1 | CP149: - | CQ149: - | CR149: - | CS149: - | CT149: - | CU149: - | CV149: 0 | CW149: 0 | CX149: 0 | CY149: 0 | CZ149: 0 | DA149: 0 | DB149: 0 | DC149: 13 | DD149: 4 | DE149: 3 | DF149: 1 | DG149: - | DH149: 1 | DI149: 5 | DJ149: 3 | DK149: 2 | DL149: - | DM149: - | DN149: - | DO149: - | DP149: 1 | DQ149: - | DR149: 1 | DS149: - | DT149: - | DU149: - | DV149: - | DW149: - | DX149: - | DY149: - | DZ149: - | EA149: 2 | EB149: 189 | EC149: - | ED149: 57 | EE149: 132 | EF149: 6 | EG149: 2 | EH149: 2 | EI149: - | EJ149: - | EK149: - | EL149: 3 | EM149: 1 | EN149: 7 | EO149: 2 | EP149: 1 | EQ149: 1 | ER149: - | ES149: 1 | ET149: 2 | EU149: 2
A150: 神奈川県 | B150: 戸塚区（横浜市） | C150: 川上村 | D150: 前田 | E150: - | F150: - | G150: - | H150: - | I150: - | J150: - | K150: - | L150: - | M150: - | N150: - | O150: - | P150: - | Q150: - | R150: - | S150: - | T150: - | U150: - | V150: - | W150: - | X150: - | Y150: - | Z150: - | AA150: - | AB150: - | AC150: … | AD150: … | AE150: … | AF150: - | AG150: - | AH150: - | AI150: - | AJ150: - | AK150: - | AL150: - | AM150: - | AN150: - | AO150: - | AP150: - | AQ150: - | AR150: - | AS150: - | AT150: - | AU150: - | AV150: … | AW150: … | AX150: … | AY150: - | AZ150: - | BA150: - | BB150: - | BC150: - | BD150: - | BE150: - | BF150: - | BG150: - | BH150: - | BI150: - | BJ150: - | BK150: - | BL150: - | BM150: - | BN150: - | BO150: … | BP150: … | BQ150: … | BR150: - | BS150: - | BT150: - | BU150: - | BV150: - | BW150: - | BX150: - | BY150: - | BZ150: - | CA150: - | CB150: - | CC150: - | CD150: - | CE150: - | CF150: - | CG150: - | CH150: - | CI150: - | CJ150: - | CK150: - | CL150: - | CM150: - | CN150: - | CO150: - | CP150: - | CQ150: - | CR150: - | CS150: - | CT150: - | CU150: - | CV150: 0 | CW150: 0 | CX150: 0 | CY150: 0 | CZ150: 0 | DA150: 0 | DB150: 0 | DC150: - | DD150: - | DE150: - | DF150: - | DG150: - | DH150: - | DI150: - | DJ150: - | DK150: - | DL150: - | DM150: - | DN150: - | DO150: - | DP150: - | DQ150: - | DR150: - | DS150: - | DT150: - | DU150: - | DV150: - | DW150: - | DX150: - | DY150: - | DZ150: - | EA150: - | EB150: - | EC150: - | ED150: - | EE150: - | EF150: - | EG150: - | EH150: - | EI150: - | EJ150: - | EK150: - | EL150: - | EM150: - | EN150: - | EO150: - | EP150: - | EQ150: - | ER150: - | ES150: - | ET150: - | EU150: -
A151: 神奈川県 | B151: 戸塚区（横浜市） | C151: 川上村 | D151: 秋葉 | E151: 5 | F151: - | G151: - | H151: - | I151: - | J151: - | K151: - | L151: 5 | M151: - | N151: - | O151: - | P151: - | Q151: - | R151: - | S151: - | T151: - | U151: - | V151: - | W151: - | X151: - | Y151: - | Z151: - | AA151: - | AB151: - | AC151: … | AD151: … | AE151: … | AF151: - | AG151: - | AH151: - | AI151: - | AJ151: - | AK151: - | AL151: - | AM151: - | AN151: - | AO151: - | AP151: - | AQ151: - | AR151: - | AS151: - | AT151: - | AU151: - | AV151: … | AW151: … | AX151: … | AY151: - | AZ151: - | BA151: - | BB151: - | BC151: - | BD151: - | BE151: - | BF151: - | BG151: - | BH151: - | BI151: - | BJ151: - | BK151: - | BL151: - | BM151: - | BN151: - | BO151: … | BP151: … | BQ151: … | BR151: - | BS151: - | BT151: - | BU151: - | BV151: - | BW151: - | BX151: - | BY151: - | BZ151: - | CA151: - | CB151: - | CC151: - | CD151: - | CE151: - | CF151: - | CG151: - | CH151: - | CI151: - | CJ151: - | CK151: - | CL151: - | CM151: - | CN151: - | CO151: - | CP151: - | CQ151: - | CR151: - | CS151: - | CT151: - | CU151: - | CV151: 0 | CW151: 0 | CX151: 0 | CY151: 0 | CZ151: 0 | DA151: 0 | DB151: 0 | DC151: - | DD151: - | DE151: - | DF151: - | DG151: - | DH151: - | DI151: - | DJ151: - | DK151: - | DL151: - | DM151: - | DN151: - | DO151: - | DP151: - | DQ151: - | DR151: - | DS151: - | DT151: - | DU151: - | DV151: - | DW151: - | DX151: - | DY151: - | DZ151: - | EA151: - | EB151: - | EC151: - | ED151: - | EE151: - | EF151: - | EG151: - | EH151: - | EI151: - | EJ151: - | EK151: - | EL151: - | EM151: - | EN151: - | EO151: - | EP151: - | EQ151: - | ER151: - | ES151: - | ET151: - | EU151: -
A152: 神奈川県 | B152: 戸塚区（横浜市） | C152: 川上村 | D152: 上柏尾 | E152: 1 | F152: 1 | G152: x | H152: x | I152: x | J152: x | K152: x | L152: - | M152: x | N152: x | O152: x | P152: x | Q152: x | R152: x | S152: x | T152: x | U152: x | V152: x | W152: x | X152: x | Y152: x | Z152: x | AA152: x | AB152: x | AC152: 65.5 | AD152: 54.0 | AE152: 77.0 | AF152: x | AG152: x | AH152: x | AI152: x | AJ152: x | AK152: x | AL152: x | AM152: x | AN152: x | AO152: x | AP152: x | AQ152: x | AR152: x | AS152: x | AT152: x | AU152: x | AV152: 77.0 | AW152: … | AX152: 77.0 | AY152: x | AZ152: x | BA152: x | BB152: x | BC152: x | BD152: x | BE152: x | BF152: x | BG152: x | BH152: x | BI152: x | BJ152: x | BK152: x | BL152: x | BM152: x | BN152: x | BO152: 77.0 | BP152: … | BQ152: 77.0 | BR152: 1 | BS152: - | BT152: - | BU152: - | BV152: - | BW152: - | BX152: - | BY152: - | BZ152: - | CA152: - | CB152: - | CC152: - | CD152: - | CE152: 1 | CF152: - | CG152: - | CH152: 1 | CI152: - | CJ152: - | CK152: - | CL152: - | CM152: - | CN152: - | CO152: - | CP152: - | CQ152: - | CR152: - | CS152: 1 | CT152: - | CU152: - | CV152: 0 | CW152: 0 | CX152: 0 | CY152: 0 | CZ152: 0 | DA152: 0 | DB152: 0 | DC152: 7 | DD152: 2 | DE152: 1 | DF152: 1 | DG152: - | DH152: 1 | DI152: 1 | DJ152: 3 | DK152: 1 | DL152: - | DM152: - | DN152: - | DO152: - | DP152: 1 | DQ152: - | DR152: - | DS152: - | DT152: - | DU152: - | DV152: - | DW152: - | DX152: - | DY152: - | DZ152: - | EA152: 1 | EB152: 42 | EC152: - | ED152: 42 | EE152: - | EF152: 3 | EG152: 1 | EH152: - | EI152: 1 | EJ152: - | EK152: - | EL152: - | EM152: 2 | EN152: 4 | EO152: 1 | EP152: 1 | EQ152: - | ER152: - | ES152: 1 | ET152: 1 | EU152: 1
A153: 神奈川県 | B153: 戸塚区（横浜市） | C153: 川上村 | D153: 柏尾 | E153: 3 | F153: 3 | G153: 1 | H153: 1 | I153: 1 | J153: - | K153: 1 | L153: - | M153: 9 | N153: - | O153: - | P153: - | Q153: - | R153: - | S153: - | T153: 2 | U153: 1 | V153: 1 | W153: - | X153: - | Y153: 1 | Z153: 2 | AA153: 2 | AB153: - | AC153: 64.9 | AD153: 61.6 | AE153: 69.0 | AF153: 8 | AG153: - | AH153: - | AI153: - | AJ153: - | AK153: - | AL153: - | AM153: 1 | AN153: 1 | AO153: 1 | AP153: - | AQ153: - | AR153: 1 | AS153: 2 | AT153: 2 | AU153: - | AV153: 67.1 | AW153: 65.3 | AX153: 69.0 | AY153: 8 | AZ153: - | BA153: - | BB153: - | BC153: - | BD153: - | BE153: - | BF153: 1 | BG153: 1 | BH153: 1 | BI153: - | BJ153: - | BK153: 1 | BL153: 2 | BM153: 2 | BN153: - | BO153: 67.1 | BP153: 65.3 | BQ153: 69.0 | BR153: 3 | BS153: - | BT153: - | BU153: - | BV153: - | BW153: - | BX153: - | BY153: 1 | BZ153: - | CA153: - | CB153: - | CC153: - | CD153: - | CE153: 1 | CF153: 1 | CG153: - | CH153: 1 | CI153: - | CJ153: - | CK153: - | CL153: - | CM153: - | CN153: - | CO153: - | CP153: - | CQ153: - | CR153: - | CS153: - | CT153: 1 | CU153: - | CV153: 0 | CW153: 0 | CX153: 0 | CY153: 0 | CZ153: 0 | DA153: 0 | DB153: 0 | DC153: 15 | DD153: 13 | DE153: 8 | DF153: 4 | DG153: 1 | DH153: - | DI153: 1 | DJ153: 1 | DK153: 3 | DL153: - | DM153: - | DN153: - | DO153: - | DP153: 2 | DQ153: 1 | DR153: - | DS153: - | DT153: - | DU153: - | DV153: - | DW153: - | DX153: - | DY153: - | DZ153: - | EA153: 3 | EB153: 102 | EC153: - | ED153: 102 | EE153: - | EF153: 8 | EG153: 7 | EH153: 4 | EI153: 3 | EJ153: - | EK153: - | EL153: - | EM153: 1 | EN153: 7 | EO153: 6 | EP153: 4 | EQ153: 1 | ER153: 1 | ES153: - | ET153: 1 | EU153: -
A154: 神奈川県 | B154: 戸塚区（横浜市） | C154: 川上村 | D154: 舞岡下分 | E154: 10 | F154: 4 | G154: 2 | H154: 1 | I154: - | J154: - | K154: 2 | L154: 6 | M154: 11 | N154: - | O154: - | P154: - | Q154: - | R154: - | S154: 1 | T154: 1 | U154: 2 | V154: - | W154: - | X154: - | Y154: 1 | Z154: 4 | AA154: 1 | AB154: 1 | AC154: 67.2 | AD154: 70.0 | AE154: 63.8 | AF154: 11 | AG154: - | AH154: - | AI154: - | AJ154: - | AK154: - | AL154: 1 | AM154: 1 | AN154: 2 | AO154: - | AP154: - | AQ154: - | AR154: 1 | AS154: 4 | AT154: 1 | AU154: 1 | AV154: 67.2 | AW154: 70.0 | AX154: 63.8 | AY154: 7 | AZ154: - | BA154: - | BB154: - | BC154: - | BD154: - | BE154: - | BF154: 1 | BG154: 1 | BH154: - | BI154: - | BJ154: - | BK154: - | BL154: 3 | BM154: 1 | BN154: 1 | BO154: 70.7 | BP154: 70.0 | BQ154: 75.0 | BR154: 4 | BS154: - | BT154: - | BU154: - | BV154: - | BW154: - | BX154: - | BY154: - | BZ154: - | CA154: - | CB154: - | CC154: - | CD154: - | CE154: 2 | CF154: 1 | CG154: 1 | CH154: 3 | CI154: - | CJ154: - | CK154: - | CL154: - | CM154: - | CN154: - | CO154: - | CP154: - | CQ154: - | CR154: - | CS154: 2 | CT154: - | CU154: 1 | CV154: 0 | CW154: 0 | CX154: 0 | CY154: 0 | CZ154: 0 | DA154: 0 | DB154: 0 | DC154: 13 | DD154: 7 | DE154: 7 | DF154: - | DG154: - | DH154: 3 | DI154: 2 | DJ154: 1 | DK154: 4 | DL154: - | DM154: - | DN154: - | DO154: - | DP154: 4 | DQ154: - | DR154: - | DS154: - | DT154: - | DU154: - | DV154: - | DW154: - | DX154: - | DY154: - | DZ154: - | EA154: 4 | EB154: 149 | EC154: 4 | ED154: 144 | EE154: 1 | EF154: 7 | EG154: 6 | EH154: 6 | EI154: - | EJ154: - | EK154: - | EL154: 1 | EM154: - | EN154: 6 | EO154: 1 | EP154: 1 | EQ154: - | ER154: - | ES154: 3 | ET154: 1 | EU154: 1
A155: 神奈川県 | B155: 戸塚区（横浜市） | C155: 川上村 | D155: 舞岡上分 | E155: 24 | F155: 16 | G155: 11 | H155: 10 | I155: - | J155: - | K155: 5 | L155: 8 | M155: 49 | N155: - | O155: - | P155: 4 | Q155: 4 | R155: 1 | S155: 5 | T155: 1 | U155: 3 | V155: 6 | W155: 7 | X155: 5 | Y155: 7 | Z155: 3 | AA155: 2 | AB155: 1 | AC155: 57.2 | AD155: 54.1 | AE155: 60.2 | AF155: 44 | AG155: - | AH155: - | AI155: 3 | AJ155: 3 | AK155: 1 | AL155: 5 | AM155: 1 | AN155: 3 | AO155: 4 | AP155: 6 | AQ155: 5 | AR155: 7 | AS155: 3 | AT155: 2 | AU155: 1 | AV155: 58.5 | AW155: 55.0 | AX155: 62.0 | AY155: 38 | AZ155: - | BA155: - | BB155: 2 | BC155: 2 | BD155: 1 | BE155: 5 | BF155: 1 | BG155: 2 | BH155: 3 | BI155: 5 | BJ155: 5 | BK155: 7 | BL155: 3 | BM155: 1 | BN155: 1 | BO155: 59.5 | BP155: 55.1 | BQ155: 64.8 | BR155: 16 | BS155: - | BT155: - | BU155: - | BV155: - | BW155: - | BX155: - | BY155: - | BZ155: 2 | CA155: 3 | CB155: 4 | CC155: 2 | CD155: 4 | CE155: 1 | CF155: - | CG155: - | CH155: 10 | CI155: - | CJ155: - | CK155: - | CL155: - | CM155: - | CN155: 1 | CO155: 3 | CP155: 3 | CQ155: 1 | CR155: 2 | CS155: - | CT155: - | CU155: - | CV155: 0 | CW155: 0 | CX155: 0 | CY155: 0 | CZ155: 0 | DA155: 0 | DB155: 0 | DC155: 58 | DD155: 44 | DE155: 38 | DF155: 4 | DG155: 2 | DH155: 7 | DI155: 5 | DJ155: 2 | DK155: 15 | DL155: - | DM155: - | DN155: 1 | DO155: - | DP155: 7 | DQ155: 2 | DR155: 3 | DS155: 1 | DT155: - | DU155: - | DV155: - | DW155: 1 | DX155: - | DY155: - | DZ155: - | EA155: 16 | EB155: 1,732 | EC155: 381 | ED155: 1,096 | EE155: 255 | EF155: 30 | EG155: 25 | EH155: 21 | EI155: 4 | EJ155: - | EK155: - | EL155: 4 | EM155: 1 | EN155: 28 | EO155: 19 | EP155: 17 | EQ155: - | ER155: 2 | ES155: 7 | ET155: 1 | EU155: 1
A156: 神奈川県 | B156: 戸塚区（横浜市） | C156: 川上村 | D156: 桜堂 | E156: 12 | F156: 6 | G156: 1 | H156: 1 | I156: 2 | J156: 2 | K156: 3 | L156: 6 | M156: 12 | N156: - | O156: - | P156: 1 | Q156: - | R156: 1 | S156: - | T156: - | U156: - | V156: 2 | W156: 2 | X156: 3 | Y156: 2 | Z156: 1 | AA156: - | AB156: - | AC156: 59.8 | AD156: 56.6 | AE156: 64.4 | AF156: 11 | AG156: - | AH156: - | AI156: - | AJ156: - | AK156: 1 | AL156: - | AM156: - | AN156: - | AO156: 2 | AP156: 2 | AQ156: 3 | AR156: 2 | AS156: 1 | AT156: - | AU156: - | AV156: 62.9 | AW156: 61.7 | AX156: 64.4 | AY156: 11 | AZ156: - | BA156: - | BB156: - | BC156: - | BD156: 1 | BE156: - | BF156: - | BG156: - | BH156: 2 | BI156: 2 | BJ156: 3 | BK156: 2 | BL156: 1 | BM156: - | BN156: - | BO156: 62.9 | BP156: 61.7 | BQ156: 64.4 | BR156: 6 | BS156: - | BT156: - | BU156: - | BV156: - | BW156: - | BX156: - | BY156: - | BZ156: - | CA156: - | CB156: 2 | CC156: 1 | CD156: 1 | CE156: 2 | CF156: - | CG156: - | CH156: 4 | CI156: - | CJ156: - | CK156: - | CL156: - | CM156: - | CN156: - | CO156: - | CP156: 2 | CQ156: 1 | CR156: 1 | CS156: - | CT156: - | CU156: - | CV156: 0 | CW156: 0 | CX156: 0 | CY156: 0 | CZ156: 0 | DA156: 0 | DB156: 0 | DC156: 22 | DD156: 16 | DE156: 11 | DF156: 5 | DG156: - | DH156: - | DI156: 2 | DJ156: 4 | DK156: 5 | DL156: - | DM156: - | DN156: - | DO156: - | DP156: 3 | DQ156: 1 | DR156: 1 | DS156: - | DT156: - | DU156: - | DV156: - | DW156: - | DX156: - | DY156: - | DZ156: - | EA156: 6 | EB156: 238 | EC156: - | ED156: 167 | EE156: 71 | EF156: 11 | EG156: 9 | EH156: 6 | EI156: 3 | EJ156: - | EK156: - | EL156: 1 | EM156: 1 | EN156: 11 | EO156: 7 | EP156: 5 | EQ156: 2 | ER156: - | ES156: - | ET156: 1 | EU156: 3
A157: 神奈川県 | B157: 戸塚区（横浜市） | C157: 大正村２－１ | E157: 197 | F157: 127 | G157: 58 | H157: 54 | I157: 20 | J157: 13 | K157: 49 | L157: 70 | M157: 358 | N157: 3 | O157: 11 | P157: 9 | Q157: 12 | R157: 10 | S157: 21 | T157: 29 | U157: 34 | V157: 32 | W157: 35 | X157: 24 | Y157: 41 | Z157: 42 | AA157: 34 | AB157: 21 | AC157: 60.6 | AD157: 59.3 | AE157: 62.3 | AF157: 307 | AG157: 3 | AH157: 6 | AI157: 6 | AJ157: 10 | AK157: 5 | AL157: 20 | AM157: 20 | AN157: 27 | AO157: 27 | AP157: 29 | AQ157: 22 | AR157: 40 | AS157: 41 | AT157: 30 | AU157: 21 | AV157: 62.4 | AW157: 61.2 | AX157: 63.9 | AY157: 249 | AZ157: - | BA157: 1 | BB157: 5 | BC157: 7 | BD157: 3 | BE157: 10 | BF157: 16 | BG157: 25 | BH157: 25 | BI157: 25 | BJ157: 21 | BK157: 36 | BL157: 36 | BM157: 23 | BN157: 16 | BO157: 64.3 | BP157: 63.0 | BQ157: 66.3 | BR157: 127 | BS157: - | BT157: - | BU157: - | BV157: - | BW157: 2 | BX157: 2 | BY157: 7 | BZ157: 13 | CA157: 14 | CB157: 20 | CC157: 10 | CD157: 16 | CE157: 26 | CF157: 11 | CG157: 6 | CH157: 68 | CI157: - | CJ157: - | CK157: - | CL157: - | CM157: 1 | CN157: 4 | CO157: 7 | CP157: 13 | CQ157: 4 | CR157: 10 | CS157: 18 | CT157: 7 | CU157: 4 | CV157: 0 | CW157: 0 | CX157: 0 | CY157: 0 | CZ157: 0 | DA157: 0 | DB157: 0 | DC157: 455 | DD157: 319 | DE157: 249 | DF157: 60 | DG157: 10 | DH157: 65 | DI157: 34 | DJ157: 37 | DK157: 119 | DL157: 1 | DM157: - | DN157: 7 | DO157: - | DP157: 75 | DQ157: 12 | DR157: 12 | DS157: 8 | DT157: 3 | DU157: 1 | DV157: - | DW157: - | DX157: - | DY157: - | DZ157: - | EA157: 127 | EB157: 11,709 | EC157: 839 | ED157: 9,730 | EE157: 1,140 | EF157: 235 | EG157: 198 | EH157: 154 | EI157: 38 | EJ157: 6 | EK157: 1 | EL157: 22 | EM157: 14 | EN157: 220 | EO157: 121 | EP157: 95 | EQ157: 22 | ER157: 4 | ES157: 64 | ET157: 12 | EU157: 23
A158: 神奈川県 | B158: 戸塚区（横浜市） | C158: 大正村２－１ | D158: 汲沢（２－１） | E158: 30 | F158: 21 | G158: 8 | H158: 8 | I158: 4 | J158: 2 | K158: 9 | L158: 9 | M158: 66 | N158: - | O158: 4 | P158: 2 | Q158: 1 | R158: 2 | S158: 1 | T158: 2 | U158: 9 | V158: 7 | W158: 5 | X158: 5 | Y158: 8 | Z158: 8 | AA158: 6 | AB158: 6 | AC158: 62.2 | AD158: 61.6 | AE158: 63.0 | AF158: 54 | AG158: - | AH158: 3 | AI158: - | AJ158: 1 | AK158: 2 | AL158: 1 | AM158: 1 | AN158: 6 | AO158: 5 | AP158: 4 | AQ158: 4 | AR158: 8 | AS158: 8 | AT158: 5 | AU158: 6 | AV158: 64.9 | AW158: 64.4 | AX158: 65.6 | AY158: 45 | AZ158: - | BA158: 1 | BB158: - | BC158: - | BD158: 1 | BE158: - | BF158: 1 | BG158: 6 | BH158: 4 | BI158: 4 | BJ158: 4 | BK158: 6 | BL158: 8 | BM158: 4 | BN158: 6 | BO158: 68.1 | BP158: 68.4 | BQ158: 67.7 | BR158: 21 | BS158: - | BT158: - | BU158: - | BV158: - | BW158: - | BX158: - | BY158: - | BZ158: 2 | CA158: 3 | CB158: 2 | CC158: 3 | CD158: 1 | CE158: 5 | CF158: 3 | CG158: 2 | CH158: 13 | CI158: - | CJ158: - | CK158: - | CL158: - | CM158: - | CN158: 1 | CO158: 1 | CP158: 2 | CQ158: - | CR158: 1 | CS158: 4 | CT158: 2 | CU158: 2 | CV158: 0 | CW158: 0 | CX158: 0 | CY158: 0 | CZ158: 0 | DA158: 0 | DB158: 0 | DC158: 86 | DD158: 62 | DE158: 45 | DF158: 17 | DG158: - | DH158: 11 | DI158: 8 | DJ158: 5 | DK158: 21 | DL158: - | DM158: - | DN158: 2 | DO158: - | DP158: 9 | DQ158: 3 | DR158: 5 | DS158: 1 | DT158: - | DU158: 1 | DV158: - | DW158: - | DX158: - | DY158: - | DZ158: - | EA158: 21 | EB158: 1,693 | EC158: - | ED158: 1,388 | EE158: 305 | EF158: 49 | EG158: 39 | EH158: 28 | EI158: 11 | EJ158: - | EK158: - | EL158: 7 | EM158: 3 | EN158: 37 | EO158: 23 | EP158: 17 | EQ158: 6 | ER158: - | ES158: 11 | ET158: 1 | EU158: 2
A159: 神奈川県 | B159: 戸塚区（横浜市） | C159: 大正村２－１ | D159: 深谷（２－１） | E159: 30 | F159: 18 | G159: 9 | H159: 9 | I159: 3 | J159: 3 | K159: 6 | L159: 12 | M159: 50 | N159: - | O159: - | P159: 2 | Q159: 4 | R159: 4 | S159: 4 | T159: 4 | U159: 5 | V159: 1 | W159: 4 | X159: 5 | Y159: 8 | Z159: 4 | AA159: 4 | AB159: 1 | AC159: 57.4 | AD159: 57.7 | AE159: 57.0 | AF159: 42 | AG159: - | AH159: - | AI159: 1 | AJ159: 3 | AK159: 2 | AL159: 4 | AM159: 2 | AN159: 5 | AO159: 1 | AP159: 3 | AQ159: 5 | AR159: 8 | AS159: 4 | AT159: 3 | AU159: 1 | AV159: 59.4 | AW159: 59.8 | AX159: 58.8 | AY159: 34 | AZ159: - | BA159: - | BB159: - | BC159: 2 | BD159: 2 | BE159: 2 | BF159: 2 | BG159: 4 | BH159: 1 | BI159: 3 | BJ159: 4 | BK159: 8 | BL159: 3 | BM159: 2 | BN159: 1 | BO159: 61.1 | BP159: 59.7 | BQ159: 63.8 | BR159: 18 | BS159: - | BT159: - | BU159: - | BV159: - | BW159: 2 | BX159: 1 | BY159: 1 | BZ159: 3 | CA159: 1 | CB159: 1 | CC159: 2 | CD159: 5 | CE159: 2 | CF159: - | CG159: - | CH159: 7 | CI159: - | CJ159: - | CK159: - | CL159: - | CM159: - | CN159: 1 | CO159: - | CP159: 1 | CQ159: 1 | CR159: 3 | CS159: 1 | CT159: - | CU159: - | CV159: 0 | CW159: 0 | CX159: 0 | CY159: 0 | CZ159: 0 | DA159: 0 | DB159: 0 | DC159: 64 | DD159: 42 | DE159: 34 | DF159: 8 | DG159: - | DH159: 14 | DI159: 3 | DJ159: 5 | DK159: 18 | DL159: - | DM159: - | DN159: - | DO159: - | DP159: 11 | DQ159: 4 | DR159: 2 | DS159: 1 | DT159: - | DU159: - | DV159: - | DW159: - | DX159: - | DY159: - | DZ159: - | EA159: 18 | EB159: 1,852 | EC159: 123 | ED159: 1,524 | EE159: 205 | EF159: 33 | EG159: 26 | EH159: 22 | EI159: 4 | EJ159: - | EK159: 1 | EL159: 3 | EM159: 3 | EN159: 31 | EO159: 16 | EP159: 12 | EQ159: 4 | ER159: - | ES159: 13 | ET159: - | EU159: 2
A160: 神奈川県 | B160: 戸塚区（横浜市） | C160: 大正村２－１ | D160: 深谷谷戸（２－１） | E160: 8 | F160: 8 | G160: 3 | H160: 3 | I160: 2 | J160: 1 | K160: 3 | L160: - | M160: 19 | N160: - | O160: - | P160: - | Q160: - | R160: - | S160: 2 | T160: 4 | U160: - | V160: 1 | W160: 2 | X160: 1 | Y160: 3 | Z160: 3 | AA160: 3 | AB160: - | AC160: 63.7 | AD160: 65.0 | AE160: 62.0 | AF160: 17 | AG160: - | AH160: - | AI160: - | AJ160: - | AK160: - | AL160: 2 | AM160: 3 | AN160: - | AO160: 1 | AP160: 1 | AQ160: 1 | AR160: 3 | AS160: 3 | AT160: 3 | AU160: - | AV160: 65.0 | AW160: 65.4 | AX160: 64.4 | AY160: 15 | AZ160: - | BA160: - | BB160: - | BC160: - | BD160: - | BE160: 1 | BF160: 2 | BG160: - | BH160: 1 | BI160: 1 | BJ160: 1 | BK160: 3 | BL160: 3 | BM160: 3 | BN160: - | BO160: 68.0 | BP160: 65.4 | BQ160: 73.2 | BR160: 8 | BS160: - | BT160: - | BU160: - | BV160: - | BW160: - | BX160: - | BY160: - | BZ160: - | CA160: 1 | CB160: 1 | CC160: 1 | CD160: 1 | CE160: 2 | CF160: 2 | CG160: - | CH160: 4 | CI160: - | CJ160: - | CK160: - | CL160: - | CM160: - | CN160: - | CO160: - | CP160: 1 | CQ160: - | CR160: 1 | CS160: 2 | CT160: - | CU160: - | CV160: 0 | CW160: 0 | CX160: 0 | CY160: 0 | CZ160: 0 | DA160: 0 | DB160: 0 | DC160: 26 | DD160: 20 | DE160: 15 | DF160: 5 | DG160: - | DH160: 3 | DI160: 2 | DJ160: 1 | DK160: 8 | DL160: - | DM160: - | DN160: 2 | DO160: - | DP160: 6 | DQ160: - | DR160: - | DS160: - | DT160: - | DU160: - | DV160: - | DW160: - | DX160: - | DY160: - | DZ160: - | EA160: 8 | EB160: 583 | EC160: - | ED160: 558 | EE160: 25 | EF160: 13 | EG160: 13 | EH160: 10 | EI160: 3 | EJ160: - | EK160: - | EL160: - | EM160: - | EN160: 13 | EO160: 7 | EP160: 5 | EQ160: 2 | ER160: - | ES160: 3 | ET160: 2 | EU160: 1
A161: 神奈川県 | B161: 戸塚区（横浜市） | C161: 大正村２－１ | D161: 原宿 | E161: 12 | F161: 10 | G161: 1 | H161: 1 | I161: 4 | J161: 4 | K161: 5 | L161: 2 | M161: 33 | N161: - | O161: 3 | P161: - | Q161: 2 | R161: 1 | S161: 2 | T161: 2 | U161: 4 | V161: 4 | W161: 2 | X161: 1 | Y161: - | Z161: 6 | AA161: 3 | AB161: 3 | AC161: 58.8 | AD161: 59.5 | AE161: 58.1 | AF161: 28 | AG161: - | AH161: 1 | AI161: - | AJ161: 2 | AK161: 1 | AL161: 2 | AM161: 2 | AN161: 3 | AO161: 4 | AP161: 2 | AQ161: 1 | AR161: - | AS161: 6 | AT161: 1 | AU161: 3 | AV161: 60.1 | AW161: 58.7 | AX161: 61.8 | AY161: 24 | AZ161: - | BA161: - | BB161: - | BC161: 1 | BD161: - | BE161: 2 | BF161: 2 | BG161: 3 | BH161: 4 | BI161: 2 | BJ161: 1 | BK161: - | BL161: 5 | BM161: 1 | BN161: 3 | BO161: 63.4 | BP161: 63.4 | BQ161: 63.5 | BR161: 10 | BS161: - | BT161: - | BU161: - | BV161: - | BW161: - | BX161: - | BY161: - | BZ161: 1 | CA161: 2 | CB161: 1 | CC161: - | CD161: - | CE161: 4 | CF161: 1 | CG161: 1 | CH161: 6 | CI161: - | CJ161: - | CK161: - | CL161: - | CM161: - | CN161: - | CO161: 2 | CP161: 1 | CQ161: - | CR161: - | CS161: 1 | CT161: 1 | CU161: 1 | CV161: 0 | CW161: 0 | CX161: 0 | CY161: 0 | CZ161: 0 | DA161: 0 | DB161: 0 | DC161: 44 | DD161: 27 | DE161: 24 | DF161: 2 | DG161: 1 | DH161: 5 | DI161: 6 | DJ161: 6 | DK161: 9 | DL161: - | DM161: - | DN161: - | DO161: - | DP161: 6 | DQ161: - | DR161: - | DS161: 2 | DT161: 1 | DU161: - | DV161: - | DW161: - | DX161: - | DY161: - | DZ161: - | EA161: 10 | EB161: 936 | EC161: - | ED161: 895 | EE161: 41 | EF161: 21 | EG161: 15 | EH161: 13 | EI161: 2 | EJ161: - | EK161: - | EL161: 4 | EM161: 2 | EN161: 23 | EO161: 12 | EP161: 11 | EQ161: - | ER161: 1 | ES161: 5 | ET161: 2 | EU161: 4
A162: 神奈川県 | B162: 戸塚区（横浜市） | C162: 大正村２－１ | D162: 小雀 | E162: 39 | F162: 14 | G162: 8 | H162: 7 | I162: 3 | J162: 3 | K162: 3 | L162: 25 | M162: 45 | N162: - | O162: 2 | P162: 1 | Q162: 3 | R162: 1 | S162: 2 | T162: 3 | U162: 6 | V162: 5 | W162: 3 | X162: 4 | Y162: 4 | Z162: 4 | AA162: 6 | AB162: 1 | AC162: 59.2 | AD162: 55.8 | AE162: 63.5 | AF162: 40 | AG162: - | AH162: 2 | AI162: 1 | AJ162: 2 | AK162: - | AL162: 2 | AM162: 2 | AN162: 4 | AO162: 5 | AP162: 3 | AQ162: 4 | AR162: 4 | AS162: 4 | AT162: 6 | AU162: 1 | AV162: 61.2 | AW162: 57.6 | AX162: 65.5 | AY162: 32 | AZ162: - | BA162: - | BB162: 1 | BC162: 2 | BD162: - | BE162: 2 | BF162: 1 | BG162: 4 | BH162: 4 | BI162: 3 | BJ162: 4 | BK162: 3 | BL162: 4 | BM162: 4 | BN162: - | BO162: 61.7 | BP162: 59.3 | BQ162: 66.1 | BR162: 14 | BS162: - | BT162: - | BU162: - | BV162: - | BW162: - | BX162: - | BY162: - | BZ162: 3 | CA162: 2 | CB162: 2 | CC162: 2 | CD162: 2 | CE162: 2 | CF162: 1 | CG162: - | CH162: 12 | CI162: - | CJ162: - | CK162: - | CL162: - | CM162: - | CN162: 1 | CO162: 2 | CP162: 2 | CQ162: 2 | CR162: 2 | CS162: 2 | CT162: 1 | CU162: - | CV162: 0 | CW162: 0 | CX162: 0 | CY162: 0 | CZ162: 0 | DA162: 0 | DB162: 0 | DC162: 54 | DD162: 39 | DE162: 32 | DF162: 6 | DG162: 1 | DH162: 6 | DI162: 5 | DJ162: 4 | DK162: 14 | DL162: - | DM162: - | DN162: - | DO162: - | DP162: 10 | DQ162: - | DR162: 1 | DS162: 2 | DT162: 1 | DU162: - | DV162: - | DW162: - | DX162: - | DY162: - | DZ162: - | EA162: 14 | EB162: 1,478 | EC162: 91 | ED162: 1,245 | EE162: 142 | EF162: 27 | EG162: 25 | EH162: 21 | EI162: 3 | EJ162: 1 | EK162: - | EL162: 2 | EM162: - | EN162: 27 | EO162: 14 | EP162: 11 | EQ162: 3 | ER162: - | ES162: 6 | ET162: 3 | EU162: 4
A163: 神奈川県 | B163: 戸塚区（横浜市） | C163: 大正村２－１ | D163: 俣野 | E163: 25 | F163: 18 | G163: 7 | H163: 6 | I163: 2 | J163: - | K163: 9 | L163: 7 | M163: 40 | N163: - | O163: - | P163: 1 | Q163: 1 | R163: - | S163: 3 | T163: 5 | U163: 4 | V163: - | W163: 6 | X163: 3 | Y163: 5 | Z163: 7 | AA163: 4 | AB163: 1 | AC163: 62.5 | AD163: 61.2 | AE163: 64.2 | AF163: 35 | AG163: - | AH163: - | AI163: 1 | AJ163: 1 | AK163: - | AL163: 3 | AM163: 2 | AN163: 4 | AO163: - | AP163: 6 | AQ163: 2 | AR163: 5 | AS163: 6 | AT163: 4 | AU163: 1 | AV163: 63.3 | AW163: 62.7 | AX163: 63.9 | AY163: 28 | AZ163: - | BA163: - | BB163: 1 | BC163: 1 | BD163: - | BE163: 1 | BF163: 1 | BG163: 4 | BH163: - | BI163: 4 | BJ163: 2 | BK163: 4 | BL163: 6 | BM163: 3 | BN163: 1 | BO163: 64.6 | BP163: 62.7 | BQ163: 67.9 | BR163: 18 | BS163: - | BT163: - | BU163: - | BV163: - | BW163: - | BX163: 1 | BY163: 2 | BZ163: 2 | CA163: - | CB163: 4 | CC163: - | CD163: 2 | CE163: 6 | CF163: 1 | CG163: - | CH163: 7 | CI163: - | CJ163: - | CK163: - | CL163: - | CM163: 1 | CN163: - | CO163: - | CP163: 1 | CQ163: - | CR163: - | CS163: 4 | CT163: 1 | CU163: - | CV163: 0 | CW163: 0 | CX163: 0 | CY163: 0 | CZ163: 0 | DA163: 0 | DB163: 0 | DC163: 51 | DD163: 40 | DE163: 28 | DF163: 9 | DG163: 3 | DH163: 5 | DI163: - | DJ163: 6 | DK163: 16 | DL163: 1 | DM163: - | DN163: - | DO163: - | DP163: 11 | DQ163: 1 | DR163: 2 | DS163: 1 | DT163: - | DU163: - | DV163: - | DW163: - | DX163: - | DY163: - | DZ163: - | EA163: 18 | EB163: 1,415 | EC163: 137 | ED163: 1,123 | EE163: 155 | EF163: 27 | EG163: 26 | EH163: 18 | EI163: 6 | EJ163: 2 | EK163: - | EL163: - | EM163: 1 | EN163: 24 | EO163: 14 | EP163: 10 | EQ163: 3 | ER163: 1 | ES163: 5 | ET163: - | EU163: 5
A164: 神奈川県 | B164: 戸塚区（横浜市） | C164: 大正村２－１ | D164: 東俣野 | E164: 24 | F164: 18 | G164: 14 | H164: 12 | I164: 1 | J164: - | K164: 3 | L164: 6 | M164: 59 | N164: 2 | O164: 2 | P164: 3 | Q164: 1 | R164: 2 | S164: 2 | T164: 4 | U164: 4 | V164: 9 | W164: 8 | X164: 3 | Y164: 4 | Z164: 3 | AA164: 7 | AB164: 5 | AC164: 59.2 | AD164: 55.9 | AE164: 63.2 | AF164: 51 | AG164: 2 | AH164: - | AI164: 3 | AJ164: 1 | AK164: - | AL164: 1 | AM164: 4 | AN164: 3 | AO164: 8 | AP164: 7 | AQ164: 3 | AR164: 4 | AS164: 3 | AT164: 7 | AU164: 5 | AV164: 61.9 | AW164: 59.6 | AX164: 64.5 | AY164: 39 | AZ164: - | BA164: - | BB164: 3 | BC164: 1 | BD164: - | BE164: - | BF164: 3 | BG164: 3 | BH164: 8 | BI164: 6 | BJ164: 3 | BK164: 4 | BL164: 1 | BM164: 5 | BN164: 2 | BO164: 61.1 | BP164: 60.4 | BQ164: 62.1 | BR164: 18 | BS164: - | BT164: - | BU164: - | BV164: - | BW164: - | BX164: - | BY164: 1 | BZ164: 2 | CA164: 3 | CB164: 6 | CC164: 1 | CD164: 2 | CE164: - | CF164: 3 | CG164: - | CH164: 10 | CI164: - | CJ164: - | CK164: - | CL164: - | CM164: - | CN164: 1 | CO164: 1 | CP164: 4 | CQ164: 1 | CR164: 1 | CS164: - | CT164: 2 | CU164: - | CV164: 0 | CW164: 0 | CX164: 0 | CY164: 0 | CZ164: 0 | DA164: 0 | DB164: 0 | DC164: 71 | DD164: 50 | DE164: 39 | DF164: 7 | DG164: 4 | DH164: 8 | DI164: 7 | DJ164: 6 | DK164: 18 | DL164: - | DM164: - | DN164: - | DO164: - | DP164: 13 | DQ164: 3 | DR164: 1 | DS164: 1 | DT164: - | DU164: - | DV164: - | DW164: - | DX164: - | DY164: - | DZ164: - | EA164: 18 | EB164: 2,137 | EC164: 210 | ED164: 1,727 | EE164: 200 | EF164: 37 | EG164: 30 | EH164: 23 | EI164: 5 | EJ164: 2 | EK164: - | EL164: 4 | EM164: 3 | EN164: 34 | EO164: 20 | EP164: 16 | EQ164: 2 | ER164: 2 | ES164: 8 | ET164: 3 | EU164: 3
A165: 神奈川県 | B165: 戸塚区（横浜市） | C165: 大正村２－１ | D165: 共栄 | E165: 15 | F165: 12 | G165: 5 | H165: 5 | I165: - | J165: - | K165: 7 | L165: 3 | M165: 26 | N165: - | O165: - | P165: - | Q165: - | R165: - | S165: 1 | T165: 2 | U165: 2 | V165: 4 | W165: 4 | X165: 1 | Y165: 7 | Z165: 2 | AA165: 1 | AB165: 2 | AC165: 65.3 | AD165: 63.9 | AE165: 66.5 | AF165: 22 | AG165: - | AH165: - | AI165: - | AJ165: - | AK165: - | AL165: 1 | AM165: 1 | AN165: 2 | AO165: 3 | AP165: 3 | AQ165: 1 | AR165: 6 | AS165: 2 | AT165: 1 | AU165: 2 | AV165: 66.3 | AW165: 65.9 | AX165: 66.6 | AY165: 19 | AZ165: - | BA165: - | BB165: - | BC165: - | BD165: - | BE165: - | BF165: 1 | BG165: 1 | BH165: 3 | BI165: 2 | BJ165: 1 | BK165: 6 | BL165: 2 | BM165: 1 | BN165: 2 | BO165: 68.8 | BP165: 65.9 | BQ165: 72.0 | BR165: 12 | BS165: - | BT165: - | BU165: - | BV165: - | BW165: - | BX165: - | BY165: 1 | BZ165: - | CA165: 2 | CB165: 2 | CC165: - | CD165: 3 | CE165: 2 | CF165: - | CG165: 2 | CH165: 5 | CI165: - | CJ165: - | CK165: - | CL165: - | CM165: - | CN165: - | CO165: 1 | CP165: - | CQ165: - | CR165: 2 | CS165: 1 | CT165: - | CU165: 1 | CV165: 0 | CW165: 0 | CX165: 0 | CY165: 0 | CZ165: 0 | DA165: 0 | DB165: 0 | DC165: 31 | DD165: 21 | DE165: 19 | DF165: 1 | DG165: 1 | DH165: 7 | DI165: 1 | DJ165: 2 | DK165: 8 | DL165: - | DM165: - | DN165: 1 | DO165: - | DP165: 6 | DQ165: 1 | DR165: - | DS165: - | DT165: - | DU165: - | DV165: - | DW165: - | DX165: - | DY165: - | DZ165: - | EA165: 12 | EB165: 996 | EC165: 243 | ED165: 745 | EE165: 8 | EF165: 14 | EG165: 12 | EH165: 10 | EI165: 1 | EJ165: 1 | EK165: - | EL165: 1 | EM165: 1 | EN165: 17 | EO165: 9 | EP165: 9 | EQ165: - | ER165: - | ES165: 7 | ET165: - | EU165: 1
A166: 神奈川県 | B166: 戸塚区（横浜市） | C166: 大正村２－１ | D166: 影取 | E166: 14 | F166: 8 | G166: 3 | H166: 3 | I166: 1 | J166: - | K166: 4 | L166: 6 | M166: 20 | N166: 1 | O166: - | P166: - | Q166: - | R166: - | S166: 4 | T166: 3 | U166: - | V166: 1 | W166: 1 | X166: 1 | Y166: 2 | Z166: 5 | AA166: - | AB166: 2 | AC166: 61.5 | AD166: 59.3 | AE166: 64.1 | AF166: 18 | AG166: 1 | AH166: - | AI166: - | AJ166: - | AK166: - | AL166: 4 | AM166: 3 | AN166: - | AO166: - | AP166: - | AQ166: 1 | AR166: 2 | AS166: 5 | AT166: - | AU166: 2 | AV166: 61.6 | AW166: 59.1 | AX166: 64.8 | AY166: 13 | AZ166: - | BA166: - | BB166: - | BC166: - | BD166: - | BE166: 2 | BF166: 3 | BG166: - | BH166: - | BI166: - | BJ166: 1 | BK166: 2 | BL166: 4 | BM166: - | BN166: 1 | BO166: 64.6 | BP166: 63.8 | BQ166: 66.5 | BR166: 8 | BS166: - | BT166: - | BU166: - | BV166: - | BW166: - | BX166: - | BY166: 2 | BZ166: - | CA166: - | CB166: 1 | CC166: 1 | CD166: - | CE166: 3 | CF166: - | CG166: 1 | CH166: 4 | CI166: - | CJ166: - | CK166: - | CL166: - | CM166: - | CN166: - | CO166: - | CP166: 1 | CQ166: - | CR166: - | CS166: 3 | CT166: - | CU166: - | CV166: 0 | CW166: 0 | CX166: 0 | CY166: 0 | CZ166: 0 | DA166: 0 | DB166: 0 | DC166: 28 | DD166: 18 | DE166: 13 | DF166: 5 | DG166: - | DH166: 6 | DI166: 2 | DJ166: 2 | DK166: 7 | DL166: - | DM166: - | DN166: 2 | DO166: - | DP166: 3 | DQ166: - | DR166: 1 | DS166: - | DT166: 1 | DU166: - | DV166: - | DW166: - | DX166: - | DY166: - | DZ166: - | EA166: 8 | EB166: 619 | EC166: 35 | ED166: 525 | EE166: 59 | EF166: 14 | EG166: 12 | EH166: 9 | EI166: 3 | EJ166: - | EK166: - | EL166: 1 | EM166: 1 | EN166: 14 | EO166: 6 | EP166: 4 | EQ166: 2 | ER166: - | ES166: 6 | ET166: 1 | EU166: 1
A167: 神奈川県 | B167: 戸塚区（横浜市） | C167: 中川村３－１ | E167: 48 | F167: 23 | G167: 3 | H167: 3 | I167: 9 | J167: 6 | K167: 11 | L167: 25 | M167: 74 | N167: 1 | O167: 1 | P167: - | Q167: 4 | R167: 6 | S167: 3 | T167: 9 | U167: 4 | V167: 4 | W167: 8 | X167: 6 | Y167: 13 | Z167: 10 | AA167: 1 | AB167: 4 | AC167: 59.6 | AD167: 58.1 | AE167: 61.2 | AF167: 43 | AG167: - | AH167: - | AI167: - | AJ167: 1 | AK167: 1 | AL167: - | AM167: 2 | AN167: 3 | AO167: 3 | AP167: 5 | AQ167: 6 | AR167: 9 | AS167: 9 | AT167: 1 | AU167: 3 | AV167: 67.2 | AW167: 68.8 | AX167: 65.5 | AY167: 34 | AZ167: - | BA167: - | BB167: - | BC167: 1 | BD167: - | BE167: - | BF167: 1 | BG167: 3 | BH167: 3 | BI167: 4 | BJ167: 6 | BK167: 7 | BL167: 5 | BM167: 1 | BN167: 3 | BO167: 67.4 | BP167: 67.8 | BQ167: 66.9 | BR167: 23 | BS167: - | BT167: - | BU167: - | BV167: - | BW167: - | BX167: - | BY167: 1 | BZ167: - | CA167: 2 | CB167: 3 | CC167: 4 | CD167: 5 | CE167: 6 | CF167: 1 | CG167: 1 | CH167: 17 | CI167: - | CJ167: - | CK167: - | CL167: - | CM167: 1 | CN167: - | CO167: 1 | CP167: 1 | CQ167: 4 | CR167: 4 | CS167: 4 | CT167: 1 | CU167: 1 | CV167: 0 | CW167: 0 | CX167: 0 | CY167: 0 | CZ167: 0 | DA167: 0 | DB167: 0 | DC167: 99 | DD167: 64 | DE167: 34 | DF167: 28 | DG167: 2 | DH167: 16 | DI167: 11 | DJ167: 8 | DK167: 18 | DL167: - | DM167: - | DN167: - | DO167: - | DP167: 14 | DQ167: - | DR167: 3 | DS167: - | DT167: 1 | DU167: - | DV167: - | DW167: - | DX167: - | DY167: - | DZ167: - | EA167: 23 | EB167: 1,567 | EC167: 6 | ED167: 1,177 | EE167: 384 | EF167: 51 | EG167: 40 | EH167: 20 | EI167: 18 | EJ167: 2 | EK167: - | EL167: 8 | EM167: 3 | EN167: 48 | EO167: 24 | EP167: 14 | EQ167: 10 | ER167: - | ES167: 16 | ET167: 3 | EU167: 5
A168: 神奈川県 | B168: 戸塚区（横浜市） | C168: 中川村３－１ | D168: 日森 | E168: 2 | F168: 2 | G168: x | H168: x | I168: x | J168: x | K168: x | L168: - | M168: x | N168: x | O168: x | P168: x | Q168: x | R168: x | S168: x | T168: x | U168: x | V168: x | W168: x | X168: x | Y168: x | Z168: x | AA168: x | AB168: x | AC168: 57.8 | AD168: 57.7 | AE168: 58.0 | AF168: x | AG168: x | AH168: x | AI168: x | AJ168: x | AK168: x | AL168: x | AM168: x | AN168: x | AO168: x | AP168: x | AQ168: x | AR168: x | AS168: x | AT168: x | AU168: x | AV168: 65.5 | AW168: 65.5 | AX168: … | AY168: x | AZ168: x | BA168: x | BB168: x | BC168: x | BD168: x | BE168: x | BF168: x | BG168: x | BH168: x | BI168: x | BJ168: x | BK168: x | BL168: x | BM168: x | BN168: x | BO168: 65.5 | BP168: 65.5 | BQ168: … | BR168: 2 | BS168: - | BT168: - | BU168: - | BV168: - | BW168: - | BX168: - | BY168: - | BZ168: - | CA168: 1 | CB168: - | CC168: - | CD168: 1 | CE168: - | CF168: - | CG168: - | CH168: 1 | CI168: - | CJ168: - | CK168: - | CL168: - | CM168: - | CN168: - | CO168: - | CP168: - | CQ168: - | CR168: 1 | CS168: - | CT168: - | CU168: - | CV168: 0 | CW168: 0 | CX168: 0 | CY168: 0 | CZ168: 0 | DA168: 0 | DB168: 0 | DC168: 10 | DD168: 7 | DE168: 2 | DF168: 5 | DG168: - | DH168: 1 | DI168: 1 | DJ168: 1 | DK168: 2 | DL168: - | DM168: - | DN168: - | DO168: - | DP168: 2 | DQ168: - | DR168: - | DS168: - | DT168: - | DU168: - | DV168: - | DW168: - | DX168: - | DY168: - | DZ168: - | EA168: 2 | EB168: 125 | EC168: - | ED168: 105 | EE168: 20 | EF168: 5 | EG168: 4 | EH168: 2 | EI168: 2 | EJ168: - | EK168: - | EL168: 1 | EM168: - | EN168: 5 | EO168: 3 | EP168: - | EQ168: 3 | ER168: - | ES168: 1 | ET168: - | EU168: 1
A169: 神奈川県 | B169: 戸塚区（横浜市） | C169: 中川村３－１ | D169: 片曽 | E169: 6 | F169: 2 | G169: x | H169: x | I169: x | J169: x | K169: x | L169: 4 | M169: x | N169: x | O169: x | P169: x | Q169: x | R169: x | S169: x | T169: x | U169: x | V169: x | W169: x | X169: x | Y169: x | Z169: x | AA169: x | AB169: x | AC169: 64.1 | AD169: 60.7 | AE169: 66.8 | AF169: x | AG169: x | AH169: x | AI169: x | AJ169: x | AK169: x | AL169: x | AM169: x | AN169: x | AO169: x | AP169: x | AQ169: x | AR169: x | AS169: x | AT169: x | AU169: x | AV169: 68.7 | AW169: 73.0 | AX169: 66.5 | AY169: x | AZ169: x | BA169: x | BB169: x | BC169: x | BD169: x | BE169: x | BF169: x | BG169: x | BH169: x | BI169: x | BJ169: x | BK169: x | BL169: x | BM169: x | BN169: x | BO169: 68.7 | BP169: 73.0 | BQ169: 66.5 | BR169: 2 | BS169: - | BT169: - | BU169: - | BV169: - | BW169: - | BX169: - | BY169: - | BZ169: - | CA169: - | CB169: 1 | CC169: - | CD169: 1 | CE169: - | CF169: - | CG169: - | CH169: 1 | CI169: - | CJ169: - | CK169: - | CL169: - | CM169: - | CN169: - | CO169: - | CP169: - | CQ169: - | CR169: 1 | CS169: - | CT169: - | CU169: - | CV169: 0 | CW169: 0 | CX169: 0 | CY169: 0 | CZ169: 0 | DA169: 0 | DB169: 0 | DC169: 11 | DD169: 8 | DE169: 3 | DF169: 5 | DG169: - | DH169: 1 | DI169: 2 | DJ169: - | DK169: 1 | DL169: - | DM169: - | DN169: - | DO169: - | DP169: 1 | DQ169: - | DR169: - | DS169: - | DT169: - | DU169: - | DV169: - | DW169: - | DX169: - | DY169: - | DZ169: - | EA169: 2 | EB169: 210 | EC169: 1 | ED169: 138 | EE169: 71 | EF169: 6 | EG169: 4 | EH169: 1 | EI169: 3 | EJ169: - | EK169: - | EL169: 2 | EM169: - | EN169: 5 | EO169: 4 | EP169: 2 | EQ169: 2 | ER169: - | ES169: 1 | ET169: - | EU169: -
A170: 神奈川県 | B170: 戸塚区（横浜市） | C170: 中川村３－１ | D170: 篠塚 | E170: 3 | F170: 2 | G170: x | H170: x | I170: x | J170: x | K170: x | L170: 1 | M170: x | N170: x | O170: x | P170: x | Q170: x | R170: x | S170: x | T170: x | U170: x | V170: x | W170: x | X170: x | Y170: x | Z170: x | AA170: x | AB170: x | AC170: 71.8 | AD170: 73.5 | AE170: 70.0 | AF170: x | AG170: x | AH170: x | AI170: x | AJ170: x | AK170: x | AL170: x | AM170: x | AN170: x | AO170: x | AP170: x | AQ170: x | AR170: x | AS170: x | AT170: x | AU170: x | AV170: 71.8 | AW170: 73.5 | AX170: 70.0 | AY170: x | AZ170: x | BA170: x | BB170: x | BC170: x | BD170: x | BE170: x | BF170: x | BG170: x | BH170: x | BI170: x | BJ170: x | BK170: x | BL170: x | BM170: x | BN170: x | BO170: 67.0 | BP170: 69.0 | BQ170: 65.0 | BR170: 2 | BS170: - | BT170: - | BU170: - | BV170: - | BW170: - | BX170: - | BY170: - | BZ170: - | CA170: - | CB170: - | CC170: 1 | CD170: - | CE170: 1 | CF170: - | CG170: - | CH170: 1 | CI170: - | CJ170: - | CK170: - | CL170: - | CM170: - | CN170: - | CO170: - | CP170: - | CQ170: 1 | CR170: - | CS170: - | CT170: - | CU170: - | CV170: 0 | CW170: 0 | CX170: 0 | CY170: 0 | CZ170: 0 | DA170: 0 | DB170: 0 | DC170: 6 | DD170: 4 | DE170: 2 | DF170: 2 | DG170: - | DH170: - | DI170: - | DJ170: 2 | DK170: 2 | DL170: - | DM170: - | DN170: - | DO170: - | DP170: 2 | DQ170: - | DR170: - | DS170: - | DT170: - | DU170: - | DV170: - | DW170: - | DX170: - | DY170: - | DZ170: - | EA170: 2 | EB170: 60 | EC170: - | ED170: 60 | EE170: - | EF170: 3 | EG170: 2 | EH170: 1 | EI170: 1 | EJ170: - | EK170: - | EL170: - | EM170: 1 | EN170: 3 | EO170: 2 | EP170: 1 | EQ170: 1 | ER170: - | ES170: - | ET170: - | EU170: 1
A171: 神奈川県 | B171: 戸塚区（横浜市） | C171: 中川村３－１ | D171: 名瀬 | E171: 6 | F171: 3 | G171: - | H171: - | I171: 2 | J171: 1 | K171: 1 | L171: 3 | M171: 11 | N171: 1 | O171: - | P171: - | Q171: - | R171: 3 | S171: - | T171: 2 | U171: - | V171: - | W171: 1 | X171: 1 | Y171: 2 | Z171: 1 | AA171: - | AB171: - | AC171: 51.4 | AD171: 48.0 | AE171: 54.2 | AF171: 4 | AG171: - | AH171: - | AI171: - | AJ171: - | AK171: - | AL171: - | AM171: - | AN171: - | AO171: - | AP171: 1 | AQ171: 1 | AR171: 1 | AS171: 1 | AT171: - | AU171: - | AV171: 69.5 | AW171: 71.0 | AX171: 68.0 | AY171: 3 | AZ171: - | BA171: - | BB171: - | BC171: - | BD171: - | BE171: - | BF171: - | BG171: - | BH171: - | BI171: 1 | BJ171: 1 | BK171: - | BL171: 1 | BM171: - | BN171: - | BO171: 68.0 | BP171: 71.0 | BQ171: 62.0 | BR171: 3 | BS171: - | BT171: - | BU171: - | BV171: - | BW171: - | BX171: - | BY171: 1 | BZ171: - | CA171: - | CB171: - | CC171: 1 | CD171: - | CE171: 1 | CF171: - | CG171: - | CH171: 3 | CI171: - | CJ171: - | CK171: - | CL171: - | CM171: 1 | CN171: - | CO171: - | CP171: - | CQ171: 1 | CR171: - | CS171: 1 | CT171: - | CU171: - | CV171: 0 | CW171: 0 | CX171: 0 | CY171: 0 | CZ171: 0 | DA171: 0 | DB171: 0 | DC171: 14 | DD171: 6 | DE171: 3 | DF171: 2 | DG171: 1 | DH171: 4 | DI171: 2 | DJ171: 2 | DK171: 3 | DL171: - | DM171: - | DN171: - | DO171: - | DP171: 2 | DQ171: - | DR171: - | DS171: - | DT171: 1 | DU171: - | DV171: - | DW171: - | DX171: - | DY171: - | DZ171: - | EA171: 3 | EB171: 303 | EC171: - | ED171: 281 | EE171: 22 | EF171: 6 | EG171: 4 | EH171: 2 | EI171: 1 | EJ171: 1 | EK171: - | EL171: 1 | EM171: 1 | EN171: 8 | EO171: 2 | EP171: 1 | EQ171: 1 | ER171: - | ES171: 4 | ET171: 1 | EU171: 1
A172: 神奈川県 | B172: 戸塚区（横浜市） | C172: 中川村３－１ | D172: 中村 | E172: 22 | F172: 10 | G172: 1 | H172: 1 | I172: 4 | J172: 4 | K172: 5 | L172: 12 | M172: 35 | N172: - | O172: 1 | P172: - | Q172: 4 | R172: 3 | S172: 1 | T172: 4 | U172: 1 | V172: 2 | W172: 5 | X172: 3 | Y172: 4 | Z172: 3 | AA172: 1 | AB172: 3 | AC172: 57.9 | AD172: 56.5 | AE172: 59.4 | AF172: 20 | AG172: - | AH172: - | AI172: - | AJ172: 1 | AK172: 1 | AL172: - | AM172: 1 | AN172: 1 | AO172: 1 | AP172: 4 | AQ172: 3 | AR172: 2 | AS172: 2 | AT172: 1 | AU172: 3 | AV172: 65.3 | AW172: 68.0 | AX172: 63.1 | AY172: 17 | AZ172: - | BA172: - | BB172: - | BC172: 1 | BD172: - | BE172: - | BF172: 1 | BG172: 1 | BH172: 1 | BI172: 3 | BJ172: 3 | BK172: 1 | BL172: 2 | BM172: 1 | BN172: 3 | BO172: 67.1 | BP172: 68.0 | BQ172: 66.0 | BR172: 10 | BS172: - | BT172: - | BU172: - | BV172: - | BW172: - | BX172: - | BY172: - | BZ172: - | CA172: 1 | CB172: 2 | CC172: 2 | CD172: 1 | CE172: 2 | CF172: 1 | CG172: 1 | CH172: 8 | CI172: - | CJ172: - | CK172: - | CL172: - | CM172: - | CN172: - | CO172: 1 | CP172: 1 | CQ172: 2 | CR172: 1 | CS172: 1 | CT172: 1 | CU172: 1 | CV172: 0 | CW172: 0 | CX172: 0 | CY172: 0 | CZ172: 0 | DA172: 0 | DB172: 0 | DC172: 43 | DD172: 31 | DE172: 17 | DF172: 13 | DG172: 1 | DH172: 6 | DI172: 4 | DJ172: 2 | DK172: 6 | DL172: - | DM172: - | DN172: - | DO172: - | DP172: 3 | DQ172: - | DR172: 3 | DS172: - | DT172: - | DU172: - | DV172: - | DW172: - | DX172: - | DY172: - | DZ172: - | EA172: 10 | EB172: 666 | EC172: 5 | ED172: 390 | EE172: 271 | EF172: 23 | EG172: 20 | EH172: 9 | EI172: 10 | EJ172: 1 | EK172: - | EL172: 3 | EM172: - | EN172: 20 | EO172: 11 | EP172: 8 | EQ172: 3 | ER172: - | ES172: 6 | ET172: 1 | EU172: 2
A173: 神奈川県 | B173: 戸塚区（横浜市） | C173: 中川村３－１ | D173: 羽根沢 | E173: 2 | F173: - | G173: - | H173: - | I173: - | J173: - | K173: - | L173: 2 | M173: - | N173: - | O173: - | P173: - | Q173: - | R173: - | S173: - | T173: - | U173: - | V173: - | W173: - | X173: - | Y173: - | Z173: - | AA173: - | AB173: - | AC173: … | AD173: … | AE173: … | AF173: - | AG173: - | AH173: - | AI173: - | AJ173: - | AK173: - | AL173: - | AM173: - | AN173: - | AO173: - | AP173: - | AQ173: - | AR173: - | AS173: - | AT173: - | AU173: - | AV173: … | AW173: … | AX173: … | AY173: - | AZ173: - | BA173: - | BB173: - | BC173: - | BD173: - | BE173: - | BF173: - | BG173: - | BH173: - | BI173: - | BJ173: - | BK173: - | BL173: - | BM173: - | BN173: - | BO173: … | BP173: … | BQ173: … | BR173: - | BS173: - | BT173: - | BU173: - | BV173: - | BW173: - | BX173: - | BY173: - | BZ173: - | CA173: - | CB173: - | CC173: - | CD173: - | CE173: - | CF173: - | CG173: - | CH173: - | CI173: - | CJ173: - | CK173: - | CL173: - | CM173: - | CN173: - | CO173: - | CP173: - | CQ173: - | CR173: - | CS173: - | CT173: - | CU173: - | CV173: 0 | CW173: 0 | CX173: 0 | CY173: 0 | CZ173: 0 | DA173: 0 | DB173: 0 | DC173: - | DD173: - | DE173: - | DF173: - | DG173: - | DH173: - | DI173: - | DJ173: - | DK173: - | DL173: - | DM173: - | DN173: - | DO173: - | DP173: - | DQ173: - | DR173: - | DS173: - | DT173: - | DU173: - | DV173: - | DW173: - | DX173: - | DY173: - | DZ173: - | EA173: - | EB173: - | EC173: - | ED173: - | EE173: - | EF173: - | EG173: - | EH173: - | EI173: - | EJ173: - | EK173: - | EL173: - | EM173: - | EN173: - | EO173: - | EP173: - | EQ173: - | ER173: - | ES173: - | ET173: - | EU173: -
